Workbook

Sheet User Guide
A3: Estimated cost per DALY averted thresholds using cross-country econometric evidence: tool
A6: This tool is targeted at researchers, policy makers and ley people interested in the estimation of country level cost effectiveness thresholds (CETs) using cross-country data. The tool has two purposes:
A8: 1. Enable users to interact with and explore the methods used to generate cost per DALY averted CETs in CHE Research Paper 122
A9: 2. Enable users to generate their own estimates of cost per DALY averted CETs by changing key input parameters in the model
A11: The model generates a range of estimates of cost per DALY averted CETs for LMICs. The model inputs come from publicly available data sources and the results of peer reviewed journal articles. All sources are listed on the Sources tab. The methods used are outlined fully in CHE Research Paper 122 including all equations. The sections below describe first how to interpret the model output and, then, the interactive parts of the model that users can alter are listed and explained below for the Results and Country tabs. Within each country for which this model has data, users may alter a number of key input parameters that will lead to different CET estimates. For an in depth account of assumptions, caveats and explanations of how the changes in inputs affect the CET estimates, see CHE Research Paper 122.
A13: 1. Interpreting model output
A14: As DALYs are the sum of YLLs and YLDs, given the range of input elasticities (i.e., on mortality rates as well as DALYs, YLLs and YLDs averted) there are four different ways of estimating DALYs averted that account for the effect of changes in expenditure on YLLs averted as well as both the direct and indirect effects on YLDs averted. The resulting estimates are presented in C53, C57, C61 and C65. See Table 2 in the Research Paper for an outline of each estimate. The methods for each are described in full in Chapter 2 (Sections 2.1 through 2.4). Each is described in brief below.
A16: Estimate 1 is mortality based.
A17: Survival:
A18: The effect of changes in spending on mortality rates is used to determine deaths averted (i.e., lives saved) among 0-5 and 15-60 year olds by determining baseline annual mortality rate (based on baseline mortality rate in each age group from cells C14:E14). The constant annual rate is calculated on the country tab in rows 17 and 18. These rates are weighted by weights generated for different age categories in row 15. The age specific baseline rates are calculated in rows 19 and 20. The rates from rows 19 and 20 are used alongside population (calculated as the absolute deaths divided by probability of death to maintain data source consistency) to determine baseline deaths in rows 21 and 22. Deaths after the hypothetical change in spending are calculated using the same methods in rows 25 through 30. Deaths averted are calculated in rows 31 and 32 as the difference between baseline deaths and deaths after the hypothetical change in spending for each age category within 0-5 and 15-60 years. Survival effects in these age groups are calculated using conditional live expectany, and summing accross age groups gives YLLs averted among 0-5 and 15-60 year olds by the change in spending. YLLs averted among the total population are then calculated by scaling up YLLs averted among 0-5 and 15-60 year olds using the ratio of YLLs among 0-5 and 15-60 year olds to YLLs among the total population. See cells C27 and C28 on the Results tab.
A19: Morbidity:
A20: Survival effects are used surrogate for the direct effect of the hypothetical change in spending on morbidity, while average morbidity burden is used to determine the indirect effect of spending on morbidity (i.e., the increase in morbidity that would result from increases in survival).
A21: DALYs averted:
A22: The sum of C24 and C39.
A24: Estimate 2 is based on directly estimated YLLs averted.
A25: Survival:
A26: Country level per capita YLLs are calculated by first multiplying absolute deaths in each age category by conditional life expectancy in each age category; then summing across age categories; and finally, dividing the total by population. The country specific elasticity on per capita YLLs (Results I15) is used to determine per capita YLLs averted, which when multiplied by population gives total YLLs averted.
A27: Morbidity:
A28: The same as for Estimate 1, survival effects (this time based on directly estimated YLLs averted) are used surrogate for the direct effect of the hypothetical change in spending on morbidity, while average morbidity burden is used to determine the indirect effect of spending on morbidity (i.e., the increase in morbidity that would result from increases in survival).
A29: DALYs averted:
A30: The sum of H22 and H39.
A32: Estimate 3 uses directly estimated YLLs averted and directly estimated YLDs averted.
A33: Survival:
A34: See estimate 2.
A35: Morbidity:
A36: Country level YLDs are obtained from the Global Burden of disease and divided by population to obtain per capita estimates. The country specific elasticity on per capita YLDs (Results J15) is used to determine per capita YLDs averted, which when multiplied by population gives total YLDs averted.
A37: DALYs averted:
A38: The sum of H22 and H44.
A40: Estimate 4 uses directly estimated DALYs averted.
A41: DALYs averted:
A42: Country level per capita YLLs (see: row 26 for information on how these were calculated) are summed with YLDs from Global Burden of Disease, and divided by population to obtain per capita DALYs. The country specific elasticiy on per capita DALYs (Results K15) is used to determine per capita DALYs averted, which when multiplied by population gives total DALYs averted.
A44: 2. Changeable model inputs
A45: Results tab
A46: Country | C46: Users can choose from a drop down list of countries in cell B3. Countries included are those that were included in the original analysis (i.e., from Bokhari et al, 2007’s dataset) and for which data for all input parameters for year 2000 was available.
A47: Governement health expenditure per capita | C47: Per capita government expenditure on health in 2000 $. Cell C6.
A48: Baseline mortality rate | C48: For children under-5, adult females and adult males, C14:E14
A49: Elasticity on mortality | C49: D14:E14
A50: Baseline per capita DALY, YLL and YLD | C50: H14:J14
A51: Elasticity on per capita DALY, YLL and YLD | C51: I14:J14
A52: Country tab
A53: Absolute deaths | C53: By age category. Rows 9 and 10.
A54: Probability of death | C54: By age category. Rows 11 and 12.
A55: Population | C55: By age category and calculated using information about absolute deaths and probability of death. Rows 13 and 14.
A56: Conditional life expectancy | C56: By age category. Rows 34 and 35.
A58: Source: Ochalek, JM, Lomas, J & Claxton, KP 2015 'Cost per DALY averted thresholds for low- and middle-income countries: evidence from cross country data' CHE Research Paper, no. 122, Centre for Health Economics, University of York, York, UK, pp. 1-50.

Sheet Results
L1: Albania
B2: COUNTRY | L2: Algeria | M2: C6 | N2: =VLOOKUP(Results!$B$3,Outcomes!$A:$Q,5,FALSE) -> 64
B3: Egypt, Arab Rep. | L3: Argentina | M3: C10 | N3: =0.01*$C$7 -> 43342263.56
G4: RANGE OF COST PER DALY AVERTED ESTIMATES | L4: Armenia | M4: C-E14 | N4: =VLOOKUP(Results!$B$3,Outcomes!$A:$Q,6,FALSE) -> 44.8 | O4: =VLOOKUP(Results!$B$3,Outcomes!$A:$Q,8,FALSE) -> 134.983 | P4: =VLOOKUP(Results!$B$3,Outcomes!$A:$Q,7,FALSE) -> 216.8224
B5: INPUTS | G5: Range | H5: =CONCATENATE("$",ROUND(MIN(C49,C53,C57,C61),2)," - $",ROUND(MAX(C49,C53,C57,C61),2)) -> $199.43 - $323.85 | L5: Azerbaijan | M5: C-E15 | N5: =VLOOKUP(Results!$B$3,Outcomes!$A:$AW,21,FALSE)/100 -> -0.003327345252 | O5: =VLOOKUP(Results!$B$3,Outcomes!$A:$AW,15,FALSE)/100 -> -0.001817580312 | P5: =VLOOKUP(Results!$B$3,Outcomes!$A:$AW,17,FALSE)/100 -> -0.001844232082
B6: Govt Health Expenditures per capita (Int$,2000) | C6: =VLOOKUP($B$3,Outcomes!$A:$Q,5,FALSE) -> 64 | G6: GDP per capita | H6: =CONCATENATE("$",ROUND(VLOOKUP($B$3,Outcomes!$A:$BD,56,FALSE),2)) -> $865.98 | L6: Bangladesh | M6: H-J14 | N6: =VLOOKUP($B$3,Outcomes!$A:$BA,12,FALSE) -> 0.2784000039 | O6: =VLOOKUP($B$3,Outcomes!$A:$BA,10,FALSE) -> 0.1753112823 | P6: =VLOOKUP($B$3,Outcomes!$A:$BA,11,FALSE) -> 0.1030452251
B7: Total Govt Health Expenditures (Int$,2000) all pop | C7: =C8*C6 -> 4334226356 | G7: Range as a % of GDP per capita | H7: =CONCATENATE((ROUND(MIN(C49,C53,C57,C61)/VLOOKUP($B$3,Outcomes!$A:$BD,56,FALSE),2)*100),"% - ",(ROUND(MAX(C49,C53,C57,C61)/VLOOKUP($B$3,Outcomes!$A:$BD,56,FALSE),2)*100),"%") -> 23% - 37% | L7: Belarus | M7: H-J15 | N7: =VLOOKUP($B$3,Outcomes!$A:$BA,31,FALSE)/100 -> -0.002124287784 | O7: =VLOOKUP($B$3,Outcomes!$A:$BA,29,FALSE)/100 -> -0.003007488549 | P7: =VLOOKUP($B$3,Outcomes!$A:$BA,23,FALSE)/100 -> -0.0003018365428
B8: Population (total) | C8: =Country!AH17 -> 67722286.81 | D8: =VLOOKUP($B$3,Outcomes!$A:$Q,5,FALSE) -> 64 | L8: Belize
B9: Population (0-5 and 15-60) | C9: =Country!AH31 -> 46961021.79 | D9: =VLOOKUP($B$3,Outcomes!$A:$Q,6,FALSE) -> 44.8 | E9: =VLOOKUP($B$3,Outcomes!$A:$Q,8,FALSE) -> 134.983 | F9: =VLOOKUP($B$3,Outcomes!$A:$Q,7,FALSE) -> 216.8224 | G9: =VLOOKUP($B$3,Outcomes!$A:$BA,12,FALSE) -> 0.2784000039 | H9: =VLOOKUP($B$3,Outcomes!$A:$BA,10,FALSE) -> 0.1753112823 | I9: =VLOOKUP($B$3,Outcomes!$A:$BA,11,FALSE) -> 0.1030452251 | L9: Benin
B10: 1% increase in in public expenditure on health care per capita, all pop | C10: =0.01*$C$7 -> 43342263.56 | D10: =VLOOKUP($B$3,Outcomes!$A:$AW,21,FALSE)/100 -> -0.003327345252 | E10: =VLOOKUP($B$3,Outcomes!$A:$AW,15,FALSE)/100 -> -0.001817580312 | F10: =VLOOKUP($B$3,Outcomes!$A:$AW,17,FALSE)/100 -> -0.001844232082 | G10: =VLOOKUP($B$3,Outcomes!$A:$BA,31,FALSE)/100 -> -0.002124287784 | H10: =VLOOKUP($B$3,Outcomes!$A:$BA,29,FALSE)/100 -> -0.003007488549 | I10: =VLOOKUP($B$3,Outcomes!$A:$BA,23,FALSE)/100 -> -0.0003018365428 | L10: Bolivia
L11: Botswana
B12: EFFECTS | L12: Brazil
C13: children under age 5 | D13: adult females aged 15-60 | E13: adult males aged 15-60 | H13: DALY | I13: YLL | J13: YLD | L13: Bulgaria
B14: Observed mortality rate (deaths per 1,000) pre-change | C14: =VLOOKUP($B$3,Outcomes!$A:$Q,6,FALSE) -> 44.8 | D14: =VLOOKUP($B$3,Outcomes!$A:$Q,8,FALSE) -> 134.983 | E14: =VLOOKUP($B$3,Outcomes!$A:$Q,7,FALSE) -> 216.8224 | G14: Observed per capita burden pre-change | H14: =VLOOKUP($B$3,Outcomes!$A:$BA,12,FALSE) -> 0.2784000039 | I14: =VLOOKUP($B$3,Outcomes!$A:$BA,10,FALSE) -> 0.1753112823 | J14: =VLOOKUP($B$3,Outcomes!$A:$BA,11,FALSE) -> 0.1030452251 | L14: Burkina Faso
B15: Elasticity | C15: =VLOOKUP($B$3,Outcomes!$A:$AW,21,FALSE)/100 -> -0.003327345252 | D15: =VLOOKUP($B$3,Outcomes!$A:$AW,15,FALSE)/100 -> -0.001817580312 | E15: =VLOOKUP($B$3,Outcomes!$A:$AW,17,FALSE)/100 -> -0.001844232082 | G15: Elasticity | H15: =VLOOKUP($B$3,Outcomes!$A:$BA,31,FALSE)/100 -> -0.002124287784 | I15: =VLOOKUP($B$3,Outcomes!$A:$BA,29,FALSE)/100 -> -0.003007488549 | J15: =VLOOKUP($B$3,Outcomes!$A:$BA,23,FALSE)/100 -> -0.0003018365428 | L15: Burundi
B16: Observed mortality rate (deaths per 1,000) post-change | C16: =C14-(C14*(-1*C15)) -> 44.65093493 | D16: =D14-(D14*(-1*D15)) -> 134.7376576 | E16: 216.4225292 | G16: Observed per capita burden post-change | H16: =H14-(H14*(-1*H15)) -> 0.2778086022 | I16: =I14-(I14*(-1*I15)) -> 0.1747840356 | J16: =J14-(J14*(-1*J15)) -> 0.1030141223 | L16: Cambodia
L17: Cameroon
B18: RESULTS | L18: Cape Verde
B19: SURVIVAL | L19: Chad
B20: based on mortality estimates | G20: directly estimated YLLs averted | L20: Chile
B21: YLLs averted by age category | C21: =Country!AH21 -> 8706.946244 | D21: =Country!AI21 -> 3099.987261 | E21: =Country!AJ21 -> 5065.62717 | G21: Per capita YLL burden averted | H21: =I14-I16 -> 0.0005272466739 | L21: China
B22: YLLs averted among 0-5 and 15-60 year olds | C22: =SUM(C21:E21) -> 16872.56067 | G22: Total YLL burden averted | H22: =H21*$C$8 -> 35706.35047 | L22: Colombia
B23: Ratio of YLLs in 0-5 y/os and 15-60 yo/s to YLLS for total pop | C23: =VLOOKUP(B3,ratios!A:AI,35,FALSE) -> 0.7673418667 | L23: Comoros
B24: YLLS averted among total pop | C24: =C22/C23 -> 21988.32282 | L24: Congo, Dem. Rep.
L25: Congo, Rep.
B26: MORBIDITY | L26: Costa Rica
B27: Direct effect | L27: Cote d'Ivoire
B28: ratio of YLD to YLL in the population | L28: Croatia
B29: Ratio of YLD to YLL among total pop | C29: =VLOOKUP(B3,ratios!A:AG,33,FALSE) -> 0.587784347 | G29: Ratio of YLD to YLL among total pop | H29: =C29 -> 0.587784347 | L29: Dominican Republic
B30: Total YLDs averted among total pop | C30: =C24*C29 -> 12924.39197 | G30: Total YLDs averted (using ratio instead of direct estimation) | H30: =H22*H29 -> 20987.6339 | L30: Ecuador
L31: Egypt, Arab Rep.
B32: Indirect effect | L32: El Salvador
B33: average population burden | L33: Equatorial Guinea
B34: per capita YLD burden | C34: =VLOOKUP(B3,ratios!A:AG,27,FALSE) -> 0.1030452249 | G34: per capita YLD burden | H34: =VLOOKUP(B3,ratios!A:AG,27,FALSE) -> 0.1030452249 | L34: Eritrea
B35: YLDs gained from YLLs averted | C35: =C34*C24 -> 2265.79167 | G35: YLDs gained from YLLs averted | H35: =H34*H22 -> 3679.368915 | L35: Estonia
L36: Ethiopia
B37: Total effect | L37: Gabon
B38: direct effect - indirect effect | L38: Gambia, The
B39: YLDs averted | C39: =C30-C35 -> 10658.6003 | G39: YLDs averted | H39: =H30-H35 -> 17308.26498 | L39: Georgia
L40: Ghana
G41: Total effect | L41: Guatemala
G42: directly estimated | L42: Guinea
G43: Per capita YLD burden averted | H43: =J14-J16 -> 3.110281451e-05 | L43: Guinea-Bissau
G44: Total YLD burden averted | H44: =H43*$C$8 -> 2106.353725 | L44: Guyana
L45: Haiti
B46: COST PER DALY AVERTED ESTIMATES | L46: Honduras
B47: Estimate 1 | L47: Hungary
B48: DALYs averted | C48: =C24+C39 -> 32646.92311 | L48: India
B49: Cost per DALY averted | C49: =C10/C48*VLOOKUP(B3,'PPP conversion factor'!A:C,3,FALSE) -> 323.8531594 | L49: Indonesia
L50: Jamaica
B51: Estimate 2 | L51: Jordan
B52: DALYs averted | C52: =H22+H39 -> 53014.61545 | L52: Kazakhstan
B53: Cost per DALY averted | C53: =C10/C52*VLOOKUP(B3,'PPP conversion factor'!A:C,3,FALSE) -> 199.4319699 | L53: Kenya
L54: Korea, Rep.
B55: Estimate 3 | L55: Kyrgyz Republic
B56: DALYs aveerted | C56: =H22+H44 -> 37812.7042 | L56: Lebanon
B57: Cost per DALY averted | C57: =C10/C56*VLOOKUP(B3,'PPP conversion factor'!A:C,3,FALSE) -> 279.6099729 | L57: Lesotho
L58: Lithuania
B59: Estimate 4 | L59: Macedonia, FYR
B60: DALYs averted | C60: =(H14-H16)*C8 -> 40051.07741 | L60: Madagascar
B61: Cost per DALY averted | C61: =C10/C60*VLOOKUP(B3,'PPP conversion factor'!A:C,3,FALSE) -> 263.9831405 | L61: Malawi
L62: Malaysia
L63: Mali
L64: Mauritania
L65: Mauritius
L66: Mexico
L67: Moldova
L68: Mongolia
L69: Morocco
L70: Mozambique
L71: Namibia
L72: Nepal
L73: Nicaragua
L74: Niger
L75: Nigeria
L76: Pakistan
L77: Panama
L78: Paraguay
L79: Peru
L80: Philippines
L81: Romania
L82: Russian Federation
L83: Rwanda
L84: Senegal
L85: Sierra Leone
L86: South Africa
L87: Sri Lanka
L88: Sudan
L89: Swaziland
L90: Tajikistan
L91: Tanzania
L92: Thailand
L93: Togo
L94: Trinidad and Tobago
L95: Tunisia
L96: Turkey
L97: Turkmenistan
L98: Uganda
L99: Ukraine
L100: Uruguay
L101: Uzbekistan
L102: Venezuela, RB
L103: Vietnam
L104: Yemen, Rep.
L105: Zambia
L106: Zimbabwe

Sheet Country
B1: =Results!B3 -> Egypt, Arab Rep. | D1: death_rate1 | E1: death_rate2 | F1: death_rate3 | G1: death_rate4 | H1: death_rate5 | K1: death_rate6 | L1: death_rate7 | O1: death_rate8 | P1: death_rate9 | Q1: death_rate10 | R1: death_rate11 | S1: death_rate12 | T1: death_rate13 | U1: death_rate14 | V1: death_rate15 | W1: death_rate16 | AA1: death_rate17 | AB1: death_rate18 | AC1: death_rate19 | AD1: death_rate20 | AE1: death_rate21
B2: abs deaths (M,F) | C2: =VLOOKUP(B1,Fmort_GBD!A:B,2,FALSE) -> 56 | H2: age_cat_5 | K2: age_cat_6 | L2: age_cat_7 | O2: age_cat_8 | P2: age_cat_9 | Q2: age_cat_10 | R2: age_cat_11 | S2: age_cat_12 | T2: age_cat_13 | U2: age_cat_14 | V2: age_cat_15 | W2: age_cat_16 | AA2: age_cat_17 | AB2: age_cat_18 | AC2: age_cat_19 | AD2: age_cat_20 | AE2: age_cat_21
B3: LE, HALE, M, F | C3: =VLOOKUP(B1,F_LE_GBD!A:B,2,FALSE) -> 56 | D3: death_abs1 | E3: death_abs2 | F3: death_abs3 | G3: death_abs4 | H3: death_abs5 | K3: death_abs6 | L3: death_abs7 | O3: death_abs8 | P3: death_abs9 | Q3: death_abs10 | R3: death_abs11 | S3: death_abs12 | T3: death_abs13 | U3: death_abs14 | V3: death_abs15 | W3: death_abs16 | AA3: death_abs17 | AB3: death_abs18 | AC3: death_abs19 | AD3: death_abs20 | AE3: death_abs21
D4: le1 | E4: le2 | F4: le3 | G4: le4 | H4: le5 | K4: le6 | L4: le7 | O4: le8 | P4: le9 | Q4: le10 | R4: le11 | S4: le12 | T4: le13 | U4: le14 | V4: le15 | W4: le16 | AA4: le17 | AB4: le18 | AC4: le19 | AD4: le20 | AE4: le21
D5: hale1 | E5: hale2 | F5: hale3 | G5: hale4 | H5: hale5 | K5: hale6 | L5: hale7 | O5: hale8 | P5: hale9 | Q5: hale10 | R5: hale11 | S5: hale12 | T5: hale13 | U5: hale14 | V5: hale15 | W5: hale16 | AA5: hale17 | AB5: hale18 | AC5: hale19 | AD5: hale20 | AE5: hale21
B7: 0-4 year olds | N7: 15-60 year olds | AG7: Country: | AH7: =Results!B3 -> Egypt, Arab Rep.
B8: Baseline | D8: 0-6 days | E8: 7-27 days | F8: 28-364 days | G8: 0-1 years | H8: 1-4 years | I8: Total | K8: 5-9 | L8: 10-14 | O8: 15-19 | P8: 20-24 | Q8: 25-29 | R8: 30-34 | S8: 35-39 | T8: 40-44 | U8: 45-49 | V8: 50-54 | W8: 55-59 | X8: Total | Y8: Average | AA8: 60-64 | AB8: 65-69 | AC8: 70-74 | AD8: 75-79 | AE8: 80+
B9: Absolute # of deaths (GBD data) | C9: both | D9: =HLOOKUP($D$3,Bmort_GBD!$1:$192,$C$2,FALSE) -> 22039 | E9: =HLOOKUP($E$3,Bmort_GBD!$1:$192,$C$2,FALSE) -> 10374 | F9: =HLOOKUP($F$3,Bmort_GBD!$1:$192,$C$2,FALSE) -> 25595 | G9: =SUM(D9:F9) -> 58008 | H9: =HLOOKUP($H$3,Bmort_GBD!$1:$192,$C$2,FALSE) -> 15293 | I9: =SUM(G9:H9) -> 73301 | K9: =HLOOKUP($K$3,Fmort_GBD!$1:$192,$C$2,FALSE) -> 1957 | L9: =HLOOKUP($L$3,Fmort_GBD!$1:$192,$C$2,FALSE) -> 1758 | N9: females | O9: =HLOOKUP($O$3,Fmort_GBD!$1:$192,$C$2,FALSE) -> 2608 | P9: =HLOOKUP($P$3,Fmort_GBD!$1:$192,$C$2,FALSE) -> 2667 | Q9: =HLOOKUP($Q$3,Fmort_GBD!$1:$192,$C$2,FALSE) -> 2456 | R9: =HLOOKUP($R$3,Fmort_GBD!$1:$192,$C$2,FALSE) -> 2859 | S9: =HLOOKUP($S$3,Fmort_GBD!$1:$192,$C$2,FALSE) -> 4082 | T9: =HLOOKUP($T$3,Fmort_GBD!$1:$192,$C$2,FALSE) -> 4989 | U9: =HLOOKUP($U$3,Fmort_GBD!$1:$192,$C$2,FALSE) -> 6269 | V9: =HLOOKUP($V$3,Fmort_GBD!$1:$192,$C$2,FALSE) -> 8697 | W9: =HLOOKUP($W$3,Fmort_GBD!$1:$192,$C$2,FALSE) -> 9161 | X9: =SUM(O9:W9) -> 43788 | AA9: =HLOOKUP($AA$3,Fmort_GBD!$1:$192,$C$2,FALSE) -> 12574 | AB9: =HLOOKUP($AB$3,Fmort_GBD!$1:$192,$C$2,FALSE) -> 15787 | AC9: =HLOOKUP($AC$3,Fmort_GBD!$1:$192,$C$2,FALSE) -> 19822 | AD9: =HLOOKUP($AD$3,Fmort_GBD!$1:$192,$C$2,FALSE) -> 18573 | AE9: =HLOOKUP($AE$3,Fmort_GBD!$1:$192,$C$2,FALSE) -> 23679 | AG9: Checks
K10: =HLOOKUP($K$3,Mmort_GBD!$1:$192,$C$2,FALSE) -> 2523 | L10: =HLOOKUP($L$3,Mmort_GBD!$1:$192,$C$2,FALSE) -> 2389 | N10: males | O10: =HLOOKUP($O$3,Mmort_GBD!$1:$192,$C$2,FALSE) -> 4740 | P10: =HLOOKUP($P$3,Mmort_GBD!$1:$192,$C$2,FALSE) -> 5544 | Q10: =HLOOKUP($Q$3,Mmort_GBD!$1:$192,$C$2,FALSE) -> 4627 | R10: =HLOOKUP($R$3,Mmort_GBD!$1:$192,$C$2,FALSE) -> 4823 | S10: =HLOOKUP($S$3,Mmort_GBD!$1:$192,$C$2,FALSE) -> 6462 | T10: =HLOOKUP($T$3,Mmort_GBD!$1:$192,$C$2,FALSE) -> 8292 | U10: =HLOOKUP($U$3,Mmort_GBD!$1:$192,$C$2,FALSE) -> 10944 | V10: =HLOOKUP($V$3,Mmort_GBD!$1:$192,$C$2,FALSE) -> 14373 | W10: =HLOOKUP($W$3,Mmort_GBD!$1:$192,$C$2,FALSE) -> 14663 | X10: =SUM(O10:W10) -> 74468 | AA10: =HLOOKUP($AA$3,Mmort_GBD!$1:$192,$C$2,FALSE) -> 18880 | AB10: =HLOOKUP($AB$3,Mmort_GBD!$1:$192,$C$2,FALSE) -> 21338 | AC10: =HLOOKUP($AC$3,Mmort_GBD!$1:$192,$C$2,FALSE) -> 22961 | AD10: =HLOOKUP($AD$3,Mmort_GBD!$1:$192,$C$2,FALSE) -> 18947 | AE10: =HLOOKUP($AE$3,Mmort_GBD!$1:$192,$C$2,FALSE) -> 19241 | AH10: females | AI10: males | AJ10: under 5
B11: Baseline GBD probability of death | C11: both | D11: =HLOOKUP($D$1,Bmort_GBD!$1:$192,$C$2,FALSE)/100000 -> 0.662124 | E11: =HLOOKUP($E$1,Bmort_GBD!$1:$192,$C$2,FALSE)/100000 -> 0.104723 | F11: =HLOOKUP($F$1,Bmort_GBD!$1:$192,$C$2,FALSE)/100000 -> 0.016354 | G11: =G9/G13 -> 0.03417447555 | H11: =HLOOKUP($H$1,Bmort_GBD!$1:$192,$C$2,FALSE)/100000 -> 0.002333 | I11: =I9/I13 -> 0.008882292658 | K11: =HLOOKUP($K$1,Fmort_GBD!$1:$192,$C$2,FALSE)/100000 -> 0.000505 | L11: =HLOOKUP($L$1,Fmort_GBD!$1:$192,$C$2,FALSE)/100000 -> 0.000432 | N11: females | O11: =HLOOKUP($O$1,Fmort_GBD!$1:$192,$C$2,FALSE)/100000 -> 0.000691 | P11: =HLOOKUP($P$1,Fmort_GBD!$1:$192,$C$2,FALSE)/100000 -> 0.000863 | Q11: =HLOOKUP($Q$1,Fmort_GBD!$1:$192,$C$2,FALSE)/100000 -> 0.001025 | R11: =HLOOKUP($R$1,Fmort_GBD!$1:$192,$C$2,FALSE)/100000 -> 0.001321 | S11: =HLOOKUP($S$1,Fmort_GBD!$1:$192,$C$2,FALSE)/100000 -> 0.001996 | T11: =HLOOKUP($T$1,Fmort_GBD!$1:$192,$C$2,FALSE)/100000 -> 0.002667 | U11: =HLOOKUP($U$1,Fmort_GBD!$1:$192,$C$2,FALSE)/100000 -> 0.00405 | V11: =HLOOKUP($V$1,Fmort_GBD!$1:$192,$C$2,FALSE)/100000 -> 0.006378 | W11: =HLOOKUP($W$1,Fmort_GBD!$1:$192,$C$2,FALSE)/100000 -> 0.009499 | X11: =AVERAGE(O11:W11) -> 0.003165555556 | AA11: =HLOOKUP($AA$1,Fmort_GBD!$1:$192,$C$2,FALSE)/100000 -> 0.015325 | AB11: =HLOOKUP($AB$1,Fmort_GBD!$1:$192,$C$2,FALSE)/100000 -> 0.023885 | AC11: =HLOOKUP($AC$1,Fmort_GBD!$1:$192,$C$2,FALSE)/100000 -> 0.040426 | AD11: =HLOOKUP($AD$1,Fmort_GBD!$1:$192,$C$2,FALSE)/100000 -> 0.062829 | AE11: =HLOOKUP($AE$1,Fmort_GBD!$1:$192,$C$2,FALSE)/100000 -> 0.126117 | AG11: Cumulative probability of survival from GBD: | AH11: =1*((1-O11)^5)*((1-P11)^5)*((1-Q11)^5)*((1-R11)^5)*((1-S11)^5)*((1-T11)^5)*((1-U11)^5)*((1-V11)^5)*((1-W11)^5) -> 0.8668770661 | AI11: =1*((1-O12)^5)*((1-P12)^5)*((1-Q12)^5)*((1-R12)^5)*((1-S12)^5)*((1-T12)^5)*((1-U12)^5)*((1-V12)^5)*((1-W12)^5) -> 0.7840604582 | AJ11: =1*((1-G11)^1)*((1-H11)^4) -> 0.9568439329
K12: =HLOOKUP(K1,Mmort_GBD!$1:$192,$C$2,FALSE)/100000 -> 0.000626 | L12: =HLOOKUP(L1,Mmort_GBD!$1:$192,$C$2,FALSE)/100000 -> 0.000565 | N12: males | O12: =HLOOKUP($O$1,Mmort_GBD!$1:$192,$C$2,FALSE)/100000 -> 0.001215 | P12: =HLOOKUP($P$1,Mmort_GBD!$1:$192,$C$2,FALSE)/100000 -> 0.001723 | Q12: =HLOOKUP($Q$1,Mmort_GBD!$1:$192,$C$2,FALSE)/100000 -> 0.001866 | R12: =HLOOKUP($R$1,Mmort_GBD!$1:$192,$C$2,FALSE)/100000 -> 0.002203 | S12: =HLOOKUP($S$1,Mmort_GBD!$1:$192,$C$2,FALSE)/100000 -> 0.003143 | T12: =HLOOKUP($T$1,Mmort_GBD!$1:$192,$C$2,FALSE)/100000 -> 0.004519 | U12: =HLOOKUP($U$1,Mmort_GBD!$1:$192,$C$2,FALSE)/100000 -> 0.007083 | V12: =HLOOKUP($V$1,Mmort_GBD!$1:$192,$C$2,FALSE)/100000 -> 0.010606 | W12: =HLOOKUP($W$1,Mmort_GBD!$1:$192,$C$2,FALSE)/100000 -> 0.016062 | X12: =SUM(O12:W12) -> 0.04842 | AA12: =HLOOKUP($AA$1,Mmort_GBD!$1:$192,$C$2,FALSE)/100000 -> 0.024964 | AB12: =HLOOKUP($AB$1,Mmort_GBD!$1:$192,$C$2,FALSE)/100000 -> 0.036964 | AC12: =HLOOKUP($AC$1,Mmort_GBD!$1:$192,$C$2,FALSE)/100000 -> 0.05611 | AD12: =HLOOKUP($AD$1,Mmort_GBD!$1:$192,$C$2,FALSE)/100000 -> 0.083225 | AE12: =HLOOKUP($AE$1,Mmort_GBD!$1:$192,$C$2,FALSE)/100000 -> 0.145398 | AG12: Cumulative probability of death from GBD: | AH12: =1-AH11 -> 0.1331229339 | AI12: =1-AI11 -> 0.2159395418 | AJ12: =1-AJ11 -> 0.04315606709
B13: Population | C13: both | D13: =D9/D11 -> 33285.30608 | E13: =E9/E11 -> 99061.33323 | F13: =F9/F11 -> 1565060.536 | G13: =SUM(D13:F13) -> 1697407.175 | H13: =H9/H11 -> 6555079.297 | I13: =SUM(G13:H13) -> 8252486.472 | K13: =K9/K11 -> 3875247.525 | L13: =L9/L11 -> 4069444.444 | N13: females | O13: =O9/O11 -> 3774240.232 | P13: =P9/P11 -> 3090382.387 | Q13: 2396097.561 | R13: 2164269.493 | S13: 2045090.18 | T13: 1870641.17 | U13: 1547901.235 | V13: 1363593.603 | W13: 964417.3071 | X13: =SUM(O13:W13) -> 19216633.17 | AA13: 820489.3964 | AB13: 660958.7607 | AC13: 490328.0067 | AD13: 295611.899 | AE13: 187754.2282 | AG13: Cumulative probability of survival from UN/WB: | AH13: =1-AH14 -> 0.865017 | AI13: =1-AI14 -> 0.7831776 | AJ13: =1-AJ14 -> 0.9552
K14: =K10/K12 -> 4030351.438 | L14: =L10/L12 -> 4228318.584 | N14: males | O14: =O10/O12 -> 3901234.568 | P14: 3217643.645 | Q14: 2479635.584 | R14: 2189287.335 | S14: 2055997.455 | T14: 1834919.23 | U14: 1545108.005 | V14: 1355176.315 | W14: 912900.0125 | X14: =SUM(O14:W14) -> 19491902.15 | AA14: 756289.0562 | AB14: 577264.3653 | AC14: 409214.0438 | AD14: 227659.9579 | AE14: 132333.3196 | AG14: Cumulative probability of death from UN/WB: | AH14: =Results!D14/1000 -> 0.134983 | AI14: =Results!E14/1000 -> 0.2168224 | AJ14: =Results!C14/1000 -> 0.0448
B15: Weights based on baseline GBD probability | G15: =G11/(AVERAGE($G$11:$H$11)) -> 1.87219056 | H15: =H11/(AVERAGE($G$11:$H$11)) -> 0.1278094398 | I15: =AVERAGE(D15:H15) -> 1 | N15: females | O15: =O11/(AVERAGE($O$11:$W$11)) -> 0.2182871183 | P15: =P11/(AVERAGE($O$11:$W$11)) -> 0.2726219726 | Q15: 0.3237978238 | R15: 0.4173043173 | S15: 0.6305370305 | T15: 0.8425061425 | U15: 1.279396279 | V15: 2.014812215 | W15: 3.000737101 | Y15: =AVERAGE(O15:W15) -> 1 | AG15: Divergence: | AH15: =AH12-AH14 -> -0.001860066085 | AI15: =AI12-AI14 -> -0.0008828582111 | AJ15: =AJ12-AJ14 -> -0.001643932913
N16: males | O16: =O12/(AVERAGE($O$12:$W$12)) -> 0.2258364312 | P16: 0.320260223 | Q16: 0.3468401487 | R16: 0.4094795539 | S16: 0.5842007435 | T16: 0.8399628253 | U16: 1.316542751 | V16: 1.971375465 | W16: 2.985501859 | Y16: =AVERAGE(O16:W16) -> 1
B17: Unweighted baseline estimated constant probability of death | G17: =(-LN(1-(Results!$C$14/1000)))/5 -> 0.009166907269 | H17: =(-LN(1-(Results!$C$14/1000)))/5 -> 0.009166907269 | N17: females | O17: =(-LN(1-(Results!$D$14/1000)))/45 -> 0.003222358201 | P17: =(-LN(1-(Results!$D$14/1000)))/45 -> 0.003222358201 | Q17: =(-LN(1-(Results!$D$14/1000)))/45 -> 0.003222358201 | R17: =(-LN(1-(Results!$D$14/1000)))/45 -> 0.003222358201 | S17: =(-LN(1-(Results!$D$14/1000)))/45 -> 0.003222358201 | T17: =(-LN(1-(Results!$D$14/1000)))/45 -> 0.003222358201 | U17: =(-LN(1-(Results!$D$14/1000)))/45 -> 0.003222358201 | V17: =(-LN(1-(Results!$D$14/1000)))/45 -> 0.003222358201 | W17: =(-LN(1-(Results!$D$14/1000)))/45 -> 0.003222358201 | X17: =AVERAGE(O17:W17) -> 0.003222358201 | AG17: Total population: | AH17: =I13+SUM(K13:L14)+X13+X14+SUM(AA13:AE14) -> 67722286.81
N18: males | O18: =(-LN(1-(Results!$E$14/1000)))/45 -> 0.005431017529 | P18: =(-LN(1-(Results!$E$14/1000)))/45 -> 0.005431017529 | Q18: =(-LN(1-(Results!$E$14/1000)))/45 -> 0.005431017529 | R18: =(-LN(1-(Results!$E$14/1000)))/45 -> 0.005431017529 | S18: =(-LN(1-(Results!$E$14/1000)))/45 -> 0.005431017529 | T18: =(-LN(1-(Results!$E$14/1000)))/45 -> 0.005431017529 | U18: =(-LN(1-(Results!$E$14/1000)))/45 -> 0.005431017529 | V18: =(-LN(1-(Results!$E$14/1000)))/45 -> 0.005431017529 | W18: =(-LN(1-(Results!$E$14/1000)))/45 -> 0.005431017529 | X18: =AVERAGE(O18:W18) -> 0.005431017529
B19: Weighted baseline estimated probability of death | G19: =G17*G15 -> 0.01716219725 | H19: 0.001171617283 | N19: females | O19: =O17*O15 -> 0.0007033992859 | P19: 0.0008784856494 | Q19: 0.001043392573 | R19: 0.001344703989 | S19: 0.002031816172 | T19: 0.002714856578 | U19: 0.004122673094 | V19: 0.006492446665 | W19: 0.009669449807 | X19: =AVERAGE(O19:W19) -> 0.003222358201 | AG19: Results | AH19: Under 5 | AI19: Females (15-60) | AJ19: Males (15-60)
N20: males | O20: =O18*O16 -> 0.001226521617 | P20: 0.001739338885 | Q20: 0.001883694927 | R20: 0.002223890635 | S20: 0.003172804478 | T20: 0.004561852827 | U20: 0.007150166757 | V20: 0.0107065747 | W20: 0.01621431293 | X20: =AVERAGE(O20:W20) -> 0.005431017529 | AG20: Lives saved | AH20: =I31 -> 125.3244391 | AI20: =X31 -> 87.172423 | AJ20: =X32 -> 157.0086274
B21: Absolute estimated baseline deaths | G21: =G19*G13 -> 29131.23676 | H21: 7680.044196 | I21: =SUM(D21:H21) -> 36811.28095 | N21: females | O21: =O19*O13 -> 2654.797884 | P21: =P19*P13 -> 2714.856578 | Q21: 2500.0704 | R21: 2910.301821 | S21: 4155.247301 | T21: 5078.522485 | U21: 6381.490772 | V21: 8853.05874 | W21: 9325.384744 | X21: =SUM(O21:W21) -> 44573.73072 | AG21: Life years gained | AH21: =I38 -> 8706.946244 | AI21: =X38 -> 3099.987261 | AJ21: =X39 -> 5065.62717
N22: males | O22: =O20*O14 -> 4784.948529 | P22: =P20*P14 -> 5596.57271 | Q22: 4670.876971 | R22: 4868.735602 | S22: 6523.277931 | T22: 8370.631477 | U22: 11047.77989 | V22: 14509.29646 | W22: 14802.04647
AG23: UN/WB Mortality rate | AH23: Under 5 | AI23: Females (15-60) | AJ23: Males (15-60)
B24: Results of $1 increase in spend per capita 15-60 year olds | AG24: Pre-intervention | AH24: =Results!C14 -> 44.8 | AI24: =Results!D14 -> 134.983 | AJ24: =Results!E14 -> 216.8224
B25: Unweighted estimated annual mortality rate | G25: =(-LN(1-(Results!$C$16/1000)))/5 -> 0.009135698425 | H25: =(-LN(1-(Results!$C$16/1000)))/5 -> 0.009135698425 | N25: females | O25: =(-LN(1-(Results!$D$16/1000)))/45 -> 0.003216056266 | P25: =(-LN(1-(Results!$D$16/1000)))/45 -> 0.003216056266 | Q25: =(-LN(1-(Results!$D$16/1000)))/45 -> 0.003216056266 | R25: =(-LN(1-(Results!$D$16/1000)))/45 -> 0.003216056266 | S25: =(-LN(1-(Results!$D$16/1000)))/45 -> 0.003216056266 | T25: =(-LN(1-(Results!$D$16/1000)))/45 -> 0.003216056266 | U25: =(-LN(1-(Results!$D$16/1000)))/45 -> 0.003216056266 | V25: =(-LN(1-(Results!$D$16/1000)))/45 -> 0.003216056266 | W25: =(-LN(1-(Results!$D$16/1000)))/45 -> 0.003216056266 | AG25: Post-intervention | AH25: =Results!C16 -> 44.65093493 | AI25: =Results!D16 -> 134.7376576 | AJ25: =Results!E16 -> 216.4225292
N26: males | O26: =(-LN(1-(Results!$E$16/1000)))/45 -> 0.005419674315 | P26: =(-LN(1-(Results!$E$16/1000)))/45 -> 0.005419674315 | Q26: =(-LN(1-(Results!$E$16/1000)))/45 -> 0.005419674315 | R26: =(-LN(1-(Results!$E$16/1000)))/45 -> 0.005419674315 | S26: =(-LN(1-(Results!$E$16/1000)))/45 -> 0.005419674315 | T26: =(-LN(1-(Results!$E$16/1000)))/45 -> 0.005419674315 | U26: =(-LN(1-(Results!$E$16/1000)))/45 -> 0.005419674315 | V26: =(-LN(1-(Results!$E$16/1000)))/45 -> 0.005419674315 | W26: =(-LN(1-(Results!$E$16/1000)))/45 -> 0.005419674315
B27: Weighted estimated annual mortality rate | G27: =G25*G15 -> 0.01710376835 | H27: =H25*H15 -> 0.001167628498 | O27: =O25*O15 -> 0.0007020236546 | P27: 0.0008767676033 | Q27: 0.00104135202 | R27: 0.001342074165 | S27: 0.002027842568 | T27: 0.002709547159 | U27: 0.004114610421 | V27: 0.006479749448 | W27: 0.009650539355 | AG27: Percent of the population ages 0-5 | AH27: =I13/AH17 -> 0.1218577644
O28: =O26*O16 -> 0.001223959906 | P28: 0.001735706105 | Q28: 0.001879760645 | R28: 0.002219245821 | S28: 0.003166177764 | T28: 0.00455232495 | U28: 0.007135232932 | V28: 0.01068421297 | W28: 0.01618044774 | AG28: Percent of the population adult female | AH28: =X13/AH17 -> 0.2837564127
B29: Absolute estimated post-intervention deaths | G29: =G27*G13 -> 29032.05912 | H29: =H27*H13 -> 7653.897395 | I29: =SUM(D29:H29) -> 36685.95651 | N29: females | O29: =O27*O13 -> 2649.605921 | P29: =P27*P13 -> 2709.547159 | Q29: 2495.181036 | R29: 2904.610171 | S29: 4147.120923 | T29: 5068.590467 | U29: 6369.010551 | V29: 8835.744897 | W29: 9307.147177 | X29: =SUM(O29:W29) -> 44486.5583 | AG29: Percent of the population adult male | AH29: =X14/AH17 -> 0.2878210862
N30: males | O30: =O28*O14 -> 4774.954694 | P30: 5584.883718 | Q30: 4661.121386 | R30: 4858.56677 | S30: 6509.653425 | T30: 8353.148591 | U30: 11024.70552 | V30: 14478.99237 | W30: 14771.13094 | X30: 75017.15742
B31: Absolute deaths averted (i.e., lives saved) | G31: =G21-G29 -> 99.17763825 | H31: =H21-H29 -> 26.14680082 | I31: =SUM(D31:H31) -> 125.3244391 | N31: females | O31: =O21-O29 -> 5.191963076 | P31: 5.309419296 | Q31: 4.889364001 | R31: 5.691649707 | S31: 8.126377791 | T31: 9.932018324 | U31: 12.48022106 | V31: 17.31384313 | W31: 18.23756662 | X31: =SUM(O31:W31) -> 87.172423 | AG31: Population 0-5 and 15-60 | AH31: =I13+X13+X14 -> 46961021.79
N32: males | O32: =O22-O30 -> 9.993834851 | P32: 11.68899165 | Q32: 9.755585202 | R32: 10.16883238 | S32: 13.6245065 | T32: 17.48288578 | U32: 23.07437312 | V32: 30.30409036 | W32: 30.91552752 | X32: 157.0086274
B34: Conditional life expectancy | C34: both | G34: =HLOOKUP($G$4,B_LE_GBD!$1:$192,$C$3,FALSE) -> 69.18900299 | H34: =HLOOKUP($H$4,B_LE_GBD!$1:$192,$C$3,FALSE) -> 70.56099701 | K34: =HLOOKUP($K$4,F_LE_GBD!$1:$192,$C$3,FALSE) -> 69.70800018 | L34: =HLOOKUP($L$4,F_LE_GBD!$1:$192,$C$3,FALSE) -> 64.87799835 | N34: females | O34: =HLOOKUP($O$4,F_LE_GBD!$1:$192,$C$3,FALSE) -> 60.01200104 | P34: =HLOOKUP($P$4,F_LE_GBD!$1:$192,$C$3,FALSE) -> 55.21099854 | Q34: =HLOOKUP($Q$4,F_LE_GBD!$1:$192,$C$3,FALSE) -> 50.43899918 | R34: =HLOOKUP($R$4,F_LE_GBD!$1:$192,$C$3,FALSE) -> 45.68399811 | S34: =HLOOKUP($S$4,F_LE_GBD!$1:$192,$C$3,FALSE) -> 40.97000122 | T34: =HLOOKUP($T$4,F_LE_GBD!$1:$192,$C$3,FALSE) -> 36.35400009 | U34: =HLOOKUP($U$4,F_LE_GBD!$1:$192,$C$3,FALSE) -> 31.80699921 | V34: =HLOOKUP($V$4,F_LE_GBD!$1:$192,$C$3,FALSE) -> 27.40299988 | W34: =HLOOKUP($W$4,F_LE_GBD!$1:$192,$C$3,FALSE) -> 23.20599937 | AA34: =HLOOKUP($AA$4,F_LE_GBD!$1:$192,$C$3,FALSE) -> 19.20700073 | AB34: =HLOOKUP($AB$4,F_LE_GBD!$1:$192,$C$3,FALSE) -> 15.52799988 | AC34: =HLOOKUP($AC$4,F_LE_GBD!$1:$192,$C$3,FALSE) -> 12.17000008 | AD34: =HLOOKUP($AD$4,F_LE_GBD!$1:$192,$C$3,FALSE) -> 9.329999924 | AE34: =HLOOKUP($AE$4,F_LE_GBD!$1:$192,$C$3,FALSE) -> 6.864999771
K35: =HLOOKUP($K$4,M_LE_GBD!$1:$192,$C$3,FALSE) -> 64.83399963 | L35: =HLOOKUP($L$4,M_LE_GBD!$1:$192,$C$3,FALSE) -> 60.02999878 | N35: males | O35: =HLOOKUP($O$4,M_LE_GBD!$1:$192,$C$3,FALSE) -> 55.19200134 | P35: =HLOOKUP($P$4,M_LE_GBD!$1:$192,$C$3,FALSE) -> 50.51200104 | Q35: =HLOOKUP($Q$4,M_LE_GBD!$1:$192,$C$3,FALSE) -> 45.92599869 | R35: =HLOOKUP($R$4,M_LE_GBD!$1:$192,$C$3,FALSE) -> 41.33300018 | S35: =HLOOKUP($S$4,M_LE_GBD!$1:$192,$C$3,FALSE) -> 36.76200104 | T35: =HLOOKUP($T$4,M_LE_GBD!$1:$192,$C$3,FALSE) -> 32.3030014 | U35: =HLOOKUP($U$4,M_LE_GBD!$1:$192,$C$3,FALSE) -> 27.97999954 | V35: =HLOOKUP($V$4,M_LE_GBD!$1:$192,$C$3,FALSE) -> 23.8939991 | W35: =HLOOKUP($W$4,M_LE_GBD!$1:$192,C$3,FALSE) -> 20.0529995 | AA35: =HLOOKUP($AA$4,M_LE_GBD!$1:$192,$C$3,FALSE) -> 16.51300049 | AB35: =HLOOKUP($AB$4,M_LE_GBD!$1:$192,$C$3,FALSE) -> 13.36900043 | AC35: =HLOOKUP($AC$4,M_LE_GBD!$1:$192,$C$3,FALSE) -> 10.57199955 | AD35: =HLOOKUP($AD$4,M_LE_GBD!$1:$192,$C$3,FALSE) -> 8.223999977 | AE35: =HLOOKUP($AE$4,M_LE_GBD!$1:$192,$C$3,FALSE) -> 6.223999977
B37: EFFECTS OF A $1 INCREASE IN GOVERNMENT SPENDING PER CAPITA
B38: Survival effects (i.e., YLLs averted) | C38: both | G38: =G31*G34 -> 6862.00191 | H38: =H31*H34 -> 1844.944334 | I38: =SUM(G38:H38) -> 8706.946244 | N38: females | O38: =O31*O34 -> 311.5800935 | P38: 293.138341 | Q38: 246.6146268 | R38: 260.0173144 | S38: 332.937708 | T38: 361.0685951 | U38: 396.9583814 | V38: 474.4512411 | W38: 423.2209596 | X38: =SUM(O38:W38) -> 3099.987261
N39: males | O39: =O32*O35 -> 551.5797465 | P39: 590.4343583 | Q39: 448.0349932 | R39: 420.3083507 | S39: 500.8641221 | T39: 564.7496838 | U39: 645.6209495 | V39: 724.0859078 | W39: 619.9490577 | X39: =SUM(O39:W39) -> 5065.62717
D40: =HLOOKUP($D$3,Bmort_GBD!$1:$192,$C$2,FALSE) -> 22039 | E40: =HLOOKUP($E$3,Bmort_GBD!$1:$192,$C$2,FALSE) -> 10374 | F40: =HLOOKUP($F$3,Bmort_GBD!$1:$192,$C$2,FALSE) -> 25595 | H40: =HLOOKUP($H$3,Bmort_GBD!$1:$192,$C$2,FALSE) -> 15293 | K40: =HLOOKUP($K$3,Fmort_GBD!$1:$192,$C$2,FALSE) -> 1957 | L40: =HLOOKUP($L$3,Fmort_GBD!$1:$192,$C$2,FALSE) -> 1758 | O40: =HLOOKUP($O$3,Fmort_GBD!$1:$192,$C$2,FALSE) -> 2608 | P40: =HLOOKUP($P$3,Fmort_GBD!$1:$192,$C$2,FALSE) -> 2667 | Q40: =HLOOKUP($Q$3,Fmort_GBD!$1:$192,$C$2,FALSE) -> 2456 | R40: =HLOOKUP($R$3,Fmort_GBD!$1:$192,$C$2,FALSE) -> 2859 | S40: =HLOOKUP($S$3,Fmort_GBD!$1:$192,$C$2,FALSE) -> 4082 | T40: =HLOOKUP($T$3,Fmort_GBD!$1:$192,$C$2,FALSE) -> 4989 | U40: =HLOOKUP($U$3,Fmort_GBD!$1:$192,$C$2,FALSE) -> 6269 | V40: =HLOOKUP($V$3,Fmort_GBD!$1:$192,$C$2,FALSE) -> 8697 | W40: =HLOOKUP($W$3,Fmort_GBD!$1:$192,$C$2,FALSE) -> 9161 | AA40: =HLOOKUP($AA$3,Fmort_GBD!$1:$192,$C$2,FALSE) -> 12574 | AB40: =HLOOKUP($AB$3,Fmort_GBD!$1:$192,$C$2,FALSE) -> 15787 | AC40: =HLOOKUP($AC$3,Fmort_GBD!$1:$192,$C$2,FALSE) -> 19822 | AD40: =HLOOKUP($AD$3,Fmort_GBD!$1:$192,$C$2,FALSE) -> 18573 | AE40: =HLOOKUP($AE$3,Fmort_GBD!$1:$192,$C$2,FALSE) -> 23679
K41: =HLOOKUP($K$3,Mmort_GBD!$1:$192,$C$2,FALSE) -> 2523 | L41: =HLOOKUP($L$3,Mmort_GBD!$1:$192,$C$2,FALSE) -> 2389 | O41: =HLOOKUP($O$3,Mmort_GBD!$1:$192,$C$2,FALSE) -> 4740 | P41: =HLOOKUP($P$3,Mmort_GBD!$1:$192,$C$2,FALSE) -> 5544 | Q41: =HLOOKUP($Q$3,Mmort_GBD!$1:$192,$C$2,FALSE) -> 4627 | R41: =HLOOKUP($R$3,Mmort_GBD!$1:$192,$C$2,FALSE) -> 4823 | S41: =HLOOKUP($S$3,Mmort_GBD!$1:$192,$C$2,FALSE) -> 6462 | T41: =HLOOKUP($T$3,Mmort_GBD!$1:$192,$C$2,FALSE) -> 8292 | U41: =HLOOKUP($U$3,Mmort_GBD!$1:$192,$C$2,FALSE) -> 10944 | V41: =HLOOKUP($V$3,Mmort_GBD!$1:$192,$C$2,FALSE) -> 14373 | W41: =HLOOKUP($W$3,Mmort_GBD!$1:$192,$C$2,FALSE) -> 14663 | AA41: =HLOOKUP($AA$3,Mmort_GBD!$1:$192,$C$2,FALSE) -> 18880 | AB41: =HLOOKUP($AB$3,Mmort_GBD!$1:$192,$C$2,FALSE) -> 21338 | AC41: =HLOOKUP($AC$3,Mmort_GBD!$1:$192,$C$2,FALSE) -> 22961 | AD41: =HLOOKUP($AD$3,Mmort_GBD!$1:$192,$C$2,FALSE) -> 18947 | AE41: =HLOOKUP($AE$3,Mmort_GBD!$1:$192,$C$2,FALSE) -> 19241
D42: =HLOOKUP($D$1,Bmort_GBD!$1:$192,$C$2,FALSE)/100000 -> 0.662124 | E42: =HLOOKUP($E$1,Bmort_GBD!$1:$192,$C$2,FALSE)/100000 -> 0.104723 | F42: =HLOOKUP($F$1,Bmort_GBD!$1:$192,$C$2,FALSE)/100000 -> 0.016354 | H42: =HLOOKUP($H$1,Bmort_GBD!$1:$192,$C$2,FALSE)/100000 -> 0.002333 | K42: =HLOOKUP($K$1,Fmort_GBD!$1:$192,$C$2,FALSE)/100000 -> 0.000505 | L42: =HLOOKUP($L$1,Fmort_GBD!$1:$192,$C$2,FALSE)/100000 -> 0.000432 | O42: =HLOOKUP($O$1,Fmort_GBD!$1:$192,$C$2,FALSE)/100000 -> 0.000691 | P42: =HLOOKUP($P$1,Fmort_GBD!$1:$192,$C$2,FALSE)/100000 -> 0.000863 | Q42: =HLOOKUP($Q$1,Fmort_GBD!$1:$192,$C$2,FALSE)/100000 -> 0.001025 | R42: =HLOOKUP($R$1,Fmort_GBD!$1:$192,$C$2,FALSE)/100000 -> 0.001321 | S42: =HLOOKUP($S$1,Fmort_GBD!$1:$192,$C$2,FALSE)/100000 -> 0.001996 | T42: =HLOOKUP($T$1,Fmort_GBD!$1:$192,$C$2,FALSE)/100000 -> 0.002667 | U42: =HLOOKUP($U$1,Fmort_GBD!$1:$192,$C$2,FALSE)/100000 -> 0.00405 | V42: =HLOOKUP($V$1,Fmort_GBD!$1:$192,$C$2,FALSE)/100000 -> 0.006378 | W42: =HLOOKUP($W$1,Fmort_GBD!$1:$192,$C$2,FALSE)/100000 -> 0.009499 | AA42: =HLOOKUP($AA$1,Fmort_GBD!$1:$192,$C$2,FALSE)/100000 -> 0.015325 | AB42: =HLOOKUP($AB$1,Fmort_GBD!$1:$192,$C$2,FALSE)/100000 -> 0.023885 | AC42: =HLOOKUP($AC$1,Fmort_GBD!$1:$192,$C$2,FALSE)/100000 -> 0.040426 | AD42: =HLOOKUP($AD$1,Fmort_GBD!$1:$192,$C$2,FALSE)/100000 -> 0.062829 | AE42: =HLOOKUP($AE$1,Fmort_GBD!$1:$192,$C$2,FALSE)/100000 -> 0.126117
K43: =HLOOKUP(K1,Mmort_GBD!$1:$192,$C$2,FALSE)/100000 -> 0.000626 | L43: =HLOOKUP(L1,Mmort_GBD!$1:$192,$C$2,FALSE)/100000 -> 0.000565 | O43: =HLOOKUP($O$1,Mmort_GBD!$1:$192,$C$2,FALSE)/100000 -> 0.001215 | P43: =HLOOKUP($P$1,Mmort_GBD!$1:$192,$C$2,FALSE)/100000 -> 0.001723 | Q43: =HLOOKUP($Q$1,Mmort_GBD!$1:$192,$C$2,FALSE)/100000 -> 0.001866 | R43: =HLOOKUP($R$1,Mmort_GBD!$1:$192,$C$2,FALSE)/100000 -> 0.002203 | S43: =HLOOKUP($S$1,Mmort_GBD!$1:$192,$C$2,FALSE)/100000 -> 0.003143 | T43: =HLOOKUP($T$1,Mmort_GBD!$1:$192,$C$2,FALSE)/100000 -> 0.004519 | U43: =HLOOKUP($U$1,Mmort_GBD!$1:$192,$C$2,FALSE)/100000 -> 0.007083 | V43: =HLOOKUP($V$1,Mmort_GBD!$1:$192,$C$2,FALSE)/100000 -> 0.010606 | W43: =HLOOKUP($W$1,Mmort_GBD!$1:$192,$C$2,FALSE)/100000 -> 0.016062 | AA43: =HLOOKUP($AA$1,Mmort_GBD!$1:$192,$C$2,FALSE)/100000 -> 0.024964 | AB43: =HLOOKUP($AB$1,Mmort_GBD!$1:$192,$C$2,FALSE)/100000 -> 0.036964 | AC43: =HLOOKUP($AC$1,Mmort_GBD!$1:$192,$C$2,FALSE)/100000 -> 0.05611 | AD43: =HLOOKUP($AD$1,Mmort_GBD!$1:$192,$C$2,FALSE)/100000 -> 0.083225 | AE43: =HLOOKUP($AE$1,Mmort_GBD!$1:$192,$C$2,FALSE)/100000 -> 0.145398
G44: =HLOOKUP($G$4,B_LE_GBD!$1:$192,$C$3,FALSE) -> 69.18900299 | H44: =HLOOKUP($H$4,B_LE_GBD!$1:$192,$C$3,FALSE) -> 70.56099701 | K44: =HLOOKUP($K$4,F_LE_GBD!$1:$192,$C$3,FALSE) -> 69.70800018 | L44: =HLOOKUP($L$4,F_LE_GBD!$1:$192,$C$3,FALSE) -> 64.87799835 | O44: =HLOOKUP($O$4,F_LE_GBD!$1:$192,$C$3,FALSE) -> 60.01200104 | P44: =HLOOKUP($P$4,F_LE_GBD!$1:$192,$C$3,FALSE) -> 55.21099854 | Q44: =HLOOKUP($Q$4,F_LE_GBD!$1:$192,$C$3,FALSE) -> 50.43899918 | R44: =HLOOKUP($R$4,F_LE_GBD!$1:$192,$C$3,FALSE) -> 45.68399811 | S44: =HLOOKUP($S$4,F_LE_GBD!$1:$192,$C$3,FALSE) -> 40.97000122 | T44: =HLOOKUP($T$4,F_LE_GBD!$1:$192,$C$3,FALSE) -> 36.35400009 | U44: =HLOOKUP($U$4,F_LE_GBD!$1:$192,$C$3,FALSE) -> 31.80699921 | V44: =HLOOKUP($V$4,F_LE_GBD!$1:$192,$C$3,FALSE) -> 27.40299988 | W44: =HLOOKUP($W$4,F_LE_GBD!$1:$192,$C$3,FALSE) -> 23.20599937 | AA44: =HLOOKUP($AA$4,F_LE_GBD!$1:$192,$C$3,FALSE) -> 19.20700073 | AB44: =HLOOKUP($AB$4,F_LE_GBD!$1:$192,$C$3,FALSE) -> 15.52799988 | AC44: =HLOOKUP($AC$4,F_LE_GBD!$1:$192,$C$3,FALSE) -> 12.17000008 | AD44: =HLOOKUP($AD$4,F_LE_GBD!$1:$192,$C$3,FALSE) -> 9.329999924 | AE44: =HLOOKUP($AE$4,F_LE_GBD!$1:$192,$C$3,FALSE) -> 6.864999771
K45: =HLOOKUP($K$4,M_LE_GBD!$1:$192,$C$3,FALSE) -> 64.83399963 | L45: =HLOOKUP($L$4,M_LE_GBD!$1:$192,$C$3,FALSE) -> 60.02999878 | O45: =HLOOKUP($O$4,M_LE_GBD!$1:$192,$C$3,FALSE) -> 55.19200134 | P45: =HLOOKUP($P$4,M_LE_GBD!$1:$192,$C$3,FALSE) -> 50.51200104 | Q45: =HLOOKUP($Q$4,M_LE_GBD!$1:$192,$C$3,FALSE) -> 45.92599869 | R45: =HLOOKUP($R$4,M_LE_GBD!$1:$192,$C$3,FALSE) -> 41.33300018 | S45: =HLOOKUP($S$4,M_LE_GBD!$1:$192,$C$3,FALSE) -> 36.76200104 | T45: =HLOOKUP($T$4,M_LE_GBD!$1:$192,$C$3,FALSE) -> 32.3030014 | U45: =HLOOKUP($U$4,M_LE_GBD!$1:$192,$C$3,FALSE) -> 27.97999954 | V45: =HLOOKUP($V$4,M_LE_GBD!$1:$192,$C$3,FALSE) -> 23.8939991 | W45: =HLOOKUP($W$4,M_LE_GBD!$1:$192,C$3,FALSE) -> 20.0529995 | AA45: =HLOOKUP($AA$4,M_LE_GBD!$1:$192,$C$3,FALSE) -> 16.51300049 | AB45: =HLOOKUP($AB$4,M_LE_GBD!$1:$192,$C$3,FALSE) -> 13.36900043 | AC45: =HLOOKUP($AC$4,M_LE_GBD!$1:$192,$C$3,FALSE) -> 10.57199955 | AD45: =HLOOKUP($AD$4,M_LE_GBD!$1:$192,$C$3,FALSE) -> 8.223999977 | AE45: =HLOOKUP($AE$4,M_LE_GBD!$1:$192,$C$3,FALSE) -> 6.223999977

Sheet Outcomes (hidden)
A1: 1 | B1: 2 | C1: 3 | D1: 4 | E1: 5 | F1: 6 | G1: 7 | H1: 8 | I1: 9 | J1: 10 | K1: 11 | L1: 12 | M1: 13 | N1: 14 | O1: 15 | P1: 16 | Q1: 17 | R1: 18 | S1: 19 | T1: 20 | U1: 21 | V1: 22 | W1: 23 | X1: 24 | Y1: 25 | Z1: 26 | AA1: 27 | AB1: 28 | AC1: 29 | AD1: 30 | AE1: 31 | AF1: 32 | AG1: 33 | AH1: 34 | AI1: 35 | AJ1: 36 | AK1: 37 | AL1: 38 | AM1: 39 | AN1: 40 | AO1: 41 | AP1: 42 | AQ1: 43 | AR1: 44 | AS1: 45 | AT1: 46 | AU1: 47 | AV1: 48 | AW1: 49 | AX1: 50 | AY1: 51 | AZ1: 52 | BA1: 53 | BB1: 54 | BC1: 55 | BD1: 56 | BG1: PPP | BH1: PPP | BI1: PPP | BJ1: PPP | BK1: PPP | BL1: PPP | BM1: LMIC (0=high, 1=middle, 2=low) | BN1: GDP pc PPP | BO1: GDP pc int $
A2: country | B2: lgdp | C2: lgh | D2: gdp | E2: gh | F2: u5m_2000 | G2: amm_2000 | H2: afm_2000 | I2: gdp_2000 | J2: yllche_percap2000 | K2: yld2000 | L2: dalyche_percap2000 | M2: lmic | N2: afm_elasticityse | O2: afm_elasticity | P2: amm_elasticityse | Q2: amm_elasticity | R2: mm_elasticityse | S2: mm_elasticity | T2: u5m_elasticityse | U2: u5m_elasticity | V2: yld_elasticityse | W2: yld_elasticity | X2: yll_elasticityse | Y2: yll_elasticity | Z2: daly_elasticityse | AA2: daly_elasticity | AB2: yllche_percap_elasticityse | AC2: yllche_percap_elasticity | AD2: dalyche_percap_elasticityse | AE2: dalyche_percap_elasticity | AF2: afmlmic_elasticityse | AG2: afmlmic_elasticity | AH2: ammlmic_elasticityse | AI2: ammlmic_elasticity | AJ2: mmlmic_elasticityse | AK2: mmlmic_elasticity | AL2: u5mlmic_elasticityse | AM2: u5mlmic_elasticity | AN2: yldlmic_elasticityse | AO2: yldlmic_elasticity | AP2: ylllmic_elasticityse | AQ2: ylllmic_elasticity | AR2: dalylmic_elasticityse | AS2: dalylmic_elasticity | AT2: yllche_percaplmic_elasticityse | AU2: yllche_percaplmic_elasticity | AV2: dalyche_percaplmic_elasticityse | AW2: dalyche_percaplmic_elasticity | AX2: amendeddalyche_percap | AY2: lamendeddalyche_percap | AZ2: adalyche_percap_elasticityse | BA2: adalyche_percap_elasticity | BB2: adalyche_percaplmic_elasticityse | BC2: adalyche_percaplmic_elasticity | BD2: GDP pc in 2000 $ | BF2: Country | BG2: DALY 1 | BH2: DALY 2 | BI2: DALY 3 | BJ2: DALY 4 | BK2: DALY 5 | BL2: DALY 6 | BM2: LMIC (0=high, 1=middle, 2=low) | BN2: GDP pc PPP | BO2: GDP pc int $
A3: Albania | B3: 8.308938253 | C3: 4.521788577 | D3: 4060 | E3: 92 | F3: 26.1 | G3: 124.3426 | H3: 60.4586 | I3: 2085.536671 | J3: 0.1377497166 | K3: 0.1064942703 | L3: 0.2442000061 | M3: 1 | N3: 0.1373512298 | O3: -0.1483503431 | P3: 0.1057012156 | Q3: -0.1582996696 | R3: 0.1907263249 | S3: -0.4781855941 | T3: 0.1381762773 | U3: -0.30687204 | V3: 0.03383029625 | W3: -0.03251680732 | X3: 0.1555977315 | Y3: -0.3347791433 | Z3: 0.1314213723 | AA3: -0.2514337599 | AB3: 0.1222206801 | AC3: -0.2916642427 | AD3: 0.09557066858 | AE3: -0.2074184418 | AF3: 0.1906141788 | AG3: -0.2893884182 | AH3: 0.1558904797 | AI3: -0.300645411 | AJ3: 0.387229085 | AK3: -0.3238822222 | AL3: 0.2562123835 | AM3: -0.4830498695 | AN3: 0.06372400373 | AO3: -0.009895971045 | AP3: 0.1948222071 | AQ3: -0.1476941258 | AR3: 0.1654673517 | AS3: -0.05908611417 | AT3: 0.1679467112 | AU3: -0.140740782 | AV3: 0.1306280345 | AW3: -0.08501847833 | AX3: 0.2295739949 | AY3: -1.471529841 | AZ3: 0.09447736293 | BA3: -0.185553655 | BB3: 0.1243297383 | BC3: -0.08184259385 | BD3: 1140.423097 | BF3: Australia | BG3: 37923.32557 | BH3: 24121.84682 | BI3: 40156.49602 | BJ3: 25542.29703 | BK3: 42774.20897 | BL3: 34228.36921 | BM3: 0 | BN3: 26180 | BO3: 21540.33775
A4: Algeria | B4: 8.599694413 | C4: 4.663439094 | D4: 5430 | E4: 106 | F4: 39.6 | G4: 180.3512 | H4: 136.3318 | I4: 2487.286033 | J4: 0.1440500319 | K4: 0.09988582134 | L4: 0.243900001 | M4: 1 | N4: 0.125557825 | O4: -0.1924808323 | P4: 0.09760560095 | Q4: -0.1930559129 | R4: 0.1778446138 | S4: -0.5180514455 | T4: 0.1271081716 | U4: -0.3415760994 | V4: 0.03154391423 | W4: -0.029232651 | X4: 0.1388344765 | Y4: -0.3565455079 | Z4: 0.1172625422 | AA4: -0.2692541778 | AB4: 0.1110082418 | AC4: -0.3024611175 | AD4: 0.0868422538 | AE4: -0.2131082565 | AF4: 0.186325863 | AG4: -0.3528901339 | AH4: 0.1537460834 | AI4: -0.35068205 | AJ4: 0.3907481432 | AK4: -0.3667786419 | AL4: 0.2554006279 | AM4: -0.5123291612 | AN4: 0.06301415712 | AO4: -0.01562553085 | AP4: 0.1879778057 | AQ4: -0.2052165121 | AR4: 0.159575671 | AS4: -0.1109880954 | AT4: 0.166130811 | AU4: -0.1783808619 | AV4: 0.128350541 | AW4: -0.1171709374 | AX4: 0.229546994 | AY4: -1.471647501 | AZ4: 0.08642466366 | BA4: -0.1915043294 | BB4: 0.122159183 | BC4: -0.1126030087 | BD4: 1197.038268 | BF4: Austria | BG4: 27944.67858 | BH4: 24668.48442 | BI4: 29889.05302 | BJ4: 26384.90318 | BK4: 42711.90014 | BL4: 36005.93678 | BM4: 0 | BN4: 28010 | BO4: 23220.55838
A5: Argentina | B5: 9.403437002 | C5: 6.408528791 | D5: 12130 | E5: 607 | F5: 20.2 | G5: 180.6464 | H5: 92.8078 | I5: 5472.709088 | J5: 0.1492732018 | K5: 0.1032587513 | L5: 0.2524999976 | M5: 0 | N5: 0.1275365651 | O5: -0.1835621297 | P5: 0.09895441681 | Q5: -0.1857480109 | R5: 0.1797085404 | S5: -0.5112204552 | T5: 0.1288699955 | U5: -0.333943814 | V5: 0.03192295879 | W5: -0.03012772277 | X5: 0.1418769211 | Y5: -0.3534283936 | Z5: 0.1198384389 | AA5: -0.2668161988 | AB5: 0.1130140722 | AC5: -0.3016566336 | AD5: 0.08839519322 | AE5: -0.2130212486 | AF5: 0.1870581955 | AG5: -0.339489609 | AH5: 0.1533878446 | AI5: -0.3408569098 | AJ5: 0.3893819451 | AK5: -0.3579847813 | AL5: 0.2546887696 | AM5: -0.5013112426 | AN5: 0.06287265569 | AO5: -0.01541785803 | AP5: 0.1886538267 | AQ5: -0.1948461682 | AR5: 0.1601947993 | AS5: -0.1019277275 | AT5: 0.1661700606 | AU5: -0.1723772436 | AV5: 0.1284274906 | AW5: -0.1118852496 | AX5: 0.2371180058 | AY5: -1.439197302 | AZ5: 0.08783236891 | BA5: -0.1913741827 | BB5: 0.1222350001 | BC5: -0.1075257137 | BD5: 0 | BF5: Canada | BG5: 41325.55508 | BH5: 26534.79025 | BI5: 43806.59101 | BJ5: 28127.84249 | BK5: 46353.14216 | BL5: 37648.57462 | BM5: 0 | BN5: 27750 | BO5: 22936.02619
A6: Armenia | B6: 7.791522819 | C6: 4.59511985 | D6: 2420 | E6: 99 | F6: 30.1 | G6: 200.1846 | H6: 97.9426 | I6: 895.5977146 | J6: 0.169063285 | K6: 0.1091518477 | L6: 0.2782000005 | M6: 1 | N6: 0.1305518895 | O6: -0.1830071658 | P6: 0.101060763 | Q6: -0.1881007403 | R6: 0.1849239767 | S6: -0.4986649454 | T6: 0.1323404014 | U6: -0.3395907879 | V6: 0.03247954324 | W6: -0.0278940741 | X6: 0.1440955997 | Y6: -0.3405499458 | Z6: 0.1216762811 | AA6: -0.2551508546 | AB6: 0.1148030907 | AC6: -0.2879748046 | AD6: 0.0897789523 | AE6: -0.2024977505 | AF6: 0.186552465 | AG6: -0.3442656994 | AH6: 0.1599482745 | AI6: -0.3374035954 | AJ6: 0.3945538402 | AK6: -0.3586702645 | AL6: 0.2619099617 | AM6: -0.5510997772 | AN6: 0.06541656703 | AO6: -0.006001478527 | AP6: 0.1935302168 | AQ6: -0.1817834377 | AR6: 0.1642433703 | AS6: -0.08722367883 | AT6: 0.1684729755 | AU6: -0.1561371088 | AV6: 0.131565854 | AW6: -0.09956015646 | AX6: 0.2597619891 | AY6: -1.34798944 | AZ6: 0.0893291086 | BA6: -0.1807532609 | BB6: 0.1251972169 | BC6: -0.09593529999 | BD6: 650.0788149 | BF6: Finland | BG6: 24704.98897 | BH6: 16568.44507 | BI6: 26374.14601 | BJ6: 17687.86823 | BK6: 27415.46093 | BL6: 23542.57785 | BM6: 0 | BN6: 25150 | BO6: 23041.32983
A7: Australia | B7: 10.17275104 | C7: 7.395721609 | D7: 26180 | E7: 1629 | F7: 6.2 | G7: 96.599 | H7: 55.448 | I7: 30856.30978 | J7: 0.1151788682 | K7: 0.1075305343 | L7: 0.2226999998 | M7: 0 | N7: 0.1254132986 | O7: -0.1924214214 | P7: 0.09750516713 | Q7: -0.1928478032 | R7: 0.1775803417 | S7: -0.518694818 | T7: 0.126938954 | U7: -0.3411776125 | V7: 0.03151853755 | W7: -0.02936862223 | X7: 0.1387467831 | Y7: -0.3572450876 | Z7: 0.1171905026 | AA7: -0.2698917985 | AB7: 0.1109338105 | AC7: -0.3032298684 | AD7: 0.08678482473 | AE7: -0.2137049884 | AF7: 0.1864513606 | AG7: -0.3524822891 | AH7: 0.1534216702 | AI7: -0.3507779837 | AJ7: 0.390545845 | AK7: -0.3666500747 | AL7: 0.2550517321 | AM7: -0.5093894005 | AN7: 0.06287900358 | AO7: -0.01615815796 | AP7: 0.1877987683 | AQ7: -0.2058526129 | AR7: 0.1594276577 | AS7: -0.1117307544 | AT7: 0.1660790443 | AU7: -0.1792419106 | AV7: 0.1282377988 | AW7: -0.1178169772 | AX7: 0.2103240043 | AY7: -1.559106112 | AZ7: 0.08635890484 | BA7: -0.1921061575 | BB7: 0.1220539808 | BC7: -0.1132094488 | BD7: 21540.33775 | BF7: France | BG7: 33714.04958 | BH7: 26379.36964 | BI7: 36036.52135 | BJ7: 28196.5747 | BK7: 44052.86334 | BL7: 38086.12851 | BM7: 0 | BN7: 25320 | BO7: 21895.66479
A8: Austria | B8: 10.24031687 | C8: 7.351799869 | D8: 28010 | E8: 1559 | F8: 5.5 | G8: 126.288 | H8: 63.086 | I8: 36064.06429 | J8: 0.1425949037 | K8: 0.1196287721 | L8: 0.2621999979 | M8: 0 | N8: 0.1378056109 | O8: -0.2017879784 | P8: 0.1061973497 | Q8: -0.2135111541 | R8: 0.2006803155 | S8: -0.4697480202 | T8: 0.1430073977 | U8: -0.377515614 | V8: 0.03409677371 | W8: -0.01783710159 | X8: 0.1467718333 | Y8: -0.3018347621 | Z8: 0.1237665415 | AA8: -0.2191849649 | AB8: 0.1183520183 | AC8: -0.2410081625 | AD8: 0.09246504307 | AE8: -0.1651350707 | AF8: 0.2044261694 | AG8: -0.3925096989 | AH8: 0.1944938004 | AI8: -0.347948432 | AJ8: 0.4416594207 | AK8: -0.3815883994 | AL8: 0.3044016957 | AM8: -0.75447613 | AN8: 0.07698641717 | AO8: 0.02712824568 | AP8: 0.2290321738 | AQ8: -0.1592952013 | AR8: 0.1937250197 | AS8: -0.05582702532 | AT8: 0.1945796013 | AU8: -0.1121412814 | AV8: 0.1571997106 | AW8: -0.0678684637 | AX8: 0.2451650053 | AY8: -1.405823827 | AZ8: 0.09267130494 | BA8: -0.1431432813 | BB8: 0.1496655643 | BC8: -0.06638102978 | BD8: 23220.55838 | BF8: Germany | BG8: 41165.94363 | BH8: 26577.72737 | BI8: 44133.14549 | BJ8: 28493.42455 | BK8: 44318.91364 | BL8: 37950.49597 | BM8: 0 | BN8: 26070 | BO8: 23213.32463
A9: Azerbaijan | B9: 7.851661178 | C9: 3.433987204 | D9: 2570 | E9: 31 | F9: 74.1 | G9: 220.92 | H9: 118.1328 | I9: 874.0960829 | J9: 0.1886743754 | K9: 0.1035567075 | L9: 0.2921999991 | M9: 1 | N9: 0.1277388632 | O9: -0.1884774417 | P9: 0.09911114722 | Q9: -0.1910652965 | R9: 0.1809533238 | S9: -0.5094125867 | T9: 0.1293915808 | U9: -0.3409624994 | V9: 0.031946823 | W9: -0.02858272381 | X9: 0.1410909593 | Y9: -0.3493191898 | Z9: 0.1191549823 | AA9: -0.26287058 | AB9: 0.1126380041 | AC9: -0.2958377004 | AD9: 0.08810214698 | AE9: -0.2082372904 | AF9: 0.1860114634 | AG9: -0.3494521081 | AH9: 0.1563867778 | AI9: -0.3449662328 | AJ9: 0.3921004534 | AK9: -0.3633975685 | AL9: 0.2581246197 | AM9: -0.5305708051 | AN9: 0.06407703459 | AO9: -0.01121245418 | AP9: 0.1901085228 | AQ9: -0.1948570758 | AR9: 0.1613699198 | AS9: -0.100425221 | AT9: 0.1668699235 | AU9: -0.1683970392 | AV9: 0.1295510232 | AW9: -0.1092873886 | AX9: 0.2726930082 | AY9: -1.299408674 | AZ9: 0.08767756075 | BA9: -0.1865704805 | BB9: 0.1232886165 | BC9: -0.1051445529 | BD9: 476.3564294 | BF9: Italy | BG9: 28616.47818 | BH9: 21918.63468 | BI9: 30597.23968 | BJ9: 23435.7881 | BK9: 36952.99892 | BL9: 31647.32123 | BM9: 0 | BN9: 24940 | BO9: 18766.53429
A10: Bangladesh | B10: 7.3524411 | C10: 3.258096538 | D10: 1560 | E10: 26 | F10: 88.1 | G10: 177.5884 | H10: 168.1946 | I10: 349.5053669 | J10: 0.264740169 | K10: 0.1117044985 | L10: 0.3763999939 | M10: 1 | N10: 0.1267429739 | O10: -0.190116033 | P10: 0.09842237085 | Q10: -0.1917847246 | R10: 0.1794983894 | S10: -0.5133603215 | T10: 0.1283352375 | U10: -0.3410058022 | V10: 0.03176209703 | W10: -0.02892646752 | X10: 0.1400922984 | Y10: -0.3527075946 | Z10: 0.1183183193 | AA10: -0.2658742964 | AB10: 0.111909166 | AC10: -0.2990114987 | AD10: 0.08753855526 | AE10: -0.2105880976 | AF10: 0.1861059219 | AG10: -0.3506688178 | AH10: 0.155050844 | AI10: -0.347402215 | AJ10: 0.391305685 | AK10: -0.3647395968 | AL10: 0.2567214966 | AM10: -0.5213907957 | AN10: 0.06354878843 | AO10: -0.01333799865 | AP10: 0.1890167743 | AQ10: -0.1995187998 | AR10: 0.160453409 | AS10: -0.1052287072 | AT10: 0.1664427966 | AU10: -0.1730221361 | AV10: 0.1289145201 | AW10: -0.1129214317 | AX10: 0.3468720019 | AY10: -1.058799386 | AZ10: 0.0871129781 | BA10: -0.1889502406 | BB10: 0.1226886436 | BC10: -0.1085800976 | BD10: 486.1767295 | BF10: Japan | BG10: 33812.39437 | BH10: 28176.64754 | BI10: 35820.659 | BJ10: 29850.18074 | BK10: 46390.47491 | BL10: 41134.0503 | BM10: 0 | BN10: 25980 | BO10: 37359.76025
A11: Belarus | B11: 8.476371197 | C11: 5.891644212 | D11: 4800 | E11: 362 | F11: 14.4 | G11: 354.113 | H11: 125.352 | I11: 2103.058614 | J11: 0.2247569859 | K11: 0.1269346029 | L11: 0.3517000079 | M11: 1 | N11: 0.1268725842 | O11: -0.1936122775 | P11: 0.0985218212 | Q11: -0.195535928 | R11: 0.1803506315 | S11: -0.5122081637 | T11: 0.1287050992 | U11: -0.3459306359 | V11: 0.03177991882 | W11: -0.02785276435 | X11: 0.1395425498 | Y11: -0.349924624 | Z11: 0.1178398505 | AA11: -0.2631947696 | AB11: 0.1116500348 | AC11: -0.2950228453 | AD11: 0.08733654767 | AE11: -0.2073012739 | AF11: 0.185529381 | AG11: -0.3576932251 | AH11: 0.1572054178 | AI11: -0.3503564894 | AJ11: 0.3933910728 | AK11: -0.3685761094 | AL11: 0.2592183948 | AM11: -0.5416463614 | AN11: 0.06439639628 | AO11: -0.01045041438 | AP11: 0.1901724041 | AQ11: -0.1996634901 | AR11: 0.1613893509 | AS11: -0.1043159142 | AT11: 0.1670586318 | AU11: -0.1703659892 | AV11: 0.1298048049 | AW11: -0.1112058759 | AX11: 0.3231619895 | AY11: -1.129601598 | AZ11: 0.08700723946 | BA11: -0.1856504232 | BB11: 0.1235265434 | BC11: -0.1070107147 | BD11: 1056.13008 | BF11: Netherlands | BG11: 41976.94154 | BH11: 27830.56529 | BI11: 44640.79 | BJ11: 29596.68749 | BK11: 48780.24862 | BL11: 41058.22867 | BM11: 0 | BN11: 27070 | BO11: 22249.92388
A12: Belize | B12: 8.628734566 | C12: 4.812184355 | D12: 5590 | E12: 123 | F12: 25.1 | G12: 252.0708 | H12: 146.9104 | I12: 3604.656252 | J12: 0.1741046607 | K12: 0.09392506629 | L12: 0.2680000067 | M12: 1 | N12: 0.1395472437 | O12: -0.1346521527 | P12: 0.1071746796 | Q12: -0.1458674371 | R12: 0.1921223253 | S12: -0.4729137719 | T12: 0.1400169879 | U12: -0.2925153375 | V12: 0.03429863974 | W12: -0.03487667069 | X12: 0.1599597633 | Y12: -0.3354498446 | Z12: 0.135120213 | AA12: -0.2526437342 | AB12: 0.1249874011 | AC12: -0.29629457 | AD12: 0.0977397114 | AE12: -0.211810872 | AF12: 0.19300583 | AG12: -0.2663926184 | AH12: 0.1531823874 | AI12: -0.2867779434 | AJ12: 0.3839730918 | AK12: -0.3098453283 | AL12: 0.2528755665 | AM12: -0.4444078803 | AN12: 0.06254721433 | AO12: -0.01362342108 | AP12: 0.194991678 | AQ12: -0.1371097267 | AR12: 0.1656488329 | AS12: -0.05125505105 | AT12: 0.167731151 | AU12: -0.138347432 | AV12: 0.1300127059 | AW12: -0.08206231147 | AX12: 0.2516770065 | AY12: -1.37960875 | AZ12: 0.09636124223 | BA12: -0.1899205744 | BB12: 0.1237659827 | BC12: -0.07889593393 | BD12: 3407.477705 | BF12: New Zealand | BG12: 33747.29848 | BH12: 18575.59865 | BI12: 35768.01896 | BJ12: 19687.8682 | BK12: 31901.60602 | BL12: 26412.02439 | BM12: 0 | BN12: 20150 | BO12: 12744.45692
A13: Benin | B13: 6.887552572 | C13: 2.708050201 | D13: 980 | E13: 15 | F13: 146 | G13: 314.5256 | H13: 257.2734 | I13: 512.9552851 | J13: 0.5171598196 | K13: 0.1239525676 | L13: 0.6410999894 | M13: 1 | N13: 0.136439085 | O13: -0.1465305537 | P13: 0.1050410122 | Q13: -0.1555013806 | R13: 0.1887404919 | S13: -0.4824397564 | T13: 0.1370689273 | U13: -0.3024643362 | V13: 0.03367398679 | W13: -0.03376536816 | X13: 0.1553568691 | Y13: -0.340049088 | Z13: 0.1312342137 | AA13: -0.2562971115 | AB13: 0.1219286472 | AC13: -0.297847122 | AD13: 0.0953425914 | AE13: -0.2122979611 | AF13: 0.1912742555 | AG13: -0.28404212 | AH13: 0.1529090554 | AI13: -0.2999638617 | AJ13: 0.3849271536 | AK13: -0.3215139508 | AL13: 0.2529371083 | AM13: -0.4573007524 | AN13: 0.06253671646 | AO13: -0.01423189044 | AP13: 0.1930197328 | AQ13: -0.1513597518 | AR13: 0.1639844179 | AS13: -0.06382118911 | AT13: 0.1671297103 | AU13: -0.1469033509 | AV13: 0.1294291615 | AW13: -0.08952545375 | AX13: 0.5770090222 | AY13: -0.5498973727 | AZ13: 0.0941632241 | BA13: -0.1904684752 | BB13: 0.1232042387 | BC13: -0.08605605364 | BD13: 275.1494022 | BF13: Portugal | BG13: 21686.69735 | BH13: 13184.60133 | BI13: 23243.88984 | BJ13: 14131.30898 | BK13: 21471.27178 | BL13: 18822.34748 | BM13: 0 | BN13: 17310 | BO13: 11153.08466
A14: Bolivia | B14: 7.774855767 | C14: 4.394449155 | D14: 2380 | E14: 81 | F14: 77.4 | G14: 268.7226 | H14: 205.7182 | I14: 965.4074983 | J14: 0.2590832114 | K14: 0.1021751687 | L14: 0.3612999916 | M14: 1 | N14: 0.1289241165 | O14: -0.1771070659 | P14: 0.09989956021 | Q14: -0.1803784817 | R14: 0.1809818596 | S14: -0.5066234469 | T14: 0.1301009357 | U14: -0.3282446861 | V14: 0.03219270706 | W14: -0.03084104508 | X14: 0.1440731287 | Y14: -0.3515352309 | Z14: 0.1216979921 | AA14: -0.2653810978 | AB14: 0.1144545898 | AC14: -0.3014644086 | AD14: 0.08951316774 | AE14: -0.2132592052 | AF14: 0.1877164096 | AG14: -0.3296302557 | AH14: 0.1530096531 | AI14: -0.3338271081 | AJ14: 0.388356328 | AK14: -0.3515847921 | AL14: 0.2540543377 | AM14: -0.4918926954 | AN14: 0.06271162629 | AO14: -0.01553658955 | AP14: 0.1891305149 | AQ14: -0.1876957268 | AR14: 0.1606283486 | AS14: -0.09577468783 | AT14: 0.1662127525 | AU14: -0.1684859842 | AV14: 0.1284597814 | AW14: -0.1084028557 | AX14: 0.3347870111 | AY14: -1.094260693 | AZ14: 0.08884038031 | BA14: -0.1915836334 | BB14: 0.1222690195 | BC14: -0.1041735038 | BD14: 685.5082976 | BF14: Singapore | BG14: 10912.82803 | BH14: 11045.28981 | BI14: 11394.44844 | BJ14: 11532.75622 | BK14: 22810.06173 | BL14: 17033.91879 | BM14: 0 | BN14: 23800 | BO14: 13828.58495
A15: Botswana | B15: 8.926650321 | C15: 5.257495372 | D15: 7530 | E15: 192 | F15: 85.1 | G15: 611.9876 | H15: 552.9576 | I15: 4735.539267 | J15: 0.4373608232 | K15: 0.1118549928 | L15: 0.5491999984 | M15: 1 | N15: 0.1342316717 | O15: -0.1552659124 | P15: 0.1035285667 | Q15: -0.1626097113 | R15: 0.1864054054 | S15: -0.4893434346 | T15: 0.1349988282 | U15: -0.3098321855 | V15: 0.03323403373 | W15: -0.03292891756 | X15: 0.1520552486 | Y15: -0.3433249593 | Z15: 0.1284453571 | AA15: -0.2588872313 | AB15: 0.119739458 | AC15: -0.298874557 | AD15: 0.09363064915 | AE15: -0.2125679553 | AF15: 0.1901177317 | AG15: -0.2970685959 | AH15: 0.1528472006 | AI15: -0.3096369505 | AJ15: 0.385781914 | AK15: -0.3301053941 | AL15: 0.2531449795 | AM15: -0.4672054648 | AN15: 0.06256818026 | AO15: -0.01460049301 | AP15: 0.1917495728 | AQ15: -0.1617350578 | AR15: 0.1629019678 | AS15: -0.07294371724 | AT15: 0.1667811573 | AU15: -0.153062284 | AV15: 0.1290839612 | AW15: -0.0949132368 | AX15: 0.5002949834 | AY15: -0.6925573945 | AZ15: 0.09259761125 | BA15: -0.190782398 | BB15: 0.1228713617 | BC15: -0.09122704715 | BD15: 3056.100168 | BF15: Spain | BG15: 22091.51751 | BH15: 16310.5877 | BI15: 23506.34327 | BJ15: 17355.18048 | BK15: 26938.69626 | BL15: 23456.71838 | BM15: 0 | BN15: 19960 | BO15: 13492.95264
A16: Brazil | B16: 8.907883014 | C16: 5.424950017 | D16: 7390 | E16: 227 | F16: 32.9 | G16: 257.7048 | H16: 136.0994 | I16: 4406.713243 | J16: 0.1618948728 | K16: 0.1013099924 | L16: 0.2632000148 | M16: 1 | N16: 0.1255216599 | O16: -0.1921917647 | P16: 0.09757971764 | Q16: -0.1927185655 | R16: 0.1777289659 | S16: -0.5182642341 | T16: 0.1270500422 | U16: -0.3411096334 | V16: 0.03153836727 | W16: -0.02934359759 | X16: 0.1388638467 | Y16: -0.3568984568 | Z16: 0.1172888204 | AA16: -0.2695872486 | AB16: 0.1110170931 | AC16: -0.3029229343 | AD16: 0.08684916794 | AE16: -0.2134818733 | AF16: 0.1864228845 | AG16: -0.3522550166 | AH16: 0.1535298228 | AI16: -0.3504653275 | AJ16: 0.3905794024 | AK16: -0.3664495051 | AL16: 0.2551585436 | AM16: -0.5101655722 | AN16: 0.06292463094 | AO16: -0.01595535316 | AP16: 0.1878809929 | AQ16: -0.2053248286 | AR16: 0.1594974101 | AS16: -0.1112005264 | AT16: 0.1660973281 | AU16: -0.1787541509 | AV16: 0.1282800585 | AW16: -0.1174289733 | AX16: 0.2468030006 | AY16: -1.399164796 | AZ16: 0.08642226458 | BA16: -0.1918799579 | BB16: 0.1220934764 | BC16: -0.1128419638 | BD16: 3063.846431 | BF16: Sweden | BG16: 39557.42012 | BH16: 24274.18884 | BI16: 42320.59852 | BJ16: 25969.79776 | BK16: 41899.42618 | BL16: 34577.3251 | BM16: 0 | BN16: 24530 | BO16: 24445.24189
A17: Bulgaria | B17: 8.737131612 | C17: 5.451038454 | D17: 6230 | E17: 233 | F17: 21.1 | G17: 224.896 | H17: 98.77 | I17: 2779.960397 | J17: 0.1944170594 | K17: 0.1209287792 | L17: 0.3152999878 | M17: 1 | N17: 0.126882866 | O17: -0.1935160607 | P17: 0.09852873534 | Q17: -0.1954464912 | R17: 0.1803515255 | S17: -0.5121802092 | T17: 0.1287109256 | U17: -0.3458251953 | V17: 0.03178192675 | W17: -0.02787105553 | X17: 0.1395672113 | Y17: -0.3499388099 | Z17: 0.1178608909 | AA17: -0.2632118762 | AB17: 0.1116649881 | AC17: -0.295065552 | AD17: 0.08734814078 | AE17: -0.2073400021 | AF17: 0.1855389476 | AG17: -0.3575275242 | AH17: 0.1571764797 | AI17: -0.3502611816 | AJ17: 0.393355459 | AK17: -0.3684765697 | AL17: 0.2591827214 | AM17: -0.5413371921 | AN17: 0.06438520551 | AO17: -0.01048363466 | AP17: 0.1901607811 | AQ17: -0.1995984316 | AR17: 0.1613803357 | AS17: -0.1042714864 | AT17: 0.1670499593 | AU17: -0.1703610569 | AV17: 0.1297932416 | AW17: -0.1111940891 | AX17: 0.2918350101 | AY17: -1.231566668 | AZ17: 0.08701680601 | BA17: -0.185689047 | BB17: 0.1235156581 | BC17: -0.1069984585 | BD17: 1579.826299 | BF17: Switzerland | BG17: 58871.10629 | BH17: 23341.22906 | BI17: 62761.9071 | BJ17: 24883.85461 | BK17: 40687.3683 | BL17: 33118.40173 | BM17: 0 | BN17: 28130 | BO17: 30823.18765
A18: Burkina Faso | B18: 6.927557906 | C18: 2.890371758 | D18: 1020 | E18: 18 | F18: 185.8 | G18: 358.9556 | H18: 298.5742 | I18: 345.6236872 | J18: 0.6200613379 | K18: 0.1058906242 | L18: 0.726000011 | M18: 1 | N18: 0.128366366 | O18: -0.1795957386 | P18: 0.09951926023 | Q18: -0.1824292839 | R18: 0.18045035 | S18: -0.508479476 | T18: 0.1295997053 | U18: -0.3303996921 | V18: 0.03208434209 | W18: -0.03058181889 | X18: 0.1432085335 | Y18: -0.3523525894 | Z18: 0.1209662855 | AA18: -0.2660138011 | AB18: 0.1138853356 | AC18: -0.3016325235 | AD18: 0.08907113969 | AE18: -0.2132399976 | AF18: 0.1874692738 | AG18: -0.3333927393 | AH18: 0.1531112045 | AI18: -0.3365569711 | AJ18: 0.3887214065 | AK18: -0.354043752 | AL18: 0.2542509139 | AM18: -0.4951758087 | AN18: 0.06275632977 | AO18: -0.0155556649 | AP18: 0.1889152676 | AQ18: -0.1905381382 | AR18: 0.1604355574 | AS18: -0.09824444354 | AT18: 0.1661849916 | AU18: -0.1700956374 | AV18: 0.1284296364 | AW18: -0.1098281816 | AX18: 0.6602929831 | AY18: -0.4150716364 | AZ18: 0.08843997121 | BA18: -0.1915760636 | BB18: 0.1222392768 | BC18: -0.1055436656 | BD18: 279.0386293 | BF18: United Kingdom | BG18: 26948.16312 | BH18: 20976.03248 | BI18: 28860.16123 | BJ18: 22464.30217 | BK18: 35744.3713 | BL18: 30253.18673 | BM18: 0 | BN18: 24690 | BO18: 23747.60336
A19: Burundi | B19: 6.396929655 | C19: 2.302585093 | D19: 600 | E19: 10 | F19: 148.9 | G19: 451.8356 | H19: 420.3104 | I19: 150.3041686 | J19: 0.558906436 | K19: 0.1159339771 | L19: 0.6747999787 | M19: 1 | N19: 0.1315031499 | O19: -0.1670907438 | P19: 0.1016652808 | Q19: -0.1724116206 | R19: 0.1837217212 | S19: -0.4979130626 | T19: 0.1325033754 | U19: -0.320197314 | V19: 0.03269222379 | W19: -0.03165023774 | X19: 0.1478072256 | Y19: -0.3469483256 | Z19: 0.1248531044 | AA19: -0.2616571784 | AB19: 0.1169435382 | AC19: -0.2993936241 | AD19: 0.09144932777 | AE19: -0.2122608423 | AF19: 0.1886182427 | AG19: -0.3150609434 | AH19: 0.1532597542 | AI19: -0.3225494623 | AJ19: 0.3873340189 | AK19: -0.34181422 | AL19: 0.2539741993 | AM19: -0.483840853 | AN19: 0.06279015541 | AO19: -0.01449814625 | AP19: 0.1904636174 | AQ19: -0.1749858111 | AR19: 0.1617850363 | AS19: -0.08438844234 | AT19: 0.1664965749 | AU19: -0.1603848785 | AV19: 0.128843233 | AW19: -0.1014394313 | AX19: 0.6100440025 | AY19: -0.4942241907 | AZ19: 0.09062047303 | BA19: -0.1905286908 | BB19: 0.1226349846 | BC19: -0.09750592709 | BD19: 136.5176253 | BF19: United States | BG19: 39827.96202 | BH19: 27072.15303 | BI19: 42456.37239 | BJ19: 28858.7553 | BK19: 44208.35998 | BL19: 38563.9776 | BM19: 0 | BN19: 34160 | BO19: 34160
A20: Cambodia | B20: 7.512071246 | C20: 3.218875825 | D20: 1830 | E20: 25 | F20: 110.5 | G20: 283.648 | H20: 222.686 | I20: 329.4326026 | J20: 0.3260581493 | K20: 0.1075248644 | L20: 0.4336000085 | M20: 1 | N20: 0.1399661303 | O20: -0.1328314245 | P20: 0.1074606925 | Q20: -0.1443287283 | R20: 0.1925375015 | S20: -0.4717215896 | T20: 0.1404070854 | U20: -0.2908551097 | V20: 0.03438486531 | W20: -0.03509758413 | X20: 0.160631001 | Y20: -0.3350251019 | Z20: 0.1356874704 | AA20: -0.2523380816 | AB20: 0.1254281551 | AC20: -0.2963577211 | AD20: 0.09808555245 | AE20: -0.211968556 | AF20: 0.1933170855 | AG20: -0.2635633945 | AH20: 0.1531011015 | AI20: -0.2848195732 | AJ20: 0.3837583959 | AK20: -0.3080295324 | AL20: 0.2527375221 | AM20: -0.4413166642 | AN20: 0.06249692291 | AO20: -0.01373788062 | AP20: 0.1952266395 | AQ20: -0.1351997852 | AR20: 0.1658475548 | AS20: -0.04964127764 | AT20: 0.1678019464 | AU20: -0.1373864859 | AV20: 0.1300598681 | AW20: -0.08118335903 | AX20: 0.3985239863 | AY20: -0.9199876189 | AZ20: 0.09667384624 | BA20: -0.1900710464 | BB20: 0.1238127276 | BC20: -0.07804749161 | BD20: 504.5304851 | BF20: Albania | BG20: 2811.114316 | BH20: 1291.459421 | BI20: 2990.741457 | BJ20: 1373.982271 | BK20: 2108.180819 | BL20: 1816.33014 | BM20: 1 | BN20: 4060 | BO20: 1140.423097
A21: Cameroon | B21: 7.539027056 | C21: 2.564949357 | D21: 1880 | E21: 13 | F21: 151.2 | G21: 408.0786 | H21: 380.2642 | I21: 868.1177423 | J21: 0.5006493926 | K21: 0.1153453961 | L21: 0.6159999967 | M21: 1 | N21: 0.1258413345 | O21: -0.1907126158 | P21: 0.09779743105 | Q21: -0.1915019602 | R21: 0.1780226082 | S21: -0.5171512365 | T21: 0.1273320317 | U21: -0.3398337662 | V21: 0.03159938753 | W21: -0.02949580364 | X21: 0.1393600851 | Y21: -0.3564023376 | Z21: 0.1177091375 | AA21: -0.2692018151 | AB21: 0.1113437563 | AC21: -0.3028118908 | AD21: 0.08710176498 | AE21: -0.2134847194 | AF21: 0.1865398288 | AG21: -0.3500233591 | AH21: 0.1534560323 | AI21: -0.3488405049 | AJ21: 0.3903407156 | AK21: -0.3649890423 | AL21: 0.2550244629 | AM21: -0.5082553625 | AN21: 0.06289621443 | AO21: -0.01593635604 | AP21: 0.1879786253 | AQ21: -0.2036253065 | AR21: 0.1595885605 | AS21: -0.1097211018 | AT21: 0.1660975367 | AU21: -0.1777845174 | AV21: 0.1282857955 | AW21: -0.1165720522 | AX21: 0.5582470298 | AY21: -0.5829536915 | AZ21: 0.08665070683 | BA21: -0.1918758005 | BB21: 0.1220993847 | BC21: -0.1120184213 | BD21: 575.330666 | BF21: Algeria | BG21: 2163.697713 | BH21: 1436.682099 | BI21: 2299.323294 | BJ21: 1526.736659 | BK21: 2280.086664 | BL21: 2039.359485 | BM21: 1 | BN21: 5430 | BO21: 1197.038268
A22: Canada | B22: 10.23099112 | C22: 7.510977752 | D22: 27750 | E22: 1828 | F22: 6.2 | G22: 100.968 | H22: 61.077 | I22: 33373.03926 | J22: 0.1196364239 | K22: 0.107551001 | L22: 0.2272000015 | M22: 0 | N22: 0.1254127771 | O22: -0.1924209744 | P22: 0.09750481695 | Q22: -0.1928468198 | R22: 0.1775793731 | S22: -0.5186971426 | T22: 0.126938343 | U22: -0.341175884 | V22: 0.03151845187 | W22: -0.02936916985 | X22: 0.1387465149 | Y22: -0.3572477102 | Z22: 0.1171902865 | AA22: -0.2698941827 | AB22: 0.1109335721 | AC22: -0.3032328486 | AD22: 0.08678464592 | AE22: -0.2137072831 | AF22: 0.1864518672 | AG22: -0.3524803817 | AH22: 0.1534204036 | AI22: -0.3507781327 | AJ22: 0.3905450404 | AK22: -0.3666493595 | AL22: 0.255050391 | AM22: -0.5093777776 | AN22: 0.06287847459 | AO22: -0.01616021246 | AP22: 0.1877980977 | AQ22: -0.2058548182 | AR22: 0.1594271064 | AS22: -0.1117334068 | AT22: 0.1660788655 | AU22: -0.1792450994 | AV22: 0.1282373816 | AW22: -0.1178193465 | AX22: 0.214320004 | AY22: -1.540284991 | AZ22: 0.08635868877 | BA22: -0.1921084821 | BB22: 0.1220535934 | BC22: -0.1132116765 | BD22: 22936.02619 | BF22: Argentina | BG22: 13114.76589 | BH22: 7968.186425 | BI22: 13967.28553 | BJ22: 8486.15491 | BK22: 12609.00386 | BL22: 11285.07337 | BM22: 1 | BN22: 12130
A23: Cape Verde | B23: 8.455317788 | C23: 4.844187086 | D23: 4700 | E23: 127 | F23: 35.3 | G23: 205.632 | H23: 109.5202 | I23: 1663.554461 | J23: 0.1721796542 | K23: 0.1124280468 | L23: 0.2845999897 | M23: 1 | N23: 0.1327368915 | O23: -0.1659502983 | P23: 0.1025289074 | Q23: -0.1724136919 | R23: 0.1857120544 | S23: -0.4929929674 | T23: 0.1338446438 | U23: -0.3212635517 | V23: 0.03291922063 | W23: -0.03100098856 | X23: 0.1488778591 | Y23: -0.3423182964 | Z23: 0.1257460266 | AA23: -0.2575045824 | AB23: 0.1177486703 | AC23: -0.2947433293 | AD23: 0.09207610786 | AE23: -0.2087409794 | AF23: 0.1883606017 | AG23: -0.3152188063 | AH23: 0.1553186476 | AI23: -0.3203450441 | AJ23: 0.3886424303 | AK23: -0.3411009312 | AL23: 0.2561605275 | AM23: -0.4992696643 | AN23: 0.06360569596 | AO23: -0.01133468747 | AP23: 0.1919872612 | AQ23: -0.1695173979 | AR23: 0.1630511731 | AS23: -0.07851281762 | AT23: 0.167092666 | AU23: -0.1543242335 | AV23: 0.1297362149 | AW23: -0.09676172584 | AX23: 0.2652499974 | AY23: -1.327082515 | AZ23: 0.0912687853 | BA23: -0.1869717091 | BB23: 0.1234748662 | BC23: -0.09309562296 | BD23: 1916.194301 | BF23: Belarus | BG23: 5196.94071 | BH23: 3488.919391 | BI23: 5655.737656 | BJ23: 3796.928593 | BK23: 5182.984772 | BL23: 4965.171129 | BM23: 1 | BN23: 4800 | BO23: 1056.13008
A24: Chad | B24: 6.768493212 | C24: 2.708050201 | D24: 870 | E24: 15 | F24: 190.7 | G24: 454.3162 | H24: 424.7356 | I24: 367.4638635 | J24: 0.6734330058 | K24: 0.115164265 | L24: 0.7886000276 | M24: 1 | N24: 0.1272862256 | O24: -0.1841167063 | P24: 0.09878180176 | Q24: -0.1860764921 | R24: 0.1793678254 | S24: -0.5121894479 | T24: 0.1286150515 | U24: -0.3341437876 | V24: 0.03187670931 | W24: -0.03017476946 | X24: 0.1415999085 | Y24: -0.3541912735 | Z24: 0.1196056902 | AA24: -0.2674843371 | AB24: 0.112818487 | AC24: -0.3023182154 | AD24: 0.08824364096 | AE24: -0.2134985179 | AF24: 0.1871002913 | AG24: -0.3400712311 | AH24: 0.1531510055 | AI24: -0.3415953517 | AJ24: 0.3893096447 | AK24: -0.358476311 | AL24: 0.2544563413 | AM24: -0.4997319877 | AN24: 0.06277439743 | AO24: -0.01585262828 | AP24: 0.1884590089 | AQ24: -0.1960480809 | AR24: 0.1600299925 | AS24: -0.1031254753 | AT24: 0.1661217511 | AU24: -0.173462376 | AV24: 0.128330186 | AW24: -0.1127520949 | AX24: 0.7110419869 | AY24: -0.3410238028 | AZ24: 0.08768416196 | BA24: -0.1918583959 | BB24: 0.1221438646 | BC24: -0.1083472222 | BD24: 183.4801289 | BF24: Belize | BG24: 3372.98164 | BH24: 1548.811125 | BI24: 3592.142232 | BJ24: 1649.445637 | BK24: 2241.986572 | BL24: 2166.816123 | BM24: 1 | BN24: 5590 | BO24: 3407.477705
A25: Chile | B25: 9.123692565 | C25: 5.669880923 | D25: 9170 | E25: 290 | F25: 10.9 | G25: 142.576 | H25: 73.0348 | I25: 6551.573086 | J25: 0.1090594307 | K25: 0.09815524518 | L25: 0.2072000057 | M25: 1 | N25: 0.1278850734 | O25: -0.1819883585 | P25: 0.09919199347 | Q25: -0.1844517738 | R25: 0.1800368577 | S25: -0.5100440979 | T25: 0.1291811615 | U25: -0.3325824142 | V25: 0.03199027851 | W25: -0.03029113822 | X25: 0.1424174458 | Y25: -0.3529086709 | Z25: 0.1202960089 | AA25: -0.2664135396 | AB25: 0.1133698598 | AC25: -0.3015472591 | AD25: 0.08867111057 | AE25: -0.2130310386 | AF25: 0.1872042269 | AG25: -0.3371115923 | AH25: 0.1533185542 | AI25: -0.3391299844 | AJ25: 0.3891429007 | AK25: -0.3564300835 | AL25: 0.2545578778 | AM25: -0.4992463589 | AN25: 0.06284359843 | AO25: -0.0154036954 | AP25: 0.1887791157 | AQ25: -0.1930459291 | AR25: 0.1603083313 | AS25: -0.1003627628 | AT25: 0.1661818177 | AU25: -0.1713557988 | AV25: 0.1284420192 | AW25: -0.1109812334 | AX25: 0.196510002 | AY25: -1.627041936 | AZ25: 0.08808214217 | BA25: -0.1913765967 | BB25: 0.1222494319 | BC25: -0.1066567451 | BD25: 4868.720827 | BF25: Bolivia | BG25: 1037.808195 | BH25: 743.7569616 | BI25: 1119.868624 | BJ25: 802.5664941 | BK25: 996.8549092 | BL25: 1051.257921 | BM25: 1 | BN25: 2380 | BO25: 685.5082976
A26: China | B26: 8.261009786 | C26: 4.290459441 | D26: 3870 | E26: 73 | F26: 36.9 | G26: 143.4008 | H26: 103.305 | I26: 1122.258652 | J26: 0.1443235725 | K26: 0.08411986381 | L26: 0.2284000069 | M26: 1 | N26: 0.1261036545 | O26: -0.1926033944 | P26: 0.09798482805 | Q26: -0.1937312782 | R26: 0.1788237393 | S26: -0.5156611204 | T26: 0.1277449876 | U26: -0.3429346979 | V26: 0.03164114058 | W26: -0.02875151299 | X26: 0.1391878873 | Y26: -0.353990674 | Z26: 0.1175537184 | AA26: -0.2669298053 | AB26: 0.1113032028 | AC26: -0.2996805012 | AD26: 0.08706977963 | AE26: -0.210955441 | AF26: 0.1859547943 | AG26: -0.3542231321 | AH26: 0.1549565047 | AI26: -0.350235045 | AJ26: 0.3915563822 | AK26: -0.3671519458 | AL26: 0.2567109764 | AM26: -0.5228172541 | AN26: 0.06350918859 | AO26: -0.01370263938 | AP26: 0.188708216 | AQ26: -0.2028160393 | AR26: 0.1601806581 | AS26: -0.1082167998 | AT26: 0.1663853377 | AU26: -0.1752140224 | AV26: 0.1288151145 | AW26: -0.1147868633 | AX26: 0.2163030058 | AY26: -1.531075001 | AZ26: 0.08668046445 | BA26: -0.1893327087 | BB26: 0.1225943938 | BC26: -0.1103638634 | BD26: 1267.098383 | BF26: Botswana | BG26: 1271.813774 | BH26: 1169.685875 | BI26: 1396.177226 | BJ26: 1284.062818 | BK26: 1428.579017 | BL26: 1644.647792 | BM26: 1 | BN26: 7530 | BO26: 3056.100168
A27: Colombia | B27: 8.719317376 | C27: 5.463831805 | D27: 6120 | E27: 236 | F27: 25.1 | G27: 230.0926 | H27: 111.1856 | I27: 3074.317626 | J27: 0.1623399109 | K27: 0.1004603282 | L27: 0.2628000081 | M27: 1 | N27: 0.1272142977 | O27: -0.1847944111 | P27: 0.09873397648 | Q27: -0.1867122352 | R27: 0.1793644726 | S27: -0.5123609304 | T27: 0.128570199 | U27: -0.3348991573 | V27: 0.03186161071 | W27: -0.0300411582 | X27: 0.1414208561 | Y27: -0.3540646732 | Z27: 0.1194530353 | AA27: -0.2673396766 | AB27: 0.1127086431 | AC27: -0.3019887209 | AD27: 0.08815845847 | AE27: -0.213203758 | AF27: 0.1869823933 | AG27: -0.3412502408 | AH27: 0.1533397585 | AI27: -0.3422605097 | AJ27: 0.3895081878 | AK27: -0.3591798544 | AL27: 0.2546822131 | AM27: -0.5020154715 | AN27: 0.06285270303 | AO27: -0.01559896581 | AP27: 0.1884979606 | AQ27: -0.1964802891 | AR27: 0.1600579321 | AS27: -0.1034087762 | AT27: 0.1661440879 | AU27: -0.1734639406 | AV27: 0.1283801645 | AW27: -0.1128100008 | AX27: 0.2464919984 | AY27: -1.400425792 | AZ27: 0.08761375397 | BA27: -0.1915641874 | BB27: 0.1221901625 | BC27: -0.1084099784 | BD27: 2297.506937 | BF27: Brazil | BG27: 3951.075524 | BH27: 2847.080763 | BI27: 4213.648333 | BJ27: 3036.286459 | BK27: 4364.170238 | BL27: 4039.977466 | BM27: 1 | BN27: 7390 | BO27: 3063.846431
A28: Comoros | B28: 7.396335294 | C28: 2.772588722 | D28: 1630 | E28: 16 | F28: 101.3 | G28: 313.8702 | H28: 260.7472 | I28: 587.8371732 | J28: 0.336409539 | K28: 0.09229165316 | L28: 0.4287 | M28: 1 | N28: 0.1272052377 | O28: -0.1917065531 | P28: 0.09874840826 | Q28: -0.1938897073 | R28: 0.1805940568 | S28: -0.5111144781 | T28: 0.1289721876 | U28: -0.3441151083 | V28: 0.03184368834 | W28: -0.02811308764 | X28: 0.1401232779 | Y28: -0.3496412337 | Z28: 0.1183329448 | AA28: -0.2630211711 | AB28: 0.1120220572 | AC28: -0.2952621877 | AD28: 0.08762469143 | AE28: -0.2075999975 | AF28: 0.1856992394 | AG28: -0.3546606302 | AH28: 0.1569282413 | AI28: -0.3483428061 | AJ28: 0.3929296136 | AK28: -0.3666598797 | AL28: 0.2588409781 | AM28: -0.5377693772 | AN28: 0.06428889185 | AO28: -0.01068972982 | AP28: 0.1901638061 | AQ28: -0.1978222132 | AR28: 0.1613948941 | AS28: -0.1028065234 | AT28: 0.1669946313 | AU28: -0.169561848 | AV28: 0.1297211796 | AW28: -0.1104383543 | AX28: 0.3976530135 | AY28: -0.922175467 | AZ28: 0.08726066351 | BA28: -0.1859427989 | BB28: 0.1234481409 | BC28: -0.1062659547 | BD28: 565.0040759 | BF28: Bulgaria | BG28: 3530.549374 | BH28: 2504.092115 | BI28: 3814.974937 | BJ28: 2705.824971 | BK28: 3836.263046 | BL28: 3564.091693 | BM28: 1 | BN28: 6230 | BO28: 1579.826299
A29: Congo, Dem. Rep. | B29: 6.551080335 | C29: 1.609437912 | D29: 700 | E29: 5 | F29: 175.9 | G29: 408.6088 | H29: 354.246 | I29: 211.404396 | J29: 0.6035631299 | K29: 0.1131966934 | L29: 0.7167999744 | M29: 1 | N29: 0.1262602657 | O29: -0.188629061 | P29: 0.09808231145 | Q29: -0.1897538006 | R29: 0.1783813089 | S29: -0.5157322288 | T29: 0.1276938766 | U29: -0.3379615247 | V29: 0.03168005496 | W29: -0.02973827533 | X29: 0.1400396824 | Y29: -0.3558590114 | Z29: 0.1182851493 | AA29: -0.2688000798 | AB29: 0.1117875874 | AC29: -0.3028226495 | AD29: 0.08744518459 | AE29: -0.2136176974 | AF29: 0.1867362112 | AG29: -0.3468110263 | AH29: 0.1532861143 | AI29: -0.3465866148 | AJ29: 0.3899681866 | AK29: -0.3629166782 | AL29: 0.2547658682 | AM29: -0.5049456954 | AN29: 0.06282795221 | AO29: -0.01602489874 | AP29: 0.1880831718 | AQ29: -0.2013836205 | AR29: 0.1596892774 | AS29: -0.1078105494 | AT29: 0.1660901904 | AU29: -0.1766132414 | AV29: 0.1282724589 | AW29: -0.115512073 | AX29: 0.6484379768 | AY29: -0.4331889153 | AZ29: 0.08695841581 | BA29: -0.1920000762 | BB29: 0.1220878139 | BC29: -0.1109966114 | BD29: 676.6464286 | BF29: Cape Verde | BG29: 2788.060494 | BH29: 1513.955435 | BI29: 2991.53195 | BJ29: 1624.443251 | BK29: 2341.696473 | BL29: 2137.770718 | BM29: 1 | BN29: 4700 | BO29: 1916.194301
A30: Congo, Rep. | B30: 6.866933284 | C30: 2.708050201 | D30: 960 | E30: 15 | F30: 121.4 | G30: 417.7128 | H30: 390.1936 | I30: 1595.589193 | J30: 0.4659555852 | K30: 0.1138335392 | L30: 0.5798000097 | M30: 1 | N30: 0.1260618865 | O30: -0.1895967573 | P30: 0.09794735163 | Q30: -0.1905622631 | R30: 0.1782079935 | S30: -0.5164062381 | T30: 0.1275213659 | U30: -0.3388235271 | V30: 0.03164187819 | W30: -0.0296284873 | X30: 0.1397211552 | Y30: -0.3561269939 | Z30: 0.1180152297 | AA30: -0.2690008879 | AB30: 0.1115791723 | AC30: -0.302834481 | AD30: 0.08728389442 | AE30: -0.2135689259 | AF30: 0.1866468638 | AG30: -0.3482960463 | AH30: 0.1533575505 | AI30: -0.3476369381 | AJ30: 0.3901363313 | AK30: -0.3638776541 | AL30: 0.2548778951 | AM30: -0.5064205527 | AN30: 0.06285663694 | AO30: -0.01599538326 | AP30: 0.1880297214 | AQ30: -0.2024400979 | AR30: 0.1596384943 | AS30: -0.1087153554 | AT30: 0.1660920084 | AU30: -0.1771768183 | AV30: 0.1282757968 | AW30: -0.1160191894 | AX30: 0.5267480016 | AY30: -0.6410329938 | AZ30: 0.08681356907 | BA30: -0.1919554621 | BB30: 0.1220905259 | BC30: -0.1114851087 | BD30: 269.8518141 | BF30: Chile | BG30: 7490.438965 | BH30: 4641.112628 | BI30: 7898.475953 | BJ30: 4893.934342 | BK30: 8087.048659 | BL30: 6569.999707 | BM30: 1 | BN30: 9170 | BO30: 4868.720827
A31: Costa Rica | B31: 9.09492952 | C31: 5.899897354 | D31: 8910 | E31: 365 | F31: 13.1 | G31: 123.3808 | H31: 70.51 | I31: 4158.436447 | J31: 0.0990472883 | K31: 0.09698083997 | L31: 0.1959999949 | M31: 1 | N31: 0.1314148754 | O31: -0.1700885296 | P31: 0.1016171053 | Q31: -0.1754731536 | R31: 0.1841172427 | S31: -0.4975942373 | T31: 0.1325594783 | U31: -0.3240823448 | V31: 0.03266470507 | W31: -0.03085588291 | X31: 0.1471516937 | Y31: -0.3452617526 | Z31: 0.1242907792 | AA31: -0.2599947155 | AB31: 0.1165737733 | AC31: -0.2967255116 | AD31: 0.09116086364 | AE31: -0.2100227624 | AF31: 0.1879909784 | AG31: -0.3207744658 | AH31: 0.1546436846 | AI31: -0.3252392709 | AJ31: 0.3886094391 | AK31: -0.3450357616 | AL31: 0.2555665076 | AM31: -0.498424679 | AN31: 0.06335615367 | AO31: -0.01254090294 | AP31: 0.1909944713 | AQ31: -0.1757947654 | AR31: 0.1622091234 | AS31: -0.08438570797 | AT31: 0.1667613089 | AU31: -0.15898256 | AV31: 0.1293056607 | AW31: -0.1006301269 | AX31: 0.1864220053 | AY31: -1.679742336 | AZ31: 0.09040872753 | BA31: -0.1882846951 | BB31: 0.1230667233 | BC31: -0.09678214788 | BD31: 4769.613767 | BF31: China | BG31: 1688.542351 | BH31: 1066.315421 | BI31: 1783.315504 | BJ31: 1126.164719 | BK31: 1598.439786 | BL31: 1515.081573 | BM31: 1 | BN31: 3870 | BO31: 1267.098383
A32: Cote d'Ivoire | B32: 7.371489295 | C32: 2.944438979 | D32: 1590 | E32: 19 | F32: 146.1 | G32: 475.0046 | H32: 445.8188 | I32: 1059.155393 | J32: 0.4679168165 | K32: 0.1135609969 | L32: 0.5814999938 | M32: 1 | N32: 0.1277108043 | O32: -0.1826211363 | P32: 0.09907265007 | Q32: -0.1849390268 | R32: 0.1798445135 | S32: -0.5106637478 | T32: 0.1290171146 | U32: -0.3330557942 | V32: 0.03195714206 | W32: -0.03025311045 | X32: 0.1421767175 | Y32: -0.3532710075 | Z32: 0.1200926974 | AA32: -0.2667146623 | AB32: 0.1132078916 | AC32: -0.3017560542 | AD32: 0.08854550123 | AE32: -0.2131542712 | AF32: 0.187168926 | AG32: -0.3379999101 | AH32: 0.1532764733 | AI32: -0.3398587108 | AJ32: 0.3891963661 | AK32: -0.3570402861 | AL32: 0.2545357943 | AM32: -0.4994663298 | AN32: 0.06282640994 | AO32: -0.01552308444 | AP32: 0.1886874437 | AQ32: -0.193919912 | AR32: 0.1602285206 | AS32: -0.1011629701 | AT32: 0.1661644578 | AU32: -0.1719583422 | AV32: 0.1284110546 | AW32: -0.1114897579 | AX32: 0.5283409953 | AY32: -0.6380133629 | AZ32: 0.08796551079 | BA32: -0.191503942 | BB32: 0.1222201511 | BC32: -0.1071424559 | BD32: 437.0843055 | BF32: Colombia | BG32: 4565.555125 | BH32: 2973.688844 | BI32: 4867.627834 | BJ32: 3170.438247 | BK32: 4534.732014 | BL32: 4212.03308 | BM32: 1 | BN32: 6120 | BO32: 2297.506937
A33: Croatia | B33: 9.113829472 | C33: 6.388561406 | D33: 9080 | E33: 595 | F33: 8.3 | G33: 174.6092 | H33: 70.9504 | I33: 8236.478274 | J33: 0.1661177278 | K33: 0.1264865249 | L33: 0.2926000059 | M33: 1 | N33: 0.127501145 | O33: -0.1934393793 | P33: 0.0989587903 | Q33: -0.1959684044 | R33: 0.1814197004 | S33: -0.5095949769 | T33: 0.1294342875 | U33: -0.3470346332 | V33: 0.03189724684 | W33: -0.02740192972 | X33: 0.1400211751 | Y33: -0.3472701311 | Z33: 0.1182366386 | AA33: -0.2607928813 | AB33: 0.1120359227 | AC33: -0.2922194302 | AD33: 0.08763397485 | AE33: -0.2051485628 | AF33: 0.1854987144 | AG33: -0.3585807383 | AH33: 0.1585824043 | AI33: -0.3495848179 | AJ33: 0.3945406973 | AK33: -0.3686577082 | AL33: 0.260748297 | AM33: -0.5517551303 | AN33: 0.06492318213 | AO33: -0.008523317054 | AP33: 0.1912469864 | AQ33: -0.1969230026 | AR33: 0.1622831672 | AS33: -0.1012484878 | AT33: 0.1675968617 | AU33: -0.1670047939 | AV33: 0.130508408 | AW33: -0.1086501032 | AX33: 0.2715930045 | AY33: -1.303450584 | AZ33: 0.08732683957 | BA33: -0.183477506 | BB33: 0.1241919473 | BC33: -0.1046065837 | BD33: 4039.865245 | BF33: Costa Rica | BG33: 16232.3095 | BH33: 6275.084647 | BI33: 17068.70303 | BJ33: 6598.417576 | BK33: 11271.59435 | BL33: 8866.871977 | BM33: 1 | BN33: 8910 | BO33: 4769.613767
A34: Dominica | B34: 8.69282576 | C34: 5.33753808 | D34: 5960 | E34: 208 | F34: 15.8 | G34: 183 | H34: 105 | I34: 4847.239942 | J34: 0.1579958647 | M34: 1 | N34: 0.1297703236 | O34: -0.1859051585 | P34: 0.1005223617 | Q34: -0.1903584898 | R34: 0.1840639561 | S34: -0.5013893843 | T34: 0.1316107064 | U34: -0.3418160081 | AB34: 0.1140712723 | AC34: -0.2888035178 | AF34: 0.1862397492 | AG34: -0.3483865261 | AH34: 0.1597336233 | AI34: -0.340714395 | AJ34: 0.3946886361 | AK34: -0.3614763916 | AL34: 0.2617709637 | AM34: -0.5525793433 | AT34: 0.1682898104 | AU34: -0.1587482095 | BF34: Croatia | BG34: 9531.040759 | BH34: 6958.685959 | BI34: 10268.40598 | BJ34: 7497.041966 | BK34: 11440.37105 | BL34: 9912.293582 | BM34: 1 | BN34: 9080 | BO34: 4039.865245
A35: Dominican Republic | B35: 8.724207361 | C35: 4.804021045 | D35: 6150 | E35: 122 | F35: 41.1 | G35: 231.0202 | H35: 142.8816 | I35: 3297.213613 | J35: 0.1640981287 | K35: 0.0986443013 | L35: 0.2626999915 | M35: 1 | N35: 0.1425484866 | O35: -0.1255672425 | P35: 0.1092556119 | Q35: -0.1390394717 | R35: 0.1958580613 | S35: -0.463293314 | T35: 0.1429702193 | U35: -0.2860843241 | V35: 0.03489428759 | W35: -0.03528600559 | X35: 0.1639268398 | Y35: -0.3294909 | Z35: 0.1384618729 | AA35: -0.2476335466 | AB35: 0.1276773512 | AC35: -0.2924834788 | AD35: 0.09985248744 | AE35: -0.2094139457 | AF35: 0.1943015456 | AG35: -0.2539735436 | AH35: 0.1547122747 | AI35: -0.2761460245 | AJ35: 0.3842099607 | AK35: -0.3011581004 | AL35: 0.2542574406 | AM35: -0.4442616701 | AN35: 0.06305987388 | AO35: -0.01134819444 | AP35: 0.1974950135 | AQ35: -0.1238209829 | AR35: 0.1677354127 | AS35: -0.0389226079 | AT35: 0.1686344594 | AU35: -0.1287498623 | AV35: 0.1310293823 | AW35: -0.07404542714 | AX35: 0.2465550005 | AY35: -1.400170207 | AZ35: 0.09834290296 | BA35: -0.1874589175 | BB35: 0.1247327402 | BC35: -0.07124972343 | BD35: 2701.646148 | BF35: Dominican Republic | BG35: 2551.315231 | BH35: 1587.553189 | BI35: 2718.819462 | BJ35: 1691.782518 | BK35: 2370.001765 | BL35: 2217.655962 | BM35: 1 | BN35: 6150 | BO35: 2701.646148
A36: Ecuador | B36: 8.119696253 | C36: 4.406719247 | D36: 3360 | E36: 82 | F36: 34.3 | G36: 190.6632 | H36: 113.0584 | I36: 2613.347141 | J36: 0.1711692512 | K36: 0.1006325334 | L36: 0.2718000114 | M36: 1 | N36: 0.1281884015 | O36: -0.1808807552 | P36: 0.09939974546 | Q36: -0.1835963577 | R36: 0.1803706735 | S36: -0.5089704394 | T36: 0.1294664294 | U36: -0.3317482769 | V36: 0.03204805031 | W36: -0.03035977669 | X36: 0.1428381056 | Y36: -0.3522859812 | Z36: 0.1206512898 | AA36: -0.2658969164 | AB36: 0.113652654 | AC36: -0.301194191 | AD36: 0.08889048547 | AE36: -0.2128248811 | AF36: 0.1872702986 | AG36: -0.3355515897 | AH36: 0.15338853 | AI36: -0.337857008 | AJ36: 0.3890484273 | AK36: -0.3553608656 | AL36: 0.2545927763 | AM36: -0.4988155067 | AN36: 0.06287185103 | AO36: -0.01520325337 | AP36: 0.1889392585 | AQ36: -0.1915274113 | AR36: 0.160447672 | AS36: -0.09897493571 | AT36: 0.1662130207 | AU36: -0.1703155339 | AV36: 0.1284957379 | AW36: -0.1101019979 | AX36: 0.2545770109 | AY36: -1.368151903 | AZ36: 0.08828565478 | BA36: -0.1911633164 | BB36: 0.1223002598 | BC36: -0.1058167964 | BD36: 832.7425714 | BF36: Ecuador | BG36: 1628.837047 | BH36: 1001.647587 | BI36: 1739.047641 | BJ36: 1069.421202 | BK36: 1501.546445 | BL36: 1417.561738 | BM36: 1 | BN36: 3360 | BO36: 832.7425714
A37: Egypt, Arab Rep. | B37: 8.174702882 | C37: 4.158883083 | D37: 3550 | E37: 64 | F37: 44.8 | G37: 216.8224 | H37: 134.983 | I37: 1140.118415 | J37: 0.1753112823 | K37: 0.1030452251 | L37: 0.2784000039 | M37: 1 | N37: 0.1280977726 | O37: -0.1817580312 | P37: 0.09933964908 | Q37: -0.1844232082 | R37: 0.1803706884 | S37: -0.5091756582 | T37: 0.1294110417 | U37: -0.3327345252 | V37: 0.03202886507 | W37: -0.03018365428 | X37: 0.1426068991 | Y37: -0.3521045744 | Z37: 0.1204541698 | AA37: -0.2656937838 | AB37: 0.1135113537 | AC37: -0.3007488549 | AD37: 0.08878077567 | AE37: -0.2124287784 | AF37: 0.1871185154 | AG37: -0.3370855451 | AH37: 0.1536428183 | AI37: -0.3387141228 | AJ37: 0.3893156946 | AK37: -0.3562732935 | AL37: 0.2548964322 | AM37: -0.5018411875 | AN37: 0.06297691911 | AO37: -0.01486190315 | AP37: 0.188997522 | AQ37: -0.192069754 | AR37: 0.1604905874 | AS37: -0.09932213277 | AT37: 0.1662476361 | AU37: -0.1702956408 | AV37: 0.1285668612 | AW37: -0.1101603955 | AX37: 0.2602919936 | AY37: -1.3459512 | AZ37: 0.08819527179 | BA37: -0.1907678097 | BB37: 0.1223662868 | BC37: -0.1058824584 | BD37: 865.9785983 | BF37: Egypt, Arab Rep. | BG37: 1241.446385 | BH37: 764.4949291 | BI37: 1327.606385 | BJ37: 817.5531066 | BK37: 1146.235491 | BL37: 1082.174722 | BM37: 1 | BN37: 3550 | BO37: 865.9785983
A38: El Salvador | B38: 8.455317788 | C38: 5.099866428 | D38: 4700 | E38: 164 | F38: 32.4 | G38: 314.1812 | H38: 137.644 | I38: 2554.049275 | J38: 0.1789714247 | K38: 0.0980405286 | L38: 0.27700001 | M38: 1 | N38: 0.1278205961 | O38: -0.1840372831 | P38: 0.09915415198 | Q38: -0.1865271479 | R38: 0.1802962124 | S38: -0.5099001527 | T38: 0.1292214245 | U38: -0.335200429 | V38: 0.03197205067 | W38: -0.02976217307 | X38: 0.1419804096 | Y38: -0.3518332839 | Z38: 0.1199206859 | AA38: -0.2653474808 | AB38: 0.1131232306 | AC38: -0.2998068035 | AD38: 0.08847953379 | AE38: -0.2115655094 | AF38: 0.1867700815 | AG38: -0.3409824669 | AH38: 0.1542217135 | AI38: -0.340985775 | AJ38: 0.3899744153 | AK38: -0.3586244285 | AL38: 0.2556012273 | AM38: -0.5089063048 | AN38: 0.0632141456 | AO38: -0.01412330288 | AP38: 0.189112395 | AQ38: -0.1936745644 | AR38: 0.1605717242 | AS38: -0.1004471257 | AT38: 0.1663342416 | AU38: -0.1704941094 | AV38: 0.12873061 | AW38: -0.1105012372 | AX38: 0.2594659925 | AY38: -1.349129677 | AZ38: 0.08794213086 | BA38: -0.1899075806 | BB38: 0.1225185171 | BC38: -0.1062308103 | BD38: 2085.689464 | BF38: El Salvador | BG38: 2605.332619 | BH38: 1974.712405 | BI38: 2781.519233 | BJ38: 2108.253086 | BK38: 2898.819707 | BL38: 2798.46059 | BM38: 1 | BN38: 4700 | BO38: 2085.689464
A39: Equatorial Guinea | B39: 9.735660442 | C39: 3.688879454 | D39: 16910 | E39: 40 | F39: 142.4 | G39: 416.1176 | H39: 367.8342 | I39: 4425.477139 | J39: 0.5918997526 | K39: 0.1170568243 | L39: 0.7089999914 | M39: 0 | N39: 0.2343005836 | O39: 0.1684548557 | P39: 0.1733600646 | Q39: 0.1013397351 | R39: 0.3116691113 | S39: -0.2357663512 | T39: 0.2361987233 | U39: -0.03564756736 | V39: 0.05501330644 | W39: -0.06435395777 | X39: 0.295324862 | Y39: -0.2242923528 | Z39: 0.2490965426 | AA39: -0.1650493592 | AB39: 0.2165772319 | AC39: -0.2633437812 | AD39: 0.170572713 | AE39: -0.2045252621 | AF39: 0.2863107026 | AG39: 0.1867220998 | AH39: 0.1969694793 | AI39: 0.04830431566 | AJ39: 0.4206876159 | AK39: -0.0114881536 | AL39: 0.3006001115 | AM39: -0.09073009342 | AN39: 0.07079337537 | AO39: -0.002695475705 | AP39: 0.2980359793 | AQ39: 0.2204427123 | AR39: 0.2494048029 | AS39: 0.2624861598 | AT39: 0.2178376764 | AU39: 0.07221858203 | AV39: 0.1714980304 | AW39: 0.1025119573 | AX39: 0.6396710277 | AY39: -0.4468012452 | AZ39: 0.164092645 | BA39: -0.1811296195 | BB39: 0.1636578143 | BC39: 0.09829881787 | BD39: 3659.356891 | BF39: Equatorial Guinea | BG39: -1516.251538 | BH39: 214.2482517 | BI39: -1680.484266 | BJ39: 237.454543 | BK39: 244.7887701 | BL39: 275.8460716 | BM39: 1 | BN39: 16910 | BO39: 3659.356891
A40: Eritrea | B40: 6.697034248 | C40: 3.091042453 | D40: 810 | E40: 22 | F40: 89.3 | G40: 422.6588 | H40: 334.4462 | I40: 245.7114001 | J40: 0.5514202714 | K40: 0.1190342456 | L40: 0.6704999804 | M40: 1 | N40: 0.1258968413 | O40: -0.1904515177 | P40: 0.0978352204 | Q40: -0.1912861019 | R40: 0.1780728549 | S40: -0.5169594884 | T40: 0.1273807883 | U40: -0.3396061659 | V40: 0.03161001205 | W40: -0.0295235645 | X40: 0.1394471824 | Y40: -0.3563196957 | Z40: 0.1177829131 | AA40: -0.2691382766 | AB40: 0.1114009768 | AC40: -0.3027976155 | AD40: 0.08714602143 | AE40: -0.2134893239 | AF40: 0.1865616292 | AG40: -0.3496272266 | AH40: 0.1534410119 | AI40: -0.34855479 | AJ40: 0.3902975619 | AK40: -0.3647307456 | AL40: 0.2549987137 | AM40: -0.5078985095 | AN40: 0.06289032102 | AO40: -0.01593667082 | AP40: 0.1879950017 | AQ40: -0.2033301592 | AR40: 0.1596039087 | AS40: -0.1094654724 | AT40: 0.1660974324 | AU40: -0.1776195467 | AV40: 0.1282861978 | AW40: -0.1164254695 | AX40: 0.6048169732 | AY40: -0.5028293729 | AZ40: 0.08669064194 | BA40: -0.191879198 | BB40: 0.122099869 | BC40: -0.1118774489 | BD40: 126.7071007 | BF40: Estonia | BG40: 6079.478636 | BH40: 4113.720543 | BI40: 6608.669263 | BJ40: 4471.800977 | BK40: 6121.86354 | BL40: 5849.214938 | BM40: 1 | BN40: 10280 | BO40: 4309.160416
A41: Estonia | B41: 9.237955539 | C41: 6.047372179 | D41: 10280 | E41: 423 | F41: 11 | G41: 318.083 | H41: 120.07 | I41: 7102.136919 | J41: 0.2208095938 | K41: 0.125636518 | L41: 0.3463999927 | M41: 0 | N41: 0.1268101633 | O41: -0.1920613945 | P41: 0.09847445041 | Q41: -0.1938694865 | R41: 0.1799650043 | S41: -0.5127298832 | T41: 0.1285328865 | U41: -0.3437406719 | V41: 0.03177052364 | W41: -0.02833104879 | X41: 0.139780432 | Y41: -0.351170212 | Z41: 0.118047148 | AA41: -0.2643934488 | AB41: 0.1117596552 | AC41: -0.2968041003 | AD41: 0.08742211014 | AE41: -0.2087684721 | AF41: 0.1857516319 | AG41: -0.3545724154 | AH41: 0.1562246531 | AI41: -0.3490484953 | AJ41: 0.3924183249 | AK41: -0.3668732047 | AL41: 0.2580774724 | AM41: -0.5326170921 | AN41: 0.06401423365 | AO41: -0.0117395455 | AP41: 0.1896201819 | AQ41: -0.1996101886 | AR41: 0.1609412134 | AS41: -0.1047332138 | AT41: 0.166753009 | AU41: -0.1715581268 | AV41: 0.1293810308 | AW41: -0.1119773835 | AX41: 0.3187040091 | AY41: -1.14349246 | AZ41: 0.087050125 | BA41: -0.1871234775 | BB41: 0.1231271178 | BC41: -0.1077167541 | BD41: 4309.160416 | BF41: Gabon | BG41: 1133.099223 | BH41: 616.705654 | BI41: 1245.902748 | BJ41: 678.1006049 | BK41: 800.2738661 | BL41: 869.8129822 | BM41: 1 | BN41: 6150 | BO41: 1819.919388
A42: Ethiopia | B42: 6.56526497 | C42: 1.386294361 | D42: 710 | E42: 4 | F42: 145.5 | G42: 385.8516 | H42: 370.5632 | I42: 137.4982042 | J42: 0.510386169 | K42: 0.1036645621 | L42: 0.6140999794 | M42: 1 | N42: 0.1262033284 | O42: -0.1889715791 | P42: 0.0980437696 | Q42: -0.1900534332 | R42: 0.1783433259 | S42: -0.5159125328 | T42: 0.127647981 | U42: -0.338296026 | V42: 0.03166887909 | W42: -0.02968841977 | X42: 0.1399359405 | Y42: -0.3558929265 | Z42: 0.1181970462 | AA42: -0.2688158453 | AB42: 0.1117211357 | AC42: -0.3027613461 | AD42: 0.08739374578 | AE42: -0.2135499269 | AF42: 0.1866941005 | AG42: -0.3473635614 | AH42: 0.1533384621 | AI42: -0.3469447196 | AJ42: 0.3900435865 | AK42: -0.3632627428 | AL42: 0.2548343539 | AM42: -0.5057101846 | AN42: 0.06284942478 | AO42: -0.0159692876 | AP42: 0.1880794317 | AQ42: -0.2016979158 | AR42: 0.1596838981 | AS42: -0.1080628857 | AT42: 0.1660949737 | AU42: -0.1767365187 | AV42: 0.1282829642 | AW42: -0.1156339496 | AX42: 0.5611420274 | AY42: -0.57778126 | AZ42: 0.08691342175 | BA42: -0.191933319 | BB42: 0.1220974699 | BC42: -0.1111153588 | BD42: 179.4807657 | BF42: Guatemala | BG42: 1342.316183 | BH42: 894.9117077 | BI42: 1439.35433 | BJ42: 959.6062819 | BK42: 1200.183747 | BL42: 1269.531131 | BM42: 1 | BN42: 3960 | BO42: 1362.625994
A43: Finland | B43: 10.13261318 | C43: 7.149916836 | D43: 25150 | E43: 1274 | F43: 4.3 | G43: 143.868 | H43: 63 | I43: 34755.56855 | J43: 0.1446654499 | K43: 0.112506479 | L43: 0.2572000027 | M43: 0 | N43: 0.1261540651 | O43: -0.1930588931 | P43: 0.09802103788 | Q43: -0.1942541152 | R43: 0.1789937764 | S43: -0.515363574 | T43: 0.1278311759 | U43: -0.3436507285 | V43: 0.03164927289 | W43: -0.02858380042 | X43: 0.1391389668 | Y43: -0.3534739316 | Z43: 0.1175101325 | AA43: -0.2664407492 | AB43: 0.1112876832 | AC43: -0.2989951372 | AD43: 0.08705759048 | AE43: -0.2103993744 | AF43: 0.1858445853 | AG43: -0.3552064896 | AH43: 0.1553010345 | AI43: -0.3505854011 | AJ43: 0.3918577135 | AK43: -0.3676667511 | AL43: 0.2571027875 | AM43: -0.5260697603 | AN43: 0.06364729255 | AO43: -0.01321213506 | AP43: 0.1888887435 | AQ43: -0.2026839703 | AR43: 0.16032736 | AS43: -0.1079260111 | AT43: 0.1664682478 | AU43: -0.1746751219 | AV43: 0.1289482117 | AW43: -0.114417538 | AX43: 0.2408960015 | AY43: -1.423389912 | AZ43: 0.0866824165 | BA43: -0.188773796 | BB43: 0.1227193177 | BC43: -0.110022366 | BD43: 23041.32983 | BF43: Guyana | BG43: 2558.184506 | BH43: 1622.409681 | BI43: 2760.369033 | BJ43: 1750.635824 | BK43: 2316.629151 | BL43: 2299.165236 | BM43: 1 | BN43: 4050 | BO43: 964.4839561
A44: France | B44: 10.13934988 | C44: 7.498869734 | D44: 25320 | E44: 1806 | F44: 5.4 | G44: 138.397 | H44: 60.836 | I44: 33327.10544 | J44: 0.1473575383 | K44: 0.1145444363 | L44: 0.2619000077 | M44: 0 | N44: 0.1334063113 | O44: -0.1987174749 | P44: 0.1030980498 | Q44: -0.2067373842 | R44: 0.1925957203 | S44: -0.4857935309 | T44: 0.1370885819 | U44: -0.365603447 | V44: 0.03310321644 | W44: -0.02161731012 | X44: 0.1436234415 | Y44: -0.3199990988 | Z44: 0.1211803555 | AA44: -0.2358074486 | AB44: 0.1154151186 | AC44: -0.2614054084 | AD44: 0.09022194892 | AE44: -0.1810570359 | AF44: 0.1924598515 | AG44: -0.3793880939 | AH44: 0.1782707572 | AI44: -0.3488759995 | AJ44: 0.4178839624 | AK44: -0.376691401 | AL44: 0.2841323316 | AM44: -0.6741329432 | AN44: 0.07177228481 | AO44: 0.01293829922 | AP44: 0.2101999372 | AQ44: -0.1745574325 | AR44: 0.1780292094 | AS44: -0.07415312529 | AT44: 0.1803076863 | AU44: -0.1341378987 | AV44: 0.1438118815 | AW44: -0.08424235135 | AX44: 0.2450229973 | AY44: -1.406403184 | AZ44: 0.09024842083 | BA44: -0.1591940671 | BB44: 0.1368654072 | BC44: -0.08173210919 | BD44: 21895.66479 | BF44: Honduras | BG44: 1969.370358 | BH44: 929.4152461 | BI44: 2102.385444 | BJ44: 992.1897506 | BK44: 1346.615467 | BL44: 1311.85476 | BM44: 1 | BN44: 2510 | BO44: 1036.13779
A45: Gabon | B45: 8.724207361 | C45: 4.477336814 | D45: 6150 | E45: 88 | F45: 84.6 | G45: 310.0382 | H45: 273.4406 | I45: 6488.289522 | J45: 0.353091985 | K45: 0.12176162 | L45: 0.4749000072 | M45: 1 | N45: 0.1309885234 | O45: -0.1683939248 | P45: 0.1013095006 | Q45: -0.1732757241 | R45: 0.183045119 | S45: -0.4997914433 | T45: 0.1319883168 | U45: -0.3208683133 | V45: 0.03259505332 | W45: -0.03168557212 | X45: 0.1471978575 | Y45: -0.3483242095 | Z45: 0.1243404672 | AA45: -0.2628488839 | AB45: 0.1165208071 | AC45: -0.3005003631 | AD45: 0.09112014621 | AE45: -0.2130367905 | AF45: 0.1885989904 | AG45: -0.3166119456 | AH45: 0.1528593898 | AI45: -0.3241913021 | AJ45: 0.3872360885 | AK45: -0.3430097103 | AL45: 0.2535919249 | AM45: -0.4817881882 | AN45: 0.06263051182 | AO45: -0.01521084085 | AP45: 0.1900599152 | AQ45: -0.1774021536 | AR45: 0.1614447087 | AS45: -0.08673840016 | AT45: 0.1663815081 | AU45: -0.1624134481 | AV45: 0.1286564767 | AW45: -0.1030822545 | AX45: 0.4318610132 | AY45: -0.8396514654 | AZ45: 0.09030408412 | BA45: -0.1913178116 | BB45: 0.122459285 | BC45: -0.09906592965 | BD45: 1819.919388 | BF45: Hungary | BG45: 8064.917013 | BH45: 6449.55169 | BI45: 8785.953944 | BJ45: 7026.168281 | BK45: 10260.05215 | BL45: 9228.656743 | BM45: 1 | BN45: 12320 | BO45: 4707.955118
A46: Gambia, The | B46: 7.426549072 | C46: 3.526360525 | D46: 1680 | E46: 34 | F46: 119 | G46: 327.4844 | H46: 272.8538 | I46: 437.8568071 | J46: 0.4478533566 | K46: 0.09959794581 | L46: 0.5475000143 | M46: 1 | N46: 0.1310933977 | O46: -0.1700686663 | P46: 0.1013909802 | Q46: -0.1751385927 | R46: 0.1835414022 | S46: -0.4989542663 | T46: 0.1321925223 | U46: -0.323371321 | V46: 0.03260680288 | W46: -0.03111742064 | X46: 0.1469354331 | Y46: -0.3466928303 | Z46: 0.1241121292 | AA46: -0.2612945735 | AB46: 0.1163974181 | AC46: -0.2982691526 | AD46: 0.09102382511 | AE46: -0.2112150043 | AF46: 0.1881320328 | AG46: -0.3201086223 | AH46: 0.1539398432 | AI46: -0.3255395889 | AJ46: 0.3881179392 | AK46: -0.3448764384 | AL46: 0.2548050582 | AM46: -0.4926778376 | AN46: 0.06307514757 | AO46: -0.01360651385 | AP46: 0.1905285865 | AQ46: -0.1771794409 | AR46: 0.1618236452 | AS46: -0.08596861362 | AT46: 0.1665732712 | AU46: -0.1607679874 | AV46: 0.1290148497 | AW46: -0.1019783691 | AX46: 0.5028460026 | AY46: -0.6874713302 | AZ46: 0.09025743604 | BA46: -0.1894875914 | BB46: 0.1227935404 | BC46: -0.09804902971 | BD46: 863.2737008 | BF46: Jamaica | BG46: 1645.330936 | BH46: 1374.763207 | BI46: 1761.481853 | BJ46: 1471.813595 | BK46: 2079.150102 | BL46: 1968.992401 | BM46: 1 | BN46: 3670 | BO46: 1979.21834
A47: Georgia | B47: 7.539027056 | C47: 3.465735903 | D47: 1880 | E47: 32 | F47: 35.7 | G47: 197.2126 | H47: 76.4818 | I47: 1018.759373 | J47: 0.1784873307 | K47: 0.1155179739 | L47: 0.2939999998 | M47: 1 | N47: 0.1273142099 | O47: -0.1905408204 | P47: 0.09882113338 | Q47: -0.1927889585 | R47: 0.1805770844 | S47: -0.5108504891 | T47: 0.1290255189 | U47: -0.3428001404 | V47: 0.03186542168 | W47: -0.02834876254 | X47: 0.1404130012 | Y47: -0.3498913944 | Z47: 0.1185804307 | AA47: -0.2632994056 | AB47: 0.1121955067 | AC47: -0.2958637178 | AD47: 0.08775927126 | AE47: -0.2081339061 | AF47: 0.1858286411 | AG47: -0.3526182473 | AH47: 0.1565428674 | AI47: -0.3472059369 | AJ47: 0.392477572 | AK47: -0.3654465377 | AL47: 0.2583722174 | AM47: -0.5337126255 | AN47: 0.06413876265 | AO47: -0.0111500714 | AP47: 0.1900040656 | AQ47: -0.1971104592 | AR47: 0.1612699181 | AS47: -0.1023553088 | AT47: 0.1668834537 | AU47: -0.1695996672 | AV47: 0.1295688003 | AW47: -0.1103693768 | AX47: 0.2733870149 | AY47: -1.296866894 | AZ47: 0.08736984432 | BA47: -0.1864759624 | BB47: 0.12330468 | BC47: -0.1061867997 | BD47: 502.1369036 | BF47: Jordan | BG47: 4314.789646 | BH47: 2752.884723 | BI47: 4552.345485 | BJ47: 2904.448042 | BK47: 4286.3221 | BL47: 3877.33024 | BM47: 1 | BN47: 3920 | BO47: 1133.211556
A48: Germany | B48: 10.16854051 | C48: 7.637716433 | D48: 26070 | E48: 2075 | F48: 5.4 | G48: 124.083 | H48: 62.971 | I48: 33783.14707 | J48: 0.152569741 | K48: 0.1202027276 | L48: 0.2727999985 | M48: 0 | N48: 0.1284857243 | O48: -0.1949820369 | P48: 0.09964836389 | Q48: -0.1984966993 | R48: 0.1834106445 | S48: -0.5053138137 | T48: 0.1307159215 | U48: -0.3511116207 | V48: 0.03208536282 | W48: -0.02621615678 | X48: 0.1404634565 | Y48: -0.3420971036 | Z48: 0.1185916886 | AA48: -0.2560296655 | AB48: 0.1124945804 | AC48: -0.2862198353 | AD48: 0.08798541874 | AE48: -0.2004270256 | AF48: 0.1856873482 | AG48: -0.3634248972 | AH48: 0.1619134247 | AI48: -0.3500044346 | AJ48: 0.3978725374 | AK48: -0.370733887 | AL48: 0.264582932 | AM48: -0.5763907433 | AN48: 0.06615929306 | AO48: -0.004324602894 | AP48: 0.1938799471 | AQ48: -0.1931248307 | AR48: 0.1644617319 | AS48: -0.09644789994 | AT48: 0.1691351235 | AU48: -0.1608980745 | AV48: 0.1323443949 | AW48: -0.1041621491 | AX48: 0.254433006 | AY48: -1.36871767 | AZ48: 0.08775675297 | BA48: -0.1787207723 | BB48: 0.1259328574 | BC48: -0.1004075855 | BD48: 23213.32463 | BF48: Kazakhstan | BG48: 1564.616523 | BH48: 1139.554302 | BI48: 1684.574007 | BJ48: 1226.922718 | BK48: 1544.792397 | BL48: 1605.651823 | BM48: 1 | BN48: 4590 | BO48: 733.2519017
A49: Ghana | B49: 7.585788822 | C49: 3.36729583 | D49: 1970 | E49: 29 | F49: 101.3 | G49: 319.0644 | H49: 279.9398 | I49: 445.8768282 | J49: 0.3688535094 | K49: 0.1101039872 | L49: 0.4790000021 | M49: 1 | N49: 0.1280447841 | O49: -0.182012409 | P49: 0.09930356592 | Q49: -0.1846362501 | R49: 0.1803234518 | S49: -0.5093505979 | T49: 0.1293645799 | U49: -0.3329622746 | V49: 0.03201856464 | W49: -0.03015436418 | X49: 0.1425217241 | Y49: -0.3521726429 | Z49: 0.1203820184 | AA49: -0.2657443881 | AB49: 0.1134556606 | AC49: -0.3007494211 | AD49: 0.08873756975 | AE49: -0.2124139816 | AF49: 0.1870922446 | AG49: -0.3374769688 | AH49: 0.1536611319 | AI49: -0.3389897048 | AJ49: 0.3893587589 | AK49: -0.3565261662 | AL49: 0.2549252212 | AM49: -0.5022383332 | AN49: 0.06298457831 | AO49: -0.01485237852 | AP49: 0.1889813095 | AQ49: -0.1923451424 | AR49: 0.1604755968 | AS49: -0.09955733269 | AT49: 0.1662469953 | AU49: -0.1704408079 | AV49: 0.1285671294 | AW49: -0.1102914438 | AX49: 0.4383449852 | AY49: -0.8247490525 | AZ49: 0.08815645427 | BA49: -0.1907540858 | BB49: 0.1223663911 | BC49: -0.1060087532 | BD49: 289.4645805 | BF49: Korea, Rep. | BG49: 13610.39662 | BH49: 7110.217991 | BI49: 14301.03453 | BJ49: 7471.014687 | BK49: 12187.80369 | BL49: 10153.36107 | BM49: 1 | BN49: 15220 | BO49: 10051.25456
A50: Guatemala | B50: 8.283999304 | C50: 4.49980967 | D50: 3960 | E50: 90 | F50: 50.7 | G50: 273.863 | H50: 153.0506 | I50: 2092.248443 | J50: 0.2392885238 | K50: 0.09386308491 | L50: 0.3332000077 | M50: 1 | N50: 0.1260464191 | O50: -0.1906489432 | P50: 0.09793968499 | Q50: -0.1916425228 | R50: 0.1783712953 | S50: -0.5162696838 | T50: 0.127563566 | U50: -0.3401995599 | V50: 0.031635914 | W50: -0.02934503183 | X50: 0.1395123452 | Y50: -0.3555092812 | Z50: 0.1178353876 | AA50: -0.2683940232 | AB50: 0.1114642769 | AC50: -0.3018703163 | AD50: 0.08719485253 | AE50: -0.2127620429 | AF50: 0.1864045858 | AG50: -0.3503127992 | AH50: 0.1538459808 | AI50: -0.3485752642 | AJ50: 0.3905702829 | AK50: -0.3650108874 | AL50: 0.2554393709 | AM50: -0.5116417408 | AN50: 0.06305812299 | AO50: -0.01528932992 | AP50: 0.1882107109 | AQ50: -0.2026988268 | AR50: 0.1597813666 | AS50: -0.1086857021 | AT50: 0.1661653966 | AU50: -0.1766524315 | AV50: 0.1284269542 | AW50: -0.1157107875 | AX50: 0.310690999 | AY50: -1.168956399 | AZ50: 0.08675163239 | BA50: -0.1911462992 | BB50: 0.1222312674 | BC50: -0.1112081856 | BD50: 1362.625994 | BF50: Lebanon | BG50: 7742.772191 | BH50: 4023.195736 | BI50: 8139.183026 | BJ50: 4229.173432 | BK50: 6455.716713 | BL50: 5739.457817 | BM50: 1 | BN50: 4210 | BO50: 2297.190293
A51: Guinea | B51: 7.585788822 | C51: 3.401197382 | D51: 1970 | E51: 30 | F51: 170.2 | G51: 333.199 | H51: 316.3364 | I51: 288.6451124 | J51: 0.6193991899 | K51: 0.122970961 | L51: 0.7423999906 | M51: 1 | N51: 0.1290637702 | O51: -0.1769097 | P51: 0.09999649972 | Q51: -0.180310607 | R51: 0.1811932474 | S51: -0.5060668588 | T51: 0.1302489042 | U51: -0.3282804191 | V51: 0.03221821785 | W51: -0.03078433126 | X51: 0.1442065537 | Y51: -0.3510422707 | Z51: 0.1218096241 | AA51: -0.2649423182 | AB51: 0.1145521179 | AC51: -0.3009909391 | AD51: 0.08958888799 | AE51: -0.2129057199 | AF51: 0.1876713485 | AG51: -0.3295212388 | AH51: 0.1531971842 | AI51: -0.3335146904 | AJ51: 0.3884457052 | AK51: -0.3514313996 | AL51: 0.254247129 | AM51: -0.4933359921 | AN51: 0.0627887845 | AO51: -0.01521768514 | AP51: 0.1892631352 | AQ51: -0.1870511919 | AR51: 0.1607392132 | AS51: -0.09510155767 | AT51: 0.1662504822 | AU51: -0.1678227931 | AV51: 0.1285320669 | AW51: -0.1078849137 | AX51: 0.6662020087 | AY51: -0.4061623514 | AZ51: 0.08891706169 | BA51: -0.1912260205 | BB51: 0.1223366782 | BC51: -0.1036842987 | BD51: 747.3821785 | BF51: Lithuania | BG51: 4988.848834 | BH51: 3648.558902 | BI51: 5396.615647 | BJ51: 3946.776243 | BK51: 5628.17629 | BL51: 5231.719677 | BM51: 1 | BN51: 8720 | BO51: 3305.829252
A52: Guinea-Bissau | B52: 6.672032945 | C52: 3.135494216 | D52: 790 | E52: 23 | F52: 180.8 | G52: 320.869 | H52: 291.6096 | I52: 422.6811775 | J52: 0.6332156062 | K52: 0.1188572049 | L52: 0.7520999908 | M52: 1 | N52: 0.1281817257 | O52: -0.1805973649 | P52: 0.09939403832 | Q52: -0.1832932532 | R52: 0.1803070307 | S52: -0.5090597272 | T52: 0.1294435263 | U52: -0.331351161 | V52: 0.03204789758 | W52: -0.0304460302 | X52: 0.1428884566 | Y52: -0.3525072634 | Z52: 0.1206948608 | AA52: -0.2661102116 | AB52: 0.1136786044 | AC52: -0.3015128672 | AD52: 0.08891066909 | AE52: -0.2130877376 | AF52: 0.187345162 | AG52: -0.3349841237 | AH52: 0.1532328427 | AI52: -0.3376165926 | AJ52: 0.3889182508 | AK52: -0.3550503254 | AL52: 0.2544164062 | AM52: -0.4971907437 | AN52: 0.06280741096 | AO52: -0.01543412544 | AP52: 0.1888778359 | AQ52: -0.191511482 | AR52: 0.1603985429 | AS52: -0.0990441367 | AT52: 0.1661892831 | AU52: -0.1705254465 | AV52: 0.1284468919 | AW52: -0.1102369875 | AX52: 0.6768109798 | AY52: -0.3903632462 | AZ52: 0.08829796314 | BA52: -0.191427201 | BB52: 0.1222547814 | BC52: -0.1059401855 | BD52: 217.9165812 | BF52: Macedonia, FYR | BG52: 7710.67574 | BH52: 3523.018582 | BI52: 8220.326116 | BJ52: 3755.878555 | BK52: 5929.5016 | BL52: 4922.984472 | BM52: 1 | BN52: 6570 | BO52: 1972.851317
A53: Guyana | B53: 8.30647216 | C53: 5.087596335 | D53: 4050 | E53: 162 | F53: 48.7 | G53: 332.3976 | H53: 193.3526 | I53: 1069.634596 | J53: 0.2202832252 | K53: 0.1097320095 | L53: 0.3300000131 | M53: 1 | N53: 0.126640141 | O53: -0.1870193928 | P53: 0.09834147245 | Q53: -0.1884577423 | R53: 0.1787574738 | S53: -0.514400363 | T53: 0.1280380487 | U53: -0.3366339505 | V53: 0.03175250068 | W53: -0.02988114767 | X53: 0.1406045407 | Y53: -0.3551929593 | Z53: 0.1187630668 | AA53: -0.2682661712 | AB53: 0.1121623889 | AC53: -0.3025662601 | AD53: 0.0877353251 | AE53: -0.2135162205 | AF53: 0.1868506372 | AG53: -0.344438225 | AH53: 0.1532674581 | AI53: -0.3447901607 | AJ53: 0.3897490203 | AK53: -0.3613395989 | AL53: 0.2546865642 | AM53: -0.5033688545 | AN53: 0.06282163411 | AO53: -0.01591072232 | AP53: 0.1882312 | AQ53: -0.199410677 | AR53: 0.1598225832 | AS53: -0.1060599834 | AT53: 0.1661043465 | AU53: -0.1754002869 | AV53: 0.1283023655 | AW53: -0.1144602597 | AX53: 0.3058429956 | AY53: -1.184683442 | AZ53: 0.08722341061 | BA53: -0.1918900311 | BB53: 0.1221164465 | BC53: -0.1099882945 | BD53: 964.4839561 | BF53: Malaysia | BG53: 4995.833776 | BH53: 2710.501482 | BI53: 5253.48842 | BJ53: 2850.292621 | BK53: 4816.690878 | BL53: 3830.730298 | BM53: 1 | BN53: 8960 | BO53: 2884.289153
A54: Haiti | B54: 7.408530567 | C54: 3.33220451 | D54: 1650 | E54: 28 | F54: 104.4 | G54: 337.403 | H54: 273.7388 | I54: 497.7696663 | J54: 0.3392466307 | K54: 0.1168182194 | L54: 0.456099987 | M54: 1 | N54: 0.1428174227 | O54: -0.1225962341 | P54: 0.1094246283 | Q54: -0.1361217648 | R54: 0.1957822889 | S54: -0.4631060064 | T54: 0.1431535184 | U54: -0.2824879885 | V54: 0.03496175259 | W54: -0.03597827628 | X54: 0.1647532731 | Y54: -0.3306361437 | Z54: 0.1391649991 | AA54: -0.2488034666 | AB54: 0.1281804889 | AC54: -0.294562161 | AD54: 0.100247778 | AE54: -0.2111956328 | AF54: 0.1949554533 | AG54: -0.2485438138 | AH54: 0.1536740065 | AI54: -0.2733622789 | AJ54: 0.383249253 | AK54: -0.2980164587 | AL54: 0.2530653179 | AM54: -0.4319023192 | AN54: 0.06261670589 | AO54: -0.01289780065 | AP54: 0.1972735673 | AQ54: -0.1225040406 | AR54: 0.16755867 | AS54: -0.03833862767 | AT54: 0.1684929878 | AU54: -0.1294813305 | AV54: 0.1307370216 | AW54: -0.07434977591 | AX54: 0.4164350033 | AY54: -0.8760249019 | AZ54: 0.09866717458 | BA54: -0.1892425418 | BB54: 0.1244624257 | BC54: -0.07149925083 | BD54: 553.4509953 | BF54: Mauritius | BG54: 3936.182664 | BH54: 2620.274273 | BI54: 4172.419855 | BJ54: 2777.534818 | BK54: 4301.861062 | BL54: 3749.187769 | BM54: 1 | BN54: 9660 | BO54: 4146.409366
A55: Honduras | B55: 7.828038032 | C55: 4.356708827 | D55: 2510 | E55: 78 | F55: 38.2 | G55: 199.5038 | H55: 143.9076 | I55: 1235.615945 | J55: 0.1828552634 | K55: 0.09674163908 | L55: 0.2795999944 | M55: 1 | N55: 0.1306227148 | O55: -0.1704143584 | P55: 0.1010618061 | Q55: -0.1750389189 | R55: 0.182767123 | S55: -0.5008736849 | T55: 0.1316772699 | U55: -0.3228321075 | V55: 0.032521341 | W55: -0.03139499947 | X55: 0.1465467215 | Y55: -0.3485438526 | Z55: 0.1237884313 | AA55: -0.2629595697 | AB55: 0.1161016449 | AC55: -0.3001597524 | AD55: 0.09079379588 | AE55: -0.2126530856 | AF55: 0.188308984 | AG55: -0.3198628426 | AH55: 0.1531297117 | AI55: -0.3263080716 | AJ55: 0.3876344562 | AK55: -0.3450491428 | AL55: 0.2539488077 | AM55: -0.4862200916 | AN55: 0.06274740398 | AO55: -0.01489722077 | AP55: 0.1899779588 | AQ55: -0.1792751849 | AR55: 0.1613663882 | AS55: -0.08824858069 | AT55: 0.1663825661 | AU55: -0.1631649435 | AV55: 0.1286933422 | AW55: -0.1038195565 | AX55: 0.2619070113 | AY55: -1.339765787 | AZ55: 0.09001626074 | BA55: -0.190940246 | BB55: 0.1224921048 | BC55: -0.09978370368 | BD55: 1036.13779 | BF55: Mexico | BG55: 6943.630922 | BH55: 3480.263042 | BI55: 7317.380293 | BJ55: 3667.592429 | BK55: 5259.243769 | BL55: 4939.516772 | BM55: 1 | BN55: 8920 | BO55: 5748.44185
A56: Hungary | B56: 9.418979237 | C56: 6.419994928 | D56: 12320 | E56: 614 | F56: 11.2 | G56: 271.521 | H56: 114.535 | I56: 8916.184078 | J56: 0.2010281682 | K56: 0.1386820674 | L56: 0.3397000134 | M56: 0 | N56: 0.1299465895 | O56: -0.1942850202 | P56: 0.1006667987 | Q56: -0.1991441548 | R56: 0.185837999 | S56: -0.4995147586 | T56: 0.1324287206 | U56: -0.3531723619 | V56: 0.03237096965 | W56: -0.02529241703 | X56: 0.1416658014 | Y56: -0.3363477886 | Z56: 0.1195906028 | AA56: -0.2508416176 | AB56: 0.1134604812 | AC56: -0.2802400589 | AD56: 0.08872930706 | AE56: -0.1958548427 | AF56: 0.1865895092 | AG56: -0.3648126125 | AH56: 0.1653149575 | AI56: -0.3480030596 | AJ56: 0.4013762772 | AK56: -0.3705816865 | AL56: 0.2684900165 | AM56: -0.5974380374 | AN56: 0.06737428904 | AO56: -0.000226794451 | AP56: 0.1970941424 | AQ56: -0.1869245768 | AR56: 0.1671397239 | AS56: -0.08960221708 | AT56: 0.1710909158 | AU56: -0.1535419822 | AV56: 0.1345060915 | AW56: -0.09854210168 | AX56: 0.3118309975 | AY56: -1.165293932 | AZ56: 0.08853843808 | BA56: -0.1741041094 | BB56: 0.1279886812 | BC56: -0.09511709213 | BD56: 4707.955118 | BF56: Morocco | BG56: 1226.965494 | BH56: 688.3847238 | BI56: 1314.29041 | BJ56: 737.3780639 | BK56: 1060.170746 | BL56: 977.1674562 | BM56: 1 | BN56: 3480 | BO56: 1264.613276
A57: India | B57: 7.791522819 | C57: 2.564949357 | D57: 2420 | E57: 13 | F57: 91.4 | G57: 269.558 | H57: 199.829 | I57: 578.2172334 | J57: 0.2920974493 | K57: 0.1109387651 | L57: 0.4029999971 | M57: 1 | N57: 0.1279108226 | O57: -0.1937305182 | P57: 0.09924482554 | Q57: -0.196662724 | R57: 0.1821873933 | S57: -0.5078486204 | T57: 0.1299399287 | U57: -0.3482776284 | V57: 0.03197455034 | W57: -0.02700104937 | X57: 0.1402640492 | Y57: -0.3453126252 | Z57: 0.1184354052 | AA57: -0.2590032816 | AB57: 0.1122543067 | AC57: -0.290032655 | AD57: 0.08780187368 | AE57: -0.203443855 | AF57: 0.1855235547 | AG57: -0.359928906 | AH57: 0.1597385556 | AI57: -0.3494441509 | AJ57: 0.3956218958 | AK57: -0.3691448867 | AL57: 0.2620610595 | AM57: -0.5603089929 | AN57: 0.06535758823 | AO57: -0.007003494538 | AP57: 0.1921521723 | AQ57: -0.1952456236 | AR57: 0.1630334705 | AS57: -0.09924864769 | AT57: 0.1680960953 | AU57: -0.1646249145 | AV57: 0.1311252266 | AW57: -0.106875129 | AX57: 0.3706310093 | AY57: -0.9925482869 | AZ57: 0.08751896769 | BA57: -0.181758821 | BB57: 0.1247761771 | BC57: -0.1029419675 | BD57: 547.8344236 | BF57: Namibia | BG57: 2871.086924 | BH57: 1725.161527 | BI57: 3128.952832 | BJ57: 1880.10645 | BK57: 2192.646221 | BL57: 2404.858184 | BM57: 1 | BN57: 5840 | BO57: 2482.957506
A58: Indonesia | B58: 8.026170195 | C58: 2.995732274 | D58: 3060 | E58: 20 | F58: 52.2 | G58: 216.6338 | H58: 158.2746 | I58: 1086.050874 | J58: 0.1916880906 | K58: 0.09475527704 | L58: 0.2863999903 | M58: 1 | N58: 0.1271760315 | O58: -0.1866633892 | P58: 0.09871342778 | Q58: -0.1886234879 | R58: 0.1796365678 | S58: -0.5121512413 | T58: 0.1286316067 | U58: -0.3373267949 | V58: 0.03184888884 | W58: -0.02954385802 | X58: 0.141038835 | Y58: -0.3530017734 | Z58: 0.1191244125 | AA58: -0.26629287 | AB58: 0.1124966443 | AC58: -0.3003130555 | AD58: 0.0879938975 | AE58: -0.2117989659 | AF58: 0.1865726858 | AG58: -0.3448173702 | AH58: 0.1542005539 | AI58: -0.3439349234 | AJ58: 0.390288502 | AK58: -0.361189425 | AL58: 0.2556738853 | AM58: -0.5111531019 | AN58: 0.06320601702 | AO58: -0.014370271 | AP58: 0.1888242364 | AQ58: -0.1969734877 | AR58: 0.1603163034 | AS58: -0.1033943743 | AT58: 0.1662877053 | AU58: -0.1725754142 | AV58: 0.1286556721 | AW58: -0.1122946665 | AX58: 0.2682799995 | AY58: -1.315724015 | AZ58: 0.08749701083 | BA58: -0.1901556253 | BB58: 0.1224470586 | BC58: -0.1079486087 | BD58: 518.7222769 | BF58: Panama | BG58: 7568.069983 | BH58: 4397.573715 | BI58: 8034.864197 | BJ58: 4668.813539 | BK58: 7182.954397 | BL58: 6222.471093 | BM58: 1 | BN58: 6280 | BO58: 3027.763068
A59: Italy | B59: 10.12422822 | C59: 7.314552832 | D59: 24940 | E59: 1502 | F59: 5.5 | G59: 101.32 | H59: 50.665 | I59: 31062.92878 | J59: 0.1459672749 | K59: 0.1163283139 | L59: 0.2623000145 | M59: 0 | N59: 0.1334375143 | O59: -0.1987400353 | P59: 0.1031199917 | Q59: -0.2067871541 | R59: 0.1926534623 | S59: -0.4856756032 | T59: 0.1371299624 | U59: -0.3656909764 | V59: 0.03311001882 | W59: -0.02158953063 | X59: 0.1436448097 | Y59: -0.3198656142 | Z59: 0.1211978868 | AA59: -0.2356852889 | AB59: 0.1154349893 | AC59: -0.2612555027 | AD59: 0.09023714066 | AE59: -0.180940032 | AF59: 0.1925279051 | AG59: -0.3794845343 | AH59: 0.1783817708 | AI59: -0.3488691747 | AJ59: 0.418035984 | AK59: -0.3767273724 | AL59: 0.2842685282 | AM59: -0.6747233868 | AN59: 0.07180879265 | AO59: 0.01304257382 | AP59: 0.2103221714 | AQ59: -0.1744452715 | AR59: 0.1781309843 | AS59: -0.07401845604 | AT59: 0.1803971529 | AU59: -0.1339762509 | AV59: 0.143898502 | AW59: -0.08412202448 | AX59: 0.2453150004 | AY59: -1.405212164 | AZ59: 0.09026502818 | BA59: -0.1590761095 | BB59: 0.1369481385 | BC59: -0.08161929995 | BD59: 18766.53429 | BF59: Paraguay | BG59: 3052.737181 | BH59: 1791.003993 | BI59: 3236.308561 | BJ59: 1898.703102 | BK59: 2758.108822 | BL59: 2490.462965 | BM59: 1 | BN59: 4590 | BO59: 1470.96341
A60: Jamaica | B60: 8.207946941 | C60: 4.65396035 | D60: 3670 | E60: 105 | F60: 23.7 | G60: 234.2466 | H60: 138.2628 | J60: 0.1768846363 | K60: 0.1051297486 | L60: 0.2820000052 | M60: 1 | N60: 0.1338410676 | O60: -0.1857454032 | P60: 0.1033789292 | Q60: -0.1939270943 | R60: 0.1911733001 | S60: -0.4852821529 | T60: 0.1365100741 | U60: -0.3497463465 | V60: 0.03313599527 | W60: -0.02469776757 | X60: 0.1460587233 | Y60: -0.325319916 | Z60: 0.1232815161 | AA60: -0.2412064373 | AB60: 0.1166212261 | AC60: -0.2708258629 | AD60: 0.09117688239 | AE60: -0.1891020089 | AF60: 0.1896031499 | AG60: -0.3555389643 | AH60: 0.1705359966 | AI60: -0.3367934525 | AJ60: 0.4064926803 | AK60: -0.3629432321 | AL60: 0.274332732 | AM60: -0.6188941598 | AN60: 0.06914839894 | AO60: 0.005934794899 | AP60: 0.2033324391 | AQ60: -0.1691211015 | AR60: 0.1723787934 | AS60: -0.07196059823 | AT60: 0.1748571992 | AU60: -0.1377325356 | AV60: 0.1383917481 | AW60: -0.08587428182 | AX60: 0.2634190023 | AY60: -1.334009409 | AZ60: 0.09091243893 | BA60: -0.1672498882 | BB60: 0.131693244 | BC60: -0.08310644329 | BD60: 1979.21834 | BF60: Peru | BG60: 3198.135881 | BH60: 1619.506402 | BI60: 3409.052348 | BJ60: 1726.312549 | BK60: 2533.899313 | BL60: 2292.771068 | BM60: 1 | BN60: 4750 | BO60: 1811.987027
A61: Japan | B61: 10.16508229 | C61: 7.349230825 | D61: 25980 | E61: 1555 | F61: 4.5 | G61: 98.2 | H61: 47.577 | I61: 33963.97425 | J61: 0.1322685331 | K61: 0.09731180221 | L61: 0.2295999974 | M61: 0 | N61: 0.1379448175 | O61: -0.2018818557 | P61: 0.1062956229 | Q61: -0.2137182653 | R61: 0.2009344399 | S61: -0.4692573845 | T61: 0.1431971937 | U61: -0.3778798282 | V61: 0.03412924334 | W61: -0.01772151142 | X61: 0.1468755752 | Y61: -0.3012793362 | Z61: 0.1238518432 | AA61: -0.2186767012 | AB61: 0.1184490398 | AC61: -0.2403844595 | AD61: 0.09253907949 | AE61: -0.1646482199 | AF61: 0.2048728168 | AG61: -0.3929109275 | AH61: 0.1950222999 | AI61: -0.3479200602 | AJ61: 0.4424790442 | AK61: -0.3817381561 | AL61: 0.3050727844 | AM61: -0.7569328547 | AN61: 0.07715313137 | AO61: 0.02756213769 | AP61: 0.2296719253 | AQ61: -0.1588285118 | AR61: 0.1942587197 | AS61: -0.05526665971 | AT61: 0.1950775832 | AU61: -0.1114686802 | AV61: 0.1576555073 | AW61: -0.06736779213 | AX61: 0.2167090029 | AY61: -1.529199839 | AZ61: 0.09275041521 | BA61: -0.1426524967 | BB61: 0.1501016319 | BC61: -0.06591163576 | BD61: 37359.76025 | BF61: Philippines | BG61: 1235.793399 | BH61: 967.3780498 | BI61: 1321.337981 | BJ61: 1034.342278 | BK61: 1440.26992 | BL61: 1373.436348 | BM61: 1 | BN61: 4000 | BO61: 1241.175248
A62: Jordan | B62: 8.273846933 | C62: 5.18178355 | D62: 3920 | E62: 178 | F62: 27.8 | G62: 149.3174 | H62: 114.0636 | I62: 1926.486775 | J62: 0.1301446706 | K62: 0.0871117413 | L62: 0.2172999978 | M62: 1 | N62: 0.1332515925 | O62: -0.1608396024 | P62: 0.1028664112 | Q62: -0.1675390452 | R62: 0.1856872439 | S62: -0.4920470119 | T62: 0.1341641545 | U62: -0.3153919578 | V62: 0.03303222358 | W62: -0.03207410872 | X62: 0.1502528936 | Y62: -0.3436360657 | Z62: 0.1269174963 | AA62: -0.2589250207 | AB62: 0.1185841039 | AC62: -0.2976181209 | AD62: 0.09272843599 | AE62: -0.2112649679 | AF62: 0.1892241538 | AG62: -0.3061671257 | AH62: 0.1536913663 | AI62: -0.3154103756 | AJ62: 0.3869197667 | AK62: -0.3357601464 | AL62: 0.2542275488 | AM62: -0.480604738 | AN62: 0.06293872744 | AO62: -0.01351676695 | AP62: 0.1915380508 | AQ62: -0.1666134894 | AR62: 0.1627029628 | AS62: -0.07678115368 | AT62: 0.1667859554 | AU62: -0.1547666341 | AV62: 0.1292138249 | AW62: -0.09666839987 | AX62: 0.2059189975 | AY62: -1.580272436 | AZ62: 0.09180535376 | BA62: -0.1894941628 | BB62: 0.1229875758 | BC62: -0.09294510633 | BD62: 1133.211556 | BF62: Romania | BG62: 4657.723928 | BH62: 3878.577533 | BI62: 5008.493229 | BJ62: 4170.669969 | BK62: 5891.698167 | BL62: 5525.477434 | BM62: 1 | BN62: 5720 | BO62: 1665.903456
A63: Kazakhstan | B63: 8.431635303 | C63: 4.762173935 | D63: 4590 | E63: 117 | F63: 43.5 | G63: 410.2924 | H63: 171.1718 | I63: 2343.537035 | J63: 0.242303133 | K63: 0.1008468047 | L63: 0.3431000113 | M63: 1 | N63: 0.1325166821 | O63: -0.1626490504 | P63: 0.1023571864 | Q63: -0.1687287539 | R63: 0.1847082376 | S63: -0.4946985841 | T63: 0.1334255189 | U63: -0.3163016737 | V63: 0.03289267793 | W63: -0.03213138133 | X63: 0.149388507 | Y63: -0.3455919623 | Z63: 0.126190573 | AA63: -0.2606209517 | AB63: 0.1179836318 | AC63: -0.2992036641 | AD63: 0.0922600776 | AE63: -0.2123800665 | AF63: 0.1891595274 | AG63: -0.308300525 | AH63: 0.1530873328 | AI63: -0.3177002668 | AJ63: 0.3867279589 | AK63: -0.3374156654 | AL63: 0.2536412776 | AM63: -0.4775736332 | AN63: 0.06270270795 | AO63: -0.01454005018 | AP63: 0.1909186542 | AQ63: -0.1700130701 | AR63: 0.1621827334 | AS63: -0.08009473234 | AT63: 0.1665887386 | AU63: -0.157640174 | AV63: 0.1289210618 | AW63: -0.09899245203 | AX63: 0.3187139928 | AY63: -1.143461108 | AZ63: 0.09135472029 | BA63: -0.1906278878 | BB63: 0.1227116808 | BC63: -0.09515157342 | BD63: 733.2519017 | BF63: Russian Federation | BG63: 2419.474531 | BH63: 2480.438609 | BI63: 2650.678794 | BJ63: 2717.468582 | BK63: 3566.637118 | BL63: 3519.808021 | BM63: 1 | BN63: 7240 | BO63: 1879.196435
A64: Kenya | B64: 6.91770561 | C64: 3.401197382 | D64: 1010 | E64: 30 | F64: 110.9 | G64: 433.8454 | H64: 404.5824 | I64: 500.9634348 | J64: 0.4325687289 | K64: 0.09988102317 | L64: 0.532400012 | M64: 1 | N64: 0.1259661615 | O64: -0.190259859 | P64: 0.09788280725 | Q64: -0.1911564916 | R64: 0.1781599373 | S64: -0.5166941881 | T64: 0.127449289 | U64: -0.3395019472 | V64: 0.03162286431 | W64: -0.02952043526 | X64: 0.1395306289 | Y64: -0.3561288118 | Z64: 0.1178532019 | AA64: -0.2689734101 | AB64: 0.1114588305 | AC64: -0.3026471734 | AD64: 0.08719076216 | AE64: -0.2133847177 | AF64: 0.1865559071 | AG64: -0.349394083 | AH64: 0.1534882486 | AI64: -0.3483158946 | AJ64: 0.3903006911 | AK64: -0.364553839 | AL64: 0.2550420165 | AM64: -0.5081547499 | AN64: 0.06291027367 | AO64: -0.01584035158 | AP64: 0.1880402416 | AQ64: -0.2029860169 | AR64: 0.1596427113 | AS64: -0.1091326475 | AT64: 0.1661067456 | AU64: -0.1773355454 | AV64: 0.1283069104 | AW64: -0.1161947027 | AX64: 0.489244014 | AY64: -0.7148939371 | AZ64: 0.08673354238 | BA64: -0.1917727441 | BB64: 0.1221192777 | BC64: -0.1116582081 | BD64: 241.438598 | BF64: South Africa | BG64: 2222.992815 | BH64: 2002.275746 | BI64: 2424.065272 | BJ64: 2183.384069 | BK64: 2594.905893 | BL64: 2841.239203 | BM64: 1 | BN64: 9450 | BO64: 3722.121591
A65: Korea, Rep. | B65: 9.630365631 | C65: 5.981414211 | D65: 15220 | E65: 396 | F65: 6.1 | G65: 156.9496 | H65: 59.9824 | I65: 15162.35429 | J65: 0.105295822 | K65: 0.08920653909 | L65: 0.1944999993 | M65: 0 | N65: 0.1284628808 | O65: -0.1949613541 | P65: 0.09963238984 | Q65: -0.1984538883 | R65: 0.1833671629 | S65: -0.5054097772 | T65: 0.1306869686 | U65: -0.3510375321 | V65: 0.03208092228 | W65: -0.0262393225 | X65: 0.1404502839 | Y65: -0.3422067463 | Z65: 0.1185809374 | AA65: -0.2561300695 | AB65: 0.1124823317 | AC65: -0.2863435447 | AD65: 0.0879760161 | AE65: -0.2005237192 | AF65: 0.1856769472 | AG65: -0.3633421361 | AH65: 0.1618427783 | AI65: -0.3500078321 | AJ65: 0.3977993429 | AK65: -0.3707021475 | AL65: 0.2645012438 | AM65: -0.575900197 | AN65: 0.0661335662 | AO65: -0.004410751164 | AP65: 0.193819806 | AQ65: -0.1932151765 | AR65: 0.1644118577 | AS65: -0.09655715525 | AT65: 0.1690987051 | AU65: -0.1610303223 | AV65: 0.1323027313 | AW65: -0.1042604074 | AX65: 0.1460819989 | AY65: -1.923587203 | AZ65: 0.08774594963 | BA65: -0.1788182408 | BB65: 0.1258932799 | BC65: -0.1004996821 | BD65: 10051.25456 | BF65: Sri Lanka | BG65: 1146.929368 | BH65: 877.3345231 | BI65: 1223.467679 | BJ65: 935.8818975 | BK65: 1400.8315 | BL65: 1257.587122 | BM65: 1 | BN65: 3470 | BO65: 756.6877721
A66: Kyrgyz Republic | B66: 7.3524411 | C66: 3.951243719 | D66: 1560 | E66: 52 | F66: 49.2 | G66: 297.7632 | H66: 149.684 | I66: 417.0427143 | J66: 0.2111503184 | K66: 0.09723372012 | L66: 0.3084000051 | M66: 1 | N66: 0.1426732242 | O66: -0.1242257804 | P66: 0.1093344018 | Q66: -0.1377260983 | R66: 0.195830211 | S66: -0.4631914496 | T66: 0.143055737 | U66: -0.2844692469 | V66: 0.03492514789 | W66: -0.03559531271 | X66: 0.1643013954 | Y66: -0.3299899101 | Z66: 0.1387805194 | AA66: -0.2481453568 | AB66: 0.1279054731 | AC66: -0.2934025824 | AD66: 0.1000317484 | AE66: -0.2102033943 | AF66: 0.1945855916 | AG66: -0.251529932 | AH66: 0.1542461216 | AI66: -0.2748850584 | AJ66: 0.3837683201 | AK66: -0.2997413576 | AL66: 0.2537198961 | AM66: -0.4387532175 | AN66: 0.06286204606 | AO66: -0.01203445531 | AP66: 0.1973902881 | AQ66: -0.1232086495 | AR66: 0.1676516682 | AS66: -0.03863876313 | AT66: 0.1685638875 | AU66: -0.1290575117 | AV66: 0.1308929324 | AW66: -0.07416573912 | AX66: 0.2878530025 | AY66: -1.2453053 | AZ66: 0.09849026799 | BA66: -0.1882491112 | BB66: 0.1246063188 | BC66: -0.07134630531 | BD66: 265.2827681 | BF66: Swaziland | BG66: 802.8216644 | BH66: 730.7666686 | BI66: 881.2734621 | BJ66: 802.1772463 | BK66: 903.9817556 | BL66: 1023.439711 | BM66: 1 | BN66: 4390 | BO66: 1510.002927
A67: Lebanon | B67: 8.345217927 | C67: 5.446737372 | D67: 4210 | E67: 232 | F67: 20 | G67: 118.5458 | H67: 86.4118 | I67: 5372.92116 | J67: 0.1172912493 | K67: 0.08328887075 | L67: 0.2005999982 | M67: 1 | N67: 0.1285269558 | O67: -0.193395704 | P67: 0.0996735543 | Q67: -0.1969049722 | R67: 0.1832054406 | S67: -0.5053600669 | T67: 0.1306510419 | U67: -0.3491175771 | V67: 0.03209220245 | W67: -0.02661339194 | X67: 0.1407701224 | Y67: -0.3428615332 | Z67: 0.1188560575 | AA67: -0.2567931414 | AB67: 0.1126558632 | AC67: -0.2874940932 | AD67: 0.0881114006 | AE67: -0.2015051693 | AF67: 0.1856968254 | AG67: -0.3604581058 | AH67: 0.1610705107 | AI67: -0.348552376 | AJ67: 0.3968502879 | AK67: -0.3690415919 | AL67: 0.2635612786 | AM67: -0.5691830516 | AN67: 0.06584949046 | AO67: -0.005265383516 | AP67: 0.1933154017 | AQ67: -0.1925714016 | AR67: 0.1640025377 | AS67: -0.09630659223 | AT67: 0.1687434465 | AU67: -0.16147995 | AV67: 0.1318933666 | AW67: -0.1044692993 | AX67: 0.1908109933 | AY67: -1.656471848 | AZ67: 0.08784474432 | BA67: -0.1798010916 | BB67: 0.1255049407 | BC67: -0.1006767675 | BD67: 2297.190293 | BF67: Thailand | BG67: 2709.359604 | BH67: 1635.994972 | BI67: 2896.119252 | BJ67: 1748.766213 | BK67: 2419.890016 | BL67: 2319.074913 | BM67: 1 | BN67: 6370 | BO67: 1769.824813
A68: Lesotho | B68: 7.682482447 | C68: 4.477336814 | D68: 2170 | E68: 88 | F68: 114.6 | G68: 611.5956 | H68: 604.2384 | I68: 639.6344373 | J68: 0.4226447046 | K68: 0.1040284708 | L68: 0.5267000198 | M68: 1 | N68: 0.1269071549 | O68: -0.1866183281 | P68: 0.09852604568 | Q68: -0.1883077025 | R68: 0.1791549027 | S68: -0.5133215785 | T68: 0.1283208132 | U68: -0.3366801441 | V68: 0.03180110082 | W68: -0.02977577411 | X68: 0.1408630759 | Y68: -0.3542459309 | Z68: 0.1189794764 | AA68: -0.2674241662 | AB68: 0.1123513132 | AC68: -0.3016629815 | AD68: 0.08788154274 | AE68: -0.2128432542 | AF68: 0.1867552251 | AG68: -0.3441924453 | AH68: 0.1536161602 | AI68: -0.3441675603 | AJ68: 0.3899088204 | AK68: -0.3610225618 | AL68: 0.2550443113 | AM68: -0.5060840249 | AN68: 0.06296649575 | AO68: -0.01530323457 | AP68: 0.188473776 | AQ68: -0.1981544644 | AR68: 0.1600261629 | AS68: -0.1047530919 | AT68: 0.1661692858 | AU68: -0.1741210371 | AV68: 0.1284359694 | AW68: -0.1134594977 | AX68: 0.4827060103 | AY68: -0.7283474803 | AZ68: 0.08737125248 | BA68: -0.1912091076 | BB68: 0.1222414002 | BC68: -0.1090428084 | BD68: 698.2939977 | BF68: Trinidad and Tobago | BG68: 3311.338433 | BH68: 2139.229285 | BI68: 3544.385184 | BJ68: 2289.784852 | BK68: 3370.381914 | BL68: 3060.393883 | BM68: 1 | BN68: 8960 | BO68: 4102.27818
A69: Lithuania | B69: 9.073374517 | C69: 5.771441123 | D69: 8720 | E69: 321 | F69: 11.8 | G69: 292.998 | H69: 102.994 | I69: 5122.096312 | J69: 0.195859462 | K69: 0.1230184585 | L69: 0.3188999891 | M69: 1 | N69: 0.1305552125 | O69: -0.1961124986 | P69: 0.1010959595 | Q69: -0.2015683651 | R69: 0.1872113347 | S69: -0.4969099462 | T69: 0.1333166361 | U69: -0.3567571938 | V69: 0.03249772266 | W69: -0.02435325645 | X69: 0.1418189555 | Y69: -0.3327991068 | Z69: 0.1197049245 | AA69: -0.2475402802 | AB69: 0.1137049869 | AC69: -0.2759047747 | AD69: 0.08891432732 | AE69: -0.1924004406 | AF69: 0.187418744 | AG69: -0.3694103956 | AH69: 0.168157503 | AI69: -0.349078089 | AJ69: 0.4048139453 | AK69: -0.3727905154 | AL69: 0.2718915939 | AM69: -0.616358161 | AN69: 0.06836894155 | AO69: 0.002834917046 | AP69: 0.1996788979 | AQ69: -0.1849502623 | AR69: 0.1692796946 | AS69: -0.08679074794 | AT69: 0.1728526056 | AU69: -0.1495342702 | AV69: 0.1363684535 | AW69: -0.09566498548 | AX69: 0.2947840095 | AY69: -1.221512318 | AZ69: 0.08878931403 | BA69: -0.1706272662 | BB69: 0.1297622323 | BC69: -0.09243552387 | BD69: 3305.829252 | BF69: Tunisia | BG69: 7441.125302 | BH69: 4690.519219 | BI69: 7865.677865 | BJ69: 4958.136263 | BK69: 7735.842326 | BL69: 6658.926474 | BM69: 1 | BN69: 6270 | BO69: 2382.378204
A70: Macedonia, FYR | B70: 8.790269111 | C70: 5.541263545 | D70: 6570 | E70: 255 | F70: 16 | G70: 159.9196 | H70: 86.0928 | I70: 2698.546538 | J70: 0.1343782097 | K70: 0.115105778 | L70: 0.2495000064 | M70: 1 | N70: 0.1431214064 | O70: -0.1253374219 | P70: 0.1096654311 | Q70: -0.1393329799 | R70: 0.1968585402 | S70: -0.46103549 | T70: 0.1435960084 | U70: -0.2869382799 | V70: 0.03500008211 | W70: -0.03491617367 | X70: 0.1643625945 | Y70: -0.3272336721 | Z70: 0.1388239861 | AA70: -0.2455947697 | AB70: 0.1280141175 | AC70: -0.2901232839 | AD70: 0.1001172513 | AE70: -0.2076065987 | AF70: 0.1942797899 | AG70: -0.254591018 | AH70: 0.1558612585 | AI70: -0.2754051089 | AJ70: 0.3850494027 | AK70: -0.3011430502 | AL70: 0.2554960549 | AM70: -0.4526400864 | AN70: 0.06350178272 | AO70: -0.009729031473 | AP70: 0.1983726174 | AQ70: -0.1214226931 | AR70: 0.1684603691 | AS70: -0.0362624079 | AT70: 0.1690436006 | AU70: -0.125872165 | AV70: 0.1315540522 | AW70: -0.0718504563 | AX70: 0.2340160012 | AY70: -1.452365756 | AZ70: 0.0986231342 | BA70: -0.1856341958 | BB70: 0.1252272725 | BC70: -0.06918397546 | BD70: 1972.851317 | BF70: Turkey | BG70: 4662.899943 | BH70: 2848.705382 | BI70: 4973.676084 | BJ70: 3038.567845 | BK70: 4443.649563 | BL70: 4047.854611 | BM70: 1 | BN70: 6250 | BO70: 2825.65579
A71: Madagascar | B71: 6.70930434 | C71: 2.708050201 | D71: 820 | E71: 15 | F71: 110.6 | G71: 299.908 | H71: 262.0356 | I71: 286.0034934 | J71: 0.366322726 | K71: 0.1105511785 | L71: 0.4769000113 | M71: 1 | N71: 0.1269790381 | O71: -0.1856912822 | P71: 0.09857308865 | Q71: -0.1874125004 | R71: 0.1791129708 | S71: -0.513197422 | T71: 0.128351301 | U71: -0.3355911672 | V71: 0.03181691095 | W71: -0.02997937799 | X71: 0.1410889179 | Y71: -0.3545345366 | Z71: 0.1191725209 | AA71: -0.2677268088 | AB71: 0.1124861911 | AC71: -0.3022377193 | AD71: 0.08798611909 | AE71: -0.2133421898 | AF71: 0.1869304478 | AG71: -0.3425286114 | AH71: 0.1533030272 | AI71: -0.3432835639 | AJ71: 0.3896000981 | AK71: -0.3600489497 | AL71: 0.2546757758 | AM71: -0.5025010705 | AN71: 0.06283719093 | AO71: -0.01573580131 | AP71: 0.1883850992 | AQ71: -0.1976762563 | AR71: 0.1599587053 | AS71: -0.1044942513 | AT71: 0.1661260873 | AU71: -0.1742633134 | AV71: 0.1283457577 | AW71: -0.1134894565 | AX71: 0.4363769889 | AY71: -0.8292487264 | AZ71: 0.08745449036 | BA71: -0.1917081326 | BB71: 0.1221575812 | BC71: -0.1090595797 | BD71: 176.1958468 | BF71: Uruguay | BG71: 10857.69989 | BH71: 5646.159721 | BI71: 11622.6555 | BJ71: 6043.947612 | BK71: 8851.915913 | BL71: 7941.671686 | BM71: 1 | BN71: 8860 | BO71: 5966.2498
A72: Malawi | B72: 6.396929655 | C72: 2.708050201 | D72: 600 | E72: 15 | F72: 174.2 | G72: 518.412 | H72: 487.8454 | I72: 221.3448033 | J72: 0.6052773595 | K72: 0.1135061607 | L72: 0.7188000083 | M72: 1 | N72: 0.1271144599 | O72: -0.1861808151 | P72: 0.09866899252 | Q72: -0.1880590022 | R72: 0.1794406027 | S72: -0.5125120878 | T72: 0.1285334677 | U72: -0.3365451694 | V72: 0.03183934093 | W72: -0.02973015048 | X72: 0.1410880834 | Y72: -0.3535969555 | Z72: 0.1191684455 | AA72: -0.2668542862 | AB72: 0.112511158 | AC72: -0.3010903895 | AD72: 0.08800528944 | AE72: -0.2124276459 | AF72: 0.1867188066 | AG72: -0.3437544703 | AH72: 0.1538268626 | AI72: -0.3435744345 | AJ72: 0.389985472 | AK72: -0.3606393635 | AL72: 0.255254209 | AM72: -0.5075175166 | AN72: 0.06305335462 | AO72: -0.01492529269 | AP72: 0.1886443347 | AQ72: -0.1971601248 | AR72: 0.1601703018 | AS72: -0.1037556306 | AT72: 0.1662157476 | AU72: -0.1732060164 | AV72: 0.1285244673 | AW72: -0.1127310544 | AX72: 0.6500809789 | AY72: -0.4306583405 | AZ72: 0.0874928534 | BA72: -0.190787673 | BB72: 0.1223243847 | BC72: -0.1083528176 | BD72: 184.3347222 | BF72: Venezuela, RB | BG72: 4229.387279 | BH72: 2908.989832 | BI72: 4477.65151 | BJ72: 3079.746984 | BK72: 4645.715864 | BL72: 4128.453179 | BM72: 1 | BN72: 5640 | BO72: 2361.713662
A73: Malaysia | B73: 9.100525506 | C73: 5.062595033 | D73: 8960 | E73: 158 | F73: 10.1 | G73: 170.9904 | H73: 99.2868 | I73: 4861.857591 | J73: 0.1005563438 | K73: 0.09573978931 | L73: 0.1963 | M73: 1 | N73: 0.1310470849 | O73: -0.171565488 | P73: 0.1013650894 | Q73: -0.1766628325 | R73: 0.1837341189 | S73: -0.4988141954 | T73: 0.132219851 | U73: -0.3253014982 | V73: 0.03259306774 | W73: -0.03072440065 | X73: 0.1466089189 | Y73: -0.3458707333 | Z73: 0.1238320097 | AA73: -0.2604826689 | AB73: 0.1162134781 | AC73: -0.2969584465 | AD73: 0.09088034928 | AE73: -0.2101141065 | AF73: 0.187836647 | AG73: -0.3229525983 | AH73: 0.1546309292 | AI73: -0.3268871307 | AJ73: 0.3887693286 | AK73: -0.3464830518 | AL73: 0.2556034625 | AM73: -0.4998800755 | AN73: 0.06335584819 | AO73: -0.01264407579 | AP73: 0.1908049583 | AQ73: -0.1776029617 | AR73: 0.1620446593 | AS73: -0.08598956466 | AT73: 0.1667169183 | AU73: -0.1600928307 | AV73: 0.1292542517 | AW73: -0.1015931964 | AX73: 0.1866690069 | AY73: -1.678418279 | AZ73: 0.09015202522 | BA73: -0.1883838773 | BB73: 0.1230174005 | BC73: -0.09770543128 | BD73: 2884.289153 | BF73: Armenia | BG73: 2054.725315 | BH73: 1235.662732 | BI73: 2200.693861 | BJ73: 1323.444729 | BK73: 1913.758829 | BL73: 1757.348378 | BM73: 2 | BN73: 2420 | BO73: 650.0788149
A74: Mali | B74: 6.606650186 | C74: 2.564949357 | D74: 740 | E74: 13 | F74: 219.9 | G74: 309.7242 | H74: 318.8426 | I74: 380.2482343 | J74: 0.7464959621 | K74: 0.1041580588 | L74: 0.8507000208 | M74: 1 | N74: 0.1284508258 | O74: -0.1790969223 | P74: 0.09957638383 | Q74: -0.1819913089 | R74: 0.1805084497 | S74: -0.5082238317 | T74: 0.1296691 | U74: -0.3299090266 | V74: 0.03210119903 | W74: -0.03065573797 | X74: 0.1433630586 | Y74: -0.3523104489 | Z74: 0.1210974306 | AA74: -0.2659974396 | AB74: 0.1139843166 | AC74: -0.3017295897 | AD74: 0.08914798498 | AE74: -0.2133447528 | AF74: 0.1875372827 | AG74: -0.3325847983 | AH74: 0.153035298 | AI74: -0.3360370696 | AJ74: 0.3886147141 | AK74: -0.3535390496 | AL74: 0.254152298 | AM74: -0.4940336049 | AN74: 0.06272444129 | AO74: -0.01564204507 | AP74: 0.1889255494 | AQ74: -0.190087527 | AR74: 0.1604470611 | AS74: -0.09788505733 | AT74: 0.1661806554 | AU74: -0.1699252129 | AV74: 0.1284159273 | AW74: -0.1096575707 | AX74: 0.7728999853 | AY74: -0.2576056123 | AZ74: 0.0885072723 | BA74: -0.1916793883 | BB74: 0.122226797 | BC74: -0.1053771898 | BD74: 173.687261 | BF74: Azerbaijan | BG74: 523.649837 | BH74: 358.576455 | BI74: 561.1694876 | BJ74: 384.2685537 | BK74: 527.41785 | BL74: 509.4751192 | BM74: 2 | BN74: 2570 | BO74: 476.3564294
A75: Mauritania | B75: 7.517520851 | C75: 3.496507561 | D75: 1840 | E75: 33 | F75: 113.1 | G75: 255.2566 | H75: 205.0454 | I75: 563.1566261 | J75: 0.3717659712 | K75: 0.118980445 | L75: 0.4907000065 | M75: 1 | N75: 0.1264044046 | O75: -0.1880103648 | P75: 0.09818061441 | Q75: -0.1892539859 | R75: 0.178522557 | S75: -0.515227437 | T75: 0.1278239936 | U75: -0.3374476433 | V75: 0.03170754761 | W75: -0.02979454026 | X75: 0.1402553618 | Y75: -0.3556104898 | Z75: 0.1184676588 | AA75: -0.268601656 | AB75: 0.1119305268 | AC75: -0.3027321398 | AD75: 0.08755581826 | AE75: -0.2135848999 | AF75: 0.1867809445 | AG75: -0.3458956778 | AH75: 0.1532752812 | AI75: -0.3458977938 | AJ75: 0.3898815513 | AK75: -0.3623097837 | AL75: 0.2547314465 | AM75: -0.504309833 | AN75: 0.062824063 | AO75: -0.01598655991 | AP75: 0.1881375909 | AQ75: -0.2006326169 | AR75: 0.1597385108 | AS75: -0.1071460396 | AT75: 0.1660947949 | AU75: -0.1761563867 | AV75: 0.128282547 | AW75: -0.1151148751 | AX75: 0.4465140104 | AY75: -0.8062844872 | AZ75: 0.08705931902 | BA75: -0.1919640452 | BB75: 0.1220975071 | BC75: -0.1106157005 | BD75: 405.052599 | BF75: Bangladesh | BG75: 369.8666642 | BH75: 230.9852814 | BI75: 401.399749 | BJ75: 250.6779954 | BK75: 315.56626 | BL75: 328.0121411 | BM75: 2 | BN75: 1560 | BO75: 486.1767295
A76: Mauritius | B76: 9.175748927 | C76: 5.129898715 | D76: 9660 | E76: 169 | F76: 18.6 | G76: 231.6114 | H76: 114.155 | I76: 4554.921338 | J76: 0.1317153871 | K76: 0.09930618107 | L76: 0.2310000062 | M76: 0 | N76: 0.1305133849 | O76: -0.1926540732 | P76: 0.1010597348 | Q76: -0.1979953796 | R76: 0.1865454465 | S76: -0.4974549413 | T76: 0.1329917163 | U76: -0.352185756 | V76: 0.03248044103 | W76: -0.02530311048 | X76: 0.1423674971 | Y76: -0.3349301219 | Z76: 0.1201819256 | AA76: -0.2496263832 | AB76: 0.1139491349 | AC76: -0.2791820168 | AD76: 0.08910766989 | AE76: -0.1951360554 | AF76: 0.1869122982 | AG76: -0.3627369702 | AH76: 0.1658094078 | AI76: -0.3460164368 | AJ76: 0.4017367959 | AK76: -0.3690559268 | AL76: 0.2690074444 | AM76: -0.5987961888 | AN76: 0.06754418463 | AO76: 0.0004395731376 | AP76: 0.1977548748 | AQ76: -0.1841983646 | AR76: 0.1676993519 | AS76: -0.08700042963 | AT76: 0.1714462191 | AU76: -0.1513838172 | AV76: 0.1348844618 | AW76: -0.09677387029 | AX76: 0.2179410011 | AY76: -1.523530841 | AZ76: 0.08889740705 | BA76: -0.1733710915 | BB76: 0.1283492297 | BC76: -0.09343519062 | BD76: 4146.409366 | BF76: Benin | BG76: 120.3636067 | BH76: 78.55316357 | BI76: 133.7354978 | BJ76: 87.28009 | BK76: 94.80478144 | BL76: 110.2096609 | BM76: 2 | BN76: 980 | BO76: 275.1494022
A77: Mexico | B77: 9.096051226 | C77: 5.433722004 | D77: 8920 | E77: 229 | F77: 25.6 | G77: 166.1002 | H77: 93.225 | I77: 7689.098612 | J77: 0.1364191324 | K77: 0.0816462636 | L77: 0.2180999964 | M77: 1 | N77: 0.1257476658 | O77: -0.1922654361 | P77: 0.09773675352 | Q77: -0.1930233836 | R77: 0.1781387329 | S77: -0.5172644258 | T77: 0.1273139268 | U77: -0.3417057097 | V77: 0.03157822788 | W77: -0.02913686633 | X77: 0.1390049011 | Y77: -0.3558197618 | Z77: 0.1174048558 | AA77: -0.2686048746 | AB77: 0.1111357957 | AC77: -0.3017426133 | AD77: 0.08694075793 | AE77: -0.2125667632 | AF77: 0.1862407178 | AG77: -0.3528541923 | AH77: 0.1540318429 | AI77: -0.3502990305 | AJ77: 0.3908978105 | AK77: -0.3666294813 | AL77: 0.2556991577 | AM77: -0.5146514773 | AN77: 0.0631326735 | AO77: -0.01513829548 | AP77: 0.1881660968 | AQ77: -0.204329282 | AR77: 0.1597332954 | AS77: -0.110044159 | AT77: 0.166184783 | AU77: -0.1774222106 | AV77: 0.1284598261 | AW77: -0.116428107 | AX77: 0.2069270015 | AY77: -1.575389147 | AZ77: 0.08652631193 | BA77: -0.1909569502 | BB77: 0.1222614273 | BC77: -0.111902222 | BD77: 5748.44185 | BF77: Burkina Faso | BG77: 106.867201 | BH77: 82.20277067 | BI77: 117.4939327 | BJ77: 90.37690434 | BK77: 94.60290729 | BL77: 116.2698759 | BM77: 2 | BN77: 1020 | BO77: 279.0386293
A78: Moldova | B78: 7.162397497 | C78: 3.970291914 | D78: 1290 | E78: 53 | F78: 30.6 | G78: 323.1426 | H78: 159.2678 | I78: 583.2570866 | J78: 0.1814072132 | K78: 0.1087323055 | L78: 0.2901000082 | M78: 1 | N78: 0.1278342158 | O78: -0.1897217184 | P78: 0.09918116033 | Q78: -0.1924479902 | R78: 0.1813431531 | S78: -0.5087964535 | T78: 0.1295817345 | U78: -0.3428191841 | V78: 0.03196260333 | W78: -0.02816171199 | X78: 0.1409297287 | Y78: -0.3481132686 | Z78: 0.1190131679 | AA78: -0.2617213428 | AB78: 0.1125750542 | AC78: -0.2941865921 | AD78: 0.08805267513 | AE78: -0.2068888545 | AF78: 0.1858341098 | AG78: -0.352047354 | AH78: 0.1572864354 | AI78: -0.3459693491 | AJ78: 0.3929790854 | AK78: -0.3647838831 | AL78: 0.2591654956 | AM78: -0.538637042 | AN78: 0.06442639232 | AO78: -0.01002504304 | AP78: 0.1906392574 | AQ78: -0.1946976185 | AR78: 0.1618025303 | AS78: -0.09986014664 | AT78: 0.1671628207 | AU78: -0.1671822071 | AV78: 0.1299501061 | AW78: -0.1084730402 | AX78: 0.2704150081 | AY78: -1.307797432 | AZ78: 0.08766433597 | BA78: -0.1852158159 | BB78: 0.1236649826 | BC78: -0.104394488 | BD78: 247.4144285 | BF78: Burundi | BG78: 76.9357733 | BH78: 49.49443527 | BI78: 85.10755737 | BJ78: 54.75151946 | BK78: 58.47872464 | BL78: 69.81601503 | BM78: 2 | BN78: 600 | BO78: 136.5176253
A79: Mongolia | B79: 7.396335294 | C79: 4.418840608 | D79: 1630 | E79: 83 | F79: 64.6 | G79: 329.1896 | H79: 207.3114 | I79: 768.8376288 | J79: 0.2227540761 | K79: 0.08670856059 | L79: 0.3095000088 | M79: 1 | N79: 0.1303012967 | O79: -0.1712210178 | P79: 0.100839749 | Q79: -0.1755687445 | R79: 0.1823439002 | S79: -0.5020580888 | T79: 0.1313552707 | U79: -0.3232364655 | V79: 0.03246088326 | W79: -0.0314209722 | X79: 0.1461685896 | Y79: -0.3494182527 | Z79: 0.1234703436 | AA79: -0.26371786 | AB79: 0.1158389002 | AC79: -0.3008692265 | AD79: 0.0905893743 | AE79: -0.2131522149 | AF79: 0.1883081347 | AG79: -0.3208128214 | AH79: 0.1528762281 | AI79: -0.3273294568 | AJ79: 0.3875744343 | AK79: -0.3457869291 | AL79: 0.2537067533 | AM79: -0.4848591089 | AN79: 0.06264530122 | AO79: -0.01535521541 | AP79: 0.1897300184 | AQ79: -0.1807931066 | AR79: 0.1611570865 | AS79: -0.08972850442 | AT79: 0.1663148701 | AU79: -0.1644490212 | AV79: 0.1285781562 | AW79: -0.1048579365 | AX79: 0.29014799 | AY79: -1.237364173 | AZ79: 0.08981945366 | BA79: -0.1914477199 | BB79: 0.1223838404 | BC79: -0.1007695198 | BD79: 209.4931941 | BF79: Cambodia | BG79: 373.8027704 | BH79: 194.5590824 | BI79: 406.6873557 | BJ79: 211.6750464 | BK79: 248.9947756 | BL79: 272.0065019 | BM79: 2 | BN79: 1830 | BO79: 504.5304851
A80: Morocco | B80: 8.154787573 | C80: 4.060443011 | D80: 3480 | E80: 58 | F80: 50.8 | G80: 190.948 | H80: 143.5244 | I80: 1608.989495 | J80: 0.1711165756 | K80: 0.1086176336 | L80: 0.279700011 | M80: 1 | N80: 0.1260750294 | O80: -0.1911915839 | P80: 0.09796109796 | Q80: -0.1922358274 | R80: 0.1785195023 | S80: -0.5160429478 | T80: 0.1276279688 | U80: -0.3409880996 | V80: 0.03163948655 | W80: -0.02916933782 | X80: 0.1394303888 | Y80: -0.3550272286 | Z80: 0.1177638918 | AA80: -0.2679326236 | AB80: 0.1114260703 | AC80: -0.3011973798 | AD80: 0.08716516942 | AE80: -0.2122103274 | AF80: 0.1862627268 | AG80: -0.3514252007 | AH80: 0.1541772634 | AI80: -0.3490225375 | AJ80: 0.390851289 | AK80: -0.3656111956 | AL80: 0.2558156252 | AM80: -0.5149850249 | AN80: 0.06319379061 | AO80: -0.01480398979 | AP80: 0.1883568913 | AQ80: -0.2026721984 | AR80: 0.1598988771 | AS80: -0.108488135 | AT80: 0.166224584 | AU80: -0.176177457 | AV80: 0.1285387725 | AW80: -0.1153971031 | AX80: 0.2611480057 | AY80: -1.342667937 | AZ80: 0.08673755825 | BA80: -0.1905921996 | BB80: 0.1223357096 | BC80: -0.1109200418 | BD80: 1264.613276 | BF80: Cameroon | BG80: 86.24858168 | BH80: 69.69367912 | BI80: 95.17052307 | BJ80: 76.9031069 | BK80: 83.86837357 | BL80: 98.85436427 | BM80: 2 | BN80: 1880 | BO80: 575.330666
A81: Mozambique | B81: 6.779921907 | C81: 3.295836866 | D81: 880 | E81: 27 | F81: 168.5 | G81: 473.775 | H81: 423.0516 | I81: 235.8848607 | J81: 0.5944613814 | K81: 0.1143501773 | L81: 0.7088000178 | M81: 1 | N81: 0.1357813776 | O81: -0.1490187794 | P81: 0.1045895815 | Q81: -0.1575027108 | R81: 0.1880223155 | S81: -0.4845075607 | T81: 0.1364461333 | U81: -0.3045119345 | V81: 0.03354304656 | W81: -0.03354622424 | X81: 0.1543942392 | Y81: -0.341088146 | Z81: 0.1304214895 | AA81: -0.2571310699 | AB81: 0.1212879196 | AC81: -0.2982536256 | AD81: 0.09484120458 | AE81: -0.2124626935 | AF81: 0.1909465343 | AG81: -0.2877058089 | AH81: 0.1528337598 | AI81: -0.3027429581 | AJ81: 0.3851293921 | AK81: -0.3239508867 | AL81: 0.2529338598 | AM81: -0.4597005546 | AN81: 0.0625237301 | AO81: -0.01441541314 | AP81: 0.1926138699 | AQ81: -0.1544188112 | AR81: 0.1636403352 | AS81: -0.06653779 | AT81: 0.1670125127 | AU81: -0.1487901956 | AV81: 0.1293068081 | AW81: -0.09116031975 | AX81: 0.6408349872 | AY81: -0.4449832737 | AZ81: 0.09370260686 | BA81: -0.1906465292 | BB81: 0.1230867952 | BC81: -0.08762314171 | BD81: 449.2348496 | BF81: Chad | BG81: 78.40336493 | BH81: 62.9175312 | BI81: 86.95504942 | BJ81: 69.78013048 | BK81: 72.44062924 | BL81: 89.09218428 | BM81: 2 | BN81: 870 | BO81: 183.4801289
A82: Namibia | B82: 8.672486076 | C82: 5.429345629 | D82: 5840 | E82: 228 | F82: 75.5 | G82: 485.3674 | H82: 422.654 | I82: 3007.360535 | J82: 0.3390488029 | K82: 0.1088778749 | L82: 0.4478999972 | M82: 1 | N82: 0.143114984 | O82: -0.1209407672 | P82: 0.1096247435 | Q82: -0.1346337199 | R82: 0.1960092485 | S82: -0.4624065757 | T82: 0.143419981 | U82: -0.2807843983 | V82: 0.03502637148 | W82: -0.03625171259 | X82: 0.1653143018 | Y82: -0.3306520283 | Z82: 0.1396399885 | AA82: -0.2488905489 | AB82: 0.1285411865 | AC82: -0.2950517237 | AD82: 0.1005312949 | AE82: -0.2116724402 | AF82: 0.195296064 | AG82: -0.2457935363 | AH82: 0.1534201354 | AI82: -0.271671772 | AJ82: 0.382951647 | AK82: -0.2963263988 | AL82: 0.2527521253 | AM82: -0.4274916053 | AN82: 0.06249577925 | AO82: -0.01329996996 | AP82: 0.1973846257 | AQ82: -0.1211610958 | AR82: 0.1676534563 | AS82: -0.03731958568 | AT82: 0.1685210317 | AU82: -0.1291105896 | AV82: 0.1307160556 | AW82: -0.07393088937 | AX82: 0.4110119939 | AY82: -0.8891328573 | AZ82: 0.09891671687 | BA82: -0.1897157729 | BB82: 0.1244454086 | BC82: -0.07108522207 | BD82: 2482.957506 | BF82: Comoros | BG82: 175.6328355 | BH82: 126.4030219 | BI82: 189.3458126 | BJ82: 136.272257 | BK82: 156.980296 | BL82: 179.7790806 | BM82: 2 | BN82: 1630 | BO82: 565.0040759
A83: Nepal | B83: 7.192934221 | C83: 2.890371758 | D83: 1330 | E83: 18 | F83: 81.9 | G83: 257.8432 | H83: 223.5002 | I83: 296.8240863 | J83: 0.2888020575 | K83: 0.09808032215 | L83: 0.3869000077 | M83: 1 | N83: 0.1296768337 | O83: -0.1744856685 | P83: 0.1004159302 | Q83: -0.1783776581 | R83: 0.1818356365 | S83: -0.5039800406 | T83: 0.1308168322 | U83: -0.3263221979 | V83: 0.03233657032 | W83: -0.03098415583 | X83: 0.1450989395 | Y83: -0.3499543369 | Z83: 0.1225638464 | AA83: -0.2640611827 | AB83: 0.1151463613 | AC83: -0.3005135953 | AD83: 0.09005068243 | AE83: -0.2126824558 | AF83: 0.187879473 | AG83: -0.3259855509 | AH83: 0.1532388777 | AI83: -0.3307903707 | AJ83: 0.3881806135 | AK83: -0.349064678 | AL83: 0.254206419 | AM83: -0.4912993014 | AN83: 0.06280178577 | AO83: -0.01498277672 | AP83: 0.1895644069 | AQ83: -0.1839969307 | AR83: 0.1610022336 | AS83: -0.09237065166 | AT83: 0.1663090736 | AU83: -0.1658899337 | AV83: 0.1286147684 | AW83: -0.1062206328 | AX83: 0.3585569859 | AY83: -1.025667667 | AZ83: 0.08934105933 | BA83: -0.1909892261 | BB83: 0.122415632 | BC83: -0.1020903513 | BD83: 252.2039042 | BF83: Congo, Dem. Rep. | BG83: 21.76576871 | BH83: 23.03604916 | BI83: 24.05907297 | BJ83: 25.46319383 | BK83: 26.86166653 | BL83: 32.6538801 | BM83: 2 | BN83: 700 | BO83: 676.6464286
A84: Netherlands | B84: 10.20618138 | C84: 7.309881486 | D84: 27070 | E84: 1495 | F84: 6.2 | G84: 100.127 | H84: 67.212 | I84: 39795.81004 | J84: 0.1298681349 | K84: 0.1104010046 | L84: 0.2402999997 | M84: 0 | N84: 0.1417954564 | O84: -0.2044124305 | P84: 0.1090186611 | Q84: -0.2193009108 | R84: 0.2079273909 | S84: -0.456033349 | T84: 0.1484941244 | U84: -0.3876973093 | V84: 0.03504856676 | W84: -0.014606026 | X84: 0.1498318166 | Y84: -0.2863090336 | Z84: 0.1262845099 | AA84: -0.2049771696 | AB84: 0.1212177053 | AC84: -0.223573938 | AD84: 0.09465096146 | AE84: -0.151526019 | AF84: 0.2184960693 | AG84: -0.403725177 | AH84: 0.20988217 | AI84: -0.3471556008 | AJ84: 0.4664219618 | AK84: -0.385774076 | AL84: 0.3241638541 | AM84: -0.8231482506 | AN84: 0.08178923279 | AO84: 0.03925688192 | AP84: 0.2481228411 | AQ84: -0.1462500393 | AR84: 0.2096620649 | AS84: -0.04016307741 | AT84: 0.2096801102 | AU84: -0.0933400169 | AV84: 0.1708118618 | AW84: -0.05387313664 | AX84: 0.2259320021 | AY84: -1.487521172 | AZ84: 0.09498952329 | BA84: -0.129424125 | BB84: 0.1626920998 | BC84: -0.05325994268 | BD84: 22249.92388 | BF84: Congo, Rep. | BG84: 119.345838 | BH84: 85.43107561 | BI84: 131.3598746 | BJ84: 94.0310577 | BK84: 103.8205022 | BL84: 121.1364877 | BM84: 2 | BN84: 960 | BO84: 269.8518141
A85: New Zealand | B85: 9.910959567 | C85: 7.136483209 | D85: 20150 | E85: 1257 | F85: 7.4 | G85: 104.264 | H85: 67.08 | I85: 24361.90889 | J85: 0.1223696396 | K85: 0.1049464941 | L85: 0.2273000032 | M85: 0 | N85: 0.1263858974 | O85: -0.1932555735 | P85: 0.09818260372 | Q85: -0.1946880072 | R85: 0.1794350594 | S85: -0.5143357515 | T85: 0.1281130016 | U85: -0.3444137573 | V85: 0.03169101477 | W85: -0.02834166028 | X85: 0.1392647028 | Y85: -0.3523104191 | Z85: 0.1176126823 | AA85: -0.2653760016 | AB85: 0.111401543 | AC85: -0.2976886034 | AD85: 0.08714526892 | AE85: -0.2093794942 | AF85: 0.1857128739 | AG85: -0.3560470045 | AH85: 0.1559133977 | AI85: -0.350526005 | AJ85: 0.392331779 | AK85: -0.3679804206 | AL85: 0.2577797174 | AM85: -0.531216085 | AN85: 0.0638910234 | AO85: -0.01230320428 | AP85: 0.189282909 | AQ85: -0.2017063498 | AR85: 0.1606531739 | AS85: -0.1067521423 | AT85: 0.1666385829 | AU85: -0.1732661426 | AV85: 0.1292099506 | AW85: -0.1133687198 | AX85: 0.2144739926 | AY85: -1.539566755 | AZ85: 0.08678553998 | BA85: -0.1877456754 | BB85: 0.1229655594 | BC85: -0.1090390533 | BD85: 12744.45692 | BF85: Cote d'Ivoire | BG85: 90.92111712 | BH85: 108.2840423 | BI85: 100.0653767 | BJ85: 119.174553 | BK85: 131.3676078 | BL85: 153.2885962 | BM85: 2 | BN85: 1590 | BO85: 437.0843055
A86: Nicaragua | B86: 7.816013839 | C86: 4.343805422 | D86: 2480 | E86: 77 | F86: 40.3 | G86: 244.2672 | H86: 149.65 | I86: 1061.232618 | J86: 0.1566030681 | K86: 0.09074323624 | L86: 0.247299999 | M86: 1 | N86: 0.1535002291 | O86: -0.08360144496 | P86: 0.1167873815 | Q86: -0.1042286009 | R86: 0.2079285532 | S86: -0.4329853952 | T86: 0.1535329521 | U86: -0.2492458522 | V86: 0.03717977554 | W86: -0.03984384984 | X86: 0.1805873364 | Y86: -0.3167418838 | Z86: 0.152519986 | AA86: -0.2379031181 | AB86: 0.1387317479 | AC86: -0.2907595634 | AD86: 0.1085670814 | AE86: -0.2105951458 | AF86: 0.2026861757 | AG86: -0.1900708526 | AH86: 0.1553850919 | AI86: -0.2303448766 | AJ86: 0.3817221224 | AK86: -0.2595932782 | AL86: 0.2539882958 | AM86: -0.3847852945 | AN86: 0.06271485239 | AO86: -0.0117930416 | AP86: 0.2055812031 | AQ86: -0.07690246403 | AR86: 0.17443268 | AS86: 0.001571451081 | AT86: 0.1715975851 | AU86: -0.1029000506 | AV86: 0.1334378719 | AW86: -0.05098839849 | AX86: 0.2331359982 | AY86: -1.456133366 | AZ86: 0.1063128114 | BA86: -0.1884514242 | BB86: 0.1270670742 | BC86: -0.04906413704 | BD86: 914.825273 | BF86: Eritrea | BG86: 259.8230539 | BH86: 108.3679622 | BI86: 288.0204246 | BJ86: 120.128626 | BK86: 129.0450804 | BL86: 153.6907569 | BM86: 2 | BN86: 810 | BO86: 126.7071007
A87: Niger | B87: 6.620073207 | C87: 2.197224577 | D87: 750 | E87: 9 | F87: 226.9 | G87: 286.9828 | H87: 278.3414 | I87: 254.99083 | J87: 0.8025355339 | K87: 0.1138512641 | L87: 0.9164000154 | M87: 1 | N87: 0.127922833 | O87: -0.1813562512 | P87: 0.0992160514 | Q87: -0.1838284284 | R87: 0.1799880117 | S87: -0.5100154281 | T87: 0.1291899681 | U87: -0.3318116367 | V87: 0.03199927509 | W87: -0.03044053167 | X87: 0.1425653994 | Y87: -0.3531640172 | Z87: 0.1204226464 | AA87: -0.2666730583 | AB87: 0.1134566963 | AC87: -0.3020020723 | AD87: 0.08873853087 | AE87: -0.213419795 | AF87: 0.187337026 | AG87: -0.3359512091 | AH87: 0.1530811787 | AI87: -0.3385403454 | AJ87: 0.3889215887 | AK87: -0.3557605445 | AL87: 0.2542820871 | AM87: -0.4965703487 | AN87: 0.06274497509 | AO87: -0.01574204303 | AP87: 0.1887082905 | AQ87: -0.1927771866 | AR87: 0.1602535844 | AS87: -0.1002515405 | AT87: 0.1661507487 | AU87: -0.1715260446 | AV87: 0.1283739507 | AW87: -0.1110570282 | AX87: 0.8250169754 | AY87: -0.1923513114 | AZ87: 0.08813438565 | BA87: -0.1917658448 | BB87: 0.1221862361 | BC87: -0.1067202166 | BD87: 199.0032131 | BF87: Ethiopia | BG87: 30.66792998 | BH87: 21.51569157 | BI87: 33.55954901 | BJ87: 23.54436397 | BK87: 25.38025321 | BL87: 30.50151994 | BM87: 2 | BN87: 710 | BO87: 179.4807657
A88: Nigeria | B88: 6.779921907 | C88: 1.386294361 | D88: 880 | E88: 4 | F88: 187.7 | G88: 423.2596 | H88: 387.3262 | I88: 552.186874 | J88: 0.6031656265 | K88: 0.1103807017 | L88: 0.7135000229 | M88: 1 | N88: 0.1259717941 | O88: -0.1914856285 | P88: 0.09789021313 | Q88: -0.1924379468 | R88: 0.1783913523 | S88: -0.5164358616 | T88: 0.127526328 | U88: -0.3411551118 | V88: 0.03162027523 | W88: -0.02917147987 | X88: 0.1393044591 | Y88: -0.3553053737 | Z88: 0.117657803 | AA88: -0.2681722045 | AB88: 0.1113389283 | AC88: -0.3014123738 | AD88: 0.08709780127 | AE88: -0.2123586237 | AF88: 0.1862650216 | AG88: -0.3517894447 | AH88: 0.1541089565 | AI88: -0.3493857682 | AJ88: 0.390845418 | AK88: -0.3658840954 | AL88: 0.2557530403 | AM88: -0.5146504045 | AN88: 0.06316542625 | AO88: -0.01494085323 | AP88: 0.1882870495 | AQ88: -0.2031857967 | AR88: 0.1598389596 | AS88: -0.1089823619 | AT88: 0.1662076116 | AU88: -0.1765947789 | AV88: 0.1285061687 | AW88: -0.1157372296 | AX88: 0.6469690204 | AY88: -0.435456872 | AZ88: 0.08667318523 | BA88: -0.1907432377 | BB88: 0.1223050728 | BC88: -0.1112433299 | BD88: 147.7834653 | BF88: Gambia, The | BG88: 258.5818503 | BH88: 208.2212686 | BI88: 281.5195162 | BJ88: 226.6916673 | BK88: 248.7560872 | BL88: 294.0153575 | BM88: 2 | BN88: 1680 | BO88: 863.2737008
A89: Pakistan | B89: 7.554858521 | C89: 3.044522438 | D89: 1910 | E89: 21 | F89: 112.6 | G89: 202.317 | H89: 174.1192 | I89: 596.6842953 | J89: 0.304813087 | K89: 0.1009903923 | L89: 0.4058000147 | M89: 1 | N89: 0.1270988882 | O89: -0.1893321127 | P89: 0.09866780043 | Q89: -0.1913230568 | R89: 0.1799824685 | S89: -0.5119792819 | T89: 0.1287001818 | U89: -0.3407289088 | V89: 0.03182828799 | W89: -0.02885781601 | X89: 0.1404852867 | Y89: -0.3516173065 | Z89: 0.1186485142 | AA89: -0.2649190724 | AB89: 0.1121882871 | AC89: -0.2980635166 | AD89: 0.08775443584 | AE89: -0.209903568 | AF89: 0.1860887557 | AG89: -0.3498519659 | AH89: 0.1554169655 | AI89: -0.3463557065 | AJ89: 0.3914703429 | AK89: -0.3640459776 | AL89: 0.2570917308 | AM89: -0.5236704946 | AN89: 0.06369522214 | AO89: -0.01271460112 | AP89: 0.1893409789 | AQ89: -0.1978081763 | AR89: 0.1607275307 | AS89: -0.1035223529 | AT89: 0.1665546596 | AU89: -0.171473369 | AV89: 0.1290905178 | AW89: -0.1116848364 | AX89: 0.3750199974 | AY89: -0.9807759523 | AZ89: 0.08732418716 | BA89: -0.1882558316 | BB89: 0.1228544265 | BC89: -0.1074082628 | BD89: 368.092392 | BF89: Georgia | BG89: 661.2225652 | BH89: 367.8773913 | BI89: 711.0911521 | BJ89: 395.6222486 | BK89: 570.5857669 | BL89: 522.9495738 | BM89: 2 | BN89: 1880 | BO89: 502.1369036
A90: Panama | B90: 8.745125259 | C90: 5.746203191 | D90: 6280 | E90: 313 | F90: 26 | G90: 160.259 | H90: 89.6122 | I90: 4099.65797 | J90: 0.1347000003 | K90: 0.1021559313 | L90: 0.2369000018 | M90: 1 | N90: 0.1284776926 | O90: -0.1801812649 | P90: 0.09959926456 | Q90: -0.1831528246 | R90: 0.1807545125 | S90: -0.5078746676 | T90: 0.1297579855 | U90: -0.3314323127 | V90: 0.03210197389 | W90: -0.0303242784 | X90: 0.1431707144 | Y90: -0.3514558673 | Z90: 0.1209309995 | AA90: -0.2651741505 | AB90: 0.1138854176 | AC90: -0.3005017042 | AD90: 0.08907105029 | AE90: -0.2123324573 | AF90: 0.1872516125 | AG90: -0.3347596228 | AH90: 0.1536357105 | AI90: -0.3369552493 | AJ90: 0.3891172409 | AK90: -0.3547281027 | AL90: 0.2548323274 | AM90: -0.5002817512 | AN90: 0.06297273934 | AO90: -0.01475281455 | AP90: 0.189164415 | AQ90: -0.1901407838 | AR90: 0.1606383026 | AS90: -0.09761149436 | AT90: 0.1662742198 | AU90: -0.169112131 | AV90: 0.1286056489 | AW90: -0.1091335937 | AX90: 0.2230959982 | AY90: -1.500153065 | AZ90: 0.08846054971 | BA90: -0.1906631291 | BB90: 0.1224034652 | BC90: -0.1048980579 | BD90: 3027.763068 | BF90: Ghana | BG90: 229.6277472 | BH90: 201.3243118 | BI90: 250.9025243 | BJ90: 219.9768045 | BK90: 253.8235561 | BL90: 285.0226561 | BM90: 2 | BN90: 1970 | BO90: 289.4645805
A91: Paraguay | B91: 8.431635303 | C91: 4.820281566 | D91: 4590 | E91: 124 | F91: 33.5 | G91: 192.853 | H91: 145.9186 | I91: 1485.216505 | J91: 0.1413172036 | K91: 0.09475599974 | L91: 0.2361000031 | M91: 1 | N91: 0.1458976865 | O91: -0.111220777 | P91: 0.1115452051 | Q91: -0.1268541515 | R91: 0.1992419064 | S91: -0.4541630447 | T91: 0.1461229771 | U91: -0.2728695273 | V91: 0.03559400514 | W91: -0.03707643971 | X91: 0.1693100333 | Y91: -0.3264195323 | Z91: 0.1430094093 | AA91: -0.245475322 | AB91: 0.1312140077 | AC91: -0.2932772934 | AD91: 0.102635093 | AE91: -0.2108849585 | AF91: 0.1970042288 | AG91: -0.2315585017 | AH91: 0.1541076452 | AI91: -0.2607767582 | AJ91: 0.3826454878 | AK91: -0.2868236303 | AL91: 0.2532357275 | AM91: -0.4188076556 | AN91: 0.06264606863 | AO91: -0.01245438959 | AP91: 0.1995272934 | AQ91: -0.1090413108 | AR91: 0.1694342494 | AS91: -0.02651401237 | AT91: 0.1692894399 | AU91: -0.1215227246 | AV91: 0.1314522326 | AW91: -0.06738032401 | AX91: 0.2226829976 | AY91: -1.502006054 | AZ91: 0.1008598953 | BA91: -0.1888750494 | BB91: 0.1251516193 | BC91: -0.06480930001 | BD91: 1470.96341 | BF91: Guinea | BG91: 170.1836781 | BH91: 134.2602117 | BI91: 189.6410937 | BJ91: 149.6104308 | BK91: 157.7128502 | BL91: 189.799895 | BM91: 2 | BN91: 1970 | BO91: 747.3821785
A92: Peru | B92: 8.465899897 | C92: 4.836281907 | D92: 4750 | E92: 126 | F92: 39.8 | G92: 186.2976 | H92: 120.8598 | I92: 2338.456984 | J92: 0.1542956531 | K92: 0.1032846496 | L92: 0.2576000094 | M92: 1 | N92: 0.1275013536 | O92: -0.183343634 | P92: 0.09892909974 | Q92: -0.1854844242 | R92: 0.1796065122 | S92: -0.5114184618 | T92: 0.1288179159 | U92: -0.3335724473 | V92: 0.03191749379 | W92: -0.03021860309 | X92: 0.1418949813 | Y92: -0.353734076 | Z92: 0.1198548749 | AA92: -0.2671032548 | AB92: 0.1130173132 | AC92: -0.3020474911 | AD92: 0.08839775622 | AE92: -0.2133359164 | AF92: 0.1871378869 | AG92: -0.3389923573 | AH92: 0.1532069892 | AI92: -0.3407017887 | AJ92: 0.3892453015 | AK92: -0.3577322066 | AL92: 0.2544878721 | AM92: -0.4995210767 | AN92: 0.0627977103 | AO92: -0.01569599099 | AP92: 0.1885713339 | AQ92: -0.1949661076 | AR92: 0.1601278782 | AS92: -0.1021316424 | AT92: 0.1661417931 | AU92: -0.1727080494 | AV92: 0.1283685565 | AW92: -0.112117067 | AX92: 0.241643995 | AY92: -1.420289755 | AZ92: 0.08782749623 | BA92: -0.1916906387 | BB92: 0.1221800819 | BC92: -0.1077409014 | BD92: 1811.987027 | BF92: Guinea-Bissau | BG92: 147.7449201 | BH92: 101.4289894 | BI92: 164.1743515 | BJ92: 112.7080278 | BK92: 118.2267733 | BL92: 143.5138431 | BM92: 2 | BN92: 790 | BO92: 217.9165812
A93: Philippines | B93: 8.29404964 | C93: 4.394449155 | D93: 4000 | E93: 81 | F93: 39.9 | G93: 279.8352 | H93: 166.7872 | I93: 1060.550031 | J93: 0.1780834049 | K93: 0.1017206535 | L93: 0.2797999978 | M93: 1 | N93: 0.1267179549 | O93: -0.1899949312 | P93: 0.09840462357 | Q93: -0.1916340441 | R93: 0.1794326752 | S93: -0.513489902 | T93: 0.1282990426 | U93: -0.3407899439 | V93: 0.03175786138 | W93: -0.02898058295 | X93: 0.1400974691 | Y93: -0.3528977633 | Z93: 0.1183234379 | AA93: -0.2660522163 | AB93: 0.1119068712 | AC93: -0.2992504239 | AD93: 0.08753684163 | AE93: -0.2107796967 | AF93: 0.1861412227 | AG93: -0.3503840566 | AH93: 0.1549339741 | AI93: -0.3473208845 | AJ93: 0.391208142 | AK93: -0.3645975888 | AL93: 0.2565899789 | AM93: -0.5203160644 | AN93: 0.06350187957 | AO93: -0.01350753009 | AP93: 0.1889525056 | AQ93: -0.1996055841 | AR93: 0.1604008973 | AS93: -0.1053648442 | AT93: 0.1664143652 | AU93: -0.1732314229 | AV93: 0.1288687736 | AW93: -0.1130695269 | AX93: 0.2616890073 | AY93: -1.340598464 | AZ93: 0.08710697293 | BA93: -0.1891429871 | BB93: 0.1226456985 | BC93: -0.1087177992 | BD93: 1241.175248 | BF93: Haiti | BG93: 358.0363796 | BH93: 208.4272374 | BI93: 392.109068 | BJ93: 228.2623064 | BK93: 268.889128 | BL93: 290.6785854 | BM93: 2 | BN93: 1650 | BO93: 553.4509953
A94: Portugal | B94: 9.759039648 | C94: 6.943122423 | D94: 17310 | E94: 1036 | F94: 7.2 | G94: 153.612 | H94: 65.723 | I94: 18365.04706 | J94: 0.1576629579 | K94: 0.1164937839 | L94: 0.2741999924 | M94: 0 | N94: 0.1284120977 | O94: -0.1949230433 | P94: 0.09959690273 | Q94: -0.1983665824 | R94: 0.18327187 | S94: -0.5056220889 | T94: 0.1306232512 | U94: -0.3508827984 | V94: 0.03207107261 | W94: -0.02628877386 | X94: 0.1404197067 | Y94: -0.342446059 | Z94: 0.1185559258 | AA94: -0.2563489676 | AB94: 0.1124544963 | AC94: -0.2866116464 | AD94: 0.08795464784 | AE94: -0.2007328868 | AF94: 0.1856547147 | AG94: -0.3631728292 | AH94: 0.1616906673 | AI94: -0.3500222564 | AJ94: 0.3976429999 | AK94: -0.370639801 | AL94: 0.2643256783 | AM94: -0.5748474002 | AN94: 0.06607811898 | AO94: -0.004597190302 | AP94: 0.1936900616 | AQ94: -0.193418026 | AR94: 0.1643042117 | AS94: -0.09679993987 | AT94: 0.169020623 | AU94: -0.1613206267 | AV94: 0.1322131455 | AW94: -0.1044766903 | AX94: 0.2557899952 | AY94: -1.363398552 | AZ94: 0.08772163838 | BA94: -0.1790291071 | BB94: 0.1258082092 | BC94: -0.1007024795 | BD94: 11153.08466 | BF94: India | BG94: 128.6483364 | BH94: 111.212186 | BI94: 139.8962817 | BJ94: 120.9356586 | BK94: 148.2101991 | BL94: 158.5600348 | BM94: 2 | BN94: 2420 | BO94: 547.8344236
A95: Romania | B95: 8.651724084 | C95: 5.823045895 | D95: 5720 | E95: 338 | F95: 27 | G95: 250.8382 | H95: 110.229 | I95: 3326.623942 | J95: 0.1857878566 | K95: 0.112408638 | L95: 0.2982000113 | M95: 1 | N95: 0.1273934841 | O95: -0.1939527243 | P95: 0.09888507426 | Q95: -0.1963940412 | R95: 0.1813221276 | S95: -0.509966433 | T95: 0.1293415874 | U95: -0.3474848866 | V95: 0.03187678382 | W95: -0.02734631486 | X95: 0.1398524493 | Y95: -0.3474268317 | Z95: 0.1180936471 | AA95: -0.2609125972 | AB95: 0.1119255871 | AC95: -0.2922413647 | AD95: 0.08754853904 | AE95: -0.2051347494 | AF95: 0.1854571998 | AG95: -0.3593620658 | AH95: 0.1586156934 | AI95: -0.3501452506 | AJ95: 0.3946326375 | AK95: -0.3691660762 | AL95: 0.260804534 | AM95: -0.5524795651 | AN95: 0.06493602693 | AO95: -0.008518445306 | AP95: 0.1912195086 | AQ95: -0.1974976808 | AR95: 0.1622569412 | AS95: -0.101744689 | AT95: 0.1676000357 | AU95: -0.1673219502 | AV95: 0.1305115968 | AW95: -0.1089328751 | AX95: 0.2773120105 | AY95: -1.282611966 | AZ95: 0.08724997193 | BA95: -0.1834660172 | BB95: 0.1241948307 | BC95: -0.1048786491 | BD95: 1665.903456 | BF95: Indonesia | BG95: 407.6463232 | BH95: 232.4968168 | BI95: 435.2453601 | BJ95: 248.2376389 | BK95: 331.3130272 | BL95: 329.710791 | BM95: 2 | BN95: 3060 | BO95: 518.7222769
A96: Russian Federation | B96: 8.887376485 | C96: 5.680172609 | D96: 7240 | E96: 293 | F96: 23.2 | G96: 442.954 | H96: 158.477 | I96: 3870.321968 | J96: 0.2586862743 | K96: 0.1315966845 | L96: 0.3903000057 | M96: 1 | N96: 0.1255697012 | O96: -0.1922159344 | P96: 0.09761311114 | Q96: -0.1927923262 | R96: 0.1778176278 | S96: -0.5180495977 | T96: 0.1271065325 | U96: -0.3412479758 | V96: 0.03154679015 | W96: -0.02929717675 | X96: 0.1388921589 | Y96: -0.3566631377 | Z96: 0.1173120439 | AA96: -0.2693725824 | AB96: 0.111041382 | AC96: -0.3026631474 | AD96: 0.08686790615 | AE96: -0.2132799774 | AF96: 0.1863802671 | AG96: -0.3523991406 | AH96: 0.1536398828 | AI96: -0.3504373431 | AJ96: 0.390648663 | AK96: -0.3664970398 | AL96: 0.2552770674 | AM96: -0.5111654401 | AN96: 0.06297045201 | AO96: -0.01577520557 | AP96: 0.1879414618 | AQ96: -0.205114305 | AR96: 0.1595473737 | AS96: -0.1109533459 | AT96: 0.166114971 | AU96: -0.1784655005 | AV96: 0.12831828 | AW96: -0.1172127649 | AX96: 0.3562409878 | AY96: -1.032147884 | AZ96: 0.08644389361 | BA96: -0.1916763484 | BB96: 0.1221291497 | BC96: -0.1126390621 | BD96: 1879.196435 | BF96: Kenya | BG96: 223.4564629 | BH96: 186.1684168 | BI96: 243.1900123 | BJ96: 202.6090406 | BK96: 224.1076576 | BL96: 264.0704986 | BM96: 2 | BN96: 1010 | BO96: 241.438598
A97: Rwanda | B97: 7.012115294 | C97: 3.135494216 | D97: 1110 | E97: 23 | F97: 181.9 | G97: 476.3308 | H97: 447.805 | I97: 214.8937618 | J97: 0.5408563018 | K97: 0.1140938699 | L97: 0.6549999714 | M97: 1 | N97: 0.1336898506 | O97: -0.1581336707 | P97: 0.1031614691 | Q97: -0.165111661 | R97: 0.1859687418 | S97: -0.4908825457 | T97: 0.1345260292 | U97: -0.312618047 | V97: 0.03312317654 | W97: -0.03251704574 | X97: 0.1511006355 | Y97: -0.3436398506 | Z97: 0.1276367158 | AA97: -0.2590472102 | AB97: 0.1191232353 | AC97: -0.2983944714 | AD97: 0.09314934909 | AE97: -0.2120259255 | AF97: 0.1896667928 | AG97: -0.301681459 | AH97: 0.1532016098 | AI97: -0.3126421571 | AJ97: 0.3863083422 | AK97: -0.3329997957 | AL97: 0.2536148131 | AM97: -0.4734835029 | AN97: 0.06272773445 | AO97: -0.014157678 | AP97: 0.1915831566 | AQ97: -0.1643966585 | AR97: 0.1627522111 | AS97: -0.07509073615 | AT97: 0.1667591482 | AU97: -0.1541328728 | AV97: 0.1291159093 | AW97: -0.09596272558 | AX97: 0.5932419896 | AY97: -0.5221529007 | AZ97: 0.09217144549 | BA97: -0.1902491152 | BB97: 0.1228983179 | BC97: -0.0922486335 | BD97: 378.8023031 | BF97: Kyrgyz Republic | BG97: 1068.816191 | BH97: 574.7083654 | BI97: 1145.048792 | BJ97: 615.6990555 | BK97: 794.9476386 | BL97: 802.1382801 | BM97: 2 | BN97: 1560 | BO97: 265.2827681
A98: Senegal | B98: 7.306531399 | C98: 3.496507561 | D98: 1490 | E98: 33 | F98: 137 | G98: 280.4652 | H98: 221.3628 | I98: 703.0761616 | J98: 0.4463315308 | K98: 0.1118817702 | L98: 0.5582000017 | M98: 1 | N98: 0.1396226585 | O98: -0.1343795657 | P98: 0.1072265878 | Q98: -0.1456493586 | R98: 0.1922075599 | S98: -0.4726821482 | T98: 0.1400893629 | U98: -0.2922935784 | V98: 0.03431380168 | W98: -0.03489971906 | X98: 0.160068661 | Y98: -0.3353307247 | Z98: 0.1352120787 | AA98: -0.2525475621 | AB98: 0.1250600964 | AC98: -0.2962443233 | AD98: 0.09779675305 | AE98: -0.2117884159 | AF98: 0.1930465698 | AG98: -0.2659936249 | AH98: 0.1531968713 | AI98: -0.2864722908 | AJ98: 0.3839576542 | AK98: -0.3095788658 | AL98: 0.2528831661 | AM98: -0.4441661239 | AN98: 0.06255044788 | AO98: -0.01359937526 | AP98: 0.1950438917 | AQ98: -0.136769399 | AR98: 0.1656926572 | AS98: -0.05095151812 | AT98: 0.1677480787 | AU98: -0.1381340772 | AV98: 0.1300297976 | AW98: -0.08187817782 | AX98: 0.508276999 | AY98: -0.6767287254 | AZ98: 0.09641382098 | BA98: -0.1898966283 | BB98: 0.1237823665 | BC98: -0.07871953398 | BD98: 465.48186 | BF98: Madagascar | BG98: 109.7358203 | BH98: 104.0732328 | BI98: 119.9197243 | BJ98: 113.731627 | BK98: 131.5434066 | BL98: 147.4304455 | BM98: 2 | BN98: 820 | BO98: 176.1958468
A99: Sierra Leone | B99: 6.152732695 | C99: 2.708050201 | D99: 470 | E99: 15 | F99: 231.5 | G99: 550.8002 | H99: 511.847 | I99: 276.1453598 | J99: 0.6833705306 | K99: 0.121153757 | L99: 0.8044999838 | M99: 1 | N99: 0.1290198714 | O99: -0.1769123971 | P99: 0.09996578842 | Q99: -0.1802697778 | R99: 0.1811158955 | S99: -0.5062549114 | T99: 0.1301992536 | U99: -0.3281888664 | V99: 0.03221042454 | W99: -0.03081915714 | X99: 0.1441762298 | Y99: -0.3512376845 | Z99: 0.121784538 | AA99: -0.2651195526 | AB99: 0.114527747 | AC99: -0.3012001812 | AD99: 0.08956997097 | AE99: -0.2130669951 | AF99: 0.1877002269 | AG99: -0.3294392824 | AH99: 0.1531082988 | AI99: -0.3335612416 | AJ99: 0.3883920014 | AK99: -0.3514151573 | AL99: 0.2541524768 | AM99: -0.4925655127 | AN99: 0.06275214255 | AO99: -0.01536190882 | AP99: 0.1892101765 | AQ99: -0.1872446835 | AR99: 0.1606953889 | AS99: -0.09532106668 | AT99: 0.1662340462 | AU99: -0.1680678576 | AV99: 0.1285000592 | AW99: -0.1080704257 | AX99: 0.7217310071 | AY99: -0.3261027634 | AZ99: 0.08889625221 | BA99: -0.191388756 | BB99: 0.1223067641 | BC99: -0.1038586795 | BD99: 90.52631529 | BF99: Malawi | BG99: 58.35182688 | BH99: 69.31005692 | BI99: 64.51864285 | BJ99: 76.63497525 | BK99: 80.81123657 | BL99: 98.2363345 | BM99: 2 | BN99: 600 | BO99: 184.3347222
A100: Singapore | B100: 10.07744086 | C100: 5.786897381 | D100: 23800 | E100: 326 | F100: 4 | G100: 98.0558 | H100: 56.2746 | I100: 24921.23855 | J100: 0.0794050321 | K100: 0.09037582576 | L100: 0.1697999984 | M100: 0 | N100: 0.1542054266 | O100: -0.2117968798 | P100: 0.1178462282 | Q100: -0.2357313186 | R100: 0.2300520688 | S100: -0.4168407023 | T100: 0.1659555286 | U100: -0.4166503251 | V100: 0.03821886703 | W100: -0.005400808994 | X100: 0.1602707654 | Y100: -0.2419930696 | Z100: 0.1348962784 | AA100: -0.1644276381 | AB100: 0.1310029924 | AC100: -0.1738408208 | AD100: 0.1021080911 | AE100: -0.1127107516 | AF100: 0.272565037 | AG100: -0.4355613887 | AH100: 0.2591003478 | AI100: -0.3447833657 | AJ100: 0.5541484952 | AK100: -0.3976125717 | AL100: 0.3895819187 | AM100: -1.01888299 | AN100: 0.09679099917 | AO100: 0.07385123521 | AP100: 0.3128486574 | AQ100: -0.1089268699 | AR100: 0.2638095915 | AS100: 0.0046143285 | AT100: 0.262928158 | AU100: -0.03964921832 | AV100: 0.2169750929 | AW100: -0.01389743388 | AX100: 0.1626050025 | AY100: -1.816431284 | AZ100: 0.1027196422 | BA100: -0.09029434621 | BB100: 0.2068897486 | BC100: -0.01577999815 | BD100: 13828.58495 | BF100: Mali | BG100: 51.03325533 | BH100: 50.64918839 | BI100: 56.16718669 | BJ100: 55.74448272 | BK100: 56.90947513 | BL100: 71.62834934 | BM100: 2 | BN100: 740 | BO100: 173.687261
A101: South Africa | B101: 9.15377002 | C101: 5.579729826 | D101: 9450 | E101: 265 | F101: 74.3 | G101: 483.8584 | H101: 432.2018 | I101: 4854.387532 | J101: 0.3279514313 | K101: 0.1110315546 | L101: 0.4390000105 | M101: 0 | N101: 0.1260867417 | O101: -0.1908344477 | P101: 0.09796822071 | Q101: -0.1918760836 | R101: 0.1784756035 | S101: -0.5160592794 | T101: 0.1276206374 | U101: -0.3405361772 | V101: 0.03164255619 | W101: -0.02925989218 | X101: 0.1395052373 | Y101: -0.3552055359 | Z101: 0.1178282201 | AA101: -0.2681101561 | AB101: 0.1114682332 | AC101: -0.3014909625 | AD101: 0.08719784766 | AE101: -0.2124582231 | AF101: 0.1863345951 | AG101: -0.3507545292 | AH101: 0.1540224105 | AI101: -0.3486970365 | AJ101: 0.3907056451 | AK101: -0.3652296066 | AL101: 0.2556357384 | AM101: -0.5133375525 | AN101: 0.06313061714 | AO101: -0.0150204096 | AP101: 0.1882979125 | AQ101: -0.2025537044 | AR101: 0.1598524004 | AS101: -0.108463265 | AT101: 0.1661972553 | AU101: -0.1763162613 | AV101: 0.1284883171 | AW101: -0.1154721454 | AX101: 0.4025700092 | AY101: -0.909886241 | AZ101: 0.0867613703 | BA101: -0.1908406317 | BB101: 0.1222885996 | BC101: -0.1109861806 | BD101: 3722.121591 | BF101: Mauritania | BG101: 265.6754137 | BH101: 222.1254248 | BI101: 291.9939637 | BJ101: 244.129791 | BK101: 284.2610457 | BL101: 314.8671336 | BM101: 2 | BN101: 1840 | BO101: 405.052599
A102: Spain | B102: 9.90148555 | C102: 6.982862751 | D102: 19960 | E102: 1078 | F102: 6.5 | G102: 118.439 | H102: 47.574 | I102: 24328.06337 | J102: 0.1394801885 | K102: 0.1058780849 | L102: 0.2453999966 | M102: 0 | N102: 0.1317731738 | O102: -0.197518602 | P102: 0.1019509733 | Q102: -0.2040925622 | R102: 0.1895655841 | S102: -0.4920585155 | T102: 0.1349386424 | U102: -0.3609523475 | V102: 0.03275283426 | W102: -0.02309329621 | X102: 0.1425268799 | Y102: -0.3270913959 | Z102: 0.1202810481 | AA102: -0.2422976941 | AB102: 0.114397265 | AC102: -0.2693695128 | AD102: 0.0894434154 | AE102: -0.1872737706 | AF102: 0.189298898 | AG102: -0.3742647469 | AH102: 0.1725692451 | AI102: -0.3492381573 | AJ102: 0.4103249013 | AK102: -0.3747793436 | AL102: 0.2771922648 | AM102: -0.6427628994 | AN102: 0.06987500191 | AO102: 0.007397822104 | AP102: 0.204089731 | AQ102: -0.1805165857 | AR102: 0.1729443818 | AS102: -0.08130856603 | AT102: 0.1759154499 | AU102: -0.1427264959 | AV102: 0.1394913942 | AW102: -0.090635553 | AX102: 0.2305900007 | AY102: -1.467114091 | AZ102: 0.08939232677 | BA102: -0.1654611081 | BB102: 0.1327403039 | BC102: -0.08772594482 | BD102: 13492.95264 | BF102: Moldova | BG102: 708.320026 | BH102: 620.9349574 | BI102: 759.986923 | BJ102: 666.2277365 | BK102: 939.2224258 | BL102: 883.0616683 | BM102: 2 | BN102: 1290 | BO102: 247.4144285
A103: Sri Lanka | B103: 8.151909873 | C103: 4.094344562 | D103: 3470 | E103: 60 | F103: 16.3 | G103: 244.7888 | H103: 99.9316 | I103: 1051.743097 | J103: 0.1520479918 | K103: 0.1062906459 | L103: 0.2583000064 | M103: 1 | N103: 0.1363735795 | O103: -0.1805012077 | P103: 0.1051509753 | Q103: -0.1907888949 | R103: 0.194712773 | S103: -0.4762584567 | T103: 0.1391959488 | U103: -0.3477855027 | V103: 0.03364271298 | W103: -0.02427909523 | X103: 0.1488908231 | Y103: -0.3182512522 | Z103: 0.1256596148 | AA103: -0.235020414 | AB103: 0.1186722517 | AC103: -0.2647260427 | AD103: 0.09276846796 | AE103: -0.1847092956 | AF103: 0.1922037899 | AG103: -0.3499751091 | AH103: 0.1742741317 | AI103: -0.3298431933 | AJ103: 0.4106125236 | AK103: -0.3582812548 | AL103: 0.2786207795 | AM103: -0.6332498193 | AN103: 0.07037822157 | AO103: 0.009938375093 | AP103: 0.2079644501 | AQ103: -0.1578978002 | AR103: 0.1762592793 | AS103: -0.06079642102 | AT103: 0.1778380871 | AU103: -0.1276531667 | AV103: 0.1413274407 | AW103: -0.07781462371 | AX103: 0.2421769947 | AY103: -1.41808641 | AZ103: 0.09245748818 | BA103: -0.1627926975 | BB103: 0.1344956458 | BC103: -0.07546722889 | BD103: 756.6877721 | BF103: Mongolia | BG103: 1204.865988 | BH103: 891.4399807 | BI103: 1285.071989 | BJ103: 950.7817139 | BK103: 1190.061174 | BL103: 1258.135964 | BM103: 2 | BN103: 1630 | BO103: 209.4931941
A104: St. Kitts and Nevis | B104: 9.334326352 | C104: 5.872117789 | D104: 11320 | E104: 355 | F104: 17.5 | G104: 243 | H104: 148 | I104: 10015.97214 | M104: 0 | N104: 0.1306001991 | O104: -0.178778857 | P104: 0.1010802016 | Q104: -0.1837601513 | R104: 0.1842528135 | S104: -0.4992112219 | T104: 0.1321243942 | U104: -0.3340622485 | AF104: 0.1868439913 | AG104: -0.3361622393 | AH104: 0.1576019675 | AI104: -0.3336322606 | AJ104: 0.3919455707 | AK104: -0.3541165292 | AL104: 0.2591235936 | AM104: -0.5301277637 | BF104: Mozambique | BG104: 146.6405686 | BH104: 127.7165683 | BI104: 162.1955152 | BJ104: 141.2641454 | BK104: 149.0590408 | BL104: 179.2905343 | BM104: 2 | BN104: 880 | BO104: 449.2348496
A105: St. Lucia | B105: 8.628734566 | C105: 5.141663557 | D105: 5590 | E105: 171 | F105: 17.9 | G105: 202.7238 | H105: 152.7554 | I105: 5556.002508 | J105: 0.1549896449 | M105: 1 | N105: 0.1263063699 | O105: -0.1908850074 | P105: 0.09812097251 | Q105: -0.1921488047 | R105: 0.1788703054 | S105: -0.5150987506 | T105: 0.1278765649 | U105: -0.341083765 | AB105: 0.1115865335 | AC105: -0.300372541 | AF105: 0.1861862689 | AG105: -0.3512926698 | AH105: 0.1545100659 | AI105: -0.3485186398 | AJ105: 0.3910310268 | AK105: -0.3653810024 | AL105: 0.2561633885 | AM105: -0.5175580382 | AT105: 0.1663001925 | AU105: -0.1750432253 | BF105: Nepal | BG105: 273.4011225 | BH105: 154.820845 | BI105: 294.9996805 | BJ105: 167.0516177 | BK105: 200.3832204 | BL105: 218.7469974 | BM105: 2 | BN105: 1330 | BO105: 252.2039042
A106: St. Vincent and the Grenadines | B106: 8.5754621 | C106: 5.402677382 | D106: 5300 | E106: 222 | F106: 22.2 | G106: 211.375 | H106: 155.4408 | I106: 4105.944227 | J106: 0.1830547154 | M106: 1 | N106: 0.1301214844 | O106: -0.1918326169 | P106: 0.1007836983 | Q106: -0.1967922896 | R106: 0.1857190579 | S106: -0.4991158545 | T106: 0.132453844 | U106: -0.3503270447 | AB106: 0.1137702018 | AC106: -0.2816814184 | AF106: 0.1865168363 | AG106: -0.3604436517 | AH106: 0.1642382145 | AI106: -0.3456480205 | AJ106: 0.3999216855 | AK106: -0.3680132627 | AL106: 0.2671482861 | AM106: -0.5882524848 | AT106: 0.1705189943 | AU106: -0.1538262665 | BF106: Nicaragua | BG106: 2150.372702 | BH106: 1070.659322 | BI106: 2281.447622 | BJ106: 1135.920839 | BK106: 1566.651895 | BL106: 1478.489532 | BM106: 2 | BN106: 2480 | BO106: 914.825273
A107: Sudan | B107: 7.408530567 | C107: 2.48490665 | D107: 1650 | E107: 12 | F107: 107.8 | G107: 318.2858 | H107: 248.0922 | I107: 565.7730986 | J107: 0.360673815 | K107: 0.09461958706 | L107: 0.4553000033 | M107: 1 | N107: 0.1263506711 | O107: -0.1882713586 | P107: 0.09814405441 | Q107: -0.1894720048 | R107: 0.1784754097 | S107: -0.51540941 | T107: 0.1277771741 | U107: -0.3376800418 | V107: 0.03169719502 | W107: -0.02976495959 | X107: 0.1401691735 | Y107: -0.3556829393 | Z107: 0.1183946282 | AA107: -0.2686559558 | AB107: 0.1118741259 | AC107: -0.3027355075 | AD107: 0.08751215786 | AE107: -0.2135718763 | AF107: 0.1867565215 | AG107: -0.3462961316 | AH107: 0.1532942504 | AI107: -0.3461811244 | AJ107: 0.3899265528 | AK107: -0.3625689447 | AL107: 0.2547613084 | AM107: -0.5047069788 | AN107: 0.0628317222 | AO107: -0.01597872376 | AP107: 0.1881227195 | AQ107: -0.2009177208 | AR107: 0.1597244442 | AS107: -0.1073902622 | AT107: 0.1660950631 | AU107: -0.1763086021 | AV107: 0.1282832474 | AW107: -0.1152518019 | AX107: 0.4211669862 | AY107: -0.8647258878 | AZ107: 0.08702009171 | BA107: -0.1919521391 | BB107: 0.1220980436 | BC107: -0.1107476056 | BD107: 328.664425 | BF107: Niger | BG107: 28.19104502 | BH107: 32.52024152 | BI107: 31.31317054 | BJ107: 36.12182053 | BK107: 36.61020612 | BL107: 46.01746844 | BM107: 2 | BN107: 750 | BO107: 199.0032131
A108: Swaziland | B108: 8.387084506 | C108: 4.736198448 | D108: 4390 | E108: 114 | F108: 122.5 | G108: 528.8454 | H108: 498.5406 | I108: 2188.763012 | J108: 0.4108089209 | K108: 0.113648124 | L108: 0.5245000124 | M108: 1 | N108: 0.1379943937 | O108: -0.1401941776 | P108: 0.1061057523 | Q108: -0.1502731889 | R108: 0.1903562844 | S108: -0.4777432084 | T108: 0.1385259181 | U108: -0.2969629169 | V108: 0.03398786485 | W108: -0.03443083167 | X108: 0.1577379256 | Y108: -0.3379982114 | Z108: 0.1332457066 | AA108: -0.2547136545 | AB108: 0.1235021576 | AC108: -0.2974515259 | AD108: 0.09657499939 | AE108: -0.2123719156 | AF108: 0.1922177076 | AG108: -0.2744491994 | AH108: 0.1528452188 | AI108: -0.2930202186 | AJ108: 0.3842749 | AK108: -0.3152503669 | AL108: 0.2526789904 | AM108: -0.4488214254 | AN108: 0.06246086583 | AO108: -0.01420572679 | AP108: 0.1939210296 | AQ108: -0.1441523284 | AR108: 0.1647494286 | AS108: -0.05756668746 | AT108: 0.1673905402 | AU108: -0.1428428292 | AV108: 0.1296562254 | AW108: -0.08592503518 | AX108: 0.4777689874 | AY108: -0.7386279702 | AZ108: 0.09528584033 | BA108: -0.1905129999 | BB108: 0.1234247684 | BC108: -0.08259437978 | BD108: 1510.002927 | BF108: Nigeria | BG108: 16.64490193 | BH108: 18.59844952 | BI108: 18.35778558 | BJ108: 20.51236767 | BK108: 21.61910309 | BL108: 26.39952409 | BM108: 2 | BN108: 880 | BO108: 147.7834653
A109: Sweden | B109: 10.10765214 | C109: 7.531552381 | D109: 24530 | E109: 1866 | F109: 4.1 | G109: 87.19 | H109: 56.197 | I109: 38515.91492 | J109: 0.1406687498 | K109: 0.1218470111 | L109: 0.2624999881 | M109: 0 | N109: 0.1272618622 | O109: -0.1939873844 | P109: 0.09879355133 | Q109: -0.1963024139 | R109: 0.1810981035 | S109: -0.5105116367 | T109: 0.1291883439 | U109: -0.347252816 | V109: 0.03185208142 | W109: -0.02744071372 | X109: 0.1397521049 | Y109: -0.3479812443 | Z109: 0.1180104613 | AA109: -0.2614143193 | AB109: 0.1118444502 | AC109: -0.2928272784 | AD109: 0.08748602122 | AE109: -0.2055847794 | AF109: 0.1854539216 | AG109: -0.3591743112 | AH109: 0.1583223939 | AI109: -0.3503049314 | AJ109: 0.3943800926 | AK109: -0.3691475391 | AL109: 0.2604771256 | AM109: -0.5503644943 | AN109: 0.06482476741 | AO109: -0.008921278641 | AP109: 0.1909851581 | AQ109: -0.1980688572 | AR109: 0.1620620042 | AS109: -0.1023844332 | AT109: 0.1674788445 | AU109: -0.168023631 | AV109: 0.1303572804 | AW109: -0.109466292 | AX109: 0.2453760058 | AY109: -1.404963493 | AZ109: 0.08718282729 | BA109: -0.1839202493 | BB109: 0.1240487546 | BC109: -0.1053803936 | BD109: 24445.24189 | BF109: Pakistan | BG109: 210.1940898 | BH109: 173.6179836 | BI109: 227.4476767 | BJ109: 187.8692548 | BK109: 223.9569459 | BL109: 246.5400134 | BM109: 2 | BN109: 1910 | BO109: 368.092392
A110: Switzerland | B110: 10.2445919 | C110: 7.471932078 | D110: 28130 | E110: 1758 | F110: 5.6 | G110: 99.349 | H110: 53.925 | I110: 52667.59408 | J110: 0.1313474178 | K110: 0.1174060404 | L110: 0.2487999946 | M110: 0 | N110: 0.1254913509 | O110: -0.1924892664 | P110: 0.09755950421 | Q110: -0.1929974705 | R110: 0.1777295321 | S110: -0.5183402896 | T110: 0.1270323396 | U110: -0.3414408267 | V110: 0.03153211996 | W110: -0.02928509749 | X110: 0.1387874037 | Y110: -0.3568437397 | Z110: 0.1172235906 | AA110: -0.2695245147 | AB110: 0.110970363 | AC110: -0.3027791977 | AD110: 0.08681302518 | AE110: -0.2133531868 | AF110: 0.1863737553 | AG110: -0.3527722061 | AH110: 0.1536138952 | AI110: -0.3507574797 | AJ110: 0.3906690478 | AK110: -0.3667582572 | AL110: 0.2552595139 | AM110: -0.5111646056 | AN110: 0.06295916438 | AO110: -0.01584463008 | AP110: 0.187901035 | AQ110: -0.2055153847 | AR110: 0.1595119536 | AS110: -0.1113258377 | AT110: 0.1661085933 | AU110: -0.1787558943 | AV110: 0.1283033043 | AW110: -0.1174551994 | AX110: 0.2333319932 | AY110: -1.45529294 | AZ110: 0.08639255166 | BA110: -0.1917515099 | BB110: 0.1221150756 | BC110: -0.1128702685 | BD110: 30823.18765 | BF110: Rwanda | BG110: 114.3893481 | BH110: 117.6870838 | BI110: 126.2880081 | BJ110: 129.9287708 | BK110: 139.3107533 | BL110: 165.6142062 | BM110: 2 | BN110: 1110 | BO110: 378.8023031
A111: Tajikistan | B111: 6.684611728 | C111: 2.397895273 | D111: 800 | E111: 11 | F111: 93.5 | G111: 266.4224 | H111: 147.2086 | I111: 234.3381538 | J111: 0.2554891706 | K111: 0.08805180341 | L111: 0.3434999883 | M111: 1 | N111: 0.128060475 | O111: -0.1807812154 | P111: 0.09931004047 | Q111: -0.1833644658 | R111: 0.1801262051 | S111: -0.5095437765 | T111: 0.12931557 | U111: -0.3313352764 | V111: 0.0320257619 | W111: -0.03049235605 | X111: 0.1427704096 | Y111: -0.3529304266 | Z111: 0.1205960363 | AA111: -0.2664862573 | AB111: 0.1135926545 | AC111: -0.3019151688 | AD111: 0.08884401619 | AE111: -0.2133871317 | AF111: 0.1873846352 | AG111: -0.3351016343 | AH111: 0.1530763954 | AI111: -0.3378995359 | AJ111: 0.3888472021 | AK111: -0.3551967144 | AL111: 0.2542563081 | AM111: -0.4959897399 | AN111: 0.06274271011 | AO111: -0.01570447162 | AP111: 0.1887669861 | AQ111: -0.1920766085 | AR111: 0.1603056788 | AS111: -0.09963099658 | AT111: 0.166159153 | AU111: -0.1710981429 | AV111: 0.1283868551 | AW111: -0.1106853783 | AX111: 0.3210450113 | AY111: -1.136173964 | AZ111: 0.08823073655 | BA111: -0.1917301565 | BB111: 0.1221986189 | BC111: -0.1063638553 | BD111: 118.4234098 | BF111: Senegal | BG111: 250.128794 | BH111: 199.5555078 | BI111: 274.703039 | BJ111: 219.1611112 | BK111: 242.4192121 | BL111: 279.1398909 | BM111: 2 | BN111: 1490 | BO111: 465.48186
A112: Tanzania | B112: 6.253828812 | C112: 2.48490665 | D112: 520 | E112: 12 | F112: 131.5 | G112: 453.779 | H112: 435.687 | I112: 304.3592864 | J112: 0.4982099235 | K112: 0.1107687205 | L112: 0.6090000272 | M112: 1 | N112: 0.1276767254 | O112: -0.1825076193 | P112: 0.09904847294 | Q112: -0.1847862154 | R112: 0.1797635704 | S112: -0.5108351707 | T112: 0.1289721578 | U112: -0.3328282535 | V112: 0.03195152432 | W112: -0.03031326085 | X112: 0.1421754509 | Y112: -0.3535014689 | Z112: 0.1200924367 | AA112: -0.2669288218 | AB112: 0.1132009476 | AC112: -0.3020361364 | AD112: 0.08854015172 | AE112: -0.2133771777 | AF112: 0.1872221231 | AG112: -0.3377098739 | AH112: 0.1531503648 | AI112: -0.3397941887 | AJ112: 0.3891065419 | AK112: -0.3569021225 | AL112: 0.2543972731 | AM112: -0.4982511401 | AN112: 0.06277408451 | AO112: -0.01572070643 | AP112: 0.1886262596 | AQ112: -0.1940523684 | AR112: 0.1601785719 | AS112: -0.1013487875 | AT112: 0.1661445946 | AU112: -0.1722198427 | AV112: 0.1283693314 | AW112: -0.111677967 | AX112: 0.5537930131 | AY112: -0.5909642577 | AZ112: 0.08795557916 | BA112: -0.1917283088 | BB112: 0.1221812665 | BC112: -0.1073179394 | BD112: 135.8223822 | BF112: Sierra Leone | BG112: 55.9315552 | BH112: 61.90088702 | BI112: 62.34770409 | BJ112: 69.00180361 | BK112: 71.57677477 | BL112: 87.50825794 | BM112: 2 | BN112: 470 | BO112: 90.52631529
A113: Thailand | B113: 8.759354749 | C113: 4.919980926 | D113: 6370 | E113: 137 | F113: 22.5 | G113: 257.7074 | H113: 137.0776 | I113: 2205.775392 | J113: 0.1793346107 | K113: 0.1006944776 | L113: 0.2800000012 | M113: 1 | N113: 0.1279997677 | O113: -0.1839369088 | P113: 0.09927882999 | Q113: -0.1866000891 | R113: 0.1805940121 | S113: -0.50915277 | T113: 0.1294214278 | U113: -0.3354529142 | V113: 0.03200452775 | W113: -0.0296457056 | X113: 0.1421228349 | Y113: -0.3510970771 | Z113: 0.120039098 | AA113: -0.264683634 | AB113: 0.113233842 | AC113: -0.2990442514 | AD113: 0.08856514841 | AE113: -0.2109831423 | AF113: 0.1866960973 | AG113: -0.3411417305 | AH113: 0.1545521915 | AI113: -0.3407181203 | AJ113: 0.3901862204 | AK113: -0.3585936129 | AL113: 0.2559548616 | AM113: -0.5115721822 | AN113: 0.0633476004 | AO113: -0.01360119786 | AP113: 0.1893348098 | AQ113: -0.1928714961 | AR113: 0.1607566476 | AS113: -0.09956357628 | AT113: 0.1664156616 | AU113: -0.1695495397 | AV113: 0.1288661659 | AW113: -0.1097786799 | AX113: 0.2619709969 | AY113: -1.339521527 | AZ113: 0.0880330652 | BA113: -0.1893195063 | BB113: 0.122645773 | BC113: -0.1055504829 | BD113: 1769.824813 | BF113: Sudan | BG113: 102.1766888 | BH113: 87.06157638 | BI113: 110.455988 | BJ113: 94.11610961 | BK113: 107.1379607 | BL113: 123.4069246 | BM113: 2 | BN113: 1650 | BO113: 328.664425
A114: Togo | B114: 7.265429723 | C114: 3.091042453 | D114: 1430 | E114: 22 | F114: 121.8 | G114: 349.469 | H114: 314.4406 | I114: 411.3618221 | J114: 0.4154114723 | K114: 0.1167921871 | L114: 0.5321999788 | M114: 1 | N114: 0.1311181188 | O114: -0.1687756777 | P114: 0.1014024168 | Q114: -0.1738048792 | R114: 0.1833468378 | S114: -0.4991489649 | T114: 0.1321537048 | U114: -0.3216667771 | V114: 0.03261641413 | W114: -0.03147083148 | X114: 0.1472091973 | Y114: -0.3474800885 | Z114: 0.1243472472 | AA114: -0.2620659173 | AB114: 0.1165499538 | AC114: -0.2994842231 | AD114: 0.09114276618 | AE114: -0.2122299224 | AF114: 0.1884222925 | AG114: -0.3176178634 | AH114: 0.1533218473 | AI114: -0.3243928254 | AJ114: 0.387565583 | AK114: -0.3434811234 | AL114: 0.2540978193 | AM114: -0.4861496687 | AN114: 0.06282103062 | AO114: -0.01449503656 | AP114: 0.1902944446 | AQ114: -0.1768890768 | AR114: 0.1616366059 | AS114: -0.08603646606 | AT114: 0.1664643735 | AU114: -0.1614476293 | AV114: 0.1288143694 | AW114: -0.1023839936 | AX114: 0.4836870134 | AY114: -0.7263172269 | AZ114: 0.09034267068 | BA114: -0.1905054897 | BB114: 0.1226066127 | BC114: -0.09841436148 | BD114: 367.8820218 | BF114: Tajikistan | BG114: 129.0926814 | BH114: 106.0545259 | BI114: 138.1384796 | BJ114: 113.4859916 | BK114: 137.8084101 | BL114: 150.0713305 | BM114: 2 | BN114: 800 | BO114: 118.4234098
A115: Trinidad and Tobago | B115: 9.100525506 | C115: 5.105945474 | D115: 8960 | E115: 165 | F115: 28.6 | G115: 245.3014 | H115: 142.0894 | I115: 8641.314266 | J115: 0.1637587398 | K115: 0.1098616496 | L115: 0.2736000121 | M115: 1 | N115: 0.1293415874 | O115: -0.1954674423 | P115: 0.100246571 | Q115: -0.1997953951 | R115: 0.1849874258 | S115: -0.5017927885 | T115: 0.1317850351 | U115: -0.3534916043 | V115: 0.03225338459 | W115: -0.02543276362 | X115: 0.1410130858 | Y115: -0.3381961584 | Z115: 0.1190428361 | AA115: -0.2524674833 | AB115: 0.1129848212 | AC115: -0.2818890214 | AD115: 0.08836182207 | AE115: -0.1970563829 | AF115: 0.18621701 | AG115: -0.3659545481 | AH115: 0.164439708 | AI115: -0.3496271968 | AJ115: 0.400559634 | AK115: -0.3716080785 | AL115: 0.2675150633 | AM115: -0.5931881666 | AN115: 0.06706725806 | AO115: -0.001318225986 | AP115: 0.1961320341 | AQ115: -0.1897043586 | AR115: 0.1663318872 | AS115: -0.0924032405 | AT115: 0.1705306619 | AU115: -0.1561330557 | AV115: 0.133900255 | AW115: -0.1006001085 | AX115: 0.2556299865 | AY115: -1.364024282 | AZ115: 0.08817767352 | BA115: -0.1753220856 | BB115: 0.127411902 | BC115: -0.09706581384 | BD115: 4102.27818 | BF115: Tanzania | BG115: 70.30459043 | BH115: 65.24094941 | BI115: 77.31052507 | BJ115: 71.7422863 | BK115: 78.0055735 | BL115: 92.34554899 | BM115: 2 | BN115: 520 | BO115: 135.8223822
A116: Tunisia | B116: 8.743531634 | C116: 5.736572297 | D116: 6270 | E116: 310 | F116: 30.8 | G116: 140.138 | H116: 83.6674 | I116: 2759.380504 | J116: 0.1238533407 | K116: 0.09566707909 | L116: 0.2195000052 | M116: 1 | N116: 0.1260347813 | O116: -0.1915228367 | P116: 0.0979340598 | Q116: -0.1925398707 | R116: 0.1785085797 | S116: -0.5161557198 | T116: 0.1276010275 | U116: -0.3413427174 | V116: 0.03163141385 | W116: -0.02910949104 | X116: 0.1393408477 | Y116: -0.3549956083 | Z116: 0.1176876128 | AA116: -0.2678893805 | AB116: 0.1113705635 | AC116: -0.3010688722 | AD116: 0.08712220937 | AE116: -0.2120913416 | AF116: 0.1862160712 | AG116: -0.351988107 | AH116: 0.154259637 | AI116: -0.3493544459 | AJ116: 0.3909476399 | AK116: -0.3659521341 | AL116: 0.2559167147 | AM116: -0.5159807801 | AN116: 0.06322716922 | AO116: -0.01470243838 | AP116: 0.1883750409 | AQ116: -0.2029130906 | AR116: 0.1599116623 | AS116: -0.1086603478 | AT116: 0.1662380844 | AU116: -0.1762160808 | AV116: 0.1285627633 | AW116: -0.115454033 | AX116: 0.2076719999 | AY116: -1.571795344 | AZ116: 0.08670146018 | BA116: -0.1904737204 | BB116: 0.1223580539 | BC116: -0.1109776199 | BD116: 2382.378204 | BF116: Togo | BG116: 186.9834896 | BH116: 138.0291687 | BI116: 205.7391027 | BJ116: 151.8743574 | BK116: 171.761303 | BL116: 194.7785877 | BM116: 2 | BN116: 1430 | BO116: 367.8820218
A117: Turkey | B117: 8.740336743 | C117: 5.402677382 | D117: 6250 | E117: 222 | F117: 41.7 | G117: 191.6502 | H117: 100.2254 | I117: 6119.231305 | J117: 0.1573930085 | K117: 0.103621304 | L117: 0.2610000074 | M117: 1 | N117: 0.1264477223 | O117: -0.1920378804 | P117: 0.09822238237 | Q117: -0.1934868097 | R117: 0.1793254614 | S117: -0.5142821074 | T117: 0.1281095594 | U117: -0.3429281116 | V117: 0.03170452639 | W117: -0.02862975188 | X117: 0.1395313442 | Y117: -0.3528039455 | Z117: 0.1178414598 | AA117: -0.2658774257 | AB117: 0.1115539372 | AC117: -0.2985665202 | AD117: 0.08726346493 | AE117: -0.2101297528 | AF117: 0.1858923882 | AG117: -0.3538109064 | AH117: 0.1554095298 | AI117: -0.3493904769 | AJ117: 0.3918057978 | AK117: -0.3666904569 | AL117: 0.2571833134 | AM117: -0.5260544419 | AN117: 0.06369142979 | AO117: -0.01295622345 | AP117: 0.1890618652 | AQ117: -0.2011902183 | AR117: 0.1604779661 | AS117: -0.1065397039 | AT117: 0.1665114909 | AU117: -0.1735961437 | AV117: 0.1290193647 | AW117: -0.1135162935 | AX117: 0.2447050065 | AY117: -1.40770185 | AZ117: 0.08687485754 | BA117: -0.1884969026 | BB117: 0.1227865517 | BC117: -0.1091627851 | BD117: 2825.65579 | BF117: Turkmenistan | BG117: 2378.589508 | BH117: 1753.233614 | BI117: 2545.076346 | BJ117: 1875.949333 | BK117: 2389.806924 | BL117: 2484.645487 | BM117: 2 | BN117: 3510 | BO117: 534.0415185
A118: Turkmenistan | B118: 8.163371316 | C118: 5.111987788 | D118: 3510 | E118: 166 | F118: 81.9 | G118: 312.6888 | H118: 171.838 | I118: 1404.083552 | J118: 0.2212620676 | K118: 0.09287271649 | L118: 0.3140999973 | M118: 1 | N118: 0.1271613985 | O118: -0.1856346577 | P118: 0.09869991988 | Q118: -0.1875362992 | R118: 0.1794241071 | S118: -0.5124186873 | T118: 0.128556475 | U118: -0.3359138072 | V118: 0.03184942529 | W118: -0.02984628081 | X118: 0.1412241608 | Y118: -0.3537458181 | Z118: 0.1192846745 | AA118: -0.267013371 | AB118: 0.1125929877 | AC118: -0.3014062643 | AD118: 0.08806875348 | AE118: -0.2127040327 | AF118: 0.186815396 | AG118: -0.3427836001 | AH118: 0.1536499709 | AI118: -0.3430489004 | AJ118: 0.3898049593 | AK118: -0.3600678444 | AL118: 0.2550445795 | AM118: -0.5054908395 | AN118: 0.06298074126 | AO118: -0.01516444329 | AP118: 0.1885941774 | AQ118: -0.196857661 | AR118: 0.1601322591 | AS118: -0.1035795435 | AT118: 0.1661888212 | AU118: -0.1732633561 | AV118: 0.1284720451 | AW118: -0.1127286851 | AX118: 0.2935859859 | AY118: -1.225584745 | AZ118: 0.08754396439 | BA118: -0.1910639554 | BB118: 0.1222755909 | BC118: -0.1083438769 | BD118: 534.0415185 | BF118: Uganda | BG118: 185.8099225 | BH118: 143.4874025 | BI118: 204.5865113 | BJ118: 157.9871877 | BK118: 167.912458 | BL118: 202.2894219 | BM118: 2 | BN118: 1270 | BO118: 392.4627853
A119: Uganda | B119: 7.146772179 | C119: 3.36729583 | D119: 1270 | E119: 29 | F119: 147 | G119: 484.2522 | H119: 499.3636 | I119: 268.4868322 | J119: 0.5638888478 | K119: 0.109619908 | L119: 0.6735000014 | M119: 1 | N119: 0.131592527 | O119: -0.1660193354 | P119: 0.1017229781 | Q119: -0.1713718921 | R119: 0.1836825758 | S119: -0.4977916479 | T119: 0.1325508952 | U119: -0.3189275861 | V119: 0.03271289542 | W119: -0.03188971803 | X119: 0.1480830461 | Y119: -0.3473049998 | Z119: 0.1250884086 | AA119: -0.2620279491 | AB119: 0.1171095446 | AC119: -0.3000827134 | AD119: 0.09157872945 | AE119: -0.2128566504 | AF119: 0.188838467 | AG119: -0.3131277859 | AH119: 0.1528977156 | AI119: -0.3215329647 | AJ119: 0.3869881928 | AK119: -0.3406867683 | AL119: 0.2535521686 | AM119: -0.4796079397 | AN119: 0.06263840944 | AO119: -0.01501521375 | AP119: 0.190375641 | AQ119: -0.174455747 | AR119: 0.1617176831 | AS119: -0.08411505818 | AT119: 0.1664521992 | AU119: -0.1605782062 | AV119: 0.1287435144 | AW119: -0.1014959216 | AX119: 0.6116949916 | AY119: -0.4915215075 | AZ119: 0.09072476625 | BA119: -0.191124782 | BB119: 0.1225426421 | BC119: -0.0975458473 | BD119: 392.4627853 | BF119: Ukraine | BG119: 1391.575675 | BH119: 1020.068191 | BI119: 1509.476316 | BJ119: 1106.493022 | BK119: 1450.614942 | BL119: 1451.348594 | BM119: 2 | BN119: 4110 | BO119: 685.3801677
A120: Ukraine | B120: 8.321178307 | C120: 4.672828834 | D120: 4110 | E120: 107 | F120: 18.4 | G120: 377.823 | H120: 135.345 | I120: 1210.685742 | J120: 0.2382336855 | K120: 0.1162061915 | L120: 0.3544000089 | M120: 1 | N120: 0.1267222017 | O120: -0.1933948398 | P120: 0.09841671586 | Q120: -0.1951636523 | R120: 0.1800487489 | S120: -0.5128802657 | T120: 0.128514722 | U120: -0.3453212976 | V120: 0.03175242245 | W120: -0.02803286538 | X120: 0.1394756436 | Y120: -0.3507255912 | Z120: 0.1177860498 | AA120: -0.263931334 | AB120: 0.1115827337 | AC120: -0.2959456742 | AD120: 0.08728484064 | AE120: -0.2080263346 | AF120: 0.1855883747 | AG120: -0.3569786847 | AH120: 0.1567431688 | AI120: -0.3503134251 | AJ120: 0.392991066 | AK120: -0.3682764769 | AL120: 0.2586984634 | AM120: -0.5378881097 | AN120: 0.06421690434 | AO120: -0.01109547727 | AP120: 0.1898555905 | AQ120: -0.2002691627 | AR120: 0.1611277163 | AS120: -0.1050726324 | AT120: 0.1669010371 | AU120: -0.1713165939 | AV120: 0.1295882463 | AW120: -0.1119063869 | AX120: 0.3267560005 | AY120: -1.118541598 | AZ120: 0.08694344759 | BA120: -0.1863809973 | BB120: 0.123322174 | BC120: -0.1076664105 | BD120: 685.3801677 | BF120: Uzbekistan | BG120: 1093.362724 | BH120: 747.5697472 | BI120: 1168.187457 | BJ120: 798.7299938 | BK120: 1046.151513 | BL120: 1060.575691 | BM120: 2 | BN120: 1530 | BO120: 435.9917309
A121: United Kingdom | B121: 10.11415358 | C121: 7.299121463 | D121: 24690 | E121: 1479 | F121: 6.6 | G121: 108.373 | H121: 67.549 | I121: 35445.46863 | J121: 0.1469576508 | K121: 0.1206336617 | L121: 0.2675999999 | M121: 0 | N121: 0.1329730004 | O121: -0.1984028667 | P121: 0.1027935073 | Q121: -0.2060433477 | R121: 0.1917933971 | S121: -0.4874375463 | T121: 0.1365152597 | U121: -0.3643829525 | V121: 0.03300916776 | W121: -0.02200462669 | X121: 0.1433283091 | Y121: -0.321860224 | Z121: 0.120938234 | AA121: -0.2375105619 | AB121: 0.115140833 | AC121: -0.2634952664 | AD121: 0.09001222998 | AE121: -0.1826883852 | AF121: 0.1915435642 | AG121: -0.3780436814 | AH121: 0.176736936 | AI121: -0.3489710391 | AJ121: 0.4158013463 | AK121: -0.3761896491 | AL121: 0.2822543085 | AM121: -0.6659010649 | AN121: 0.07126629353 | AO121: 0.01148441061 | AP121: 0.208522886 | AQ121: -0.1761211902 | AR121: 0.1766331196 | AS121: -0.07603079826 | AT121: 0.1790859699 | AU121: -0.1363916546 | AV121: 0.1426242292 | AW121: -0.08592000604 | AX121: 0.2498629987 | AY121: -1.386842489 | AZ121: 0.09001874924 | BA121: -0.1608386189 | BB121: 0.1357310265 | BC121: -0.08330496401 | BD121: 23747.60336 | BF121: Vietnam | BG121: 783.8246649 | BH121: 501.6650414 | BI121: 832.5938831 | BJ121: 532.8784147 | BK121: 815.9191108 | BL121: 710.0943479 | BM121: 2 | BN121: 2020 | BO121: 416.7775175
A122: United States | B122: 10.43881065 | C122: 7.60339934 | D122: 34160 | E122: 2005 | F122: 8.4 | G122: 143.763 | H122: 83.253 | I122: 40943.29917 | J122: 0.1447464973 | K122: 0.108175464 | L122: 0.2529000044 | M122: 0 | N122: 0.1272626668 | O122: -0.1939880401 | P122: 0.09879411012 | Q122: -0.1963038743 | R122: 0.1810996234 | S122: -0.5105081797 | T122: 0.1291893274 | U122: -0.347255379 | V122: 0.03185223043 | W122: -0.02743990161 | X122: 0.1397525519 | Y122: -0.34797737 | Z122: 0.1180108264 | AA122: -0.261410743 | AB122: 0.1118448675 | AC122: -0.2928228974 | AD122: 0.08748633415 | AE122: -0.2055813521 | AF122: 0.1854538471 | AG122: -0.3591771126 | AH122: 0.1583246589 | AI122: -0.3503047228 | AJ122: 0.394382149 | AK122: -0.369148612 | AL122: 0.2604796886 | AM122: -0.5503817201 | AN122: 0.06482563168 | AO122: -0.008918234147 | AP122: 0.1909868568 | AQ122: -0.1980655938 | AR122: 0.1620634049 | AS122: -0.1023804992 | AT122: 0.1674797386 | AU122: -0.1680189073 | AV122: 0.1303584278 | AW122: -0.1094627753 | AX122: 0.2372640073 | AY122: -1.438581824 | AZ122: 0.08718319982 | BA122: -0.1839168072 | BB122: 0.1240498498 | BC122: -0.1053771004 | BD122: 34160 | BF122: Yemen, Rep. | BG122: 254.4682435 | BH122: 154.5039564 | BI122: 276.3735453 | BJ122: 167.8040671 | BK122: 194.4857727 | BL122: 218.848246 | BM122: 2 | BN122: 830 | BO122: 143.3409059
A123: Uruguay | B123: 9.089302044 | C123: 6.12905021 | D123: 8860 | E123: 459 | F123: 16.8 | G123: 166.1444 | H123: 86.6442 | I123: 5180.950587 | J123: 0.1618189663 | K123: 0.1109366938 | L123: 0.2727999985 | M123: 1 | N123: 0.1341572255 | O123: -0.1563747078 | P123: 0.103482224 | Q123: -0.1637091488 | R123: 0.1864791363 | S123: -0.4893679023 | T123: 0.1349669397 | U123: -0.3111973107 | V123: 0.03321517259 | W123: -0.03266197816 | X123: 0.1517767012 | Y123: -0.3428500593 | Z123: 0.1282075793 | AA123: -0.2584075034 | AB123: 0.1195739657 | AC123: -0.2980476916 | AD123: 0.09350135177 | AE123: -0.2118636221 | AF123: 0.1898701638 | AG123: -0.2991160452 | AH123: 0.1532661617 | AI123: -0.31066522 | AJ123: 0.3861620724 | AK123: -0.3312824965 | AL123: 0.2536267638 | AM123: -0.4720071256 | AN123: 0.0627444163 | AO123: -0.01398694608 | AP123: 0.1918611825 | AQ123: -0.1621800512 | AR123: 0.1629894376 | AS123: -0.0731087029 | AT123: 0.1668346375 | AU123: -0.1527298689 | AV123: 0.12920174 | AW123: -0.09475472569 | AX123: 0.2548039854 | AY123: -1.367260695 | AZ123: 0.09249535948 | BA123: -0.1900769919 | BB123: 0.1229804382 | BC123: -0.09109169245 | BD123: 5966.2498 | BF123: Zambia | BG123: 162.115779 | BH123: 119.716416 | BI123: 178.4142395 | BJ123: 131.7522171 | BK123: 138.0622328 | BL123: 166.9076845 | BM123: 2 | BN123: 780 | BO123: 159.3167839
A124: Uzbekistan | B124: 7.333023014 | C124: 4.189654742 | D124: 1530 | E124: 66 | F124: 63.9 | G124: 249.2174 | H124: 143.4 | I124: 446.0379633 | J124: 0.2024613768 | K124: 0.09369345754 | L124: 0.2962000072 | M124: 1 | N124: 0.1276279539 | O124: -0.1866923571 | P124: 0.09902843833 | Q124: -0.1891019195 | R124: 0.1804373562 | S124: -0.5102087259 | T124: 0.129154101 | U124: -0.3383430839 | V124: 0.03193021193 | W124: -0.0291701667 | X124: 0.1413456202 | Y124: -0.3509575129 | Z124: 0.1193777546 | AA124: -0.2644360065 | AB124: 0.1127485186 | AC124: -0.2981078327 | AD124: 0.08818857372 | AE124: -0.2100957185 | AF124: 0.1863379329 | AG124: -0.3457694948 | AH124: 0.1551867276 | AI124: -0.3435065448 | AJ124: 0.3909745812 | AK124: -0.3614176214 | AL124: 0.2567441165 | AM124: -0.5193637609 | AN124: 0.06360308826 | AO124: -0.01284794882 | AP124: 0.1894609034 | AQ124: -0.1949960291 | AR124: 0.1608439684 | AS124: -0.1011336222 | AT124: 0.1665346324 | AU124: -0.17002514 | AV124: 0.1290595978 | AW124: -0.1103689149 | AX124: 0.2771860063 | AY124: -1.283066511 | AZ124: 0.08771258593 | BA124: -0.1884371787 | BB124: 0.1228263527 | BC124: -0.1061390713 | BD124: 435.9917309 | BF124: Zimbabwe | BG124: 544.853711 | BH124: 578.8957754 | BI124: 598.4740235 | BJ124: 635.8662462 | BK124: 713.7977451 | BL124: 812.2025413 | BM124: 2 | BN124: 2590 | BO124: 693.6036939
A125: Venezuela, RB | B125: 8.637639344 | C125: 5.303304908 | D125: 5640 | E125: 201 | F125: 21.3 | G125: 196.946 | H125: 108.4996 | I125: 5255.691743 | J125: 0.1339880824 | K125: 0.09458519518 | L125: 0.2285999954 | M125: 1 | N125: 0.1255860478 | O125: -0.1925109029 | P125: 0.09762526304 | Q125: -0.1931156814 | R125: 0.1778995395 | S125: -0.5179226398 | T125: 0.1271423399 | U125: -0.3416784704 | V125: 0.03154882789 | W125: -0.02920097858 | X125: 0.1388481855 | Y125: -0.3563972414 | Z125: 0.117273666 | AA125: -0.2691182792 | AB125: 0.1110209823 | AC125: -0.3022932112 | AD125: 0.08685207367 | AE125: -0.2129768878 | AF125: 0.186298117 | AG125: -0.3530055285 | AH125: 0.1538190544 | AI125: -0.3506796062 | AJ125: 0.3907969296 | AK125: -0.3668237329 | AL125: 0.2554799616 | AM125: -0.5129981041 | AN125: 0.06304437667 | AO125: -0.01550853159 | AP125: 0.1880173683 | AQ125: -0.2050960511 | AR125: 0.1596082747 | AS125: -0.1108416542 | AT125: 0.1661432981 | AU125: -0.1782025099 | AV125: 0.1283762306 | AW125: -0.1170386076 | AX125: 0.2159000039 | AY125: -1.532939911 | AZ125: 0.08643659204 | BA125: -0.1913719326 | BB125: 0.1221831739 | BC125: -0.1124790087 | BD125: 2361.713662 | BF125: Lesotho | BG125: 395.6592857 | BH125: 553.8848092 | BI125: 431.6977471 | BJ125: 604.3351765 | BK125: 673.8452114 | BL125: 784.981546 | BM125: 3 | BN125: 2170 | BO125: 698.2939977
A126: Vietnam | B126: 7.61085279 | C126: 3.583518938 | D126: 2020 | E126: 36 | F126: 35.1 | G126: 200.4684 | H126: 78.267 | I126: 531.8583967 | J126: 0.1367442757 | K126: 0.1024674326 | L126: 0.239199996 | M126: 1 | N126: 0.1286143363 | O126: -0.180035919 | P126: 0.09969423711 | Q126: -0.183136493 | R126: 0.1809697002 | S126: -0.5073192716 | T126: 0.1299059242 | U126: -0.3315320313 | V126: 0.03212685511 | W126: -0.03025506437 | X126: 0.1432921886 | Y126: -0.350940764 | Z126: 0.1210324094 | AA126: -0.2647129595 | AB126: 0.11397627 | AC126: -0.2999896109 | AD126: 0.08914150298 | AE126: -0.2119460255 | AF126: 0.1872030497 | AG126: -0.3347465694 | AH126: 0.1538478732 | AI126: -0.3366910815 | AJ126: 0.3892359734 | AK126: -0.354629904 | AL126: 0.2550548613 | AM126: -0.5019497871 | AN126: 0.06305915862 | AO126: -0.01440521982 | AP126: 0.1893112361 | AQ126: -0.1895172298 | AR126: 0.1607607454 | AS126: -0.09694623947 | AT126: 0.1663221419 | AU126: -0.1684334874 | AV126: 0.128690362 | AW126: -0.1086083353 | AX126: 0.2251999974 | AY126: -1.490766406 | AZ126: 0.08853321522 | BA126: -0.190272525 | BB126: 0.1224828809 | BC126: -0.1044026092 | BD126: 416.7775175
A127: Yemen, Rep. | B127: 6.721425701 | C127: 3.044522438 | D127: 830 | E127: 21 | F127: 95.7 | G127: 276.7544 | H127: 229.2776 | I127: 778.0618274 | J127: 0.3472578526 | K127: 0.1027006358 | L127: 0.4499999881 | M127: 1 | N127: 0.1270991415 | O127: -0.185273841 | P127: 0.09865535051 | Q127: -0.1870972961 | R127: 0.1792487055 | S127: -0.5127617121 | T127: 0.1284652799 | U127: -0.3352924585 | V127: 0.03183958679 | W127: -0.02999938652 | X127: 0.1412505955 | Y127: -0.3542673886 | Z127: 0.1193090156 | AA127: -0.2675026357 | AB127: 0.1125955582 | AC127: -0.3020697534 | AD127: 0.08807083964 | AE127: -0.2132375687 | AF127: 0.1869466156 | AG127: -0.3419550359 | AH127: 0.1533418447 | AI127: -0.3427965343 | AJ127: 0.389570266 | AK127: -0.3596491516 | AL127: 0.2547019124 | AM127: -0.5024678707 | AN127: 0.06285345554 | AO127: -0.01563618705 | AP127: 0.1884500235 | AQ127: -0.1970721632 | AR127: 0.1600151658 | AS127: -0.1039350033 | AT127: 0.166138038 | AU127: -0.1738306284 | AV127: 0.128369391 | AW127: -0.1131273806 | AX127: 0.4142949879 | AY127: -0.8811770082 | AZ127: 0.08753361553 | BA127: -0.1916005909 | BB127: 0.1221798584 | BC127: -0.1087141484 | BD127: 143.3409059
A128: Zambia | B128: 6.65929392 | C128: 3.218875825 | D128: 780 | E128: 25 | F128: 168.8 | G128: 624.1842 | H128: 636.8264 | I128: 610.5549987 | J128: 0.6030352712 | K128: 0.1076609939 | L128: 0.7106999755 | M128: 1 | N128: 0.1434679478 | O128: -0.1205769703 | P128: 0.1098756269 | Q128: -0.1345796287 | R128: 0.1965850592 | S128: -0.4610736668 | T128: 0.1437930614 | U128: -0.2810051143 | V128: 0.03509207442 | W128: -0.03608925268 | X128: 0.1656285375 | Y128: -0.3294224739 | Z128: 0.1399023831 | AA128: -0.2477904409 | AB128: 0.1287721545 | AC128: -0.2938341498 | AD128: 0.1007131711 | AE128: -0.2107547522 | AF128: 0.195271939 | AG128: -0.245734483 | AH128: 0.1539731622 | AI128: -0.2710239887 | AJ128: 0.3832819462 | AK128: -0.2960748374 | AL128: 0.2533305585 | AM128: -0.4314289689 | AN128: 0.06271184981 | AO128: -0.01247423142 | AP128: 0.1978152543 | AQ128: -0.1196588725 | AR128: 0.168008998 | AS128: -0.03572105989 | AT128: 0.1686899513 | AU128: -0.1274867058 | AV128: 0.1309491992 | AW128: -0.07267268002 | AX128: 0.6457729936 | AY128: -0.4373072386 | AZ128: 0.09910226613 | BA128: -0.1887880862 | BB128: 0.1246645376 | BC128: -0.06989823282 | BD128: 159.3167839
A129: Zimbabwe | B129: 7.859413155 | C129: 4.521788577 | D129: 2590 | E129: 92 | F129: 102.6 | G129: 666.0118 | H129: 663.417 | I129: 675.5998965 | J129: 0.4202705026 | K129: 0.1138704345 | L129: 0.5340999961 | M129: 1 | N129: 0.1366100162 | O129: -0.1460812986 | P129: 0.1051596403 | Q129: -0.1551901251 | R129: 0.1889645159 | S129: -0.481850028 | T129: 0.1372393966 | U129: -0.3022038639 | V129: 0.03370696306 | W129: -0.03376409411 | X129: 0.155565843 | Y129: -0.3396351933 | Z129: 0.1314100474 | AA129: -0.2559411526 | AB129: 0.1220724061 | AC129: -0.2975305617 | AD129: 0.09545513988 | AE129: -0.212080583 | AF129: 0.1913085282 | AG129: -0.2834807336 | AH129: 0.1530311853 | AI129: -0.2994114161 | AJ129: 0.3849589825 | AK129: -0.3210959435 | AL129: 0.2530530989 | AM129: -0.457767874 | AN129: 0.06258286536 | AO129: -0.01403100509 | AP129: 0.1931623369 | AQ129: -0.1505859196 | AR129: 0.1641036868 | AS129: -0.06307845563 | AT129: 0.1671759486 | AU129: -0.146279633 | AV129: 0.1294920594 | AW129: -0.08901628107 | AX129: 0.486285001 | AY129: -0.7209603786 | AZ129: 0.09427053481 | BA129: -0.1902470142 | BB129: 0.1232636422 | BC129: -0.08557198942 | BD129: 693.6036939

Sheet Fmort_GBD (hidden)
A1: country_name | B1: 1 | C1: death_abs1 | D1: death_rate1 | E1: death_abs2 | F1: death_rate2 | G1: death_abs3 | H1: death_rate3 | I1: death_abs5 | J1: death_rate5 | K1: death_abs6 | L1: death_rate6 | M1: death_abs7 | N1: death_rate7 | O1: death_abs8 | P1: death_rate8 | Q1: death_abs9 | R1: death_rate9 | S1: death_abs10 | T1: death_rate10 | U1: death_abs11 | V1: death_rate11 | W1: death_abs12 | X1: death_rate12 | Y1: death_abs13 | Z1: death_rate13 | AA1: death_abs14 | AB1: death_rate14 | AC1: death_abs15 | AD1: death_rate15 | AE1: death_abs16 | AF1: death_rate16 | AG1: death_abs17 | AH1: death_rate17 | AI1: death_abs18 | AJ1: death_rate18 | AK1: death_abs19 | AL1: death_rate19 | AM1: death_abs20 | AN1: death_rate20 | AO1: death_abs21 | AP1: death_rate21 | AQ1: death_abs22 | AR1: death_rate22 | AS1: sample | AT1: lmicsample
A2: Sample Sum | B2: 2 | C2: =SUMIF($AR$6:$AR$192,1,B6:B192) -> 758 | D2: 18971 | E2: 281082.1 | F2: 8036 | G2: 43565.9 | H2: 28968 | I2: 11029.4 | J2: 26170 | K2: 2664 | L2: 5110 | M2: 376.5 | N2: 4008 | O2: 337.6 | P2: 7088 | Q2: 754.4 | R2: 11629 | S2: 1754.8 | T2: 13562 | U2: 2667.9 | V2: 12683 | W2: 3032 | X2: 12425 | Y2: 3179 | Z2: 12011 | AA2: 3106 | AB2: 12882 | AC2: 3413.1 | AD2: 12318 | AE2: 3511.5 | AF2: 14503 | AG2: 5027.7 | AH2: 19412 | AI2: 7581.3 | AJ2: 27325 | AK2: 13038 | AL2: 31041 | AM2: 17962.8 | AN2: 34450 | AO2: 27456.7 | AP2: 66343 | AQ2: 53133.4 | AR2: 2452.7 | AS2: 4 | AT2: 4
A3: Full Sample | B3: 3 | C3: =C2/$AS$2 -> 189.5 | D3: 4742.75 | E3: 70270.525 | F3: 2009 | G3: 10891.475 | H3: 7242 | I3: 2757.35 | J3: 6542.5 | K3: 666 | L3: 1277.5 | M3: 94.125 | N3: 1002 | O3: 84.4 | P3: 1772 | Q3: 188.6 | R3: 2907.25 | S3: 438.7 | T3: 3390.5 | U3: 666.975 | V3: 3170.75 | W3: 758 | X3: 3106.25 | Y3: 794.75 | Z3: 3002.75 | AA3: 776.5 | AB3: 3220.5 | AC3: 853.275 | AD3: 3079.5 | AE3: 877.875 | AF3: 3625.75 | AG3: 1256.925 | AH3: 4853 | AI3: 1895.325 | AJ3: 6831.25 | AK3: 3259.5 | AL3: 7760.25 | AM3: 4490.7 | AN3: 8612.5 | AO3: 6864.175 | AP3: 16585.75 | AQ3: 13283.35 | AR3: 613.175
A4: LMIC Sum | B4: 4 | C4: =SUMIF($AS$6:$AS$192,1,B6:B192) -> 14978 | D4: 925499 | E4: 10038303 | F4: 355777 | G4: 1292068.8 | H4: 1080619 | I4: 300009 | J4: 1141464 | K4: 78970.1 | L4: 237166 | M4: 11464.2 | N4: 176350 | O4: 10365.8 | P4: 283255 | Q4: 18457.9 | R4: 373905 | S4: 31995.5 | T4: 397218 | U4: 43773.7 | V4: 390842 | W4: 51266 | X4: 419211 | Y4: 61525.2 | Z4: 438129 | AA4: 68667.7 | AB4: 495731 | AC4: 85518.1 | AD4: 575896 | AE4: 110467.4 | AF4: 694195 | AG4: 156947 | AH4: 991060 | AI4: 242576.4 | AJ4: 1212496 | AK4: 385662 | AL4: 1511450 | AM4: 592592.1 | AN4: 1594905 | AO4: 930057.9 | AP4: 3526443 | AQ4: 1965818.3 | AR4: 19713641.7
A5: LMIC | B5: 5 | C5: =C4/$AT$2 -> 3744.5 | D5: 231374.75 | E5: 2509575.75 | F5: 88944.25 | G5: 323017.2 | H5: 270154.75 | I5: 75002.25 | J5: 285366 | K5: 19742.525 | L5: 59291.5 | M5: 2866.05 | N5: 44087.5 | O5: 2591.45 | P5: 70813.75 | Q5: 4614.475 | R5: 93476.25 | S5: 7998.875 | T5: 99304.5 | U5: 10943.425 | V5: 97710.5 | W5: 12816.5 | X5: 104802.75 | Y5: 15381.3 | Z5: 109532.25 | AA5: 17166.925 | AB5: 123932.75 | AC5: 21379.525 | AD5: 143974 | AE5: 27616.85 | AF5: 173548.75 | AG5: 39236.75 | AH5: 247765 | AI5: 60644.1 | AJ5: 303124 | AK5: 96415.5 | AL5: 377862.5 | AM5: 148148.025 | AN5: 398726.25 | AO5: 232514.475 | AP5: 881610.75 | AQ5: 491454.575 | AR5: 4928410.425
A6: Afghanistan | B6: 6 | C6: 13222 | D6: 121860.6 | E6: 9189 | F6: 28855.1 | G6: 29421 | H6: 6040.9 | I6: 24027 | J6: 1308.1 | K6: 2500 | L6: 145.4 | M6: 2982 | N6: 212.7 | O6: 3816 | P6: 332.7 | Q6: 4519 | R6: 483.1 | S6: 4877 | T6: 632.8 | U6: 4788 | V6: 757.3 | W6: 6689 | X6: 1300 | Y6: 5541 | Z6: 1323.8 | AA6: 5353 | AB6: 1573.6 | AC6: 6235 | AD6: 2164.7 | AE6: 6421 | AF6: 2886.8 | AG6: 8044 | AH6: 4783.5 | AI6: 8296 | AJ6: 6958.2 | AK6: 8255 | AL6: 10857.4 | AM6: 6245 | AN6: 15288.7 | AO6: 5138 | AP6: 22266.2 | AQ6: 150654 | AR6: 977 | AS6: 0 | AT6: 0
A7: Albania | B7: 7 | C7: 100 | D7: 20566.6 | E7: 48 | F7: 3287.5 | G7: 314 | H7: 1322 | I7: 201 | J7: 173.4 | K7: 51 | L7: 33.6 | M7: 39 | N7: 24.7 | O7: 57 | P7: 37.6 | Q7: 53 | R7: 45.8 | S7: 59 | T7: 53.8 | U7: 84 | V7: 70.8 | W7: 103 | X7: 98.1 | Y7: 163 | Z7: 151.5 | AA7: 199 | AB7: 239.3 | AC7: 243 | AD7: 376.1 | AE7: 351 | AF7: 580.1 | AG7: 502 | AH7: 964.7 | AI7: 724 | AJ7: 1619.2 | AK7: 810 | AL7: 2800.5 | AM7: 1197 | AN7: 4903.9 | AO7: 2849 | AP7: 12035.5 | AQ7: 9656 | AR7: 604 | AS7: 1 | AT7: 1
A8: Algeria | B8: 8 | C8: 3805 | D8: 64683.5 | E8: 1449 | F8: 8267.5 | G8: 4451 | H8: 1596.1 | I8: 2329 | J8: 188.1 | K8: 923 | L8: 52.2 | M8: 667 | N8: 35.9 | O8: 1016 | P8: 55.6 | Q8: 1126 | R8: 71.9 | S8: 1133 | T8: 85.2 | U8: 1245 | V8: 108.5 | W8: 1438 | X8: 149.2 | Y8: 1564 | Z8: 211.3 | AA8: 1952 | AB8: 312.4 | AC8: 2176 | AD8: 475.4 | AE8: 2426 | AF8: 703 | AG8: 3833 | AH8: 1152.4 | AI8: 5083 | AJ8: 1856.2 | AK8: 5931 | AL8: 3146.8 | AM8: 6256 | AN8: 5270 | AO8: 12793 | AP8: 12019.9 | AQ8: 68786 | AR8: 391.5 | AS8: 1 | AT8: 1
A9: Andorra | B9: 9 | C9: 1 | D9: 8149.1 | E9: 0 | F9: 907.6 | G9: 0 | H9: 115.7 | I9: 0 | J9: 16.6 | K9: 0 | L9: 9.2 | M9: 0 | N9: 7 | O9: 0 | P9: 12.1 | Q9: 0 | R9: 12.5 | S9: 0 | T9: 13.3 | U9: 0 | V9: 19.2 | W9: 1 | X9: 28 | Y9: 1 | Z9: 53 | AA9: 2 | AB9: 94.5 | AC9: 3 | AD9: 154.9 | AE9: 5 | AF9: 252.9 | AG9: 8 | AH9: 438.8 | AI9: 12 | AJ9: 762.5 | AK9: 21 | AL9: 1364.5 | AM9: 36 | AN9: 2623.7 | AO9: 175 | AP9: 10442.3 | AQ9: 387 | AR9: 909.3 | AS9: 0 | AT9: 0
A10: Angola | B10: 10 | C10: 6754 | D10: 102018.1 | E10: 4907 | F10: 25192.2 | G10: 15097 | H10: 5050.9 | I10: 22228 | J10: 2012.5 | K10: 2004 | L10: 187 | M10: 1295 | N10: 145.2 | O10: 1822 | P10: 246 | Q10: 2534 | R10: 415.9 | S10: 2719 | T10: 550.2 | U10: 2654 | V10: 643 | W10: 2820 | X10: 815.7 | Y10: 2391 | Z10: 849.1 | AA10: 2250 | AB10: 988 | AC10: 2203 | AD10: 1284.4 | AE10: 2447 | AF10: 1720.9 | AG10: 3101 | AH10: 2754.8 | AI10: 3497 | AJ10: 4163.5 | AK10: 3416 | AL10: 6064.7 | AM10: 2729 | AN10: 8517.2 | AO10: 2722 | AP10: 13837.6 | AQ10: 71328 | AR10: 732.2 | AS10: 0 | AT10: 0
A11: Antigua and Barbuda | B11: 11 | C11: 8 | D11: 50338.6 | E11: 2 | F11: 3529.4 | G11: 4 | H11: 623.4 | I11: 2 | J11: 86.2 | K11: 1 | L11: 29.3 | M11: 1 | N11: 22.7 | O11: 1 | P11: 37.9 | Q11: 1 | R11: 46.9 | S11: 2 | T11: 54.7 | U11: 2 | V11: 72.6 | W11: 3 | X11: 103.8 | Y11: 4 | Z11: 158.6 | AA11: 5 | AB11: 247.6 | AC11: 6 | AD11: 389.4 | AE11: 8 | AF11: 587.7 | AG11: 11 | AH11: 966.1 | AI11: 15 | AJ11: 1583.3 | AK11: 20 | AL11: 2665.3 | AM11: 24 | AN11: 4569.2 | AO11: 72 | AP11: 12483.2 | AQ11: 238 | AR11: 552.6 | AS11: 0 | AT11: 0
A12: Argentina | B12: 12 | C12: 2524 | D12: 38974.3 | E12: 623 | F12: 3218.5 | G12: 1863 | H12: 600.3 | I12: 888 | J12: 65.3 | K12: 386 | L12: 22.6 | M12: 415 | N12: 25 | O12: 739 | P12: 46 | Q12: 852 | R12: 52 | S12: 907 | T12: 65.8 | U12: 1076 | V12: 88.6 | W12: 1425 | X12: 123.2 | Y12: 2093 | Z12: 188.4 | AA12: 3055 | AB12: 292.4 | AC12: 4114 | AD12: 442.6 | AE12: 5169 | AF12: 639 | AG12: 6687 | AH12: 921.7 | AI12: 9424 | AJ12: 1413.7 | AK12: 13402 | AL12: 2296.9 | AM12: 17035 | AN12: 3903.1 | AO12: 49612 | AP12: 10485.8 | AQ12: 146949 | AR12: 711.6 | AS12: 1 | AT12: 1
A13: Armenia | B13: 13 | C13: 203 | D13: 56019.7 | E13: 55 | F13: 5105.2 | G13: 159 | H13: 915.6 | I13: 110 | J13: 130.9 | K13: 55 | L13: 41.7 | M13: 51 | N13: 31.6 | O13: 81 | P13: 54.1 | Q13: 89 | R13: 70.1 | S13: 84 | T13: 82.8 | U13: 109 | V13: 105.9 | W13: 208 | X13: 151.1 | Y13: 288 | Z13: 210.6 | AA13: 325 | AB13: 307.5 | AC13: 314 | AD13: 466.8 | AE13: 312 | AF13: 686.2 | AG13: 984 | AH13: 1118.9 | AI13: 1102 | AJ13: 1778 | AK13: 1859 | AL13: 2961.2 | AM13: 1504 | AN13: 4867.6 | AO13: 3427 | AP13: 12554.1 | AQ13: 12640 | AR13: 764.2 | AS13: 1 | AT13: 1
A14: Australia | B14: 14 | C14: 290 | D14: 12581 | E14: 68 | F14: 989.9 | G14: 193 | H14: 174.4 | I14: 132 | J14: 27.1 | K14: 71 | L14: 10.7 | M14: 79 | N14: 12.1 | O14: 201 | P14: 31 | Q14: 244 | R14: 38.1 | S14: 298 | T14: 41.2 | U14: 376 | V14: 52.1 | W14: 540 | X14: 71.5 | Y14: 763 | Z14: 104.7 | AA14: 1056 | AB14: 156.7 | AC14: 1499 | AD14: 240.5 | AE14: 1840 | AF14: 388.1 | AG14: 2365 | AH14: 596.4 | AI14: 3398 | AJ14: 982.7 | AK14: 5697 | AL14: 1706.4 | AM14: 8489 | AN14: 2956.6 | AO14: 34956 | AP14: 9657.6 | AQ14: 74986 | AR14: 692.6 | AS14: 1 | AT14: 0
A15: Austria | B15: 15 | C15: 79 | D15: 10651.5 | E15: 26 | F15: 1175.2 | G15: 56 | H15: 155.3 | I15: 32 | J15: 19.7 | K15: 25 | L15: 10.6 | M15: 30 | N15: 13.1 | O15: 72 | P15: 30.4 | Q15: 72 | R15: 31.1 | S15: 88 | T15: 31.4 | U15: 146 | V15: 43.2 | W15: 241 | X15: 70.3 | Y15: 372 | Z15: 123.3 | AA15: 508 | AB15: 197.8 | AC15: 790 | AD15: 319.4 | AE15: 1090 | AF15: 437.4 | AG15: 1399 | AH15: 648 | AI15: 1933 | AJ15: 1050.8 | AK15: 3599 | AL15: 1883.9 | AM15: 6792 | AN15: 3518.6 | AO15: 23298 | AP15: 11578.1 | AQ15: 40193 | AR15: 939.9 | AS15: 1 | AT15: 0
A16: Azerbaijan | B16: 16 | C16: 1175 | D16: 93197.5 | E16: 439 | F16: 11741.4 | G16: 1562 | H16: 2610.8 | I16: 542 | J16: 191.6 | K16: 316 | L16: 72.6 | M16: 193 | N16: 42.1 | O16: 247 | P16: 62.2 | Q16: 284 | R16: 83.9 | S16: 324 | T16: 99.4 | U16: 435 | V16: 124.3 | W16: 609 | X16: 162.4 | Y16: 691 | Z16: 225.2 | AA16: 688 | AB16: 327.5 | AC16: 557 | AD16: 498.1 | AE16: 761 | AF16: 729 | AG16: 1738 | AH16: 1202.5 | AI16: 2233 | AJ16: 1900.2 | AK16: 2693 | AL16: 3163.7 | AM16: 1855 | AN16: 5161.4 | AO16: 3425 | AP16: 11758.9 | AQ16: 24758 | AR16: 531.6 | AS16: 1 | AT16: 1
A17: Bahrain | B17: 17 | C17: 26 | D17: 20376.1 | E17: 10 | F17: 2631.1 | G17: 25 | H17: 412.4 | I17: 8 | J17: 29.8 | K17: 6 | L17: 18.6 | M17: 7 | N17: 26 | O17: 14 | P17: 58.9 | Q17: 19 | R17: 72.6 | S17: 23 | T17: 85.5 | U17: 30 | V17: 111.4 | W17: 46 | X17: 180.9 | Y17: 50 | Z17: 248.9 | AA17: 43 | AB17: 361.4 | AC17: 35 | AD17: 546.5 | AE17: 43 | AF17: 801.8 | AG17: 58 | AH17: 1284 | AI17: 59 | AJ17: 2057.4 | AK17: 93 | AL17: 3483.3 | AM17: 61 | AN17: 5771.8 | AO17: 162 | AP17: 13130.4 | AQ17: 688 | AR17: 392.9 | AS17: 0 | AT17: 0
A18: Bangladesh | B18: 18 | C18: 45261 | D18: 138608 | E18: 18632 | F18: 19364.3 | G18: 34319 | H18: 2250.9 | I18: 34270 | J18: 529.1 | K18: 8706 | L18: 110.1 | M18: 5473 | N18: 71.3 | O18: 7928 | P18: 111.3 | Q18: 9674 | R18: 154.9 | S18: 9756 | T18: 185.6 | U18: 10783 | V18: 225 | W18: 12254 | X18: 305.8 | Y18: 10658 | Z18: 375.3 | AA18: 10270 | AB18: 497 | AC18: 13012 | AD18: 718 | AE18: 16556 | AF18: 1003.6 | AG18: 21378 | AH18: 1641.4 | AI18: 23967 | AJ18: 2458.5 | AK18: 27901 | AL18: 4045.7 | AM18: 27129 | AN18: 6224.3 | AO18: 38213 | AP18: 11826.3 | AQ18: 1012 | AR18: 211.9 | AS18: 1 | AT18: 0
A19: Barbados | B19: 19 | C19: 15 | D19: 49906.9 | E19: 3 | F19: 3493.1 | G19: 9 | H19: 595.8 | I19: 3 | J19: 49.5 | K19: 3 | L19: 29.7 | M19: 2 | N19: 23.2 | O19: 5 | P19: 51.1 | Q19: 9 | R19: 99.6 | S19: 15 | T19: 144.2 | U19: 18 | V19: 171.2 | W19: 21 | X19: 184.4 | Y19: 24 | Z19: 221.8 | AA19: 27 | AB19: 299 | AC19: 29 | AD19: 395.6 | AE19: 32 | AF19: 601.6 | AG19: 50 | AH19: 961.7 | AI19: 80 | AJ19: 1652.7 | AK19: 128 | AL19: 2639.5 | AM19: 162 | AN19: 4527.2 | AO19: 554 | AP19: 11600.7 | AQ19: 380461 | AR19: 517.6 | AS19: 1 | AT19: 1
A20: Belarus | B20: 20 | C20: 295 | D20: 35036.2 | E20: 78 | F20: 3107 | G20: 192 | H20: 473.8 | I20: 127 | J20: 67.6 | K20: 84 | L20: 29 | M20: 94 | N20: 24 | O20: 200 | P20: 50.1 | Q20: 247 | R20: 69.4 | S20: 323 | T20: 93.1 | U20: 424 | V20: 122.4 | W20: 677 | X20: 166.4 | Y20: 1073 | Z20: 251.1 | AA20: 1455 | AB20: 400 | AC20: 1940 | AD20: 647.9 | AE20: 2281 | AF20: 1005.6 | AG20: 4792 | AH20: 1444.5 | AI20: 6456 | AJ20: 2270.3 | AK20: 10585 | AL20: 3751.3 | AM20: 11946 | AN20: 6529.9 | AO20: 23776 | AP20: 15882.9 | AQ20: 1332 | AR20: 967.9 | AS20: 0 | AT20: 0
A21: Belgium | B21: 21 | C21: 125 | D21: 11923.3 | E21: 39 | F21: 1239.6 | G21: 81 | H21: 160.8 | I21: 49 | J21: 22.4 | K21: 38 | L21: 12.7 | M21: 46 | N21: 15.3 | O21: 90 | P21: 30.1 | Q21: 121 | R21: 38.8 | S21: 133 | T21: 39.1 | U21: 196 | V21: 52.8 | W21: 338 | X21: 84.4 | Y21: 539 | Z21: 139.4 | AA21: 786 | AB21: 220.8 | AC21: 1120 | AD21: 330.4 | AE21: 1247 | AF21: 474.1 | AG21: 1834 | AH21: 680.3 | AI21: 2943 | AJ21: 1068 | AK21: 4825 | AL21: 1861.8 | AM21: 7873 | AN21: 3438.8 | AO21: 29648 | AP21: 11641.2 | AQ21: 66861 | AR21: 1302.5 | AS21: 1 | AT21: 1
A22: Belize | B22: 22 | C22: 27 | D22: 39249.9 | E22: 8 | F22: 3635.4 | G22: 27 | H22: 818.7 | I22: 24 | J22: 164 | K22: 7 | L22: 35.7 | M22: 7 | N22: 47.6 | O22: 14 | P22: 103.3 | Q22: 21 | R22: 190.8 | S22: 28 | T22: 270.2 | U22: 28 | V22: 318.7 | W22: 29 | X22: 370.9 | Y22: 24 | Z22: 430 | AA22: 22 | AB22: 554.9 | AC22: 20 | AD22: 720 | AE22: 22 | AF22: 1045.3 | AG22: 32 | AH22: 1586.9 | AI22: 45 | AJ22: 2597.4 | AK22: 57 | AL22: 4012 | AM22: 57 | AN22: 6432.5 | AO22: 156 | AP22: 14490.4 | AQ22: 55551 | AR22: 1009.3 | AS22: 1 | AT22: 0
A23: Benin | B23: 23 | C23: 3427 | D23: 130907.6 | E23: 1072 | F23: 13902.1 | G23: 5603 | H23: 4703.7 | I23: 7632 | J23: 1683.4 | K23: 867 | L23: 176.2 | M23: 400 | N23: 97 | O23: 555 | P23: 160.2 | Q23: 884 | R23: 302.2 | S23: 1030 | T23: 420 | U23: 977 | V23: 481.1 | W23: 869 | X23: 519.2 | Y23: 745 | Z23: 551.5 | AA23: 711 | AB23: 650.7 | AC23: 741 | AD23: 787.8 | AE23: 927 | AF23: 1098.3 | AG23: 1128 | AH23: 1738.4 | AI23: 1336 | AJ23: 2748.3 | AK23: 1394 | AL23: 4124.8 | AM23: 1333 | AN23: 6230.6 | AO23: 1973 | AP23: 11916.6 | AQ23: 736 | AR23: 466.3 | AS23: 1 | AT23: 1
A24: Bhutan | B24: 24 | C24: 180 | D24: 125011.4 | E24: 74 | F24: 17308.4 | G24: 195 | H24: 2901.4 | I24: 159 | J24: 541 | K24: 44 | L24: 114.2 | M24: 30 | N24: 80.4 | O24: 40 | P24: 124.8 | Q24: 46 | R24: 173.2 | S24: 43 | T24: 207.6 | U24: 45 | V24: 250.9 | W24: 48 | X24: 344.6 | Y24: 55 | Z24: 414.9 | AA24: 57 | AB24: 542.4 | AC24: 61 | AD24: 776.1 | AE24: 77 | AF24: 1074.1 | AG24: 109 | AH24: 1741.6 | AI24: 138 | AJ24: 2580.2 | AK24: 153 | AL24: 4184.6 | AM24: 133 | AN24: 6348.7 | AO24: 158 | AP24: 11796.3 | AQ24: 32525 | AR24: 722.3 | AS24: 1 | AT24: 1
A25: Bolivia | B25: 25 | C25: 1898 | D25: 78044.6 | E25: 815 | F25: 11294 | G25: 3148 | H25: 2773.9 | I25: 2276 | J25: 486 | K25: 452 | L25: 81.9 | M25: 311 | N25: 64.3 | O25: 444 | P25: 105 | Q25: 523 | R25: 140.8 | S25: 564 | T25: 169.5 | U25: 576 | V25: 208.5 | W25: 713 | X25: 304.4 | Y25: 757 | Z25: 375 | AA25: 855 | AB25: 501.5 | AC25: 1026 | AD25: 727 | AE25: 1168 | AF25: 1020.4 | AG25: 1649 | AH25: 1691.6 | AI25: 1978 | AJ25: 2552.2 | AK25: 2499 | AL25: 4303.2 | AM25: 2223 | AN25: 6721.5 | AO25: 2955 | AP25: 12661 | AQ25: 1776 | AR25: 519.8 | AS25: 1 | AT25: 1
A26: Bosnia and Herzegovina | B26: 26 | C26: 63 | D26: 17161.8 | E26: 26 | F26: 2391.8 | G26: 69 | H26: 385.7 | I26: 23 | J26: 28.4 | K26: 16 | L26: 14.8 | M26: 18 | N26: 12.3 | O26: 28 | P26: 19.7 | Q26: 50 | R26: 35.9 | S26: 50 | T26: 35 | U26: 74 | V26: 49.4 | W26: 116 | X26: 74.7 | Y26: 202 | Z26: 134.9 | AA26: 339 | AB26: 245.6 | AC26: 426 | AD26: 391.3 | AE26: 589 | AF26: 672.2 | AG26: 1414 | AH26: 1314.8 | AI26: 2059 | AJ26: 2217.7 | AK26: 2663 | AL26: 3760.2 | AM26: 2736 | AN26: 6297.2 | AO26: 3631 | AP26: 12631.7 | AQ26: 27203 | AR26: 545.8 | AS26: 1 | AT26: 1
A27: Botswana | B27: 27 | C27: 396 | D27: 89759.9 | E27: 116 | F27: 8898.6 | G27: 519 | H27: 2505.4 | I27: 360 | J27: 406.4 | K27: 116 | L27: 104.7 | M27: 83 | N27: 75.4 | O27: 384 | P27: 364.8 | Q27: 1202 | R27: 1337.1 | S27: 1582 | T27: 2239.5 | U27: 1419 | V27: 2476.3 | W27: 1019 | X27: 2074.5 | Y27: 750 | Z27: 1709.5 | AA27: 570 | AB27: 1514.9 | AC27: 146 | AD27: 573.7 | AE27: 208 | AF27: 967.9 | AG27: 160 | AH27: 895.7 | AI27: 441 | AJ27: 3275.7 | AK27: 174 | AL27: 1961.9 | AM27: 203 | AN27: 3326.3 | AO27: 298 | AP27: 7916.6 | AQ27: 17866 | AR27: 914.7 | AS27: 0 | AT27: 0
A28: Brazil | B28: 28 | C28: 18734 | D28: 55374.3 | E28: 6648 | F28: 6595.8 | G28: 18527 | H28: 1154.1 | I28: 5155 | J28: 75.6 | K28: 2144 | L28: 26.2 | M28: 2417 | N28: 28.1 | O28: 4332 | P28: 48.5 | Q28: 5067 | R28: 61.5 | S28: 5649 | T28: 76.8 | U28: 7342 | V28: 106.4 | W28: 9864 | X28: 148.6 | Y28: 12873 | Z28: 228.6 | AA28: 15907 | AB28: 338.2 | AC28: 19123 | AD28: 514.3 | AE28: 22414 | AF28: 773 | AG28: 29520 | AH28: 1184.5 | AI28: 35031 | AJ28: 1852.2 | AK28: 42193 | AL28: 2795.3 | AM28: 43747 | AN28: 4435.2 | AO28: 115496 | AP28: 11478.6 | AQ28: 4755 | AR28: 477.6 | AS28: 1 | AT28: 1
A29: Brunei | B29: 29 | C29: 10 | D29: 13811.5 | E29: 3 | F29: 1537.8 | G29: 9 | H29: 258.1 | I29: 9 | J29: 63.7 | K29: 3 | L29: 17.1 | M29: 3 | N29: 17 | O29: 4 | P29: 33.3 | Q29: 6 | R29: 39.5 | S29: 8 | T29: 46.6 | U29: 10 | V29: 64.7 | W29: 15 | X29: 104.2 | Y29: 19 | Z29: 167.5 | AA29: 24 | AB29: 273.6 | AC29: 22 | AD29: 428.9 | AE29: 20 | AF29: 653.7 | AG29: 25 | AH29: 1031.9 | AI29: 36 | AJ29: 1648 | AK29: 33 | AL29: 2760.6 | AM29: 37 | AN29: 4709.8 | AO29: 111 | AP29: 15731.2 | AQ29: 520089 | AR29: 524.5 | AS29: 1 | AT29: 1
A30: Bulgaria | B30: 30 | C30: 143 | D30: 23063.7 | E30: 75 | F30: 4051.4 | G30: 189 | H30: 635.8 | I30: 91 | J30: 67.2 | K30: 55 | L30: 27.6 | M30: 61 | N30: 24.1 | O30: 109 | P30: 41.2 | Q30: 139 | R30: 48.5 | S30: 158 | T30: 56.1 | U30: 227 | V30: 85.5 | W30: 333 | X30: 124.9 | Y30: 551 | Z30: 196.7 | AA30: 894 | AB30: 307 | AC30: 1396 | AD30: 462.4 | AE30: 1819 | AF30: 727.2 | AG30: 2826 | AH30: 1176.9 | AI30: 5113 | AJ30: 2012.6 | AK30: 8123 | AL30: 3662.9 | AM30: 11640 | AN30: 6766.1 | AO30: 18232 | AP30: 15770.7 | AQ30: 576 | AR30: 291.1 | AS30: 1 | AT30: 0
A31: Burkina Faso | B31: 31 | C31: 6438 | D31: 124381.7 | E31: 3627 | F31: 23840.5 | G31: 13239 | H31: 5681.7 | I31: 20334 | J31: 2369.6 | K31: 1968 | L31: 216.2 | M31: 1038 | N31: 131.6 | O31: 1550 | P31: 226.3 | Q31: 2644 | R31: 457.3 | S31: 3030 | T31: 654.4 | U31: 2811 | V31: 742.1 | W31: 2399 | X31: 794.1 | Y31: 1933 | Z31: 797.6 | AA31: 1725 | AB31: 896.5 | AC31: 1752 | AD31: 1016.5 | AE31: 1935 | AF31: 1401.4 | AG31: 2348 | AH31: 2194.2 | AI31: 2740 | AJ31: 3503.1 | AK31: 2615 | AL31: 5071 | AM31: 2005 | AN31: 7472.4 | AO31: 1486 | AP31: 12061.8 | AQ31: 54303 | AR31: 1392.3 | AS31: 1 | AT31: 1
A32: Burundi | B32: 32 | C32: 2217 | D32: 96909.1 | E32: 1415 | F32: 20963.9 | G32: 5142 | H32: 4877.2 | I32: 10187 | J32: 2394.4 | K32: 1029 | L32: 207.3 | M32: 1357 | N32: 302.5 | O32: 1540 | P32: 418.7 | Q32: 2423 | R32: 874.3 | S32: 2686 | T32: 1282.1 | U32: 2608 | V32: 1457.7 | W32: 2874 | X32: 1750.3 | Y32: 2443 | Z32: 1632.4 | AA32: 2150 | AB32: 1677.9 | AC32: 1614 | AD32: 1784.8 | AE32: 1726 | AF32: 2360.9 | AG32: 2221 | AH32: 3793.8 | AI32: 2704 | AJ32: 5916.8 | AK32: 2620 | AL32: 7873.2 | AM32: 2270 | AN32: 10647.6 | AO32: 2600 | AP32: 16613.4 | AQ32: 92062 | AR32: 1112.4 | AS32: 1 | AT32: 1
A33: Cambodia | B33: 33 | C33: 3382 | D33: 108586 | E33: 1936 | F33: 21041.4 | G33: 6119 | H33: 4212.5 | I33: 4810 | J33: 745.2 | K33: 1105 | L33: 123.4 | M33: 727 | N33: 84.9 | O33: 1156 | P33: 139.1 | Q33: 828 | R33: 239.7 | S33: 1440 | T33: 323.4 | U33: 1687 | V33: 382.4 | W33: 1823 | X33: 455.8 | Y33: 1761 | Z33: 527.3 | AA33: 1869 | AB33: 681.9 | AC33: 2134 | AD33: 932.1 | AE33: 2452 | AF33: 1331.1 | AG33: 2797 | AH33: 2103.3 | AI33: 3539 | AJ33: 3271.3 | AK33: 3821 | AL33: 5154.4 | AM33: 3191 | AN33: 7945.4 | AO33: 3427 | AP33: 14156 | AQ33: 50524 | AR33: 1178.8 | AS33: 1 | AT33: 1
A34: Cameroon | B34: 34 | C34: 6926 | D34: 124719.9 | E34: 2717 | F34: 16611.8 | G34: 11575 | H34: 4581.9 | I34: 16707 | J34: 1715.9 | K34: 2036 | L34: 183.1 | M34: 1220 | N34: 123.1 | O34: 2050 | P34: 235.1 | Q34: 3750 | R34: 516.7 | S34: 4514 | T34: 764.3 | U34: 4140 | V34: 864.9 | W34: 3523 | X34: 895.1 | Y34: 2834 | Z34: 873 | AA34: 2633 | AB34: 951.6 | AC34: 2273 | AD34: 993.2 | AE34: 2652 | AF34: 1382.4 | AG34: 3283 | AH34: 2100.9 | AI34: 4243 | AJ34: 3494.9 | AK34: 4198 | AL34: 4855.4 | AM34: 3862 | AN34: 7192.5 | AO34: 5165 | AP34: 13034.5 | AQ34: 41070 | AR34: 567.5 | AS34: 1 | AT34: 1
A35: Canada | B35: 35 | C35: 409 | D35: 13121.8 | E35: 89 | F35: 955.6 | G35: 249 | H35: 165.4 | I35: 157 | J35: 23 | K35: 116 | L35: 11.7 | M35: 129 | N35: 12.9 | O35: 319 | P35: 31.4 | Q35: 320 | R35: 31.7 | S35: 349 | T35: 34 | U35: 512 | V35: 45.6 | W35: 960 | X35: 72.3 | Y35: 1492 | Z35: 114.6 | AA35: 2035 | AB35: 174.7 | AC35: 2945 | AD35: 287.5 | AE35: 3574 | AF35: 455.3 | AG35: 4607 | AH35: 718.3 | AI35: 6898 | AJ35: 1164.1 | AK35: 10368 | AL35: 1897.4 | AM35: 15108 | AN35: 3215.4 | AO35: 59296 | AP35: 9962.2 | AQ35: 91001 | AR35: 923.1 | AS35: 0 | AT35: 0
A36: Cape Verde | B36: 36 | C36: 73 | D36: 61381.6 | E36: 20 | F36: 5637.5 | G36: 79 | H36: 1393.1 | I36: 49 | J36: 196.1 | K36: 17 | L36: 56.4 | M36: 10 | N36: 34.3 | O36: 15 | P36: 57.6 | Q36: 15 | R36: 73.5 | S36: 13 | T36: 83.8 | U36: 15 | V36: 105.1 | W36: 20 | X36: 144.2 | Y36: 21 | Z36: 196.4 | AA36: 23 | AB36: 277.2 | AC36: 15 | AD36: 411.2 | AE36: 25 | AF36: 588.8 | AG36: 57 | AH36: 961.5 | AI36: 77 | AJ36: 1475.6 | AK36: 97 | AL36: 2411.6 | AM36: 82 | AN36: 3857.7 | AO36: 181 | AP36: 8885.5 | AQ36: 132691 | AR36: 790 | AS36: 1 | AT36: 0
A37: Central African Republic | B37: 37 | C37: 2122 | D37: 157766.9 | E37: 826 | F37: 20939.6 | G37: 3786 | H37: 6244.1 | I37: 4423 | J37: 1909.7 | K37: 522 | L37: 206.6 | M37: 473 | N37: 206.2 | O37: 850 | P37: 423.2 | Q37: 1488 | R37: 878.1 | S37: 1770 | T37: 1275.2 | U37: 1650 | V37: 1454.7 | W37: 1617 | X37: 1676.4 | Y37: 1310 | Z37: 1584.4 | AA37: 1162 | AB37: 1681.4 | AC37: 1052 | AD37: 1836.3 | AE37: 1231 | AF37: 2450.5 | AG37: 1592 | AH37: 3806.9 | AI37: 1992 | AJ37: 6056 | AK37: 1909 | AL37: 8081.7 | AM37: 1589 | AN37: 11022.7 | AO37: 1770 | AP37: 17250.5 | AQ37: 973 | AR37: 387.4 | AS37: 1 | AT37: 1
A38: Chad | B38: 38 | C38: 5719 | D38: 155367.2 | E38: 2819 | F38: 26170.4 | G38: 10186 | H38: 6231.9 | I38: 14162 | J38: 2414.9 | K38: 1407 | L38: 231.2 | M38: 740 | N38: 143.6 | O38: 1017 | P38: 232.8 | Q38: 1653 | R38: 456.2 | S38: 1886 | T38: 644.6 | U38: 1718 | V38: 731.3 | W38: 1567 | X38: 796 | Y38: 1369 | Z38: 805.2 | AA38: 1327 | AB38: 911.7 | AC38: 1165 | AD38: 1057.7 | AE38: 1369 | AF38: 1450.2 | AG38: 1763 | AH38: 2283.2 | AI38: 2181 | AJ38: 3591.8 | AK38: 2274 | AL38: 5245.2 | AM38: 2018 | AN38: 7687.8 | AO38: 1958 | AP38: 12798.4 | AQ38: 35877 | AR38: 1603.1 | AS38: 1 | AT38: 1
A39: Chile | B39: 39 | C39: 370 | D39: 15315.6 | E39: 148 | F39: 2048 | G39: 535 | H39: 458.6 | I39: 174 | J39: 32.8 | K39: 120 | L39: 17.8 | M39: 117 | N39: 17.1 | O39: 181 | P39: 29.4 | Q39: 198 | R39: 34.2 | S39: 240 | T39: 39.2 | U39: 323 | V39: 53 | W39: 482 | X39: 77.2 | Y39: 683 | Z39: 127.2 | AA39: 915 | AB39: 211 | AC39: 1269 | AD39: 349 | AE39: 1642 | AF39: 544 | AG39: 2122 | AH39: 836.8 | AI39: 2872 | AJ39: 1398 | AK39: 4163 | AL39: 2268.9 | AM39: 4602 | AN39: 3961 | AO39: 16097 | AP39: 10702.9 | AQ39: 65054 | AR39: 1144.9 | AS39: 1 | AT39: 1
A40: China | B40: 40 | C40: 86863 | D40: 54195.3 | E40: 20146 | F40: 4211.8 | G40: 66917 | H40: 865.1 | I40: 56860 | J40: 160.3 | K40: 19959 | L40: 40.6 | M40: 17622 | N40: 30.6 | O40: 25694 | P40: 51.8 | Q40: 30615 | R40: 67.1 | S40: 47364 | T40: 79.8 | U40: 62546 | V40: 103.8 | W40: 68731 | X40: 146.2 | Y40: 85780 | Z40: 213.9 | AA40: 132500 | AB40: 324.6 | AC40: 147113 | AD40: 499.4 | AE40: 165129 | AF40: 748.6 | AG40: 235577 | AH40: 1197.8 | AI40: 329593 | AJ40: 1917.8 | AK40: 413821 | AL40: 3222 | AM40: 465888 | AN40: 5363.1 | AO40: 1010644 | AP40: 12173.5 | AQ40: 44180 | AR40: 531.5 | AS40: 0 | AT40: 0
A41: Colombia | B41: 41 | C41: 2913 | D41: 34314 | E41: 1006 | F41: 3968.1 | G41: 4075 | H41: 1006.7 | I41: 2928 | J41: 168.2 | K41: 669 | L41: 31 | M41: 728 | N41: 35.3 | O41: 1498 | P41: 76.2 | Q41: 1466 | R41: 79.5 | S41: 1414 | T41: 85.7 | U41: 1622 | V41: 98.4 | W41: 1953 | X41: 132.4 | Y41: 2295 | Z41: 185.5 | AA41: 2717 | AB41: 262.6 | AC41: 3261 | AD41: 409.5 | AE41: 3947 | AF41: 676.4 | AG41: 5467 | AH41: 1186.5 | AI41: 6991 | AJ41: 1888.3 | AK41: 8139 | AL41: 2852.9 | AM41: 8620 | AN41: 4218.4 | AO41: 21104 | AP41: 10553.2 | AQ41: 3330873 | AR41: 516 | AS41: 1 | AT41: 1
A42: Comoros | B42: 42 | C42: 252 | D42: 121934.3 | E42: 121 | F42: 19956.4 | G42: 255 | H42: 2712.1 | I42: 167 | J42: 465.5 | K42: 38 | L42: 104.2 | M42: 36 | N42: 108.3 | O42: 68 | P42: 198 | Q42: 77 | R42: 279.9 | S42: 76 | T42: 343.5 | U42: 75 | V42: 420.2 | W42: 100 | X42: 663.8 | Y42: 92 | Z42: 730.1 | AA42: 88 | AB42: 897.7 | AC42: 83 | AD42: 1263.3 | AE42: 97 | AF42: 1698.4 | AG42: 129 | AH42: 2706.5 | AI42: 149 | AJ42: 3997.8 | AK42: 163 | AL42: 6152 | AM42: 146 | AN42: 8862.6 | AO42: 175 | AP42: 14856.7 | AQ42: 98611 | AR42: 419.3 | AS42: 1 | AT42: 1
A43: Congo, Dem. Rep. | B43: 43 | C43: 28085 | D43: 122033.9 | E43: 11715 | F43: 17279.7 | G43: 63557 | H43: 6114.6 | I43: 66738 | J43: 1706.9 | K43: 7183 | L43: 186.1 | M43: 4410 | N43: 138.8 | O43: 6481 | P43: 251 | Q43: 9868 | R43: 468.8 | S43: 11178 | T43: 647.5 | U43: 10559 | V43: 747.9 | W43: 9880 | X43: 857.9 | Y43: 8352 | Z43: 883.8 | AA43: 7965 | AB43: 1011.1 | AC43: 8343 | AD43: 1235 | AE43: 9406 | AF43: 1676.9 | AG43: 11557 | AH43: 2617 | AI43: 13409 | AJ43: 4099.8 | AK43: 12928 | AL43: 5853.5 | AM43: 10661 | AN43: 8320.3 | AO43: 11836 | AP43: 13982 | AQ43: 2394 | AR43: 622.4 | AS43: 1 | AT43: 0
A44: Congo, Rep. | B44: 44 | C44: 1290 | D44: 117662.5 | E44: 497 | F44: 15376.2 | G44: 2186 | H44: 4377.1 | I44: 2259 | J44: 1172.3 | K44: 322 | L44: 153.2 | M44: 258 | N44: 138.9 | O44: 511 | P44: 303.8 | Q44: 956 | R44: 639.8 | S44: 1178 | T44: 933.5 | U44: 1081 | V44: 1070 | W44: 951 | X44: 1189 | Y44: 754 | Z44: 1157.9 | AA44: 684 | AB44: 1256.4 | AC44: 629 | AD44: 1371.9 | AE44: 721 | AF44: 1869.7 | AG44: 889 | AH44: 2817.5 | AI44: 1139 | AJ44: 4613.4 | AK44: 1112 | AL44: 6219.5 | AM44: 1001 | AN44: 8777.4 | AO44: 1342 | AP44: 14970.7 | AQ44: 2665 | AR44: 726.8 | AS44: 1 | AT44: 1
A45: Costa Rica | B45: 45 | C45: 167 | D45: 22752.7 | E45: 52 | F45: 2369.4 | G45: 152 | H45: 431.4 | I45: 72 | J45: 47.3 | K45: 31 | L45: 15.5 | M45: 42 | N45: 20.1 | O45: 71 | P45: 37 | Q45: 71 | R45: 41.4 | S45: 77 | T45: 51 | U45: 96 | V45: 63 | W45: 132 | X45: 87.4 | Y45: 171 | Z45: 137.9 | AA45: 207 | AB45: 207.5 | AC45: 240 | AD45: 333.4 | AE45: 294 | AF45: 520.1 | AG45: 382 | AH45: 829.3 | AI45: 504 | AJ45: 1355.4 | AK45: 664 | AL45: 2230.7 | AM45: 747 | AN45: 3727.4 | AO45: 2392 | AP45: 9025.6 | AQ45: 18136 | AR45: 896.1 | AS45: 0 | AT45: 0
A46: Cote d'Ivoire | B46: 46 | C46: 7835 | D46: 136114.3 | E46: 3397 | F46: 20071.7 | G46: 11277 | H46: 4308 | I46: 9550 | J46: 936.1 | K46: 1793 | L46: 157.1 | M46: 1060 | N46: 104 | O46: 2254 | P46: 247.1 | Q46: 4970 | R46: 641.5 | S46: 6065 | T46: 997.4 | U46: 5337 | V46: 1119.5 | W46: 4218 | X46: 1061.7 | Y46: 3334 | Z46: 983.7 | AA46: 2885 | AB46: 1011.4 | AC46: 1931 | AD46: 867.2 | AE46: 2292 | AF46: 1242.7 | AG46: 2564 | AH46: 1774.2 | AI46: 3451 | AJ46: 3296.5 | AK46: 2816 | AL46: 4114.5 | AM46: 2426 | AN46: 6213.6 | AO46: 3049 | AP46: 11634.9 | AQ46: 44063 | AR46: 785.7 | AS46: 0 | AT46: 0
A47: Croatia | B47: 47 | C47: 73 | D47: 17620.6 | E47: 24 | F47: 1958 | G47: 45 | H47: 224.3 | I47: 23 | J47: 25.5 | K47: 17 | L47: 13.9 | M47: 18 | N47: 13.1 | O47: 41 | P47: 27.3 | Q47: 43 | R47: 28.4 | S47: 50 | T47: 33.6 | U47: 75 | V47: 49.7 | W47: 127 | X47: 77.6 | Y47: 236 | Z47: 137.7 | AA47: 380 | AB47: 226.2 | AC47: 536 | AD47: 350.9 | AE47: 754 | AF47: 625.4 | AG47: 1397 | AH47: 934.1 | AI47: 2450 | AJ47: 1651.8 | AK47: 3659 | AL47: 2919.9 | AM47: 5274 | AN47: 5709.1 | AO47: 9017 | AP47: 13353.4 | AQ47: 359434 | AR47: 1076.2 | AS47: 1 | AT47: 1
A48: Cuba | B48: 48 | C48: 182 | D48: 13501.6 | E48: 75 | F48: 1849.1 | G48: 171 | H48: 262.3 | I48: 105 | J48: 35.8 | K48: 87 | L48: 22.3 | M48: 103 | N48: 24 | O48: 170 | P48: 46 | Q48: 239 | R48: 65.7 | S48: 427 | T48: 83 | U48: 509 | V48: 93.8 | W48: 659 | X48: 124.1 | Y48: 667 | Z48: 187.9 | AA48: 1117 | AB48: 325 | AC48: 1295 | AD48: 470.2 | AE48: 1672 | AF48: 665.5 | AG48: 2339 | AH48: 1042.5 | AI48: 2947 | AJ48: 1636 | AK48: 3714 | AL48: 2537.2 | AM48: 4819 | AN48: 4317.1 | AO48: 18129 | AP48: 12612.3 | AQ48: 8451 | AR48: 368.2 | AS48: 1 | AT48: 1
A49: Cyprus | B49: 49 | C49: 11 | D49: 13091.7 | E49: 3 | F49: 1359.8 | G49: 7 | H49: 176 | I49: 2 | J49: 11.4 | K49: 3 | L49: 11.8 | M49: 3 | N49: 11.1 | O49: 6 | P49: 20.8 | Q49: 6 | R49: 23.2 | S49: 7 | T49: 26.3 | U49: 9 | V49: 36.6 | W49: 15 | X49: 55.3 | Y49: 24 | Z49: 93.2 | AA49: 35 | AB49: 155 | AC49: 52 | AD49: 245.5 | AE49: 72 | AF49: 390.4 | AG49: 97 | AH49: 645.7 | AI49: 148 | AJ49: 1103.5 | AK49: 231 | AL49: 1958.2 | AM49: 315 | AN49: 3629.2 | AO49: 1210 | AP49: 11728.4 | AQ49: 91062 | AR49: 941.2 | AS49: 1 | AT49: 1
A50: Czech Republic | B50: 50 | C50: 83 | D50: 10281.2 | E50: 31 | F50: 1286.4 | G50: 52 | H50: 134 | I50: 35 | J50: 19.1 | K50: 40 | L50: 14.1 | M50: 45 | N50: 14.2 | O50: 94 | P50: 27.8 | Q50: 134 | R50: 31.6 | S50: 129 | T50: 31.6 | U50: 147 | V50: 43.8 | W50: 259 | X50: 77.8 | Y50: 471 | Z50: 136.6 | AA50: 944 | AB50: 236.6 | AC50: 1541 | AD50: 380 | AE50: 1954 | AF50: 601.7 | AG50: 2381 | AH50: 957.5 | AI50: 4104 | AJ50: 1644.1 | AK50: 7087 | AL50: 2923.2 | AM50: 10966 | AN50: 5303.8 | AO50: 23056 | AP50: 13801.5 | AQ50: 26729 | AR50: 1170.9 | AS50: 1 | AT50: 0
A51: Denmark | B51: 51 | C51: 69 | D51: 11277.1 | E51: 20 | F51: 1063.4 | G51: 40 | H51: 135.4 | I51: 29 | J51: 22.5 | K51: 13 | L51: 8 | M51: 17 | N51: 11.5 | O51: 34 | P51: 24.7 | Q51: 43 | R51: 26.1 | S51: 63 | T51: 33.4 | U51: 96 | V51: 48.1 | W51: 172 | X51: 86.2 | Y51: 272 | Z51: 147.8 | AA51: 458 | AB51: 252.6 | AC51: 766 | AD51: 391 | AE51: 1092 | AF51: 634.4 | AG51: 1396 | AH51: 1040.3 | AI51: 2032 | AJ51: 1761.8 | AK51: 2887 | AL51: 2718.3 | AM51: 4178 | AN51: 4264.1 | AO51: 16529 | AP51: 11694.9 | AQ51: 53084 | AR51: 995.1 | AS51: 1 | AT51: 0
A52: Djibouti | B52: 52 | C52: 214 | D52: 97046.2 | E52: 78 | F52: 11957.1 | G52: 346 | H52: 3391.4 | I52: 322 | J52: 759.9 | K52: 60 | L52: 117.3 | M52: 46 | N52: 99.3 | O52: 78 | P52: 194.4 | Q52: 120 | R52: 356.7 | S52: 143 | T52: 495.4 | U52: 143 | V52: 579.4 | W52: 145 | X52: 713.4 | Y52: 122 | Z52: 737.6 | AA52: 116 | AB52: 857.4 | AC52: 123 | AD52: 1059.2 | AE52: 133 | AF52: 1450.6 | AG52: 156 | AH52: 2265.6 | AI52: 176 | AJ52: 3554.4 | AK52: 169 | AL52: 5180.3 | AM52: 140 | AN52: 7580.5 | AO52: 145 | AP52: 12901.7 | AQ52: 28590 | AR52: 1029.7 | AS52: 1 | AT52: 0
A53: Dominica | B53: 53 | C53: 7 | D53: 68140.8 | E53: 2 | F53: 5076.7 | G53: 5 | H53: 961.6 | I53: 3 | J53: 116.1 | K53: 1 | L53: 41.3 | M53: 1 | N53: 26.2 | O53: 2 | P53: 53.7 | Q53: 3 | R53: 113.5 | S53: 5 | T53: 167.8 | U53: 5 | V53: 196.1 | W53: 5 | X53: 196.4 | Y53: 5 | Z53: 226.7 | AA53: 5 | AB53: 296.5 | AC53: 6 | AD53: 374.1 | AE53: 7 | AF53: 572 | AG53: 10 | AH53: 918.2 | AI53: 14 | AJ53: 1604 | AK53: 18 | AL53: 2525.2 | AM53: 21 | AN53: 4347.4 | AO53: 66 | AP53: 12226.2 | AQ53: 3281 | AR53: 735 | AS53: 1 | AT53: 1
A54: Dominican Republic | B54: 54 | C54: 1306 | D54: 65648.8 | E54: 386 | F54: 6516.1 | G54: 1027 | H54: 1091.3 | I54: 580 | J54: 144.4 | K54: 225 | L54: 44.9 | M54: 126 | N54: 26.4 | O54: 230 | P54: 52 | Q54: 439 | R54: 112.2 | S54: 592 | T54: 166.6 | U54: 624 | V54: 194.1 | W54: 540 | X54: 189.9 | Y54: 516 | Z54: 217.5 | AA54: 531 | AB54: 283.1 | AC54: 493 | AD54: 353.1 | AE54: 604 | AF54: 542.3 | AG54: 890 | AH54: 874.5 | AI54: 1293 | AJ54: 1537.4 | AK54: 1486 | AL54: 2412.5 | AM54: 1693 | AN54: 4179.5 | AO54: 4603 | AP54: 11234.5 | AQ54: 197 | AR54: 560 | AS54: 0 | AT54: 0
A55: Ecuador | B55: 55 | C55: 892 | D55: 31410 | E55: 599 | F55: 7067.7 | G55: 2357 | H55: 1751.4 | I55: 1475 | J55: 258.2 | K55: 346 | L55: 50.3 | M55: 334 | N55: 49.5 | O55: 504 | P55: 78.1 | Q55: 522 | R55: 89.3 | S55: 492 | T55: 96.4 | U55: 513 | V55: 113.9 | W55: 606 | X55: 156.1 | Y55: 669 | Z55: 202.1 | AA55: 812 | AB55: 285.8 | AC55: 941 | AD55: 443.7 | AE55: 1088 | AF55: 620.2 | AG55: 1366 | AH55: 930.7 | AI55: 1645 | AJ55: 1397.6 | AK55: 1929 | AL55: 2160.3 | AM55: 2101 | AN55: 3414.4 | AO55: 6798 | AP55: 9864 | AQ55: 25473 | AR55: 515.1 | AS55: 1 | AT55: 1
A56: Egypt, Arab Rep. | B56: 56 | C56: 8541 | D56: 52546.7 | E56: 4581 | F56: 9458.3 | G56: 13422 | H56: 1754.6 | I56: 7518 | J56: 234.9 | K56: 1957 | L56: 50.5 | M56: 1758 | N56: 43.2 | O56: 2608 | P56: 69.1 | Q56: 2667 | R56: 86.3 | S56: 2456 | T56: 102.5 | U56: 2859 | V56: 132.1 | W56: 4082 | X56: 199.6 | Y56: 4989 | Z56: 266.7 | AA56: 6269 | AB56: 405 | AC56: 8697 | AD56: 637.8 | AE56: 9161 | AF56: 949.9 | AG56: 12574 | AH56: 1532.5 | AI56: 15787 | AJ56: 2388.5 | AK56: 19822 | AL56: 4042.6 | AM56: 18573 | AN56: 6282.9 | AO56: 23679 | AP56: 12611.7 | AQ56: 27837 | AR56: 385.5 | AS56: 1 | AT56: 1
A57: El Salvador | B57: 57 | C57: 652 | D57: 48071.3 | E57: 197 | F57: 4851.5 | G57: 821 | H57: 1249.6 | I57: 400 | J57: 132.7 | K57: 110 | L57: 28.6 | M57: 124 | N57: 35.2 | O57: 248 | P57: 80.5 | Q57: 247 | R57: 90.2 | S57: 232 | T57: 97 | U57: 234 | V57: 110.7 | W57: 332 | X57: 179.7 | Y57: 339 | Z57: 226.6 | AA57: 397 | AB57: 315.8 | AC57: 467 | AD57: 447.3 | AE57: 651 | AF57: 676.4 | AG57: 761 | AH57: 923.5 | AI57: 1020 | AJ57: 1549.4 | AK57: 1155 | AL57: 2420.6 | AM57: 1314 | AN57: 3737.2 | AO57: 4605 | AP57: 10920.4 | AQ57: 211395 | AR57: 523.1 | AS57: 1 | AT57: 1
A58: Equatorial Guinea | B58: 58 | C58: 285 | D58: 148225.2 | E58: 140 | F58: 24805.2 | G58: 558 | H58: 6455 | I58: 707 | J58: 2149.5 | K58: 78 | L58: 212.9 | M58: 38 | N58: 121.5 | O58: 40 | P58: 187.8 | Q58: 49 | R58: 322.7 | S58: 75 | T58: 424.6 | U58: 102 | V58: 494.5 | W58: 113 | X58: 570.8 | Y58: 97 | Z58: 623 | AA58: 71 | AB58: 749.4 | AC58: 50 | AD58: 988.3 | AE58: 59 | AF58: 1350.6 | AG58: 89 | AH58: 2164.3 | AI58: 126 | AJ58: 3334.2 | AK58: 146 | AL58: 4924.2 | AM58: 139 | AN58: 7113.3 | AO58: 183 | AP58: 12629.2 | AQ58: 16456 | AR58: 505.8 | AS58: 1 | AT58: 1
A59: Eritrea | B59: 59 | C59: 1206 | D59: 90570.5 | E59: 533 | F59: 13493.1 | G59: 2632 | H59: 4300.5 | I59: 3383 | J59: 1413.6 | K59: 589 | L59: 216.6 | M59: 1243 | N59: 497.9 | O59: 1712 | P59: 774.7 | Q59: 2242 | R59: 1067.6 | S59: 1932 | T59: 1284.7 | U59: 1298 | V59: 1451.2 | W59: 1168 | X59: 1841.3 | Y59: 1272 | Z59: 1924.9 | AA59: 1370 | AB59: 2174.4 | AC59: 1515 | AD59: 2648.2 | AE59: 1503 | AF59: 3250.6 | AG59: 1435 | AH59: 4437.1 | AI59: 1337 | AJ59: 5880.6 | AK59: 1254 | AL59: 7793.2 | AM59: 914 | AN59: 10062.2 | AO59: 1025 | AP59: 15890.7 | AQ59: 3131 | AR59: 914.9 | AS59: 1 | AT59: 0
A60: Estonia | B60: 60 | C60: 26 | D60: 22410.1 | E60: 8 | F60: 2181.4 | G60: 18 | H60: 320.1 | I60: 14 | J60: 54.7 | K60: 12 | L60: 31.5 | M60: 10 | N60: 19.7 | O60: 22 | P60: 42.7 | Q60: 25 | R60: 53.1 | S60: 29 | T60: 62.5 | U60: 49 | V60: 106.6 | W60: 77 | X60: 154.7 | Y60: 129 | Z60: 247.1 | AA60: 208 | AB60: 408.5 | AC60: 283 | AD60: 599.2 | AE60: 349 | AF60: 850.2 | AG60: 563 | AH60: 1176.5 | AI60: 773 | AJ60: 1832.7 | AK60: 1268 | AL60: 3174 | AM60: 1581 | AN60: 5439.4 | AO60: 3859 | AP60: 13675.2 | AQ60: 21192 | AR60: 796.1 | AS60: 1 | AT60: 1
A61: Ethiopia | B61: 61 | C61: 33857 | D61: 133275.9 | E61: 15173 | F61: 20313.7 | G61: 55227 | H61: 4751.1 | I61: 64382 | J61: 1390.4 | K61: 8327 | L61: 165.8 | M61: 6468 | N61: 156.8 | O61: 9421 | P61: 280.9 | Q61: 13608 | R61: 492.6 | S61: 15739 | T61: 670.2 | U61: 15566 | V61: 781.8 | W61: 16777 | X61: 1013.6 | Y61: 13866 | Z61: 1030.9 | AA61: 13368 | AB61: 1185.7 | AC61: 14433 | AD61: 1501.5 | AE61: 15689 | AF61: 2013.3 | AG61: 19499 | AH61: 3201.5 | AI61: 21888 | AJ61: 4857 | AK61: 21661 | AL61: 7114.6 | AM61: 17928 | AN61: 10070.3 | AO61: 19047 | AP61: 16185.2 | AQ61: 7905 | AR61: 1093.8 | AS61: 1 | AT61: 1
A62: Federated States of Micronesia | B62: 62 | C62: 12 | D62: 38709.1 | E62: 3 | F62: 3006.4 | G62: 8 | H62: 538.8 | I62: 7 | J62: 105.9 | K62: 2 | L62: 30.6 | M62: 4 | N62: 53.7 | O62: 8 | P62: 127.3 | Q62: 8 | R62: 163 | S62: 7 | T62: 202.3 | U62: 10 | V62: 274.5 | W62: 17 | X62: 551.2 | Y62: 18 | Z62: 671.6 | AA62: 20 | AB62: 902.5 | AC62: 21 | AD62: 1332.2 | AE62: 20 | AF62: 1869.9 | AG62: 23 | AH62: 2798.4 | AI62: 36 | AJ62: 4197.3 | AK62: 31 | AL62: 6490.1 | AM62: 46 | AN62: 9527 | AO62: 57 | AP62: 16126.3 | AQ62: 337542 | AR62: 807.4 | AS62: 1 | AT62: 1
A63: Fiji | B63: 63 | C63: 106 | D63: 57124.3 | E63: 26 | F63: 4754.4 | G63: 85 | H63: 959.6 | I63: 58 | J63: 149.4 | K63: 20 | L63: 43 | M63: 22 | N63: 51.7 | O63: 46 | P63: 106.6 | Q63: 53 | R63: 141 | S63: 52 | T63: 173.8 | U63: 63 | V63: 232.4 | W63: 108 | X63: 399.1 | Y63: 127 | Z63: 517.7 | AA63: 137 | AB63: 723.6 | AC63: 171 | AD63: 1087.1 | AE63: 199 | AF63: 1553.3 | AG63: 219 | AH63: 2339.4 | AI63: 236 | AJ63: 3569.8 | AK63: 229 | AL63: 5592.7 | AM63: 203 | AN63: 8421.7 | AO63: 284 | AP63: 14653.8 | AQ63: 2969 | AR63: 702.5 | AS63: 1 | AT63: 1
A64: Finland | B64: 64 | C64: 48 | D64: 8926 | E64: 12 | F64: 767.6 | G64: 25 | H64: 96.3 | I64: 20 | J64: 17.1 | K64: 19 | L64: 11.5 | M64: 22 | N64: 14.1 | O64: 45 | P64: 27.7 | Q64: 57 | R64: 35.3 | S64: 53 | T64: 35.2 | U64: 92 | V64: 53.5 | W64: 144 | X64: 77.6 | Y64: 247 | Z64: 130.4 | AA64: 409 | AB64: 205.8 | AC64: 617 | AD64: 292.5 | AE64: 605 | AF64: 403.5 | AG64: 846 | AH64: 629.5 | AI64: 1249 | AJ64: 1018.6 | AK64: 2342 | AL64: 1917.7 | AM64: 3866 | AN64: 3693.1 | AO64: 14208 | AP64: 11210.3 | AQ64: 25085 | AR64: 920.7 | AS64: 1 | AT64: 0
A65: France | B65: 65 | C65: 615 | D65: 8726.6 | E65: 261 | F65: 1235.9 | G65: 581 | H65: 172.5 | I65: 327 | J65: 22.8 | K65: 195 | L65: 11 | M65: 248 | N65: 13.2 | O65: 538 | P65: 28 | Q65: 668 | R65: 36 | S65: 798 | T65: 38.6 | U65: 1158 | V65: 54.3 | W65: 1912 | X65: 87 | Y65: 2929 | Z65: 135.9 | AA65: 4333 | AB65: 204.1 | AC65: 5798 | AD65: 283.3 | AE65: 5528 | AF65: 393.7 | AG65: 7836 | AH65: 561.5 | AI65: 12717 | AJ65: 868.8 | AK65: 20467 | AL65: 1467.9 | AM65: 33816 | AN65: 2677.3 | AO65: 159697 | AP65: 10505.8 | AQ65: 277201 | AR65: 860.4 | AS65: 1 | AT65: 0
A66: Gabon | B66: 66 | C66: 420 | D66: 116349.2 | E66: 78 | F66: 7317.1 | G66: 400 | H66: 2365.4 | I66: 515 | J66: 723.2 | K66: 96 | L66: 110.1 | M66: 70 | N66: 93.7 | O66: 136 | P66: 208.4 | Q66: 244 | R66: 435.5 | S66: 303 | T66: 633.6 | U66: 289 | V66: 730.1 | W66: 265 | X66: 795.7 | Y66: 225 | Z66: 802.6 | AA66: 215 | AB66: 897.6 | AC66: 176 | AD66: 1002.4 | AE66: 193 | AF66: 1391.7 | AG66: 251 | AH66: 2078 | AI66: 391 | AJ66: 3451.5 | AK66: 439 | AL66: 4745.4 | AM66: 449 | AN66: 6918.9 | AO66: 737 | AP66: 12915 | AQ66: 6530 | AR66: 869.1 | AS66: 1 | AT66: 0
A67: Gambia, The | B67: 67 | C67: 645 | D67: 121531.6 | E67: 244 | F67: 15565.9 | G67: 988 | H67: 4066.2 | I67: 1149 | J67: 1217.2 | K67: 143 | L67: 149.8 | M67: 89 | N67: 108.8 | O67: 132 | P67: 175.4 | Q67: 178 | R67: 267.6 | S67: 175 | T67: 340.3 | U67: 176 | V67: 400 | W67: 182 | X67: 545.6 | Y67: 148 | Z67: 596.1 | AA67: 133 | AB67: 726.8 | AC67: 119 | AD67: 985.4 | AE67: 154 | AF67: 1336 | AG67: 172 | AH67: 2158.8 | AI67: 200 | AJ67: 3198.4 | AK67: 231 | AL67: 5004.5 | AM67: 170 | AN67: 7354 | AO67: 108 | AP67: 11513.4 | AQ67: 222712 | AR67: 634.1 | AS67: 1 | AT67: 1
A68: Georgia | B68: 68 | C68: 317 | D68: 61358.9 | E68: 94 | F68: 6117 | G68: 280 | H68: 1122.8 | I68: 184 | J68: 154.6 | K68: 82 | L68: 46.8 | M68: 54 | N68: 27 | O68: 77 | P68: 41.3 | Q68: 94 | R68: 53.3 | S68: 102 | T68: 61.8 | U68: 130 | V68: 79.1 | W68: 207 | X68: 103.6 | Y68: 284 | Z68: 153.2 | AA68: 373 | AB68: 232.5 | AC68: 467 | AD68: 359.7 | AE68: 547 | AF68: 537.1 | AG68: 1398 | AH68: 897.9 | AI68: 1668 | AJ68: 1442.2 | AK68: 2850 | AL68: 2418.4 | AM68: 2774 | AN68: 4065 | AO68: 6885 | AP68: 10886.5 | AQ68: 5998 | AR68: 683.5 | AS68: 1 | AT68: 1
A69: Germany | B69: 69 | C69: 748 | D69: 10583.1 | E69: 236 | F69: 1115.1 | G69: 489 | H69: 143 | I69: 316 | J69: 20.9 | K69: 210 | L69: 10.6 | M69: 261 | N69: 11.1 | O69: 640 | P69: 28.6 | Q69: 701 | R69: 30.7 | S69: 793 | T69: 32.7 | U69: 1485 | V69: 44.2 | W69: 2656 | X69: 75.5 | Y69: 4003 | Z69: 129.7 | AA69: 5773 | AB69: 206 | AC69: 7673 | AD69: 314.4 | AE69: 11059 | AF69: 451.9 | AG69: 20601 | AH69: 690.6 | AI69: 24765 | AJ69: 1161.6 | AK69: 41393 | AL69: 2009.9 | AM69: 70454 | AN69: 3706.9 | AO69: 262262 | AP69: 11905.1 | AQ69: 21241 | AR69: 921.9 | AS69: 1 | AT69: 1
A70: Ghana | B70: 70 | C70: 7294 | D70: 120004.1 | E70: 2194 | F70: 12225 | G70: 7472 | H70: 2661.2 | I70: 11315 | J70: 1007.6 | K70: 1655 | L70: 129.3 | M70: 1101 | N70: 95.7 | O70: 1894 | P70: 185.8 | Q70: 3242 | R70: 365.3 | S70: 3938 | T70: 521.8 | U70: 3783 | V70: 599 | W70: 3460 | X70: 670.4 | Y70: 2827 | Z70: 686 | AA70: 2533 | AB70: 783.6 | AC70: 2624 | AD70: 904 | AE70: 2928 | AF70: 1254.2 | AG70: 3551 | AH70: 1931.2 | AI70: 4291 | AJ70: 3093.3 | AK70: 4362 | AL70: 4524.9 | AM70: 3981 | AN70: 6760.4 | AO70: 5320 | AP70: 12492.4 | AQ70: 439697 | AR70: 1048.1 | AS70: 1 | AT70: 0
A71: Greece | B71: 71 | C71: 118 | D71: 12292.5 | E71: 60 | F71: 2068 | G71: 75 | H71: 161.5 | I71: 41 | J71: 20.6 | K71: 28 | L71: 10.7 | M71: 34 | N71: 11.6 | O71: 89 | P71: 25.3 | Q71: 120 | R71: 29.6 | S71: 133 | T71: 32.2 | U71: 176 | V71: 41 | W71: 243 | X71: 61.7 | Y71: 360 | Z71: 91.6 | AA71: 537 | AB71: 149.6 | AC71: 795 | AD71: 228.1 | AE71: 981 | AF71: 340.5 | AG71: 1816 | AH71: 530.3 | AI71: 3156 | AJ71: 960.3 | AK71: 5617 | AL71: 1884.3 | AM71: 7250 | AN71: 3947.3 | AO71: 34305 | AP71: 15404.5 | AQ71: 81263 | AR71: 677.6 | AS71: 1 | AT71: 1
A72: Grenada | B72: 72 | C72: 9 | D72: 52010.4 | E72: 2 | F72: 3507.1 | G72: 5 | H72: 614.4 | I72: 3 | J72: 81.5 | K72: 2 | L72: 32.1 | M72: 2 | N72: 31.6 | O72: 4 | P72: 70.1 | Q72: 6 | R72: 129.1 | S72: 6 | T72: 183.7 | U72: 6 | V72: 219.9 | W72: 9 | X72: 256.4 | Y72: 8 | Z72: 307.3 | AA72: 8 | AB72: 410.2 | AC72: 8 | AD72: 550.3 | AE72: 12 | AF72: 819 | AG72: 18 | AH72: 1284.1 | AI72: 25 | AJ72: 2156.8 | AK72: 50 | AL72: 3441.9 | AM72: 56 | AN72: 5721.9 | AO72: 143 | AP72: 12140.2 | AQ72: 62443 | AR72: 1088.9 | AS72: 1 | AT72: 0
A73: Guatemala | B73: 73 | C73: 1467 | D73: 38133.7 | E73: 839 | F73: 7315.4 | G73: 3751 | H73: 2077.7 | I73: 2989 | J73: 406.7 | K73: 574 | L73: 70 | M73: 406 | N73: 57.2 | O73: 648 | P73: 102.6 | Q73: 721 | R73: 136.6 | S73: 664 | T73: 155.9 | U73: 722 | V73: 212.4 | W73: 810 | X73: 293.4 | Y73: 891 | Z73: 392.8 | AA73: 922 | AB73: 462.4 | AC73: 1064 | AD73: 630.4 | AE73: 1138 | AF73: 889.9 | AG73: 1364 | AH73: 1250.7 | AI73: 1763 | AJ73: 1880.9 | AK73: 2074 | AL73: 3002.9 | AM73: 2094 | AN73: 4888.4 | AO73: 4318 | AP73: 12104.7 | AQ73: 427 | AR73: 816.2 | AS73: 1 | AT73: 1
A74: Guinea | B74: 74 | C74: 5248 | D74: 161688.7 | E74: 2386 | F74: 25096.3 | G74: 8996 | H74: 6158.9 | I74: 12770 | J74: 2300.6 | K74: 1333 | L74: 224.4 | M74: 684 | N74: 134.7 | O74: 890 | P74: 207.9 | Q74: 1333 | R74: 372 | S74: 1503 | T74: 505.6 | U74: 1427 | V74: 577.8 | W74: 1367 | X74: 663 | Y74: 1244 | Z74: 696.6 | AA74: 1238 | AB74: 817.5 | AC74: 1181 | AD74: 1021.6 | AE74: 1428 | AF74: 1395.6 | AG74: 1891 | AH74: 2238.3 | AI74: 2210 | AJ74: 3424.8 | AK74: 2312 | AL74: 5182.2 | AM74: 1991 | AN74: 7614.7 | AO74: 2161 | AP74: 13067.1 | AQ74: 33543 | AR74: 454 | AS74: 1 | AT74: 1
A75: Guinea-Bissau | B75: 75 | C75: 769 | D75: 158859.6 | E75: 384 | F75: 27098.4 | G75: 1387 | H75: 6382.3 | I75: 2057 | J75: 2490.7 | K75: 205 | L75: 232.6 | M75: 108 | N75: 144.3 | O75: 140 | P75: 208.5 | Q75: 179 | R75: 335.3 | S75: 236 | T75: 434.2 | U75: 147 | V75: 500.2 | W75: 195 | X75: 638.9 | Y75: 177 | Z75: 680.5 | AA75: 235 | AB75: 814.3 | AC75: 204 | AD75: 1086 | AE75: 238 | AF75: 1464.2 | AG75: 290 | AH75: 2404 | AI75: 335 | AJ75: 3549.9 | AK75: 361 | AL75: 5501.7 | AM75: 313 | AN75: 7988.3 | AO75: 349 | AP75: 13493.4 | AQ75: 48662 | AR75: 982.1 | AS75: 1 | AT75: 1
A76: Guyana | B76: 76 | C76: 104 | D76: 72393.8 | E76: 28 | F76: 6592.8 | G76: 95 | H76: 1398.7 | I76: 45 | J76: 149.4 | K76: 25 | L76: 52.4 | M76: 20 | N76: 49.9 | O76: 40 | P76: 120.1 | Q76: 89 | R76: 275.3 | S76: 128 | T76: 419.7 | U76: 135 | V76: 485.3 | W76: 127 | X76: 509.7 | Y76: 119 | Z76: 534.8 | AA76: 111 | AB76: 636.8 | AC76: 101 | AD76: 725.2 | AE76: 98 | AF76: 1071.7 | AG76: 126 | AH76: 1609 | AI76: 174 | AJ76: 2815.7 | AK76: 192 | AL76: 4190 | AM76: 200 | AN76: 6794.7 | AO76: 504 | AP76: 15846.2 | AQ76: 8191 | AR76: 1066.5 | AS76: 1 | AT76: 1
A77: Haiti | B77: 77 | C77: 2413 | D77: 97566.7 | E77: 1338 | F77: 18300.6 | G77: 4283 | H77: 3740.5 | I77: 3010 | J77: 636.5 | K77: 566 | L77: 99.5 | M77: 592 | N77: 109.4 | O77: 1024 | P77: 202.9 | Q77: 1455 | R77: 366.6 | S77: 1640 | T77: 519.7 | U77: 1711 | V77: 615.4 | W77: 1936 | X77: 796.7 | Y77: 1714 | Z77: 859.9 | AA77: 1812 | AB77: 1054.2 | AC77: 1829 | AD77: 1373.7 | AE77: 2319 | AF77: 1925.1 | AG77: 3067 | AH77: 2995.2 | AI77: 3716 | AJ77: 4743.2 | AK77: 3892 | AL77: 7298.2 | AM77: 3533 | AN77: 10959 | AO77: 3911 | AP77: 17971.4 | AQ77: 2560 | AR77: 679.2 | AS77: 1 | AT77: 1
A78: Honduras | B78: 78 | C78: 1039 | D78: 56728.9 | E78: 354 | F78: 6493.2 | G78: 1108 | H78: 1277 | I78: 891 | J78: 241.1 | K78: 214 | L78: 48.6 | M78: 194 | N78: 49 | O78: 326 | P78: 93.6 | Q78: 395 | R78: 134.4 | S78: 410 | T78: 170.4 | U78: 427 | V78: 209.3 | W78: 498 | X78: 303.4 | Y78: 488 | Z78: 369.6 | AA78: 519 | AB78: 487.8 | AC78: 545 | AD78: 682.9 | AE78: 624 | AF78: 979.9 | AG78: 844 | AH78: 1549.7 | AI78: 1118 | AJ78: 2421.6 | AK78: 1410 | AL78: 3983.4 | AM78: 1578 | AN78: 6306.1 | AO78: 2890 | AP78: 13273.6 | AQ78: 106259 | AR78: 2108.4 | AS78: 0 | AT78: 0
A79: Hungary | B79: 79 | C79: 199 | D79: 22189.5 | E79: 63 | F79: 2365 | G79: 111 | H79: 256.5 | I79: 51 | J79: 25.6 | K79: 42 | L79: 14.7 | M79: 48 | N79: 15.6 | O79: 87 | P79: 26.2 | Q79: 127 | R79: 31.5 | S79: 157 | T79: 41.8 | U79: 240 | V79: 70.7 | W79: 464 | X79: 150.6 | Y79: 1031 | Z79: 275.8 | AA79: 1797 | AB79: 427.4 | AC79: 2125 | AD79: 590.9 | AE79: 2775 | AF79: 835.5 | AG79: 3715 | AH79: 1225.6 | AI79: 5623 | AJ79: 1931.1 | AK79: 8617 | AL79: 3214.8 | AM79: 12206 | AN79: 5585.3 | AO79: 25609 | AP79: 13661.4 | AQ79: 18871 | AR79: 495.4 | AS79: 1 | AT79: 1
A80: Iceland | B80: 80 | C80: 3 | D80: 7723 | E80: 1 | F80: 823.1 | G80: 2 | H80: 105.5 | I80: 1 | J80: 15.1 | K80: 1 | L80: 9 | M80: 2 | N80: 22.2 | O80: 2 | P80: 22.2 | Q80: 3 | R80: 31 | S80: 3 | T80: 33 | U80: 5 | V80: 47.8 | W80: 5 | X80: 44.5 | Y80: 10 | Z80: 96.7 | AA80: 14 | AB80: 158.4 | AC80: 21 | AD80: 270.7 | AE80: 29 | AF80: 462.5 | AG80: 31 | AH80: 620.4 | AI80: 56 | AJ80: 1117.2 | AK80: 79 | AL80: 1735.9 | AM80: 123 | AN80: 3345.9 | AO80: 497 | AP80: 10668.5 | AQ80: 65781 | AR80: 1254.3 | AS80: 1 | AT80: 1
A81: India | B81: 81 | C81: 367007 | D81: 148050.7 | E81: 127852 | F81: 17549.9 | G81: 309788 | H81: 2701 | I81: 288659 | J81: 598.7 | K81: 103282 | L81: 176.4 | M81: 73233 | N81: 130.6 | O81: 120172 | P81: 231.7 | Q81: 140123 | R81: 298.5 | S81: 123954 | T81: 301 | U81: 112824 | V81: 306.8 | W81: 119876 | X81: 371.5 | Y81: 126957 | Z81: 444.6 | AA81: 153113 | AB81: 615.9 | AC81: 178732 | AD81: 959.9 | AE81: 230476 | AF81: 1507.2 | AG81: 309665 | AH81: 2384.5 | AI81: 363536 | AJ81: 3719.1 | AK81: 376975 | AL81: 5766.6 | AM81: 316174 | AN81: 8264.5 | AO81: 395128 | AP81: 14279.5 | AQ81: 919 | AR81: 580.8 | AS81: 1 | AT81: 0
A82: Indonesia | B82: 82 | C82: 28247 | D82: 66377.2 | E82: 12264 | F82: 9696.2 | G82: 34505 | H82: 1722.9 | I82: 23495 | J82: 276.6 | K82: 6929 | L82: 64.4 | M82: 5933 | N82: 54.4 | O82: 10523 | P82: 94.8 | Q82: 13594 | R82: 129.5 | S82: 15244 | T82: 156.8 | U82: 17378 | V82: 197.5 | W82: 21997 | X82: 290.5 | Y82: 23687 | Z82: 374.8 | AA82: 25239 | AB82: 523.6 | AC82: 29781 | AD82: 782.5 | AE82: 38972 | AF82: 1125.1 | AG82: 53005 | AH82: 1779.9 | AI82: 62317 | AJ82: 2727.2 | AK82: 69480 | AL82: 4456.5 | AM82: 62334 | AN82: 7002.8 | AO82: 93246 | AP82: 13688.8 | AQ82: 4328749 | AR82: 730.6 | AS82: 1 | AT82: 1
A83: Iran | B83: 83 | C83: 6811 | D83: 59174.8 | E83: 2332 | F83: 6799.1 | G83: 7094 | H83: 1286.2 | I83: 3863 | J83: 151.9 | K83: 1692 | L83: 45.6 | M83: 1482 | N83: 34 | O83: 2321 | P83: 55 | Q83: 2369 | R83: 70.2 | S83: 2222 | T83: 83 | U83: 2413 | V83: 106.4 | W83: 2987 | X83: 151.7 | Y83: 3531 | Z83: 214.2 | AA83: 4233 | AB83: 316.3 | AC83: 4662 | AD83: 481.5 | AE83: 5163 | AF83: 712.1 | AG83: 7721 | AH83: 1163.2 | AI83: 10507 | AJ83: 1875 | AK83: 12965 | AL83: 3183.7 | AM83: 14262 | AN83: 5332.8 | AO83: 17851 | AP83: 11211 | AQ83: 730036 | AR83: 606.9 | AS83: 1 | AT83: 1
A84: Iraq | B84: 84 | C84: 5811 | D84: 70160.4 | E84: 2272 | F84: 9240.8 | G84: 5768 | H84: 1497.5 | I84: 2263 | J84: 147.7 | K84: 837 | L84: 50.8 | M84: 678 | N84: 46.9 | O84: 1023 | P84: 80.5 | Q84: 1183 | R84: 103.7 | S84: 1215 | T84: 125 | U84: 1278 | V84: 159.3 | W84: 1398 | X84: 246.7 | Y84: 1432 | Z84: 323.7 | AA84: 2065 | AB84: 455.6 | AC84: 1812 | AD84: 679.5 | AE84: 2507 | AF84: 983.2 | AG84: 3401 | AH84: 1572.3 | AI84: 4415 | AJ84: 2488.9 | AK84: 5734 | AL84: 4181.3 | AM84: 6857 | AN84: 6770.5 | AO84: 12758 | AP84: 13273.8 | AQ84: 128045 | AR84: 351.5 | AS84: 1 | AT84: 1
A85: Ireland | B85: 85 | C85: 74 | D85: 14000.1 | E85: 20 | F85: 1277.8 | G85: 50 | H85: 201.6 | I85: 27 | J85: 26.5 | K85: 16 | L85: 12.2 | M85: 22 | N85: 15.3 | O85: 51 | P85: 32.2 | Q85: 55 | R85: 35.8 | S85: 47 | T85: 32.7 | U85: 68 | V85: 48.2 | W85: 111 | X85: 78.3 | Y85: 164 | Z85: 124.1 | AA85: 241 | AB85: 201.2 | AC85: 367 | AD85: 330.7 | AE85: 451 | AF85: 514 | AG85: 639 | AH85: 852.4 | AI85: 965 | AJ85: 1455.6 | AK85: 1584 | AL85: 2595.9 | AM85: 2435 | AN85: 4678.7 | AO85: 8000 | AP85: 12435.6 | AQ85: 79667 | AR85: 505 | AS85: 1 | AT85: 1
A86: Israel | B86: 86 | C86: 174 | D86: 14657.2 | E86: 53 | F86: 1486.8 | G86: 119 | H86: 210.9 | I86: 75 | J86: 32.5 | K86: 38 | L86: 13.4 | M86: 34 | N86: 12.3 | O86: 57 | P86: 21.2 | Q86: 61 | R86: 23.1 | S86: 70 | T86: 27.8 | U86: 102 | V86: 47.7 | W86: 127 | X86: 64.1 | Y86: 186 | Z86: 95 | AA86: 317 | AB86: 164.2 | AC86: 483 | AD86: 279.8 | AE86: 461 | AF86: 426.1 | AG86: 849 | AH86: 745.9 | AI86: 1304 | AJ86: 1314.7 | AK86: 2120 | AL86: 2242.9 | AM86: 3110 | AN86: 3943 | AO86: 10287 | AP86: 12051 | AQ86: 14551 | AR86: 643.8 | AS86: 1 | AT86: 0
A87: Italy | B87: 87 | C87: 607 | D87: 12477 | E87: 205 | F87: 1410.4 | G87: 279 | H87: 119.7 | I87: 185 | J87: 18.2 | K87: 142 | L87: 10.7 | M87: 174 | N87: 12.8 | O87: 346 | P87: 23.3 | Q87: 475 | R87: 26.5 | S87: 669 | T87: 30.8 | U87: 929 | V87: 40.6 | W87: 1375 | X87: 61.1 | Y87: 1939 | Z87: 97.3 | AA87: 2803 | AB87: 149.3 | AC87: 4695 | AD87: 241.7 | AE87: 6222 | AF87: 364.2 | AG87: 10174 | AH87: 571.2 | AI87: 16047 | AJ87: 961.2 | AK87: 26163 | AL87: 1685.2 | AM87: 43076 | AN87: 3169.2 | AO87: 169289 | AP87: 10721.4 | AQ87: 21463 | AR87: 561.9 | AS87: 1 | AT87: 0
A88: Jamaica | B88: 88 | C88: 291 | D88: 55193.2 | E88: 64 | F88: 4057.3 | G88: 192 | H88: 760.1 | I88: 170 | J88: 153.9 | K88: 55 | L88: 38.8 | M88: 38 | N88: 27.8 | O88: 82 | P88: 65 | Q88: 168 | R88: 151.2 | S88: 253 | T88: 230.4 | U88: 278 | V88: 266.2 | W88: 242 | X88: 260.8 | Y88: 209 | Z88: 282.7 | AA88: 188 | AB88: 350 | AC88: 175 | AD88: 407.1 | AE88: 230 | AF88: 622.4 | AG88: 319 | AH88: 973.4 | AI88: 537 | AJ88: 1740.7 | AK88: 695 | AL88: 2654.8 | AM88: 879 | AN88: 4549.6 | AO88: 3360 | AP88: 12568.1 | AQ88: 320614 | AR88: 1043.5 | AS88: 1 | AT88: 0
A89: Japan | B89: 89 | C89: 777 | D89: 7219.3 | E89: 289 | F89: 897.1 | G89: 654 | H89: 125.9 | I89: 623 | J89: 27.2 | K89: 317 | L89: 10.9 | M89: 296 | N89: 9.2 | O89: 721 | P89: 19.8 | Q89: 1152 | R89: 28 | S89: 1519 | T89: 32.1 | U89: 1855 | V89: 43.6 | W89: 2332 | X89: 59.9 | Y89: 3575 | Z89: 93.2 | AA89: 6653 | AB89: 148.4 | AC89: 11731 | AD89: 228.8 | AE89: 14339 | AF89: 324 | AG89: 19092 | AH89: 482 | AI89: 28847 | AJ89: 775.9 | AK89: 41561 | AL89: 1297.1 | AM89: 60469 | AN89: 2420.5 | AO89: 274520 | AP89: 8476.4 | AQ89: 8662 | AR89: 620.4 | AS89: 1 | AT89: 1
A90: Jordan | B90: 90 | C90: 677 | D90: 49944.6 | E90: 209 | F90: 5177.1 | G90: 614 | H90: 951.1 | I90: 483 | J90: 176.1 | K90: 122 | L90: 40.2 | M90: 108 | N90: 36.7 | O90: 174 | P90: 64.2 | Q90: 189 | R90: 81.3 | S90: 198 | T90: 96.6 | U90: 202 | V90: 124.2 | W90: 239 | X90: 190.9 | Y90: 233 | Z90: 260.5 | AA90: 241 | AB90: 376 | AC90: 332 | AD90: 567.2 | AE90: 448 | AF90: 830.1 | AG90: 572 | AH90: 1336 | AI90: 670 | AJ90: 2135.5 | AK90: 750 | AL90: 3610.1 | AM90: 785 | AN90: 5954.5 | AO90: 1633 | AP90: 13642.4 | AQ90: 610582 | AR90: 946.8 | AS90: 1 | AT90: 0
A91: Kazakhstan | B91: 91 | C91: 1650 | D91: 75058.4 | E91: 594 | F91: 9083.7 | G91: 1808 | H91: 1735.7 | I91: 1157 | J91: 241.7 | K91: 422 | L91: 61.4 | M91: 471 | N91: 59.9 | O91: 737 | P91: 105.7 | Q91: 902 | R91: 141.2 | S91: 1039 | T91: 171.4 | U91: 1182 | V91: 215.7 | W91: 2007 | X91: 339.7 | Y91: 2351 | Z91: 420.9 | AA91: 2811 | AB91: 568.6 | AC91: 2909 | AD91: 835.9 | AE91: 2786 | AF91: 1184 | AG91: 7025 | AH91: 1882.1 | AI91: 5723 | AJ91: 2897.8 | AK91: 10898 | AL91: 4743.1 | AM91: 9235 | AN91: 7367 | AO91: 19575 | AP91: 16180 | AQ91: 10141 | AR91: 341.5 | AS91: 1 | AT91: 1
A92: Kenya | B92: 92 | C92: 11835 | D92: 105396.1 | E92: 3560 | F92: 10724.6 | G92: 19486 | H92: 3795 | I92: 16950 | J92: 853.3 | K92: 3052 | L92: 137.6 | M92: 1933 | N92: 90.7 | O92: 4685 | P92: 250.3 | Q92: 11239 | R92: 728.7 | S92: 14106 | T92: 1163.6 | U92: 12246 | V92: 1303 | W92: 8947 | X92: 1170.7 | Y92: 6647 | Z92: 1054.1 | AA92: 5387 | AB92: 1047.9 | AC92: 2905 | AD92: 775.5 | AE92: 2972 | AF92: 1147.1 | AG92: 3484 | AH92: 1546.2 | AI92: 6070 | AJ92: 3214.5 | AK92: 4675 | AL92: 3583.6 | AM92: 4329 | AN92: 5514.7 | AO92: 7142 | AP92: 11300 | AQ92: 68296 | AR92: 823.1 | AS92: 1 | AT92: 1
A93: Kiribati | B93: 93 | C93: 18 | D93: 79731.4 | E93: 6 | F93: 9445.7 | G93: 22 | H93: 2094.1 | I93: 18 | J93: 394.8 | K93: 4 | L93: 72.1 | M93: 4 | N93: 83.1 | O93: 7 | P93: 157.9 | Q93: 8 | R93: 222.2 | S93: 10 | T93: 281.4 | U93: 11 | V93: 364.9 | W93: 15 | X93: 601.4 | Y93: 15 | Z93: 732.7 | AA93: 15 | AB93: 982.1 | AC93: 17 | AD93: 1448.4 | AE93: 17 | AF93: 2027.6 | AG93: 22 | AH93: 3087 | AI93: 21 | AJ93: 4614.6 | AK93: 21 | AL93: 7121.9 | AM93: 17 | AN93: 10363.5 | AO93: 20 | AP93: 17953.2 | AQ93: 128415 | AR93: 630.6 | AS93: 1 | AT93: 1
A94: Korea, Rep. | B94: 94 | C94: 582 | D94: 11825.8 | E94: 207 | F94: 1402.3 | G94: 495 | H94: 203.5 | I94: 467 | J94: 39.4 | K94: 281 | L94: 17.4 | M94: 214 | N94: 14.7 | O94: 608 | P94: 34.2 | Q94: 706 | R94: 38.8 | S94: 938 | T94: 46 | U94: 1268 | V94: 62.6 | W94: 1925 | X94: 93 | Y94: 2377 | Z94: 120.8 | AA94: 2527 | AB94: 173.5 | AC94: 3087 | AD94: 265 | AE94: 4712 | AF94: 467.1 | AG94: 6770 | AH94: 710.8 | AI94: 9587 | AJ94: 1225.6 | AK94: 13074 | AL94: 2294.1 | AM94: 17996 | AN94: 4623 | AO94: 40266 | AP94: 11694.5 | AQ94: 9571 | AR94: 930 | AS94: 1 | AT94: 0
A95: Kuwait | B95: 95 | C95: 99 | D95: 25719.4 | E95: 27 | F95: 2344.9 | G95: 79 | H95: 426.6 | I95: 41 | J95: 53.2 | K95: 18 | L95: 21.3 | M95: 14 | N95: 18.4 | O95: 20 | P95: 32.9 | Q95: 31 | R95: 38.2 | S95: 39 | T95: 43.4 | U95: 52 | V95: 58.2 | W95: 61 | X95: 89.2 | Y95: 76 | Z95: 136.8 | AA95: 69 | AB95: 212.9 | AC95: 84 | AD95: 332 | AE95: 63 | AF95: 502.3 | AG95: 90 | AH95: 831.6 | AI95: 154 | AJ95: 1364.3 | AK95: 60 | AL95: 2339.3 | AM95: 125 | AN95: 4058.9 | AO95: 157 | AP95: 10232.2 | AQ95: 317 | AR95: 681.4 | AS95: 0 | AT95: 0
A96: Kyrgyz Republic | B96: 96 | C96: 773 | D96: 77704.2 | E96: 285 | F96: 9632.2 | G96: 881 | H96: 1858.7 | I96: 555 | J96: 258.9 | K96: 185 | L96: 64.1 | M96: 153 | N96: 51.9 | O96: 225 | P96: 86.6 | Q96: 262 | R96: 117.8 | S96: 289 | T96: 143 | U96: 298 | V96: 178.9 | W96: 456 | X96: 260.9 | Y96: 516 | Z96: 335.3 | AA96: 544 | AB96: 463.9 | AC96: 537 | AD96: 687.2 | AE96: 433 | AF96: 986 | AG96: 1172 | AH96: 1583.6 | AI96: 1384 | AJ96: 2467.8 | AK96: 2284 | AL96: 4061.6 | AM96: 2022 | AN96: 6432.7 | AO96: 3389 | AP96: 14225.5 | AQ96: 108769 | AR96: 876.5 | AS96: 0 | AT96: 0
A97: Laos | B97: 97 | C97: 1558 | D97: 103922.2 | E97: 717 | F97: 16181.2 | G97: 2322 | H97: 3302.8 | I97: 2434 | J97: 797.8 | K97: 429 | L97: 111.5 | M97: 301 | N97: 88.9 | O97: 405 | P97: 143 | Q97: 504 | R97: 209 | S97: 542 | T97: 262 | U97: 549 | V97: 319.9 | W97: 659 | X97: 462 | Y97: 633 | Z97: 548.4 | AA97: 682 | AB97: 727.2 | AC97: 808 | AD97: 1060.1 | AE97: 918 | AF97: 1489.4 | AG97: 1265 | AH97: 2382.2 | AI97: 1532 | AJ97: 3572.6 | AK97: 1857 | AL97: 5729.4 | AM97: 1730 | AN97: 8670 | AO97: 2100 | AP97: 15255.1 | AQ97: 132268 | AR97: 547.6 | AS97: 1 | AT97: 0
A98: Latvia | B98: 98 | C98: 44 | D98: 24783.6 | E98: 14 | F98: 2572.6 | G98: 32 | H98: 381.8 | I98: 25 | J98: 63.7 | K98: 17 | L98: 25.3 | M98: 21 | N98: 23.4 | O98: 42 | P98: 48.3 | Q98: 51 | R98: 64 | S98: 58 | T98: 71.7 | U98: 88 | V98: 109.4 | W98: 142 | X98: 160.4 | Y98: 239 | Z98: 261.6 | AA98: 327 | AB98: 394.7 | AC98: 480 | AD98: 621.8 | AE98: 653 | AF98: 839.8 | AG98: 1001 | AH98: 1167.6 | AI98: 1354 | AJ98: 1840.8 | AK98: 2135 | AL98: 3016.1 | AM98: 2845 | AN98: 5511.6 | AO98: 6950 | AP98: 14433.4 | AQ98: 1907 | AR98: 176.7 | AS98: 1 | AT98: 0
A99: Lebanon | B99: 99 | C99: 278 | D99: 39448.6 | E99: 79 | F99: 3748.5 | G99: 208 | H99: 608.9 | I99: 133 | J99: 86.2 | K99: 56 | L99: 29.5 | M99: 46 | N99: 25.9 | O99: 83 | P99: 46.5 | Q99: 100 | R99: 58.4 | S99: 112 | T99: 69.3 | U99: 135 | V99: 90 | W99: 184 | X99: 133.6 | Y99: 229 | Z99: 190.5 | AA99: 294 | AB99: 283.6 | AC99: 326 | AD99: 431.1 | AE99: 422 | AF99: 642.2 | AG99: 631 | AH99: 1045.5 | AI99: 842 | AJ99: 1698.8 | AK99: 1069 | AL99: 2886.8 | AM99: 1148 | AN99: 4890.9 | AO99: 2149 | AP99: 11556 | AQ99: 15909 | AR99: 589.9 | AS99: 1 | AT99: 1
A100: Lesotho | B100: 100 | C100: 865 | D100: 147678.2 | E100: 203 | F100: 11745.8 | G100: 956 | H100: 3519.2 | I100: 529 | J100: 465.1 | K100: 184 | L100: 138.2 | M100: 149 | N100: 116.6 | O100: 368 | P100: 311.6 | Q100: 980 | R100: 981.7 | S100: 1242 | T100: 1604.5 | U100: 1083 | V100: 1796 | W100: 816 | X100: 1627.4 | Y100: 629 | Z100: 1454.4 | AA100: 544 | AB100: 1445 | AC100: 325 | AD100: 1037.7 | AE100: 390 | AF100: 1571.4 | AG100: 444 | AH100: 1996.1 | AI100: 825 | AJ100: 4290.9 | AK100: 683 | AL100: 4672.4 | AM100: 700 | AN100: 7286.3 | AO100: 996 | AP100: 13833.3 | AQ100: 20161 | AR100: 649.4 | AS100: 1 | AT100: 1
A101: Liberia | B101: 101 | C101: 1814 | D101: 167310.2 | E101: 801 | F101: 25227.3 | G101: 3814 | H101: 7970.4 | I101: 2984 | J101: 1731.6 | K101: 436 | L101: 221.2 | M101: 261 | N101: 147 | O101: 368 | P101: 233.1 | Q101: 561 | R101: 420.2 | S101: 631 | T101: 575.1 | U101: 585 | V101: 656.9 | W101: 571 | X101: 770 | Y101: 484 | Z101: 793.7 | AA101: 452 | AB101: 917.8 | AC101: 425 | AD101: 1133.1 | AE101: 512 | AF101: 1538.6 | AG101: 629 | AH101: 2461.6 | AI101: 686 | AJ101: 3755.6 | AK101: 687 | AL101: 5638.4 | AM101: 550 | AN101: 8199.2 | AO101: 508 | AP101: 13661.2 | AQ101: 15520 | AR101: 1281.5 | AS101: 1 | AT101: 1
A102: Libya | B102: 102 | C102: 470 | D102: 40978.8 | E102: 129 | F102: 3786 | G102: 377 | H102: 702.1 | I102: 252 | J102: 115.5 | K102: 85 | L102: 32 | M102: 83 | N102: 29.1 | O102: 178 | P102: 52.1 | Q102: 189 | R102: 64.3 | S102: 191 | T102: 75.4 | U102: 194 | V102: 98.2 | W102: 228 | X102: 149.6 | Y102: 241 | Z102: 211.8 | AA102: 291 | AB102: 313.3 | AC102: 342 | AD102: 477.7 | AE102: 432 | AF102: 706.7 | AG102: 554 | AH102: 1146.5 | AI102: 655 | AJ102: 1848.7 | AK102: 768 | AL102: 3141.5 | AM102: 809 | AN102: 5269.5 | AO102: 1464 | AP102: 11741.7 | AQ102: 9305 | AR102: 429.9 | AS102: 1 | AT102: 1
A103: Lithuania | B103: 103 | C103: 53 | D103: 17181.5 | E103: 22 | F103: 2384.4 | G103: 50 | H103: 326.2 | I103: 36 | J103: 48.1 | K103: 26 | L103: 22.4 | M103: 31 | N103: 22.7 | O103: 60 | P103: 46.4 | Q103: 68 | R103: 58.2 | S103: 83 | T103: 67.8 | U103: 118 | V103: 91.7 | W103: 202 | X103: 144.8 | Y103: 300 | Z103: 223 | AA103: 414 | AB103: 364.1 | AC103: 535 | AD103: 511.3 | AE103: 751 | AF103: 714 | AG103: 1093 | AH103: 1022.6 | AI103: 1593 | AJ103: 1578.8 | AK103: 2438 | AL103: 2652.7 | AM103: 3141 | AN103: 4708.8 | AO103: 8003 | AP103: 13638.9 | AQ103: 16314 | AR103: 1477.3 | AS103: 0 | AT103: 0
A104: Luxembourg | B104: 104 | C104: 5 | D104: 10269.5 | E104: 2 | F104: 1073.8 | G104: 3 | H104: 138 | I104: 2 | J104: 19.5 | K104: 2 | L104: 14.4 | M104: 1 | N104: 11.6 | O104: 2 | P104: 17.1 | Q104: 4 | R104: 28.4 | S104: 7 | T104: 43.1 | U104: 7 | V104: 40.2 | W104: 13 | X104: 71.4 | Y104: 20 | Z104: 118.3 | AA104: 39 | AB104: 259.4 | AC104: 41 | AD104: 308 | AE104: 51 | AF104: 458 | AG104: 76 | AH104: 712.4 | AI104: 118 | AJ104: 1160.6 | AK104: 192 | AL104: 1981.2 | AM104: 288 | AN104: 3669.2 | AO104: 969 | AP104: 11359.5 | AQ104: 20844 | AR104: 1053.8 | AS104: 1 | AT104: 1
A105: Macedonia, FYR | B105: 105 | C105: 76 | D105: 32604.3 | E105: 26 | F105: 3662.8 | G105: 55 | H105: 484.4 | I105: 22 | J105: 41.4 | K105: 12 | L105: 16.7 | M105: 13 | N105: 16 | O105: 22 | P105: 26.8 | Q105: 28 | R105: 35 | S105: 28 | T105: 37.8 | U105: 50 | V105: 68.1 | W105: 71 | X105: 98.5 | Y105: 119 | Z105: 168.6 | AA105: 192 | AB105: 279.4 | AC105: 239 | AD105: 421 | AE105: 344 | AF105: 693.7 | AG105: 560 | AH105: 1197.6 | AI105: 892 | AJ105: 2071 | AK105: 1240 | AL105: 3833 | AM105: 1545 | AN105: 6837.1 | AO105: 2101 | AP105: 14715.4 | AQ105: 11211 | AR105: 358.3 | AS105: 0 | AT105: 0
A106: Madagascar | B106: 106 | C106: 4813 | D106: 80952.7 | E106: 2172 | F106: 12320.4 | G106: 9660 | H106: 3511.6 | I106: 8757 | J106: 805.8 | K106: 1308 | L106: 113.8 | M106: 957 | N106: 101.2 | O106: 1360 | P106: 181.9 | Q106: 1934 | R106: 277.3 | S106: 2076 | T106: 352.1 | U106: 2037 | V106: 423.6 | W106: 2363 | X106: 593.9 | Y106: 2165 | Z106: 659.5 | AA106: 2168 | AB106: 812.9 | AC106: 2139 | AD106: 1119.4 | AE106: 2395 | AF106: 1522.2 | AG106: 3190 | AH106: 2413.7 | AI106: 3808 | AJ106: 3638.5 | AK106: 3878 | AL106: 5564.8 | AM106: 3259 | AN106: 8130 | AO106: 3997 | AP106: 14733.4 | AQ106: 19254 | AR106: 1078.5 | AS106: 1 | AT106: 1
A107: Malawi | B107: 107 | C107: 5548 | D107: 119854.8 | E107: 2387 | F107: 17498.1 | G107: 11597 | H107: 5521.5 | I107: 15065 | J107: 1874 | K107: 1774 | L107: 208.4 | M107: 1240 | N107: 177.6 | O107: 2559 | P107: 443.4 | Q107: 6294 | R107: 1188.2 | S107: 7681 | T107: 1863.8 | U107: 6808 | V107: 2091.3 | W107: 5570 | X107: 2033.7 | Y107: 4154 | Z107: 1827.7 | AA107: 3347 | AB107: 1820.8 | AC107: 2525 | AD107: 1498.7 | AE107: 2603 | AF107: 2106 | AG107: 2867 | AH107: 2956 | AI107: 4129 | AJ107: 5574.5 | AK107: 3460 | AL107: 6466 | AM107: 3089 | AN107: 9264.7 | AO107: 3076 | AP107: 14586.6 | AQ107: 2073 | AR107: 826.2 | AS107: 1 | AT107: 0
A108: Malaysia | B108: 108 | C108: 723 | D108: 13711.4 | E108: 280 | F108: 1773.4 | G108: 633 | H108: 250.7 | I108: 567 | J108: 52.9 | K108: 338 | L108: 26.6 | M108: 352 | N108: 29.2 | O108: 474 | P108: 41.6 | Q108: 525 | R108: 50.6 | S108: 551 | T108: 57.3 | U108: 684 | V108: 76.8 | W108: 966 | X108: 111.2 | Y108: 1266 | Z108: 173.6 | AA108: 1701 | AB108: 286.7 | AC108: 2202 | AD108: 491.2 | AE108: 2490 | AF108: 815.8 | AG108: 3738 | AH108: 1391 | AI108: 4572 | AJ108: 2432.2 | AK108: 5419 | AL108: 4026.1 | AM108: 5602 | AN108: 6791.9 | AO108: 7681 | AP108: 12708.8 | AQ108: 9302 | AR108: 904.4 | AS108: 1 | AT108: 1
A109: Maldives | B109: 109 | C109: 41 | D109: 75096.2 | E109: 12 | F109: 7295.7 | G109: 30 | H109: 1114.9 | I109: 26 | J109: 205.2 | K109: 10 | L109: 55.4 | M109: 7 | N109: 37 | O109: 10 | P109: 61 | Q109: 10 | R109: 82.2 | S109: 10 | T109: 97.5 | U109: 11 | V109: 123.8 | W109: 13 | X109: 166.8 | Y109: 15 | Z109: 233.7 | AA109: 13 | AB109: 344.6 | AC109: 15 | AD109: 526.9 | AE109: 26 | AF109: 776.8 | AG109: 40 | AH109: 1254.7 | AI109: 41 | AJ109: 1963.4 | AK109: 38 | AL109: 3247.1 | AM109: 31 | AN109: 5302.7 | AO109: 34 | AP109: 10678 | AQ109: 71896 | AR109: 691.6 | AS109: 1 | AT109: 1
A110: Mali | B110: 110 | C110: 9160 | D110: 178516 | E110: 4024 | F110: 26872.2 | G110: 14119 | H110: 6200 | I110: 26064 | J110: 3226.6 | K110: 2166 | L110: 260 | M110: 1204 | N110: 167.4 | O110: 1594 | P110: 254.2 | Q110: 2378 | R110: 454.6 | S110: 2602 | T110: 618.8 | U110: 2305 | V110: 704.1 | W110: 2112 | X110: 829.8 | Y110: 1774 | Z110: 850.4 | AA110: 1759 | AB110: 980.6 | AC110: 1799 | AD110: 1220.8 | AE110: 2216 | AF110: 1648.1 | AG110: 2631 | AH110: 2665.2 | AI110: 2975 | AJ110: 4026.2 | AK110: 3019 | AL110: 6056.2 | AM110: 2279 | AN110: 8730.2 | AO110: 1646 | AP110: 13491.6 | AQ110: 88036 | AR110: 1175.6 | AS110: 1 | AT110: 1
A111: Malta | B111: 111 | C111: 6 | D111: 15399.9 | E111: 2 | F111: 1557.8 | G111: 4 | H111: 214.3 | I111: 1 | J111: 16.1 | K111: 2 | L111: 13.6 | M111: 2 | N111: 12 | O111: 3 | P111: 21.8 | Q111: 4 | R111: 24.5 | S111: 4 | T111: 27.7 | U111: 4 | V111: 38.4 | W111: 8 | X111: 56.8 | Y111: 15 | Z111: 95.6 | AA111: 24 | AB111: 158.7 | AC111: 39 | AD111: 251.3 | AE111: 37 | AF111: 399.2 | AG111: 69 | AH111: 660.4 | AI111: 90 | AJ111: 1127 | AK111: 145 | AL111: 1999.5 | AM111: 210 | AN111: 3697.2 | AO111: 569 | AP111: 10399 | AQ111: 53170 | AR111: 379.7 | AS111: 1 | AT111: 1
A112: Marshall Islands | B112: 112 | C112: 13 | D112: 66257.2 | E112: 4 | F112: 6951.1 | G112: 14 | H112: 1478.7 | I112: 10 | J112: 258.5 | K112: 2 | L112: 56.7 | M112: 2 | N112: 68.2 | O112: 4 | P112: 136 | Q112: 4 | R112: 186 | S112: 5 | T112: 232.9 | U112: 6 | V112: 306.3 | W112: 8 | X112: 520.1 | Y112: 8 | Z112: 647 | AA112: 8 | AB112: 880.1 | AC112: 10 | AD112: 1306.2 | AE112: 10 | AF112: 1843.4 | AG112: 12 | AH112: 2786 | AI112: 12 | AJ112: 4201.5 | AK112: 12 | AL112: 6534.6 | AM112: 10 | AN112: 9595.3 | AO112: 12 | AP112: 17212.5 | AQ112: 354 | AR112: 226 | AS112: 1 | AT112: 1
A113: Mauritania | B113: 113 | C113: 1345 | D113: 146860.4 | E113: 414 | F113: 15387.3 | G113: 1116 | H113: 2656.5 | I113: 1533 | J113: 918.9 | K113: 237 | L113: 129.7 | M113: 166 | N113: 102.8 | O113: 248 | P113: 175.3 | Q113: 335 | R113: 270.8 | S113: 365 | T113: 347.9 | U113: 354 | V113: 410.1 | W113: 393 | X113: 554.6 | Y113: 354 | Z113: 608.5 | AA113: 337 | AB113: 741.5 | AC113: 385 | AD113: 994.5 | AE113: 436 | AF113: 1353.4 | AG113: 554 | AH113: 2157.5 | AI113: 613 | AJ113: 3222.7 | AK113: 621 | AL113: 5031.7 | AM113: 463 | AN113: 7421.7 | AO113: 324 | AP113: 11916.7 | AQ113: 83732 | AR113: 1082 | AS113: 1 | AT113: 1
A114: Mauritius | B114: 114 | C114: 70 | D114: 36010.7 | E114: 16 | F114: 2833.6 | G114: 38 | H114: 408.1 | I114: 31 | J114: 74.5 | K114: 10 | L114: 18.8 | M114: 13 | N114: 24.2 | O114: 22 | P114: 46.9 | Q114: 27 | R114: 48.1 | S114: 36 | T114: 73.6 | U114: 40 | V114: 77.9 | W114: 76 | X114: 137.8 | Y114: 98 | Z114: 240.4 | AA114: 135 | AB114: 370.3 | AC114: 174 | AD114: 563.8 | AE114: 181 | AF114: 829.6 | AG114: 243 | AH114: 1473.6 | AI114: 299 | AJ114: 2244.5 | AK114: 457 | AL114: 4230.4 | AM114: 513 | AN114: 6109.7 | AO114: 868 | AP114: 12291.4 | AQ114: 1417 | AR114: 675.8 | AS114: 1 | AT114: 0
A115: Mexico | B115: 115 | C115: 8281 | D115: 38896.3 | E115: 2724 | F115: 4286.8 | G115: 9659 | H115: 953.7 | I115: 5402 | J115: 123.5 | K115: 1459 | L115: 26.1 | M115: 1507 | N115: 28.2 | O115: 2333 | P115: 45.8 | Q115: 2559 | R115: 51.9 | S115: 2809 | T115: 60.6 | U115: 3240 | V115: 83.3 | W115: 4248 | X115: 128.6 | Y115: 5357 | Z115: 190.4 | AA115: 6728 | AB115: 290.4 | AC115: 8410 | AD115: 505.1 | AE115: 10673 | AF115: 757.3 | AG115: 14065 | AH115: 1228.2 | AI115: 17425 | AJ115: 1680.7 | AK115: 19315 | AL115: 2378.2 | AM115: 19986 | AN115: 3558 | AO115: 56195 | AP115: 9983.1 | AQ115: 201 | AR115: 635.1 | AS115: 0 | AT115: 0
A116: Moldova | B116: 116 | C116: 224 | D116: 50090.3 | E116: 54 | F116: 4057.5 | G116: 153 | H116: 702.5 | I116: 121 | J116: 117.9 | K116: 55 | L116: 35.3 | M116: 50 | N116: 25.2 | O116: 75 | P116: 41.2 | Q116: 79 | R116: 49.8 | S116: 103 | T116: 72.5 | U116: 133 | V116: 103.9 | W116: 246 | X116: 154.8 | Y116: 426 | Z116: 249.7 | AA116: 670 | AB116: 427.4 | AC116: 751 | AD116: 660.2 | AE116: 1030 | AF116: 1117.1 | AG116: 1788 | AH116: 1676.4 | AI116: 2310 | AJ116: 2640.7 | AK116: 3140 | AL116: 3952.7 | AM116: 3570 | AN116: 6677.3 | AO116: 5407 | AP116: 14520.7 | AQ116: 11304 | AR116: 654.3 | AS116: 1 | AT116: 1
A117: Mongolia | B117: 117 | C117: 367 | D117: 81481.1 | E117: 142 | F117: 10645.8 | G117: 447 | H117: 2089.3 | I117: 361 | J117: 370.1 | K117: 100 | L117: 72.1 | M117: 135 | N117: 83 | O117: 199 | P117: 149.5 | Q117: 243 | R117: 202.9 | S117: 275 | T117: 250.4 | U117: 302 | V117: 312 | W117: 462 | X117: 517.2 | Y117: 396 | Z117: 602 | AA117: 355 | AB117: 780.4 | AC117: 353 | AD117: 1127.2 | AE117: 437 | AF117: 1565.1 | AG117: 578 | AH117: 2481.3 | AI117: 761 | AJ117: 3748.9 | AK117: 868 | AL117: 6058.3 | AM117: 826 | AN117: 9109.9 | AO117: 1299 | AP117: 15777.6 | AQ117: 4101 | AR117: 623.1 | AS117: 1 | AT117: 1
A118: Montenegro | B118: 118 | C118: 20 | D118: 25834.8 | E118: 7 | F118: 3022.1 | G118: 18 | H118: 463.5 | I118: 8 | J118: 49.6 | K118: 4 | L118: 20.2 | M118: 6 | N118: 23.4 | O118: 11 | P118: 43.5 | Q118: 12 | R118: 51.2 | S118: 14 | T118: 60.4 | U118: 18 | V118: 80.6 | W118: 30 | X118: 130 | Y118: 46 | Z118: 192.5 | AA118: 65 | AB118: 295.7 | AC118: 88 | AD118: 459 | AE118: 97 | AF118: 699.4 | AG118: 201 | AH118: 1131.7 | AI118: 259 | AJ118: 1882.6 | AK118: 345 | AL118: 3240 | AM118: 348 | AN118: 5574.9 | AO118: 1002 | AP118: 15444.2 | AQ118: 256586 | AR118: 446.2 | AS118: 1 | AT118: 1
A119: Morocco | B119: 119 | C119: 4022 | D119: 69067.8 | E119: 2130 | F119: 12312.1 | G119: 4971 | H119: 1803.2 | I119: 2822 | J119: 233 | K119: 933 | L119: 58.8 | M119: 700 | N119: 42.5 | O119: 1111 | P119: 67.6 | Q119: 1302 | R119: 91.9 | S119: 1413 | T119: 112.5 | U119: 1503 | V119: 140.9 | W119: 1860 | X119: 193.1 | Y119: 2242 | Z119: 260.2 | AA119: 2373 | AB119: 373 | AC119: 2676 | AD119: 556.6 | AE119: 3110 | AF119: 816.2 | AG119: 5170 | AH119: 1325.6 | AI119: 5810 | AJ119: 2127.5 | AK119: 8667 | AL119: 3584 | AM119: 6199 | AN119: 5917.6 | AO119: 10475 | AP119: 11970.6 | AQ119: 366 | AR119: 667.5 | AS119: 0 | AT119: 0
A120: Mozambique | B120: 120 | C120: 10212 | D120: 137504.7 | E120: 4791 | F120: 21967.2 | G120: 25426 | H120: 7704 | I120: 18984 | J120: 1573.5 | K120: 2734 | L120: 211.3 | M120: 1600 | N120: 144.2 | O120: 2464 | P120: 255.5 | Q120: 4989 | R120: 569.5 | S120: 6582 | T120: 841.8 | U120: 5993 | V120: 956.8 | W120: 4834 | X120: 982.4 | Y120: 3813 | Z120: 961.5 | AA120: 3403 | AB120: 1053.2 | AC120: 3017 | AD120: 1119.4 | AE120: 3564 | AF120: 1556.6 | AG120: 4357 | AH120: 2367.1 | AI120: 5594 | AJ120: 3967.8 | AK120: 5247 | AL120: 5398.7 | AM120: 4523 | AN120: 7913 | AO120: 5062 | AP120: 13614.3 | AQ120: 20034 | AR120: 1065.5 | AS120: 1 | AT120: 1
A121: Myanmar | B121: 121 | C121: 8217 | D121: 94980.3 | E121: 3408 | F121: 13295 | G121: 10815 | H121: 2651.9 | I121: 10113 | J121: 569.3 | K121: 2113 | L121: 94 | M121: 2222 | N121: 94.1 | O121: 3782 | P121: 166.1 | Q121: 5401 | R121: 246.9 | S121: 6769 | T121: 316.5 | U121: 7052 | V121: 386.4 | W121: 9212 | X121: 584.5 | Y121: 9225 | Z121: 665.5 | AA121: 10243 | AB121: 856.6 | AC121: 9953 | AD121: 1219.4 | AE121: 10535 | AF121: 1699 | AG121: 14479 | AH121: 2690.8 | AI121: 19027 | AJ121: 4020.2 | AK121: 23195 | AL121: 6373.2 | AM121: 21136 | AN121: 9500 | AO121: 26228 | AP121: 16286.5 | AQ121: 9093 | AR121: 653 | AS121: 1 | AT121: 1
A122: Namibia | B122: 122 | C122: 487 | D122: 88123.1 | E122: 118 | F122: 7202.8 | G122: 537 | H122: 2068 | I122: 484 | J122: 444.3 | K122: 120 | L122: 93 | M122: 109 | N122: 95.6 | O122: 263 | P122: 260.8 | Q122: 656 | R122: 713 | S122: 913 | T122: 1136.3 | U122: 864 | V122: 1291.5 | W122: 729 | X122: 1304.3 | Y122: 559 | Z122: 1240.7 | AA122: 483 | AB122: 1330.3 | AC122: 350 | AD122: 1250 | AE122: 405 | AF122: 1819.8 | AG122: 429 | AH122: 2491.6 | AI122: 628 | AJ122: 4564.3 | AK122: 622 | AL122: 5821.3 | AM122: 581 | AN122: 8824.2 | AO122: 788 | AP122: 15841.9 | AQ122: 2771 | AR122: 861.2 | AS122: 0 | AT122: 0
A123: Nepal | B123: 123 | C123: 9833 | D123: 131498.6 | E123: 3333 | F123: 15104.6 | G123: 8780 | H123: 2523.9 | I123: 7401 | J123: 516.8 | K123: 1758 | L123: 108 | M123: 1098 | N123: 76.4 | O123: 1548 | P123: 122.9 | Q123: 1885 | R123: 172.5 | S123: 1992 | T123: 209 | U123: 2106 | V123: 253.1 | W123: 2482 | X123: 351.4 | Y123: 2449 | Z123: 421.3 | AA123: 2595 | AB123: 549.3 | AC123: 3052 | AD123: 785.3 | AE123: 3839 | AF123: 1091.5 | AG123: 4933 | AH123: 1774.5 | AI123: 5424 | AJ123: 2649.1 | AK123: 5835 | AL123: 4334.9 | AM123: 5185 | AN123: 6610.9 | AO123: 6192 | AP123: 12153.1 | AQ123: 78821 | AR123: 484.3 | AS123: 1 | AT123: 1
A124: Netherlands | B124: 124 | C124: 273 | D124: 14826.4 | E124: 69 | F124: 1247.9 | G124: 101 | H124: 114.9 | I124: 112 | J124: 29.6 | K124: 51 | L124: 10.5 | M124: 61 | N124: 12.9 | O124: 108 | P124: 23.8 | Q124: 127 | R124: 26.8 | S124: 191 | T124: 33.6 | U124: 305 | V124: 47.4 | W124: 512 | X124: 79 | Y124: 813 | Z124: 134.4 | AA124: 1266 | AB124: 225.4 | AC124: 1866 | AD124: 326.3 | AE124: 2085 | AF124: 487.5 | AG124: 2793 | AH124: 755.7 | AI124: 4107 | AJ124: 1213.5 | AK124: 6363 | AL124: 2057.8 | AM124: 10035 | AN124: 3639.7 | AO124: 39621 | AP124: 11226.9 | AQ124: 144081 | AR124: 1198.6 | AS124: 1 | AT124: 1
A125: New Zealand | B125: 125 | C125: 58 | D125: 11100.2 | E125: 17 | F125: 1106.9 | G125: 71 | H125: 284.4 | I125: 38 | J125: 34.4 | K125: 23 | L125: 15.7 | M125: 24 | N125: 17.2 | O125: 61 | P125: 44.8 | Q125: 50 | R125: 39.6 | S125: 65 | T125: 47.3 | U125: 88 | V125: 57.8 | W125: 117 | X125: 73.5 | Y125: 185 | Z125: 124.3 | AA125: 250 | AB125: 191.9 | AC125: 373 | AD125: 312.9 | AE125: 475 | AF125: 508.1 | AG125: 638 | AH125: 820.4 | AI125: 848 | AJ125: 1267 | AK125: 1268 | AL125: 1998.8 | AM125: 1804 | AN125: 3350.2 | AO125: 7245 | AP125: 10119.4 | AQ125: 190763 | AR125: 783.4 | AS125: 0 | AT125: 0
A126: Nicaragua | B126: 126 | C126: 715 | D126: 54487.4 | E126: 247 | F126: 6320.6 | G126: 1017 | H126: 1625.5 | I126: 474 | J126: 171.7 | K126: 170 | L126: 48.2 | M126: 107 | N126: 33.2 | O126: 161 | P126: 53.7 | Q126: 173 | R126: 69.3 | S126: 163 | T126: 80.8 | U126: 166 | V126: 102 | W126: 195 | X126: 139.7 | Y126: 240 | Z126: 195.7 | AA126: 269 | AB126: 283.3 | AC126: 233 | AD126: 423.9 | AE126: 344 | AF126: 625.5 | AG126: 473 | AH126: 1030 | AI126: 599 | AJ126: 1628.5 | AK126: 798 | AL126: 2754.8 | AM126: 897 | AN126: 4558 | AO126: 1827 | AP126: 10699.5 | AQ126: 8589 | AR126: 747.7 | AS126: 1 | AT126: 1
A127: Niger | B127: 127 | C127: 5818 | D127: 109594.2 | E127: 3849 | F127: 24646.9 | G127: 15314 | H127: 6439.1 | I127: 31607 | J127: 3784.7 | K127: 2209 | L127: 265.8 | M127: 975 | N127: 145.1 | O127: 1128 | P127: 202.3 | Q127: 1568 | R127: 335.8 | S127: 1725 | T127: 438.1 | U127: 1638 | V127: 501.3 | W127: 1573 | X127: 595.7 | Y127: 1350 | Z127: 645.4 | AA127: 1292 | AB127: 778.8 | AC127: 1612 | AD127: 1032.1 | AE127: 1747 | AF127: 1402.2 | AG127: 2034 | AH127: 2295.6 | AI127: 2032 | AJ127: 3427.4 | AK127: 1870 | AL127: 5317.7 | AM127: 1347 | AN127: 7791.5 | AO127: 1012 | AP127: 12535.6 | AQ127: 79634 | AR127: 527.1 | AS127: 1 | AT127: 1
A128: Nigeria | B128: 128 | C128: 71561 | D128: 150220.6 | E128: 30154 | F128: 21582.3 | G128: 106377 | H128: 4945.2 | I128: 192952 | J128: 2424 | K128: 18342 | L128: 217.4 | M128: 9334 | N128: 125 | O128: 13650 | P128: 206.2 | Q128: 23769 | R128: 420.2 | S128: 27518 | T128: 602.3 | U128: 24888 | V128: 683.2 | W128: 22102 | X128: 717.4 | Y128: 18961 | Z128: 725.7 | AA128: 18055 | AB128: 820.2 | AC128: 16992 | AD128: 927.2 | AE128: 19933 | AF128: 1286.4 | AG128: 24741 | AH128: 2011.5 | AI128: 29590 | AJ128: 3236.3 | AK128: 29195 | AL128: 4689.9 | AM128: 25532 | AN128: 6976.7 | AO128: 30013 | AP128: 12482.3 | AQ128: 71855 | AR128: 859.2 | AS128: 1 | AT128: 0
A129: North Korea | B129: 129 | C129: 3744 | D129: 97421.9 | E129: 1455 | F129: 12690.6 | G129: 5657 | H129: 3050.4 | I129: 5494 | J129: 655.6 | K129: 2066 | L129: 201.9 | M129: 9388 | N129: 1031.4 | O129: 12004 | P129: 1319.5 | Q129: 10878 | R129: 1477.1 | S129: 16763 | T129: 1600.1 | U129: 19562 | V129: 1787.8 | W129: 17767 | X129: 2148.7 | Y129: 19237 | Z129: 2468.7 | AA129: 12959 | AB129: 2906.5 | AC129: 21385 | AD129: 3482 | AE129: 26320 | AF129: 4118.6 | AG129: 29068 | AH129: 5012 | AI129: 26337 | AJ129: 6114.4 | AK129: 23530 | AL129: 7666.1 | AM129: 19271 | AN129: 9538.6 | AO129: 18546 | AP129: 14425.5 | AQ129: 14777 | AR129: 664.8 | AS129: 1 | AT129: 0
A130: Norway | B130: 130 | C130: 52 | D130: 9622.5 | E130: 12 | F130: 760.3 | G130: 36 | H130: 137 | I130: 26 | J130: 22.6 | K130: 17 | L130: 11.3 | M130: 17 | N130: 12.1 | O130: 41 | P130: 31.7 | Q130: 43 | R130: 31.2 | S130: 57 | T130: 35 | U130: 83 | V130: 48.6 | W130: 113 | X130: 69.8 | Y130: 172 | Z130: 109.5 | AA130: 265 | AB130: 177.7 | AC130: 451 | AD130: 299 | AE130: 525 | AF130: 441.2 | AG130: 663 | AH130: 701.4 | AI130: 956 | AJ130: 1092.1 | AK130: 1687 | AL130: 1877.1 | AM130: 3105 | AN130: 3397.8 | AO130: 13828 | AP130: 10726 | AQ130: 11097 | AR130: 379.7 | AS130: 1 | AT130: 1
A131: Oman | B131: 131 | C131: 175 | D131: 34379.1 | E131: 52 | F131: 3439.8 | G131: 137 | H131: 555.1 | I131: 112 | J131: 97.2 | K131: 38 | L131: 27.9 | M131: 35 | N131: 25.3 | O131: 58 | P131: 45.8 | Q131: 62 | R131: 55.6 | S131: 52 | T131: 64.8 | U131: 57 | V131: 85 | W131: 70 | X131: 130.3 | Y131: 71 | Z131: 188 | AA131: 79 | AB131: 281.5 | AC131: 97 | AD131: 431.4 | AE131: 136 | AF131: 642.1 | AG131: 160 | AH131: 1046 | AI131: 186 | AJ131: 1695.2 | AK131: 223 | AL131: 2887.1 | AM131: 253 | AN131: 4888.8 | AO131: 653 | AP131: 11452.5 | AQ131: 83663 | AR131: 1082.2 | AS131: 1 | AT131: 1
A132: Pakistan | B132: 132 | C132: 63541 | D132: 152474.5 | E132: 25424 | F132: 20756.2 | G132: 54628 | H132: 2824.7 | I132: 39674 | J132: 481.9 | K132: 11448 | L132: 117.4 | M132: 8290 | N132: 90.8 | O132: 11366 | P132: 147.4 | Q132: 13192 | R132: 207.1 | S132: 13085 | T132: 252.1 | U132: 13506 | V132: 304.2 | W132: 16936 | X132: 439 | Y132: 16363 | Z132: 509.3 | AA132: 16627 | AB132: 650.2 | AC132: 18890 | AD132: 923.3 | AE132: 22544 | AF132: 1269.7 | AG132: 28699 | AH132: 2062.9 | AI132: 32343 | AJ132: 3048.8 | AK132: 37072 | AL132: 4965.2 | AM132: 34999 | AN132: 7448.9 | AO132: 48072 | AP132: 13469.9 | AQ132: 779636 | AR132: 994.2 | AS132: 1 | AT132: 1
A133: Palestine | B133: 133 | C133: 654 | D133: 58279.5 | E133: 221 | F133: 6602.7 | G133: 657 | H133: 1238.8 | I133: 350 | J133: 157.7 | K133: 116 | L133: 44.8 | M133: 61 | N133: 30.7 | O133: 81 | P133: 48.2 | Q133: 86 | R133: 61 | S133: 83 | T133: 71.5 | U133: 90 | V133: 91.9 | W133: 101 | X133: 128.2 | Y133: 105 | Z133: 185.8 | AA133: 127 | AB133: 279 | AC133: 160 | AD133: 428.2 | AE133: 190 | AF133: 637.8 | AG133: 250 | AH133: 1051.1 | AI133: 285 | AJ133: 1703 | AK133: 326 | AL133: 2901.5 | AM133: 361 | AN133: 4912.4 | AO133: 511 | AP133: 10730.2 | AQ133: 21677 | AR133: 894.4 | AS133: 1 | AT133: 0
A134: Panama | B134: 134 | C134: 228 | D134: 35203.6 | E134: 72 | F134: 3740.6 | G134: 201 | H134: 652.7 | I134: 233 | J134: 180.9 | K134: 52 | L134: 34.4 | M134: 28 | N134: 19.3 | O134: 59 | P134: 43 | Q134: 132 | R134: 100.5 | S134: 199 | T134: 152.6 | U134: 209 | V134: 174.8 | W134: 169 | X134: 163.5 | Y134: 151 | Z134: 174.9 | AA134: 150 | AB134: 212.5 | AC134: 133 | AD134: 234 | AE134: 171 | AF134: 364.3 | AG134: 215 | AH134: 590.1 | AI134: 311 | AJ134: 1058.9 | AK134: 370 | AL134: 1622 | AM134: 461 | AN134: 2835.4 | AO134: 1311 | AP134: 8068.6 | AQ134: 5709 | AR134: 286.4 | AS134: 0 | AT134: 0
A135: Papua New Guinea | B135: 135 | C135: 1566 | D135: 91066 | E135: 592 | F135: 11619.1 | G135: 2138 | H135: 2679.1 | I135: 1823 | J135: 573.6 | K135: 304 | L135: 88.6 | M135: 361 | N135: 120.3 | O135: 649 | P135: 231.6 | Q135: 903 | R135: 354.5 | S135: 1100 | T135: 473.2 | U135: 1067 | V135: 595.9 | W135: 1469 | X135: 994.8 | Y135: 1368 | Z135: 1098 | AA135: 1448 | AB135: 1377.1 | AC135: 1553 | AD135: 1933.5 | AE135: 1625 | AF135: 2642.9 | AG135: 1905 | AH135: 4106.8 | AI135: 1981 | AJ135: 6020.2 | AK135: 1960 | AL135: 8989.9 | AM135: 1608 | AN135: 12600.3 | AO135: 1790 | AP135: 19840 | AQ135: 2669 | AR135: 236.3 | AS135: 1 | AT135: 0
A136: Paraguay | B136: 136 | C136: 699 | D136: 50074 | E136: 214 | F136: 5145.2 | G136: 608 | H136: 918.9 | I136: 367 | J136: 130.4 | K136: 117 | L136: 34.8 | M136: 99 | N136: 31 | O136: 148 | P136: 50.7 | Q136: 154 | R136: 64.7 | S136: 154 | T136: 78.6 | U136: 176 | V136: 100.5 | W136: 224 | X136: 145.9 | Y136: 274 | Z136: 206.1 | AA136: 345 | AB136: 306.3 | AC136: 411 | AD136: 471.2 | AE136: 481 | AF136: 694.8 | AG136: 666 | AH136: 1170.1 | AI136: 815 | AJ136: 1932.3 | AK136: 1217 | AL136: 3356.6 | AM136: 1397 | AN136: 5772 | AO136: 2950 | AP136: 13140.6 | AQ136: 538536 | AR136: 631 | AS136: 1 | AT136: 1
A137: Peru | B137: 137 | C137: 3178 | D137: 54907.7 | E137: 1148 | F137: 6653.4 | G137: 3508 | H137: 1275.1 | I137: 2348 | J137: 198 | K137: 715 | L137: 49 | M137: 486 | N137: 34.7 | O137: 765 | P137: 58.5 | Q137: 949 | R137: 76.8 | S137: 1001 | T137: 91.4 | U137: 1103 | V137: 114.5 | W137: 1323 | X137: 157.7 | Y137: 1473 | Z137: 212.2 | AA137: 1723 | AB137: 300.8 | AC137: 2036 | AD137: 444.1 | AE137: 2460 | AF137: 643.4 | AG137: 3488 | AH137: 1080.9 | AI137: 4332 | AJ137: 1678.9 | AK137: 5369 | AL137: 2864.9 | AM137: 5789 | AN137: 4694.6 | AO137: 13508 | AP137: 11148.5 | AQ137: 6524 | AR137: 373.8 | AS137: 1 | AT137: 1
A138: Philippines | B138: 138 | C138: 11153 | D138: 52336.2 | E138: 3551 | F138: 5594.5 | G138: 10739 | H138: 1067.9 | I138: 12458 | J138: 300.1 | K138: 2452 | L138: 50.8 | M138: 2094 | N138: 46.5 | O138: 2536 | P138: 62.5 | Q138: 3122 | R138: 87.1 | S138: 3539 | T138: 115.6 | U138: 4056 | V138: 150.9 | W138: 5128 | X138: 217 | Y138: 5735 | Z138: 281.4 | AA138: 6802 | AB138: 393.3 | AC138: 7197 | AD138: 609.9 | AE138: 7675 | AF138: 810.8 | AG138: 10086 | AH138: 1343.7 | AI138: 11637 | AJ138: 2055.8 | AK138: 13200 | AL138: 3459.2 | AM138: 15299 | AN138: 5672.8 | AO138: 27854 | AP138: 13815.8 | AQ138: 31044 | AR138: 922.5 | AS138: 0 | AT138: 0
A139: Poland | B139: 139 | C139: 603 | D139: 17434.9 | E139: 247 | F139: 2382.3 | G139: 468 | H139: 277.9 | I139: 201 | J139: 25.1 | K139: 166 | L139: 13.7 | M139: 205 | N139: 14.4 | O139: 472 | P139: 28.9 | Q139: 479 | R139: 31.3 | S139: 516 | T139: 38.3 | U139: 630 | V139: 53.2 | W139: 1201 | X139: 93.8 | Y139: 2720 | Z139: 174 | AA139: 4504 | AB139: 288.4 | AC139: 5772 | AD139: 449.2 | AE139: 5635 | AF139: 654.2 | AG139: 9261 | AH139: 982.1 | AI139: 14984 | AJ139: 1616 | AK139: 23208 | AL139: 2783.3 | AM139: 30815 | AN139: 4976.7 | AO139: 70575 | AP139: 13128.5 | AQ139: 14952 | AR139: 466.6 | AS139: 1 | AT139: 1
A140: Portugal | B140: 140 | C140: 136 | D140: 12784.7 | E140: 47 | F140: 1484.2 | G140: 110 | H140: 216.9 | I140: 71 | J140: 32.2 | K140: 57 | L140: 21.6 | M140: 59 | N140: 20.5 | O140: 112 | P140: 32.3 | Q140: 172 | R140: 43.3 | S140: 199 | T140: 49.5 | U140: 268 | V140: 70.1 | W140: 383 | X140: 98.3 | Y140: 524 | Z140: 142.9 | AA140: 715 | AB140: 204.6 | AC140: 985 | AD140: 297.8 | AE140: 1268 | AF140: 427.6 | AG140: 2012 | AH140: 675.7 | AI140: 3288 | AJ140: 1129.1 | AK140: 5444 | AL140: 2138.2 | AM140: 8246 | AN140: 4101.2 | AO140: 27774 | AP140: 12047.8 | AQ140: 63865 | AR140: 439.9 | AS140: 1 | AT140: 1
A141: Qatar | B141: 141 | C141: 26 | D141: 24220.2 | E141: 9 | F141: 2819.1 | G141: 21 | H141: 425.8 | I141: 12 | J141: 59 | K141: 6 | L141: 21.6 | M141: 5 | N141: 21.8 | O141: 8 | P141: 41.6 | Q141: 8 | R141: 49.2 | S141: 8 | T141: 56.9 | U141: 14 | V141: 75.7 | W141: 26 | X141: 120.8 | Y141: 30 | Z141: 176.4 | AA141: 27 | AB141: 266.2 | AC141: 23 | AD141: 409 | AE141: 20 | AF141: 611.1 | AG141: 23 | AH141: 993.6 | AI141: 24 | AJ141: 1615.7 | AK141: 25 | AL141: 2755.8 | AM141: 22 | AN141: 4694.1 | AO141: 62 | AP141: 12428.5 | AQ141: 196265 | AR141: 421.8 | AS141: 1 | AT141: 1
A142: Romania | B142: 142 | C142: 433 | D142: 20766.1 | E142: 269 | F142: 4307.3 | G142: 1127 | H142: 1125.7 | I142: 371 | J142: 83.6 | K142: 251 | L142: 42.6 | M142: 361 | N142: 42.4 | O142: 321 | P142: 39.9 | Q142: 402 | R142: 43 | S142: 462 | T142: 53.5 | U142: 703 | V142: 79.1 | W142: 890 | X142: 142.4 | Y142: 1853 | Z142: 233.6 | AA142: 2920 | AB142: 363.6 | AC142: 3496 | AD142: 517.4 | AE142: 4515 | AF142: 811.2 | AG142: 8164 | AH142: 1219.5 | AI142: 12315 | AJ142: 2028.7 | AK142: 17853 | AL142: 3496.1 | AM142: 23610 | AN142: 6460.6 | AO142: 38538 | AP142: 14874.7 | AQ142: 179504 | AR142: 909.7 | AS142: 1 | AT142: 1
A143: Russian Federation | B143: 143 | C143: 5183 | D143: 41833.4 | E143: 1251 | F143: 3383.5 | G143: 3205 | H143: 545.9 | I143: 2559 | J143: 100.5 | K143: 1556 | L143: 40 | M143: 1945 | N143: 33.5 | O143: 4943 | P143: 83 | Q143: 6264 | R143: 115.7 | S143: 6954 | T143: 136.2 | U143: 8332 | V143: 175.1 | W143: 13663 | X143: 233 | Y143: 21661 | Z143: 337.8 | AA143: 30233 | AB143: 510.8 | AC143: 36436 | AD143: 767.2 | AE143: 33379 | AF143: 1097.1 | AG143: 83486 | AH143: 1618 | AI143: 94482 | AJ143: 2562.5 | AK143: 171129 | AL143: 4208.4 | AM143: 169530 | AN143: 7016.7 | AO143: 351006 | AP143: 15898 | AQ143: 53750 | AR143: 979.8 | AS143: 1 | AT143: 0
A144: Rwanda | B144: 144 | C144: 3866 | D144: 133344.7 | E144: 1871 | F144: 21986.9 | G144: 6749 | H144: 5221.9 | I144: 9561 | J144: 2090.5 | K144: 1143 | L144: 202.9 | M144: 870 | N144: 145.3 | O144: 1474 | P144: 297.4 | Q144: 2706 | R144: 697.6 | S144: 3212 | T144: 1049.9 | U144: 2872 | V144: 1188.2 | W144: 2376 | X144: 1201.7 | Y144: 1896 | Z144: 1145.6 | AA144: 1649 | AB144: 1221.2 | AC144: 1369 | AD144: 1221.5 | AE144: 1300 | AF144: 1699.6 | AG144: 1560 | AH144: 2544.5 | AI144: 2263 | AJ144: 4367.1 | AK144: 2172 | AL144: 5741.2 | AM144: 1617 | AN144: 8352.9 | AO144: 1655 | AP144: 14622.6 | AQ144: 491 | AR144: 114.6 | AS144: 1 | AT144: 0
A145: Samoa | B145: 145 | C145: 20 | D145: 39324.2 | E145: 5 | F145: 3087.4 | G145: 14 | H145: 582.3 | I145: 19 | J145: 178.1 | K145: 4 | L145: 34.9 | M145: 4 | N145: 36 | O145: 6 | P145: 73.6 | Q145: 7 | R145: 96.5 | S145: 7 | T145: 116.7 | U145: 9 | V145: 156.6 | W145: 14 | X145: 251 | Y145: 14 | Z145: 348.9 | AA145: 15 | AB145: 510.3 | AC145: 18 | AD145: 783.5 | AE145: 24 | AF145: 1143 | AG145: 33 | AH145: 1745 | AI145: 38 | AJ145: 2711.8 | AK145: 52 | AL145: 4299.4 | AM145: 62 | AN145: 6688.4 | AO145: 89 | AP145: 13165.8 | AQ145: 33792 | AR145: 620.3 | AS145: 1 | AT145: 1
A146: São Tomé and Príncipe | B146: 146 | C146: 48 | D146: 101643.2 | E146: 14 | F146: 10440.7 | G146: 58 | H146: 2678.1 | I146: 59 | J146: 673.8 | K146: 10 | L146: 104.1 | M146: 6 | N146: 72.6 | O146: 11 | P146: 118.8 | Q146: 12 | R146: 164 | S146: 9 | T146: 195.9 | U146: 9 | V146: 236.3 | W146: 12 | X146: 330.4 | Y146: 12 | Z146: 398.2 | AA146: 11 | AB146: 518.7 | AC146: 12 | AD146: 742.6 | AE146: 14 | AF146: 1025.9 | AG146: 25 | AH146: 1654 | AI146: 30 | AJ146: 2466.6 | AK146: 39 | AL146: 3968.8 | AM146: 38 | AN146: 6021 | AO146: 52 | AP146: 12796.6 | AQ146: 46502 | AR146: 999.5 | AS146: 1 | AT146: 0
A147: Saudi Arabia | B147: 147 | C147: 2178 | D147: 41615.5 | E147: 621 | F147: 3977.6 | G147: 1669 | H147: 665.6 | I147: 1014 | J147: 91.9 | K147: 396 | L147: 30.9 | M147: 271 | N147: 23.2 | O147: 380 | P147: 38.6 | Q147: 409 | R147: 46.7 | S147: 438 | T147: 53.8 | U147: 513 | V147: 70.7 | W147: 574 | X147: 102.7 | Y147: 579 | Z147: 154 | AA147: 770 | AB147: 236.4 | AC147: 733 | AD147: 366.3 | AE147: 919 | AF147: 550.9 | AG147: 1161 | AH147: 911.4 | AI147: 1906 | AJ147: 1488.2 | AK147: 1419 | AL147: 2545.6 | AM147: 1750 | AN147: 4375 | AO147: 5785 | AP147: 11418.5 | AQ147: 565 | AR147: 632.6 | AS147: 1 | AT147: 1
A148: Senegal | B148: 148 | C148: 3956 | D148: 110537.2 | E148: 1830 | F148: 17335.9 | G148: 5667 | H148: 3455.6 | I148: 10087 | J148: 1588 | K148: 1107 | L148: 157.4 | M148: 654 | N148: 105.3 | O148: 885 | P148: 165.2 | Q148: 1150 | R148: 253.5 | S148: 1190 | T148: 321.3 | U148: 1111 | V148: 376.9 | W148: 1129 | X148: 490.4 | Y148: 982 | Z148: 549.8 | AA148: 965 | AB148: 680.6 | AC148: 1143 | AD148: 928.2 | AE148: 1349 | AF148: 1267.6 | AG148: 1748 | AH148: 2044.6 | AI148: 1898 | AJ148: 3049.5 | AK148: 1832 | AL148: 4799 | AM148: 1252 | AN148: 7120.1 | AO148: 766 | AP148: 11407.6 | AQ148: 347 | AR148: 641.1 | AS148: 1 | AT148: 1
A149: Serbia | B149: 149 | C149: 130 | D149: 11481.9 | E149: 62 | F149: 1824.8 | G149: 135 | H149: 247.6 | I149: 55 | J149: 23.1 | K149: 37 | L149: 11.4 | M149: 54 | N149: 15 | O149: 115 | P149: 30.4 | Q149: 137 | R149: 36.8 | S149: 155 | T149: 43.4 | U149: 209 | V149: 61.1 | W149: 353 | X149: 105.4 | Y149: 574 | Z149: 164.8 | AA149: 1064 | AB149: 275.5 | AC149: 1326 | AD149: 429.5 | AE149: 1687 | AF149: 690.1 | AG149: 3163 | AH149: 1116.8 | AI149: 5538 | AJ149: 1922.6 | AK149: 8131 | AL149: 3378.7 | AM149: 9606 | AN149: 6012.5 | AO149: 12440 | AP149: 12924.4 | AQ149: 507 | AR149: 569.1 | AS149: 1 | AT149: 1
A150: Seychelles | B150: 150 | C150: 3 | D150: 26209 | E150: 1 | F150: 2557.8 | G150: 2 | H150: 364 | I150: 2 | J150: 74.9 | K150: 1 | L150: 23.5 | M150: 2 | N150: 32.6 | O150: 3 | P150: 77.8 | Q150: 4 | R150: 102.9 | S150: 4 | T150: 122.8 | U150: 4 | V150: 157.1 | W150: 5 | X150: 245.4 | Y150: 5 | Z150: 324.9 | AA150: 6 | AB150: 461.6 | AC150: 7 | AD150: 694.6 | AE150: 9 | AF150: 1006 | AG150: 11 | AH150: 1583.7 | AI150: 13 | AJ150: 2445.1 | AK150: 14 | AL150: 4008.4 | AM150: 14 | AN150: 6390.5 | AO150: 21 | AP150: 14271.4 | AQ150: 415 | AR150: 493.1 | AS150: 1 | AT150: 1
A151: Sierra Leone | B151: 151 | C151: 3312 | D151: 189450.8 | E151: 1635 | F151: 32095.7 | G151: 6375 | H151: 8290.4 | I151: 6689 | J151: 2336.8 | K151: 730 | L151: 251.5 | M151: 384 | N151: 153.1 | O151: 500 | P151: 218.2 | Q151: 706 | R151: 355.9 | S151: 759 | T151: 462.3 | U151: 749 | V151: 530.2 | W151: 780 | X151: 654.1 | Y151: 704 | Z151: 702 | AA151: 708 | AB151: 842.1 | AC151: 743 | AD151: 1119.2 | AE151: 783 | AF151: 1511.2 | AG151: 912 | AH151: 2470.3 | AI151: 855 | AJ151: 3658.6 | AK151: 687 | AL151: 5670.7 | AM151: 378 | AN151: 8238.6 | AO151: 171 | AP151: 12442.3 | AQ151: 28348 | AR151: 234.3 | AS151: 1 | AT151: 0
A152: Singapore | B152: 152 | C152: 28 | D152: 6591.9 | E152: 10 | F152: 754.7 | G152: 18 | H152: 90.7 | I152: 17 | J152: 19.4 | K152: 12 | L152: 9.8 | M152: 15 | N152: 13.5 | O152: 25 | P152: 24.6 | Q152: 25 | R152: 23.6 | S152: 38 | T152: 27.5 | U152: 63 | V152: 42.3 | W152: 99 | X152: 61.6 | Y152: 148 | Z152: 95.4 | AA152: 218 | AB152: 168.2 | AC152: 281 | AD152: 273.3 | AE152: 289 | AF152: 458.6 | AG152: 461 | AH152: 816.6 | AI152: 676 | AJ152: 1463.4 | AK152: 826 | AL152: 2306.6 | AM152: 920 | AN152: 4182.9 | AO152: 1725 | AP152: 12321.3 | AQ152: 35008 | AR152: 557.2 | AS152: 1 | AT152: 1
A153: Slovakia | B153: 153 | C153: 75 | D153: 14797.7 | E153: 33 | F153: 2169.2 | G153: 85 | H153: 344.7 | I153: 39 | J153: 33.3 | K153: 35 | L153: 19.7 | M153: 33 | N153: 16.3 | O153: 62 | P153: 28 | Q153: 67 | R153: 28.8 | S153: 77 | T153: 36.9 | U153: 90 | V153: 49.7 | W153: 176 | X153: 91.2 | Y153: 307 | Z153: 150.2 | AA153: 536 | AB153: 259 | AC153: 695 | AD153: 411.5 | AE153: 897 | AF153: 654.1 | AG153: 1279 | AH153: 1057.8 | AI153: 2107 | AJ153: 1796.4 | AK153: 3266 | AL153: 3071.5 | AM153: 4922 | AN153: 5661.6 | AO153: 9316 | AP153: 14021.1 | AQ153: 44148 | AR153: 886.2 | AS153: 0 | AT153: 0
A154: Slovenia | B154: 154 | C154: 17 | D154: 10547.2 | E154: 6 | F154: 1282.6 | G154: 13 | H154: 161.6 | I154: 7 | J154: 20.3 | K154: 5 | L154: 9.1 | M154: 7 | N154: 12.1 | O154: 21 | P154: 30.9 | Q154: 25 | R154: 33.6 | S154: 23 | T154: 32.6 | U154: 36 | V154: 48.5 | W154: 59 | X154: 77.3 | Y154: 120 | Z154: 156.3 | AA154: 190 | AB154: 250.1 | AC154: 246 | AD154: 393.9 | AE154: 295 | AF154: 534.8 | AG154: 442 | AH154: 811.3 | AI154: 752 | AJ154: 1369.7 | AK154: 1179 | AL154: 2386.4 | AM154: 1613 | AN154: 4170.2 | AO154: 4160 | AP154: 12469 | AQ154: 168 | AR154: 430.6 | AS154: 0 | AT154: 0
A155: Solomon Islands | B155: 155 | C155: 77 | D155: 57942.3 | E155: 20 | F155: 5138.9 | G155: 67 | H155: 1069.3 | I155: 49 | J155: 189.9 | K155: 13 | L155: 46.3 | M155: 19 | N155: 80.3 | O155: 38 | P155: 177 | Q155: 47 | R155: 237.5 | S155: 50 | T155: 301.5 | U155: 50 | V155: 399.5 | W155: 82 | X155: 783.3 | Y155: 75 | Z155: 900.4 | AA155: 80 | AB155: 1164.8 | AC155: 99 | AD155: 1687.5 | AE155: 110 | AF155: 2325.2 | AG155: 110 | AH155: 3546.7 | AI155: 138 | AJ155: 5214.9 | AK155: 121 | AL155: 7935.5 | AM155: 118 | AN155: 11318 | AO155: 109 | AP155: 18215.9 | AQ155: 24239 | AR155: 805 | AS155: 0 | AT155: 0
